Workbook

Sheet Portada
B9: MODELO DE TELEFÓNICA MÓVILES PARA LA ESTIMACIÓN DEL CARGO DE INTERCONEXIÓN POR TERMINACIÓN DE LLAMADAS EN REDES MÓVILES
B15: Agosto 2014 | E15: Revisado y modificado por el OSIPTEL - Febrero 2015

Sheet Modelo
N13: Nota:
N14: Las celdas de color | Q14: contienen datos de entrada ficticios
F17: ="Cargo Terminación ("&moneda&")" -> Cargo Terminación (US$) | H17: =Resultado!C9 -> 0.08638
L18: VALOR ORIGINAL
L20: Sin redondear:

Sheet ModeloEdicion
F2: <-- MODELO
G7: LISTAS | M7: PARÁMETROS TERRENO
G9: PARÁMETROS GENERALES | M9: PARÁMETROS BACKHAUL
G11: ESTADÍSTICAS | M11: PARÁMETROS TX
G13: DEMANDA | M13: LISTADO MSC
G15: PARÁMETROS CELL SITE | M15: PARÁMETROS NÚCLEO
G17: LISTADO CELL SITE | M17: VIDAS ÚTILES
G19: PARÁMETROS RADIO 2G | M19: COSTOS OPERATIVOS
G21: PARÁMETROS RADIO 3G | M21: VALOR ESPECTRO
G23: LISTADO BSC | M23: INVERSIÓN OSS
G25: LISTADO RNC | M25: PARÁMETROS ENERGÍA

Sheet LISTAS
A1: <-- EDICIÓN | B1: AUXILIAR
A3: DEPATAMENTOS
A4: ID_DPTO | B4: DPTO
A5: 1 | B5: AYACUCHO | C5: =A5 -> 1
A6: 2 | B6: HUANCAVELICA | C6: =A6 -> 2
A7: 3 | B7: HUANUCO | C7: 3
A8: 4 | B8: ICA | C8: 4
A9: 5 | B9: JUNIN | C9: 5
A10: 6 | B10: LIMA | C10: 6
A11: 7 | B11: LORETO | C11: 7
A12: 8 | B12: PASCO | C12: 8
A13: 9 | B13: SAN MARTIN | C13: 9
A14: 10 | B14: UCAYALI | C14: 10
A15: 11 | B15: AMAZONAS | C15: 11
A16: 12 | B16: ANCASH | C16: 12
A17: 13 | B17: CAJAMARCA | C17: 13
A18: 14 | B18: LA LIBERTAD | C18: 14
A19: 15 | B19: LAMBAYEQUE | C19: 15
A20: 16 | B20: PIURA | C20: 16
A21: 17 | B21: TUMBES | C21: 17
A22: 18 | B22: APURIMAC | C22: 18
A23: 19 | B23: AREQUIPA | C23: 19
A24: 20 | B24: CUSCO | C24: 20
A25: 21 | B25: MADRE DE DIOS | C25: 21
A26: 22 | B26: MOQUEGUA | C26: 22
A27: 23 | B27: PUNO | C27: 23
A28: 24 | B28: TACNA | C28: 24
A29: 25 | B29: CALLAO | C29: 25
A30: idDepartamentos | B30: departamentos
A32: REGIONES
A33: ID_REGION | B33: REGION
A34: 1 | B34: LIMA
A35: 2 | B35: NORTE
A36: 3 | B36: SUR
B37: regiones
A39: BANDAS DE FRECUENCIAS
A40: Banda | B40: ID_BANDA
A41: Banda 850MHz | B41: B850
A42: Banda 1900MHz | B42: B1900
A43: bandasEspectro
A45: TIPOS EMPLAZAMIENTOS
A46: ID_TIPO | B46: TIPO | C46: DESCRIPCIÓN
A47: 1 | B47: GF | C47: GreenField. Emplazamiento macro sobre suelo con torre
A48: 2 | B48: HTBS | C48: HTBS
A49: 3 | B49: RT_V | C49: Rooftop Ventado. Sitio ventado en azotea
A50: 4 | B50: RT_M | C50: Rooftop Mimetizado. Sitio en azotea mimetizado mastiles
A51: 5 | B51: PI | C51: Picocelda
A52: 6 | B52: FE | C52: Femtocelda
A53: idListaTiposEmplazamientos | B53: listaTiposEmplazamiento | C53: descTiposEmplazamiento
A55: TIPOS CELDAS 2G | D55: TIPOS CELDAS 3G | G55: TIPOS CELDAS EMPLAZAMIENTOS
A56: ID_TIPO | B56: TIPO | D56: ID_TIPO | E56: TIPO | G56: ID_TIPO | H56: TIPO
A57: 1 | B57: MACROCELDA | D57: 1 | E57: MACROCELDA | G57: 1 | H57: MACROCELDA
A58: 2 | B58: PICOCELDA | E58: DEFAULT1 | G58: 2 | H58: PICOCELDA
A59: 3 | B59: FEMTOCELDA | E59: DEFAULT2 | G59: 3 | H59: FEMTOCELDA
A60: idTipoCelda.2G | B60: tipoCelda.2G | E60: DEFAULT3
E61: DEFAULT4
D62: idTipoCelda.3G | E62: tipoCelda.3G | H62: tipoCelda.Emplazamiento
A65: TIPO ZONAS
A66: TIPO | B66: DESCRIPCIÓN
A67: LIMA URBANA | B67: Lima entorno urbano
A68: LIMA RURAL | B68: Lima entorno rural
A69: PROVINCIA URBANA | B69: Provincias entorno urbano
A70: PROVINCIA RURAL | B70: Provincias entorno rural
A71: DEFAULT
A72: DEFAULT
A73: TiposEntorno
A75: SERVICIO PORTADORES 3G
A76: ID_SERVICIO | B76: SERVICIO
A77: CS12 | B77: Servicio de voz
A78: R99_UL | B78: Combinación de servicios de datos R99( Enlace ascendente)
A79: R99_DL | B79: Combinación de servicios de datos R99 (Enlace descendente)
A80: HSUPA | B80: Datos HSPA (enlace ascendente)
A81: HSDPA | B81: Datos HSPA (enlace descendente)
A82: idSevicios.3G
A83: idServiciosDatos.3G
A85: FABRICANTES 2G | D85: FABRICANTES 3G
A86: ID_FABRICANTE | B86: FABRICANTE | D86: ID_FABRICANTE | E86: FABRICANTE
A87: 1 | B87: DEFAULT | D87: 1 | E87: DEFAULT
A88: 2 | B88: DEFAULT | D88: 2 | E88: DEFAULT
A89: 3 | B89: DEFAULT | D89: 3 | E89: DEFAULT
A90: 4 | B90: DEFAULT | D90: 4 | E90: DEFAULT1
A91: 5 | B91: DEFAULT | D91: 5 | E91: DEFAULT2
B92: fabricantes.2G | E92: fabricantes.3G
A94: TITULARIDAD
A95: ID_TITULARIDAD | B95: TITULARIDAD
A96: TM | B96: Propiedad TM
A97: TERCERO | B97: Propiedad Tercero
A98: D | B98: Default
A99: titularidad
A101: CRITERIOS ASIGNACIÓN COSTOS
A102: ID_CRITERIO | B102: CRITERIO
A103: DIRECTO | B103: Directo a Servicio
A104: INGRESOS | B104: Ingresos por servicio
A105: USO_RADIO | B105: Red de acceso radio
A106: USO_LLAMADAS | B106: Llamadas por servicio
A107: USO_TRAFICO | B107: Tráfico por servicio
A108: USO_SEÑA | B108: Señalización por servicio
A109: USO_PLA | B109: Plataforma
A110: USO_ESPACIO | B110: Espacio Emplazamientos y salas de conmutación
A111: USO_ENERGIA | B111: Energía Emplazamientos y salas de conmutación
A112: OVERHEAD | B112: Considerado en porcentaje de overhead. Excluir costos que usan este criterio en cálculos parciales
A113: idCriterios

Sheet Parametros
A1: <-- EDICIÓN | B1: PARÁMETROS
A3: Parámetros de costos
B5: Moneda | C5: US$ | D5: moneda | K5: UNIDADES | L5: VALOR
B6: Tipo de Cambio | C6: 2.722416667 | D6: tipoC | J6: WACC | K6: US$ | L6: 0.08 | M6: WACC.US
B7: Mark-up Planificación | C7: 0.1 | D7: markupPlanificacion | J7: WACC | K7: S/. | L7: 0.08 | M7: WACC.S
B8: Overhead | C8: 0.05 | D8: overhead
B9: WACC | C9: =INDEX(L6:L7,MATCH(moneda,K6:K7,0)) -> 0.08 | D9: WACC
A13: Parámetros de Tráfico
B15: Perfil de tráfico
B17: Relación HC/Mensual Voz | C17: 0.004
B18: Relación HC/Mensual Datos | C18: 0.005
B19: Relación HC/Mensual Mensajes | C19: 0.006
B21: Distribución de tráfico
B23: Utilizar Distribución nacional | C23: SI | D23: usaDistribucin2G3G
B25: % Trafico Voz 2G | C25: 0.89
B26: % Tráfico Datos 2G | C26: 0.13
B27: % Tráfico Mensajes 2G | C27: 0.73
B29: Distribución de tráfico por region
B31: Utilizar Distribución | C31: NO | D31: usaDistribucionRegion
B33: REGIÓN | C33: VOZ | D33: DATOS | E33: MENSAJES
B34: =regiones -> LIMA | C34: 0.8 | D34: 0.3 | E34: 0.8
B35: NORTE | C35: 0.2 | D35: 0.5 | E35: 0.1
B36: SUR | C36: 0.3 | D36: 0.2 | E36: 0.1
B41: Otros Parámetros
B43: Capacidad promedio usada por SMS (Kbytes) | F43: 0.15
B45: Capacidad promedio usada por MMS (Kbytes) | F45: 42.34
F47: Tipo de llamadas
F48: Salientes | G48: Entrantes | H48: On-net | I48: TUP | J48: FIJA
B49: Duración media de la llamada (minutos) | F49: 1.317223964 | G49: 1.317223964 | H49: 1.52827677 | I49: 2.100958815 | J49: 1.495994515
B51: MSU/llamada | F51: 6

Sheet Estadisticas
A1: <-- EDICIÓN | B1: RESULTADO
B3: 2G
B5: Porcentaje Establecimiento | C5: 0
B6: Porcentaje Tráfico Voz | C6: =(1-C$5)*C10 -> 0.9
B7: Porcentaje tráfico Datos | C7: =(1-C$5)*C11 -> 0.1
B10: Tráfico Voz | C10: 0.9
B11: Tráfico Datos | C11: 0.1
B14: 3G
B16: Porcentaje Establecimiento | C16: 0
B17: Porcentaje Tráfico Voz | C17: =(1-C$5)*C21 -> 0.5
B18: Porcentaje tráfico Datos | C18: =(1-C$5)*C22 -> 0.5
B21: Tráfico Voz | C21: 0.5
B22: Tráfico Datos | C22: 0.5
B25: TOTAL
B27: Porcentaje Establecimiento | C27: 0.1
B28: Porcentaje Tráfico Voz | C28: 0.6
B29: Porcentaje tráfico Datos | C29: 0.3
B31: DE USO
B33: COD_ESTADISTICA | C33: DESCRIPCIÓN_ESTADÍSTICA | D33: VALOR
B34: E1 | C34: %Trafico Entrante termina en buzon de voz | D34: 0
B35: E6 | C35: %Trafico On-net termina en buzón de voz | D35: 0
B36: E8 | C36: %Llamadas Entrante LDI que utilizan 1 central | D36: 0
B37: E9 | C37: %Llamadas Entrante LDI que utilizan 2 centrales | D37: 1
B38: E10 | C38: %Llamadas Entrante LDN Fijo que utilizan 1 central | D38: 0
B39: E11 | C39: %Llamadas Entrante LDN Fijo que utilizan 2 centrales | D39: 1
B40: E12 | C40: %Llamadas Entrante LDN Móvil que utilizan 1 central | D40: 0
B41: E13 | C41: %Llamadas Entrante LDN Móvil que utilizan 2 centrales | D41: 1
B42: E14 | C42: %Llamadas Entrante Local Fijo que utilizan 1 central | D42: 0
B43: E15 | C43: %Llamadas Entrante Local Fijo que utilizan 2 centrales | D43: 1
B44: E16 | C44: %Llamadas Entrante Local Móvil que utilizan 1 central | D44: 0
B45: E17 | C45: %Llamadas Entrante Local Móvil que utilizan 2 centrales | D45: 1
B46: E18 | C46: %Llamadas On-net LDN Móvil que utilizan 1 central | D46: 0
B47: E19 | C47: %Llamadas On-net LDN Móvil que utilizan 2 centrales | D47: 1
B48: E18 | C48: %Llamadas On-net Local Móvil que utilizan 1 central | D48: 0
B49: E19 | C49: %Llamadas On-net Local Móvil que utilizan 2 centrales | D49: 1
B50: E20 | C50: %Llamadas Saliente LDI que utilizan 1 central | D50: 1
B51: E21 | C51: %Llamadas Saliente LDI que utilizan 2 centrales | D51: 0
B52: E22 | C52: %Llamadas Saliente LDN Fijo que utilizan 1 central | D52: 1
B53: E23 | C53: %Llamadas Saliente LDN Fijo que utilizan 2 centrales | D53: 0
B54: E24 | C54: %Llamadas Saliente LDN Móvil que utilizan 1 central | D54: 1
B55: E25 | C55: %Llamadas Saliente LDN Móvil que utilizan 2 centrales | D55: 0
B56: E26 | C56: %Llamadas Saliente Local Fijo que utilizan 1 central | D56: 1
B57: E27 | C57: %Llamadas Saliente Local Fijo que utilizan 2 centrales | D57: 0
B58: E28 | C58: %Llamadas Saliente Local Móvil que utilizan 1 central | D58: 1
B59: E29 | C59: %Llamadas Saliente Local Móvil que utilizan 2 centrales | D59: 0
B60: E30 | C60: Porcentaje de carga del procesador de MSC/Server Entrante LDI | D60: 1
B61: E31 | C61: Porcentaje de carga del procesador de MSC/Server Entrante LDN | D61: 1
B62: E33 | C62: Porcentaje de carga del procesador de MSC/Server Entrante Local | D62: 1
B63: E35 | C63: Porcentaje de carga del procesador de MSC/Server On-net LDN | D63: 1
B64: E36 | C64: Porcentaje de carga del procesador de MSC/Server On-net Local | D64: 1
B65: E37 | C65: Porcentaje de carga del procesador de MSC/Server Saliente LDI | D65: 1
B66: E38 | C66: Porcentaje de carga del procesador de MSC/Server Saliente LDN | D66: 1
B67: E40 | C67: Porcentaje de carga del procesador de MSC/Server Saliente Local | D67: 1
B68: E42 | C68: Porcentaje de carga del procesador de un MSC/Server para los SMS entrantes | D68: 1
B69: E43 | C69: Porcentaje de carga del procesador de un MSC/Server para los SMS salientes | D69: 1
B70: E44 | C70: Porcentaje de carga del procesador de un MSC/Server para los SMS onnet | D70: 1
B71: E46 | C71: Porcentaje de carga del procesador de HLR Entrante LDI | D71: 1
B72: E47 | C72: Porcentaje de carga del procesador de HLR Entrante LDN | D72: 1
B73: E49 | C73: Porcentaje de carga del procesador de HLR Entrante Local | D73: 1
B74: E51 | C74: Porcentaje de carga del procesador de HLR On-net LDN | D74: 1
B75: E52 | C75: Porcentaje de carga del procesador de HLR On-net Local | D75: 1
B76: E53 | C76: Porcentaje de carga del procesador de un HLR para los SMS entrantes | D76: 1
B77: E54 | C77: Porcentaje de carga del procesador de un HLR para los SMS onnet | D77: 1
B78: E56 | C78: Porcentaje de carga del procesador de PTS Entrante LDI | D78: 1
B79: E57 | C79: Porcentaje de carga del procesador de PTS Entrante LDN | D79: 1
B80: E59 | C80: Porcentaje de carga del procesador de PTS Entrante Local | D80: 1
B81: E61 | C81: Porcentaje de carga del procesador de PTS On-net LDN | D81: 1
B82: E62 | C82: Porcentaje de carga del procesador de PTS On-net Local | D82: 1
B83: E63 | C83: Porcentaje de carga del procesador de PTS Saliente LDI | D83: 1
B84: E64 | C84: Porcentaje de carga del procesador de PTS Saliente LDN | D84: 1
B85: E66 | C85: Porcentaje de carga del procesador de PTS Saliente Local | D85: 1
B86: E68 | C86: Porcentaje de carga del procesador de un PTS para los SMS entrantes | D86: 1
B87: E69 | C87: Porcentaje de carga del procesador de un PTS para los SMS salientes | D87: 1
B88: E70 | C88: Porcentaje de carga del procesador de un PTS para los SMS onnet | D88: 1
B89: E71 | C89: Porcentaje de carga del procesador de un PTS para la red inteligente | D89: 1
B90: E76 | C90: Porcentaje de minutos de voz de terminales B1 destinados a un usuario de Movistar. | D90: 1
B91: E77 | C91: Porcentaje de llamadas de voz de terminales B1 destinados a un usuario de Movistar. | D91: 1
B92: E78 | C92: % de llamadas no completadas
B94: ESPACIO
C96: UNIDADES ENERGÍA | D96: UNIDADES ESPACIO | E96: %ESPACIO | F96: %CONSUMO
B97: LOCALES ACCESO RADIO | C97: =D97 -> 210168 | D97: =SUM('Costos Terreno'!R7:R13) -> 210168 | E97: =IF(SUM(D97:D98)=0,0,D97/SUM(D97:D98)) -> 0.9957359713 | F97: =IF(SUM(C97:C98)=0,0,C97/SUM(C97:C98)) -> 0.9957359713
B98: LOCALES NÚCLEO | C98: =D98 -> 900 | D98: =MAX(SUM('Dimensionado BSC'!G7:G9),SUM('Dimensionado RNC'!G7:G9),(IF('Parámetros Nucleo Red'!C5="SI",SUM('Dimensionado Nucleo Red'!G9:G11)+SUM('Dimensionado Nucleo Red'!G17:G19),'Dimensionado Nucleo Red'!G12+'Dimensionado Nucleo Red'!G20)+'Dimensionado Nucleo Red'!G183+'Dimensionado Nucleo Red'!G184+'Dimensionado Nucleo Red'!G185+'Dimensionado Nucleo Red'!G186))*'Parámetros Terrenos'!C21 -> 900 | E98: =1-E97 -> 0.004264028654 | F98: =1-F97 -> 0.004264028654
B100: TRÁFICO
B102: Tráfico on-net | C102: =SUM(Tráfico_calculado!B9:B10)+Tráfico_calculado!B24 -> 500045863 | D102: =IF(SUM($C$102:$C$103)=0,0,C102/SUM($C$102:$C$103)) -> 0.8504096548
B103: Tráfico off-net | C103: =SUM(Tráfico_calculado!B4:B8)+SUM(Tráfico_calculado!B11:B15) -> 87960000 | D103: =IF(SUM($C$102:$C$103)=0,0,C103/SUM($C$102:$C$103)) -> 0.1495903452

Sheet Demanda
A1: <-- EDICIÓN | B1: SERVICIOS
A3: Clientes
A5: Tráfico
A7: Líneas móviles | B7: 16571403
A8: LINEAS FIJAS | B8: 320454
A9: LINEAS TUPS | B9: 8198
A10: LINEAS INTERNET BANDA ANCHA MOVIL (USB y Tablets) | B10: 576299
A11: LINEAS REVENTA | B11: 141617
A12: Líneas móviles que hacen uso de plataforma prepago movil | B12: 14850177
A13: Líneas que hacen uso de plataforma de pago corporativo | B13: 491615.34
A15: SERVICIO | B15: MINUTOS MENSUALES | C15: COMUNICACIONES MENSUALES | D15: MB MENSUALES | E15: INGRESOS (miles de soles) | F15: Minutos anuales facturados (Res 050) | G15: Minutos anuales cursados (Res 050)
A16: Entrante LDI | B16: 1000000 | C16: 500000 | D16: 0 | E16: 0 | F16: 15685420 | G16: 6666666666
A17: Entrante LDN Fijo | B17: 0 | C17: 0 | D17: 0 | E17: 0 | F17: 0 | G17: 0
A18: Entrante LDN Móvil | B18: 0 | C18: 0 | D18: 0 | E18: 0 | F18: 0 | G18: 0
A19: Entrante Local Fijo | B19: 25000000 | C19: 45000000 | D19: 0 | E19: 0 | F19: 546556444 | G19: 55555555
A20: Entrante Local Móvil | B20: 60000000 | C20: 63000000 | D20: 0 | E20: 15000 | F20: 444444444 | G20: 66666666
A21: On-net LDN | B21: 0 | C21: 0 | D21: 0 | E21: 0 | F21: 0 | G21: 0
A22: On-net Local | B22: 500000000 | C22: 1253000 | D22: 0 | E22: 156000 | F22: 4444444444 | G22: 4513573
A23: Saliente LDI | B23: 1500000 | C23: 561256 | D23: 0 | E23: 8500 | F23: 66666666 | G23: 7852252222
A24: Saliente LDN Fijo | B24: 0 | C24: 0 | D24: 0 | E24: 0 | F24: 0 | G24: 0
A25: Saliente LDN Móvil | B25: 0 | C25: 0 | D25: 0 | E25: 0 | F25: 0 | G25: 0
A26: Saliente Local Fijo | B26: 10000 | C26: 123456789 | D26: 0 | E26: 230144 | F26: 8888888 | G26: 5544444
A27: Saliente Local Móvil | B27: 450000 | C27: 450220 | D27: 0 | E27: 58222 | F27: 9999999 | G27: 8784545655
A28: Entrante SMS | B28: 0 | C28: 7484 | D28: 0 | E28: 0 | F28: 0 | G28: 0
A29: Entrante MMS | B29: 0 | C29: 0 | D29: 0 | E29: 0 | F29: 0 | G29: 0
A30: Saliente SMS | B30: 0 | C30: 0 | D30: 0 | E30: 230000 | F30: 0 | G30: 0
A31: Saliente MMS | B31: 0 | C31: 0 | D31: 0 | E31: 1111 | F31: 0 | G31: 0
A32: On-net SMS | B32: 0 | C32: 15482 | D32: 0 | E32: 0 | F32: 0 | G32: 0
A33: On-net MMS | B33: 0 | C33: 1558888 | D33: 10000 | E33: 0 | F33: 0 | G33: 0
A34: Servicios de datos | B34: 0 | C34: 0 | D34: 0 | E34: 0 | F34: 0 | G34: 0
A35: Banda Ancha Móvil | B35: 0 | C35: 2000000 | D35: 5488522 | E35: 5600 | F35: 0 | G35: 0
A36: Telefonía FIJA | B36: 45863 | C36: 544555555 | D36: 0 | E36: 4000 | F36: 222222222 | G36: 999999999
A37: TELEFONIA TUP | B37: 250065 | C37: 5894111 | E37: 156000 | G37: 11111111
A38: REVENTA | C38: 15545765 | D38: 7895445 | E38: 30000000
A39: Total cursado | B39: =12*SUM(B16:B37) -> 7059071136
C73: LINEAS DE ABONADOS
C74: archivo | D74: DEMANDA 2013.xlsx
C75: hoja | D75: RESUMEN LINEAS
C76: LINEAS
C77: Líneas móviles | D77: 16571403
C78: Líneas móviles prepago | D78: 12304748
C79: Líneas móviles control | D79: 2545429
C80: Líneas móviles postpago | D80: 1721226
C81: LINEAS FIJAS | D81: 320454
C82: LINEAS TUPS | D82: 8198
C83: LINEAS INTERNET | D83: 1396923
C84: LINEAS PARA REVENTA | D84: 141617
C85: Lineas que hacen uso de plataforma de pago movil | D85: 16247100
C86: lineas moviles prepago | D86: 12304748
C87: lineas moviles control | D87: 2545429
C88: lineas internet banda ancha movil | D88: 1396923
C89: Lineas que hacen uso de plataforma de pago fija (prepago corporativo) | D89: 470269
C90: lineas fijas | D90: 320454
C91: lineas tups | D91: 8198
C92: lineas para reventa | D92: 141617
C97: TRAFICO TELEFONIA MOVIL
C98: archivo | D98: DEMANDA 2013.xlsx
C99: hoja | D99: trafico MOVIL res050
C100: RESUMEN RESUMEN
C102: ENTRANTE
C103: A | D103: Tráfico Entrante LDI | E103: 196044582.5
D104: Tráfico Entrante LDN | E104: 0
D105: Tráfico Entrante Local | E105: 2396588879
D106: Tráfico Entrante Local Fijo-Móvil | E106: 885555943.5
C107: a.local | D107: Desde fijo | E107: 352097678.4
C108: a.local | D108: Desde público | E108: 533458265
D109: Tráfico Entrante Local Móvil-Móvil | E109: 1511032936
C110: a.local | D110: Desde móvil | E110: 1511032936
C111: B | D111: Consumo Controlado | E111: 419698054.4
D112: Post-pago | E112: 459094787.1
D113: Pre-pago | E113: 1517796038
D114: Total | E114: 2396588879
C116: SALIENTE
C117: A FACTURADO | D117: Tráfico Originado LDI | E117: 39631419.8
D118: Tráfico Originado LDN | E118: 0
D119: Tráfico Originado Local | E119: 2.051527651e+10
C120: A.Local | D120: A fijo | E120: 852214313.1
D121: A móvil off-net | E121: 1415095978
D122: A móvil on-net | E122: 1.824796621e+10
D123: Total Local | E123: 2.051527651e+10
C125: B FACTURADO | D125: Consumo Controlado | E125: 4947249452
D126: Post-pago | E126: 1.006531502e+10
D127: Pre-pago | E127: 5502712032
D128: Total | E128: 2.051527651e+10
C130: C CURSADO
D131: Consumo Controlado | E131: 4897157939
D132: Post-pago | E132: 1.026901805e+10
D133: Pre-pago | E133: 5530707804
D134: Total | E134: 2.069688379e+10
D136: FACTOR CURSADO/FACTURADO | E136: 1.008852295
C141: TRAFICO TELEFONIA FIJA
C142: archivo | D142: DEMANDA 2013.xlsx
C143: hoja | D143: trafico FIJO res 050
C144: TRAFICO FIJO
D145: SALIENTE facturado | E145: SALIENTE cursado
C146: trafico fijo | D146: 211853593 | E146: 253335345
C148: TRAFICO FIJO LOCAL FACTURADO DE REPOTE WEB O50
C149: TRAFICO CURSADO DE RES050 LOCAL E INTEROPERABILIDAD
C150: DISTRIBUCION DE TRAFICO SEGÚN TRAFICOS LOCAL CURSADOS Y ENTRANTES RES050
C152: DEPARTAMENTO | D152: % TRAFICO SALIENTE | E152: % TRAFICO ENTRANTE
C153: Amazonas | D153: 0.003618264111 | E153: 0.0003785077798
C154: Ancash | D154: 0.02810919538 | E154: 0.01883306735
C155: Apurímac | D155: 0.002161717942 | E155: 0.0007754324577
C156: Arequipa | D156: 0.06445571217 | E156: 0.04239275915
C157: Ayacucho | D157: 0.003128514991 | E157: 0.001246920751
C158: Cajamarca | D158: 0.004556369185 | E158: 0.002215751058
C159: Callao | D159: 0.04415140026 | E159: 0
C160: Cuzco | D160: 0.01433027595 | E160: 0.007179895768
C161: Huancavelica | D161: 0.0003776861686 | E161: 0.0001113752937
C162: Huánuco | D162: 0.005138056871 | E162: 0.002260924155
C163: Ica | D163: 0.03531341118 | E163: 0.02143852032
C164: Junín | D164: 0.03078356026 | E164: 0.01607633002
C165: La Libertad | D165: 0.06729877877 | E165: 0.05384822147
C166: Lambayeque | D166: 0.04036815725 | E166: 0.02511306093
C167: Lima (3/) | D167: 0.4988483834 | E167: 0.7037764104
C168: Loreto | D168: 0.07846285519 | E168: 0.05921419996
C169: Madre de Dios | D169: 0.001393800732 | E169: 0.0003728667176
C170: Moquegua | D170: 0.002308908479 | E170: 0.0009901861581
C171: Pasco | D171: 0.002341968085 | E171: 0.0004994652723
C172: Piura | D172: 0.02980689261 | E172: 0.02376554397
C173: Puno | D173: 0.005029955999 | E173: 0.002112553829
C174: San Martín | D174: 0.01704144707 | E174: 0.007927729454
C175: Tacna | D175: 0.004018886988 | E175: 0.001805769081
C176: Tumbes | D176: 0.001962111411 | E176: 0.0008127895759
C177: Ucayali | D177: 0.01499368951 | E177: 0.006851719059
C183: DEMANDA MENSAJES SMS Y MMS
C184: archivo | D184: DEMANDA 2013.xlsx
C185: hoja | D185: MENSAJES RES 050
C186: RESUMEN MENSAJES MMS Y SMS
D187: cantidad
C188: resumen | D188: entrante | E188: saliente
C189: mms | D189: 0 | E189: 6839308
C190: sms | D190: 1259508524 | E190: 6038229400
C192: sms entrante afecto a cargo
C193: cantidad | D193: 48153588
C194: cargo usd | D194: 0.017
C196: TAMAÑO PROMEDIO MMS (KB) | D196: 42.34381594
C201: TRAFICO TUP
C202: DEPARTAMENTO | D202: %
C203: Amazonas | D203: 0.001687217455
C204: Ancash | D204: 0.007378849268
C205: Apurímac | D205: 0.007204853715
C206: Arequipa | D206: 0.007310733505
C207: Ayacucho | D207: 0.005002241449
C208: Cajamarca | D208: 0.009750996018
C209: Callao | D209: 0.05844670215
C210: Cuzco | D210: 0.0005368277007
C211: Huancavelica | D211: 0.003533768523
C212: Huánuco | D212: 0.00495320392
C213: Ica | D213: 0.005195528578
C214: Junín | D214: 0.05596593115
C215: La Libertad | D215: 0.02415525008
C216: Lambayeque | D216: 0.001500609749
C217: Lima (3/) | D217: 0.5940634657
C218: Loreto | D218: 0.04685037651
C219: Madre de Dios | D219: 0.00257091622
C220: Moquegua | D220: 2.41194081e-05
C221: Pasco | D221: 0.006179507585
C222: Piura | D222: 0.006061940122
C223: Puno | D223: 0.001622761415
C224: San Martín | D224: 0.05000178163
C225: Tacna | D225: 0.0034768242
C226: Tumbes | D226: 0.006107718271
C227: Ucayali | D227: 0.09041787572
C230: FACTOR CURSADO/FACTURADO | D230: 1.008852295
C232: Tráfico cursado
C233: Tráfico local
C234: TUP - Abonado Urbano | D234: 1938230.324
C235: TUP - Fijo Resto (2/) | D235: 30493.56948
C236: TUP - Móvil | D236: 15953773.97
C237: Tráfico LDN (3/) | D237: 0
C238: TUP - Abonado Urbano | D238: 2449790.551
C239: TUP - Fijo Resto (2/) | D239: 214143.8711
C240: Tráfico LDI (3/) | D240: 3633425.619
C241: TOTAL | D241: 24219857.91
C245: DEMANDA PARA REVENTA DE LINEAS
C246: RESUMEN
C247: VENTA DE LINEAS PARA REVENTA
C248: LINEAS A DICIEMBRE 2013 | D248: 141617
C249: INGRESOS ANUALES (TRIMESTRE 4 X 4) | D249: 35510532.52
C250: VELOCIDAD PROMEDIO DATOS MBPS | D250: 0.7
C251: EL SERVICIO ES DE INTERNET MAYORISTA
C252: LA VELOCIDAD MEDIA SE ASUME IGUAL A LA REPORTADA EN MEGAPROCESO ANTES DEL INICIO
C253: SE DESCARTA LA REVENTA DE LINEAS FIJAS INALAMBRICAS REPORTADAS POR TDP (2118). MUY POCAS LINEAS Y NO HAY INFORMACION DE TRAFICO. EL TRAFICO ACUMULADO ES DESPRECIABLE EN COMPARACION A LA MOVIL
C256: HOJA lineas internet res050
C258: CARACTERIZACION LINEAS INTERNET
C259: COMUNICACIONES MENSUALES / LINEA | D259: 7.255384155
C260: MB MENSUALES / LINEA | D260: 366.952565
C261: MB DIARIOS / LINEA | D261: 12.23175217
C262: VELOCIDAD NOMINAL PROMEDIO MBPS | D262: 2.553384474

Sheet Parametros Cell Sites
A1: <-- EDICIÓN | B1: PARÁMETROS CELL SITES
A3: Tipos de Cell sites
B5: ID_TIPO | C5: DESCRIPCIÓN
B6: =listaTiposEmplazamiento -> GF | C6: =descTiposEmplazamiento -> GreenField. Emplazamiento macro sobre suelo con torre
B7: HTBS | C7: HTBS
B8: RT_V | C8: Rooftop Ventado. Sitio ventado en azotea
B9: RT_M | C9: Rooftop Mimetizado. Sitio en azotea mimetizado mastiles
B10: PI | C10: Picocelda
B11: FE | C11: Femtocelda
B12: tiposEmplazamientos
A14: Costos de Cell sites
B16: ID_TIPO | C16: TORRE | D16: OBRA ASOCIADA | E16: ENERGÍA | F16: SPAT | G16: CERRAMIENTO | H16: ADAPTACIÓN DEL SITIO PARA COUBICACIÓN | I16: ENERGÍA PARA COUBICACIÓN | J16: UNIDADES | K16: TOTAL INFRA | L16: TOTAL ENERGÍA | M16: ="TOTAL INFRA ("&moneda&")" -> TOTAL INFRA (US$) | N16: ="TOTAL ENERGÍA ("&moneda&")" -> TOTAL ENERGÍA (US$) | O16: ="ADAPTACIÓN DEL SITIO PARA COUBICACIÓN ("&moneda&")" -> ADAPTACIÓN DEL SITIO PARA COUBICACIÓN (US$) | P16: ="ENERGÍA PARA COUBICACIÓN ("&moneda&")" -> ENERGÍA PARA COUBICACIÓN (US$)
B17: =B6:B11 -> GF | C17: 51072.845 | D17: 17779.76 | E17: 10365.075 | F17: 2438.075 | G17: 17782.765 | H17: 13534.23 | I17: 0 | J17: US$ | K17: =SUM(C17:D17,F17:G17) -> 89073.445 | L17: =E17 -> 10365.075 | M17: =IF(moneda=J17,1,IF(moneda="US$",1/tipoC,IF(moneda="S/.",tipoC,0)))*K17 -> 89073.445 | N17: =IF(moneda=J17,1,IF(moneda="US$",1/tipoC,IF(moneda="S/.",tipoC,0)))*L17 -> 10365.075 | O17: =IF(moneda=J17,1,IF(moneda="US$",1/tipoC,IF(moneda="S/.",tipoC,0)))*H17 -> 13534.23 | P17: =IF(moneda=J17,1,IF(moneda="US$",1/tipoC,IF(moneda="S/.",tipoC,0)))*I17 -> 0
B18: HTBS | C18: 0 | D18: 0 | E18: 0 | F18: 0 | G18: 0 | H18: 0 | I18: 0 | J18: US$ | K18: 0 | L18: 0 | M18: 0 | N18: 0 | O18: 0 | P18: 0
B19: RT_V | C19: 7481.01 | D19: 19778.83 | E19: 11834.57 | F19: 1847.39 | G19: 6281.34 | H19: 13534.23 | I19: 0 | J19: US$ | K19: 35388.57 | L19: 11834.57 | M19: 35388.57 | N19: 11834.57 | O19: 13534.23 | P19: 0
B20: RT_M | C20: 12621.59 | D20: 9493.68 | E20: 11582.26 | F20: 1866.72 | G20: 18103 | H20: 13534.23 | I20: 0 | J20: US$ | K20: 42084.99 | L20: 11582.26 | M20: 42084.99 | N20: 11582.26 | O20: 13534.23 | P20: 0
B21: PI | C21: 817.91 | D21: 3708.29 | E21: 786.53 | F21: 493.98 | G21: 0 | H21: 0 | I21: 0 | J21: US$ | K21: 5020.18 | L21: 786.53 | M21: 5020.18 | N21: 786.53 | O21: 0 | P21: 0
B22: FE | C22: 0 | D22: 0 | E22: 0 | F22: 0 | G22: 0 | H22: 0 | I22: 0 | J22: US$ | K22: 0 | L22: 0 | M22: 0 | N22: 0 | O22: 0 | P22: 0
A25: Distribución de Cell sites
B27: Utilizar Distribución | C27: SI | D27: usaDistribucionEmplazamientos
B30: Distribución Tipo Cell sites
C32: MACROCELDAS | G32: PICOCELDAS | H32: FEMTOCELDAS
B33: DPTO | C33: =TRANSPOSE(B6:B11) -> GF | D33: HTBS | E33: RT_V | F33: RT_M | G33: PI | H33: FE
B34: =departamentos -> AYACUCHO | C34: 0.5 | D34: 0.1 | E34: 0.8 | F34: 0 | G34: 0.5 | H34: 0.5
B35: HUANCAVELICA | C35: 0.5 | D35: 0.1 | E35: 0.8 | F35: 0 | G35: 0.5 | H35: 0.5
B36: HUANUCO | C36: 0.5 | D36: 0.1 | E36: 0.8 | F36: 0 | G36: 0.5 | H36: 0.5
B37: ICA | C37: 0.5 | D37: 0.1 | E37: 0.8 | F37: 0 | G37: 0.5 | H37: 0.5
B38: JUNIN | C38: 0.5 | D38: 0.1 | E38: 0.8 | F38: 0 | G38: 0.5 | H38: 0.5
B39: LIMA | C39: 0.5 | D39: 0.1 | E39: 0.8 | F39: 0 | G39: 0.5 | H39: 0.5
B40: LORETO | C40: 0.5 | D40: 0.1 | E40: 0.8 | F40: 0 | G40: 0.5 | H40: 0.5
B41: PASCO | C41: 0.5 | D41: 0.1 | E41: 0.8 | F41: 0 | G41: 0.5 | H41: 0.5
B42: SAN MARTIN | C42: 0.5 | D42: 0.1 | E42: 0.8 | F42: 0 | G42: 0.5 | H42: 0.5
B43: UCAYALI | C43: 0.5 | D43: 0.1 | E43: 0.8 | F43: 0 | G43: 0.5 | H43: 0.5
B44: AMAZONAS | C44: 0.5 | D44: 0.1 | E44: 0.8 | F44: 0 | G44: 0.5 | H44: 0.5
B45: ANCASH | C45: 0.5 | D45: 0.1 | E45: 0.8 | F45: 0 | G45: 0.5 | H45: 0.5
B46: CAJAMARCA | C46: 0.5 | D46: 0.1 | E46: 0.8 | F46: 0 | G46: 0.5 | H46: 0.5
B47: LA LIBERTAD | C47: 0.5 | D47: 0.1 | E47: 0.8 | F47: 0 | G47: 0.5 | H47: 0.5
B48: LAMBAYEQUE | C48: 0.5 | D48: 0.1 | E48: 0.8 | F48: 0 | G48: 0.5 | H48: 0.5
B49: PIURA | C49: 0.5 | D49: 0.1 | E49: 0.8 | F49: 0 | G49: 0.5 | H49: 0.5
B50: TUMBES | C50: 0.5 | D50: 0.1 | E50: 0.8 | F50: 0 | G50: 0.5 | H50: 0.5
B51: APURIMAC | C51: 0.5 | D51: 0.1 | E51: 0.8 | F51: 0 | G51: 0.5 | H51: 0.5
B52: AREQUIPA | C52: 0.5 | D52: 0.1 | E52: 0.8 | F52: 0 | G52: 0.5 | H52: 0.5
B53: CUSCO | C53: 0.5 | D53: 0.1 | E53: 0.8 | F53: 0 | G53: 0.5 | H53: 0.5
B54: MADRE DE DIOS | C54: 0.5 | D54: 0.1 | E54: 0.8 | F54: 0 | G54: 0.5 | H54: 0.5
B55: MOQUEGUA | C55: 0.5 | D55: 0.1 | E55: 0.8 | F55: 0 | G55: 0.5 | H55: 0.5
B56: PUNO | C56: 0.5 | D56: 0.1 | E56: 0.8 | F56: 0 | G56: 0.5 | H56: 0.5
B57: TACNA | C57: 0.5 | D57: 0.1 | E57: 0.8 | F57: 0 | G57: 0.5 | H57: 0.5
B58: CALLAO | C58: 0.5 | D58: 0.1 | E58: 0.8 | F58: 0 | G58: 0.5 | H58: 0.5
B60: Distribución por propiedad
B62: DPTO | C62: =TRANSPOSE(tipoCelda.Emplazamiento) -> MACROCELDA | D62: PICOCELDA | E62: FEMTOCELDA
B63: =departamentos -> AYACUCHO | C63: 0.01 | D63: 0.1 | E63: 0.1
B64: HUANCAVELICA | C64: 0.01 | D64: 0.1 | E64: 0.1
B65: HUANUCO | C65: 0.01 | D65: 0.1 | E65: 0.1
B66: ICA | C66: 0.01 | D66: 0.1 | E66: 0.1
B67: JUNIN | C67: 0.01 | D67: 0.1 | E67: 0.1
B68: LIMA | C68: 0.01 | D68: 0.1 | E68: 0.1
B69: LORETO | C69: 0.01 | D69: 0.1 | E69: 0.1
B70: PASCO | C70: 0.01 | D70: 0.1 | E70: 0.1
B71: SAN MARTIN | C71: 0.01 | D71: 0.1 | E71: 0.1
B72: UCAYALI | C72: 0.01 | D72: 0.1 | E72: 0.1
B73: AMAZONAS | C73: 0.01 | D73: 0.1 | E73: 0.1
B74: ANCASH | C74: 0.01 | D74: 0.1 | E74: 0.1
B75: CAJAMARCA | C75: 0.01 | D75: 0.1 | E75: 0.1
B76: LA LIBERTAD | C76: 0.01 | D76: 0.1 | E76: 0.1
B77: LAMBAYEQUE | C77: 0.01 | D77: 0.1 | E77: 0.1
B78: PIURA | C78: 0.01 | D78: 0.1 | E78: 0.1
B79: TUMBES | C79: 0.01 | D79: 0.1 | E79: 0.1
B80: APURIMAC | C80: 0.01 | D80: 0.1 | E80: 0.1
B81: AREQUIPA | C81: 0.01 | D81: 0.1 | E81: 0.1
B82: CUSCO | C82: 0.01 | D82: 0.1 | E82: 0.1
B83: MADRE DE DIOS | C83: 0.01 | D83: 0.1 | E83: 0.1
B84: MOQUEGUA | C84: 0.01 | D84: 0.1 | E84: 0.1
B85: PUNO | C85: 0.01 | D85: 0.1 | E85: 0.1
B86: TACNA | C86: 0.01 | D86: 0.1 | E86: 0.1
B87: CALLAO | C87: 0.01 | D87: 0.1 | E87: 0.1
B89: Distribución por propiedad LOCAL
B91: DPTO | C91: GF | D91: RT_V | E91: RT_M | F91: PI | G91: FE
B92: =departamentos -> AYACUCHO | C92: 0.5 | D92: 0.5 | E92: 0.1 | F92: 0.1 | G92: 0.1
B93: HUANCAVELICA | C93: 0.5 | D93: 0.5 | E93: 0.1 | F93: 0.1 | G93: 0.1
B94: HUANUCO | C94: 0.5 | D94: 0.5 | E94: 0.1 | F94: 0.1 | G94: 0.1
B95: ICA | C95: 0.5 | D95: 0.5 | E95: 0.1 | F95: 0.1 | G95: 0.1
B96: JUNIN | C96: 0.5 | D96: 0.5 | E96: 0.1 | F96: 0.1 | G96: 0.1
B97: LIMA | C97: 0.5 | D97: 0.5 | E97: 0.1 | F97: 0.1 | G97: 0.1
B98: LORETO | C98: 0.5 | D98: 0.5 | E98: 0.1 | F98: 0.1 | G98: 0.1
B99: PASCO | C99: 0.5 | D99: 0.5 | E99: 0.1 | F99: 0.1 | G99: 0.1
B100: SAN MARTIN | C100: 0.5 | D100: 0.5 | E100: 0.1 | F100: 0.1 | G100: 0.1
B101: UCAYALI | C101: 0.5 | D101: 0.5 | E101: 0.1 | F101: 0.1 | G101: 0.1
B102: AMAZONAS | C102: 0.5 | D102: 0.5 | E102: 0.1 | F102: 0.1 | G102: 0.1
B103: ANCASH | C103: 0.5 | D103: 0.5 | E103: 0.1 | F103: 0.1 | G103: 0.1
B104: CAJAMARCA | C104: 0.5 | D104: 0.5 | E104: 0.1 | F104: 0.1 | G104: 0.1
B105: LA LIBERTAD | C105: 0.5 | D105: 0.5 | E105: 0.1 | F105: 0.1 | G105: 0.1
B106: LAMBAYEQUE | C106: 0.5 | D106: 0.5 | E106: 0.1 | F106: 0.1 | G106: 0.1
B107: PIURA | C107: 0.5 | D107: 0.5 | E107: 0.1 | F107: 0.1 | G107: 0.1
B108: TUMBES | C108: 0.5 | D108: 0.5 | E108: 0.1 | F108: 0.1 | G108: 0.1
B109: APURIMAC | C109: 0.5 | D109: 0.5 | E109: 0.1 | F109: 0.1 | G109: 0.1
B110: AREQUIPA | C110: 0.5 | D110: 0.5 | E110: 0.1 | F110: 0.1 | G110: 0.1
B111: CUSCO | C111: 0.5 | D111: 0.5 | E111: 0.1 | F111: 0.1 | G111: 0.1
B112: MADRE DE DIOS | C112: 0.5 | D112: 0.5 | E112: 0.1 | F112: 0.1 | G112: 0.1
B113: MOQUEGUA | C113: 0.5 | D113: 0.5 | E113: 0.1 | F113: 0.1 | G113: 0.1
B114: PUNO | C114: 0.5 | D114: 0.5 | E114: 0.1 | F114: 0.1 | G114: 0.1
B115: TACNA | C115: 0.5 | D115: 0.5 | E115: 0.1 | F115: 0.1 | G115: 0.1
B116: CALLAO | C116: 0.5 | D116: 0.5 | E116: 0.1 | F116: 0.1 | G116: 0.1

Sheet Cell Sites
A1: <-- EDICIÓN | B1: LISTADO DE EMPLAZAMIENTOS
AJ2: =SUM(AJ5:AJ3535) -> 3336 | AK2: =SUMIF(AK5:AK3535,">0")/COUNTIF(AK5:AK3535,">0") -> 0.8503821142 | AL2: =SUMIF(AL5:AL3535,">0")/COUNTIF(AL5:AL3535,">0") -> 0.1395841241 | AM2: =SUMIF(AM5:AM3535,">0")/COUNTIF(AM5:AM3535,">0") ->  | AN2: =SUMIF(AN5:AN3535,">0")/COUNTIF(AN5:AN3535,">0") -> 0.01003376169
H3: GRADOS | J3: MUNUTOS | L3: SEGUNDOS | Z3: 2G | AH3: 3G
A4: ID_CELL_SITE | B4: TIPO_ZONA | C4: LIMA / PROVINCIA | D4: REGIÓN | E4: DPTO | F4: PROVINCIA | G4: DISTRITO | H4: LON. | I4: LAT. | J4: LON. | K4: LAT. | L4: LON. | M4: LAT. | N4: ID_CELL | O4: ID_LOCAL | P4: INFRA | Q4: TITULARIDAD | R4: TIPO | S4: TIPO TRANSMISION | T4: TRÁFICO VOZ | U4: TRÁFICO DATOS | V4: TRÁFICO VOZ 2G | W4: TRÁFICO DATOS 2G | X4: TRÁFICO VOZ 3G | Y4: TRÁFICO DATOS 3G | Z4: CONTROLADOR 2G | AA4: FABRICANTE | AB4: SECTORES 850 | AC4: TRAFICO VOZ HC 850 (Erlang) | AD4: TRAFICO DATOS HC 850 (Mbits) | AE4: SECTORES 1900 | AF4: TRAFICO VOZ HC 1900 (Erlang) | AG4: TRAFICO DATOS HC 1900 (Mbits) | AH4: CONTROLADOR 3G | AI4: FABRICANTE | AJ4: SECTORES 3G | AK4: TRAFICO HSDPA | AL4: TRAFICO HSUPA | AM4: TRAFICO R99 DL | AN4: TRAFICO R99 UL | AO4: TITULARIDAD TERRENO
A5: 1 | B5: URBANA | C5: PROVINCIA | D5: SUR | E5: LA LIBERTAD | F5: PROVINCIA87 | G5: DISTRITO190 | H5: 77 | I5: 4 | J5: 12 | K5: 22 | L5: 12 | M5: 3 | N5: IDCELL1 | O5: 1 | P5: 0 | Q5: D | R5: MACROCELDA | S5: FO | T5: 0.0001422363477 | U5: 0.0003757590354 | V5: 0.01926533154 | W5: 0.494532186 | X5: 0.9807346685 | Y5: 0.505467814 | Z5: BSC54 | AA5: DEFAULT | AB5: 1 | AC5: 0.1 | AD5: 0.1 | AE5: 1 | AF5: 0.5 | AG5: 0.5 | AH5: RNC28 | AI5: DEFAULT | AJ5: 1 | AK5: 0.8696316683 | AL5: 0.007739333006 | AM5: 0 | AN5: 0.1226289987 | AO5: D | AQ5: =IF(R5="PICOCELDA","",AH5) -> RNC28 | AR5: =RAND() -> 0.3697228876 | AS5: =AR5/$AR$3536 -> 0.0002096110328 | AT5: 0.8555487703 | AU5: =AT5/$AR$3536 -> 0.000485045604
A6: 2 | B6: URBANA | C6: PROVINCIA | D6: NORTE | E6: LA LIBERTAD | F6: PROVINCIA123 | G6: DISTRITO1242 | H6: 77 | I6: 4 | J6: 12 | K6: 22 | L6: 12 | M6: 3 | N6: IDCELL2 | O6: 1 | P6: 0 | Q6: TM | R6: MACROCELDA | S6: FO | T6: 3.824301846e-05 | U6: 0.0003915758528 | V6: 0.493057707 | W6: 0.7969266847 | X6: 0.506942293 | Y6: 0.2030733153 | Z6: BSC27 | AA6: DEFAULT | AB6: 1 | AC6: 0.6818129573 | AD6: 0.6818129573 | AE6: 1 | AF6: 0.3181870427 | AG6: 0.3181870427 | AH6: RNC08 | AI6: DEFAULT | AJ6: 1 | AK6: 0.8202106087 | AL6: 0.1697893913 | AM6: 0 | AN6: 0.01 | AO6: D | AQ6: =IF(R6="PICOCELDA","",AH6) -> RNC08 | AR6: 0.8995695484 | AS6: =AR6/$AR$3536 -> 0.0005100027843 | AT6: 0.785010046 | AU6: 0.000445054315
A7: 3 | B7: RURAL | C7: PROVINCIA | D7: NORTE | E7: AREQUIPA | F7: PROVINCIA59 | G7: DISTRITO1741 | H7: 77 | I7: 4 | J7: 12 | K7: 22 | L7: 12 | M7: 3 | N7: IDCELL3 | O7: 1 | P7: 0 | Q7: D | R7: MACROCELDA | S7: FO | T7: 0.0002727845914 | U7: 0.0001095360999 | V7: 0.6703958096 | W7: 0.03478748095 | X7: 0.3296041904 | Y7: 0.965212519 | Z7: BSC64 | AA7: DEFAULT | AB7: 1 | AC7: 1 | AD7: 1 | AE7: 0 | AF7: 0 | AG7: 0 | AH7: RNC24 | AI7: DEFAULT | AJ7: 1 | AK7: 0.8866748055 | AL7: 0.1033251945 | AM7: 0 | AN7: 0.01 | AO7: D | AQ7: RNC24 | AR7: 0.4894081344 | AS7: 0.0002774654963 | AT7: 0.6545573519 | AU7: 0.0003710953451
A8: 4 | B8: URBANA | C8: PROVINCIA | D8: LIMA | E8: LA LIBERTAD | F8: PROVINCIA55 | G8: DISTRITO984 | H8: 77 | I8: 4 | J8: 12 | K8: 22 | L8: 12 | M8: 3 | N8: IDCELL4 | O8: 1 | P8: 0 | Q8: D | R8: MACROCELDA | S8: FO | T8: 0.000436518954 | U8: 0.0001591645947 | V8: 0.1590422859 | W8: 0.6727668427 | X8: 0.8409577141 | Y8: 0.3272331573 | Z8: BSC63 | AA8: DEFAULT | AB8: 1 | AC8: 1 | AD8: 1 | AE8: 0 | AF8: 0 | AG8: 0 | AH8: RNC17 | AI8: DEFAULT | AJ8: 1 | AK8: 0.8717109048 | AL8: 0.1182890952 | AM8: 0 | AN8: 0.01 | AO8: D | AQ8: RNC17 | AR8: 0.05572499008 | AS8: 3.159277695e-05 | AT8: 0.5429671808 | AU8: 0.0003078303111
A9: 5 | B9: URBANA | C9: LIMA | D9: NORTE | E9: LA LIBERTAD | F9: PROVINCIA70 | G9: DISTRITO1547 | H9: 77 | I9: 4 | J9: 12 | K9: 22 | L9: 12 | M9: 3 | N9: IDCELL5 | O9: 1 | P9: 0 | Q9: D | R9: MACROCELDA | S9: FO | T9: 0.0001102694866 | U9: 0.0003529728263 | V9: 0.2241153284 | W9: 0.9143058617 | X9: 0.7758846716 | Y9: 0.08569413826 | Z9: BSC59 | AA9: DEFAULT | AB9: 1 | AC9: 0.3207611702 | AD9: 0.3207611702 | AE9: 1 | AF9: 0.6792388298 | AG9: 0.6792388298 | AH9: RNC19 | AI9: DEFAULT | AJ9: 1 | AK9: 0.880992867 | AL9: 0.109007133 | AM9: 0 | AN9: 0.01 | AO9: D | AQ9: RNC19 | AR9: 0.7879556355 | AS9: 0.0004467242902 | AT9: 0.1394943614 | AU9: 7.908506109e-05
A10: 6 | B10: URBANA | C10: LIMA | D10: NORTE | E10: LA LIBERTAD | F10: PROVINCIA64 | G10: DISTRITO806 | H10: 77 | I10: 4 | J10: 12 | K10: 22 | L10: 12 | M10: 3 | N10: IDCELL6 | O10: 1 | P10: 0 | Q10: TM | R10: MACROCELDA | S10: FO | T10: 0.0005316288823 | U10: 0.0003437610678 | V10: 0.9639378084 | W10: 0.3539125687 | X10: 0.03606219163 | Y10: 0.6460874313 | Z10: BSC44 | AA10: DEFAULT | AB10: 1 | AC10: 1 | AD10: 1 | AE10: 0 | AF10: 0 | AG10: 0 | AH10: RNC07 | AI10: DEFAULT | AJ10: 1 | AK10: 0.822017211 | AL10: 0.167982789 | AM10: 0 | AN10: 0.01 | AO10: D | AQ10: RNC07 | AR10: 0.450530817 | AS10: 0.0002554243544 | AT10: 0.9563367774 | AU10: 0.0005421864492
A11: 7 | B11: RURAL | C11: LIMA | D11: NORTE | E11: LA LIBERTAD | F11: PROVINCIA31 | G11: DISTRITO278 | H11: 77 | I11: 4 | J11: 12 | K11: 22 | L11: 12 | M11: 3 | N11: IDCELL7 | O11: 1 | P11: 0 | Q11: D | R11: MACROCELDA | S11: FO | T11: 0.0002082212923 | U11: 0.0003405840796 | V11: 0.05265236279 | W11: 0.6060996128 | X11: 0.9473476372 | Y11: 0.3939003872 | Z11: BSC31 | AA11: DEFAULT | AB11: 1 | AC11: 1 | AD11: 1 | AE11: 0 | AF11: 0 | AG11: 0 | AH11: RNC41 | AI11: DEFAULT | AJ11: 1 | AK11: 0.8724372865 | AL11: 0.1175627135 | AM11: 0 | AN11: 0.01 | AO11: D | AQ11: RNC41 | AR11: 0.4594270972 | AS11: 0.0002604680196 | AT11: 0.8710810645 | AU11: 0.0004938514971
A12: 8 | B12: URBANA | C12: PROVINCIA | D12: LIMA | E12: AREQUIPA | F12: PROVINCIA66 | G12: DISTRITO535 | H12: 77 | I12: 4 | J12: 12 | K12: 22 | L12: 12 | M12: 3 | N12: IDCELL8 | O12: 1 | P12: 0 | Q12: D | R12: MACROCELDA | S12: FO | T12: 0.0002925084756 | U12: 0.0002681267209 | V12: 0.7367607972 | W12: 0.8553059687 | X12: 0.2632392028 | Y12: 0.1446940313 | Z12: BSC03 | AA12: DEFAULT | AB12: 1 | AC12: 1 | AD12: 1 | AE12: 0 | AF12: 0 | AG12: 0 | AH12: RNC11 | AI12: DEFAULT | AJ12: 1 | AK12: 0.8797499197 | AL12: 0.1102500803 | AM12: 0 | AN12: 0.01 | AO12: D | AQ12: RNC11 | AR12: 0.110311775 | AS12: 6.254025883e-05 | AT12: 0.493625791 | AU12: 0.0002798566584
A13: 9 | B13: URBANA | C13: PROVINCIA | D13: SUR | E13: LA LIBERTAD | F13: PROVINCIA64 | G13: DISTRITO2685 | H13: 77 | I13: 4 | J13: 12 | K13: 22 | L13: 12 | M13: 3 | N13: IDCELL9 | O13: 1 | P13: 0 | Q13: D | R13: MACROCELDA | S13: FO | T13: 0.0001661829963 | U13: 0.0002311336907 | V13: 0.8810460598 | W13: 0.3402793333 | X13: 0.1189539402 | Y13: 0.6597206667 | Z13: BSC49 | AA13: DEFAULT | AB13: 1 | AC13: 0.5259522435 | AD13: 0.5259522435 | AE13: 1 | AF13: 0.4740477565 | AG13: 0.4740477565 | AH13: RNC24 | AI13: DEFAULT | AJ13: 1 | AK13: 0.8917702085 | AL13: 0.09822979149 | AM13: 0 | AN13: 0.01 | AO13: D | AQ13: RNC24 | AR13: 0.04191648547 | AS13: 2.37641707e-05 | AT13: 0.6404965111 | AU13: 0.0003631236791
A14: 10 | B14: URBANA | C14: PROVINCIA | D14: NORTE | E14: LA LIBERTAD | F14: PROVINCIA28 | G14: DISTRITO85 | H14: 77 | I14: 4 | J14: 12 | K14: 22 | L14: 12 | M14: 3 | N14: IDCELL10 | O14: 1 | P14: 0 | Q14: D | R14: MACROCELDA | S14: FO | T14: 0.0002088732293 | U14: 0.0001975058972 | V14: 0.03633206902 | W14: 0.5716257447 | X14: 0.963667931 | Y14: 0.4283742553 | Z14: BSC50 | AA14: DEFAULT | AB14: 1 | AC14: 1 | AD14: 1 | AE14: 0 | AF14: 0 | AG14: 0 | AH14: RNC18 | AI14: DEFAULT | AJ14: 1 | AK14: 0.8178729901 | AL14: 0.1721270099 | AM14: 0 | AN14: 0.01 | AO14: D | AQ14: RNC18 | AR14: 0.08957975838 | AS14: 5.078643032e-05 | AT14: 0.729633939 | AU14: 0.0004136593342
A15: 11 | B15: RURAL | C15: LIMA | D15: SUR | E15: LIMA | F15: PROVINCIA19 | G15: DISTRITO1264 | H15: 77 | I15: 4 | J15: 12 | K15: 22 | L15: 12 | M15: 3 | N15: IDCELL11 | O15: 1 | P15: 0 | Q15: D | R15: MACROCELDA | S15: FO | T15: 0.0003960211761 | U15: 0.0002460114447 | V15: 0.428846383 | W15: 0.1933722953 | X15: 0.571153617 | Y15: 0.8066277047 | Z15: BSC60 | AA15: DEFAULT | AB15: 1 | AC15: 1 | AD15: 1 | AE15: 0 | AF15: 0 | AG15: 0 | AH15: RNC29 | AI15: DEFAULT | AJ15: 1 | AK15: 0.817882247 | AL15: 0.172117753 | AM15: 0 | AN15: 0.01 | AO15: D | AQ15: RNC29 | AR15: 0.9877880606 | AS15: 0.0005600174685 | AT15: 0.4124885615 | AU15: 0.0002338566431
A16: 12 | B16: RURAL | C16: LIMA | D16: NORTE | E16: LA LIBERTAD | F16: PROVINCIA18 | G16: DISTRITO2938 | H16: 77 | I16: 4 | J16: 12 | K16: 22 | L16: 12 | M16: 3 | N16: IDCELL12 | O16: 1 | P16: 0 | Q16: D | R16: MACROCELDA | S16: FO | T16: 0.0001338728621 | U16: 0.0005374400866 | V16: 0.58302624 | W16: 0.9147082151 | X16: 0.41697376 | Y16: 0.08529178491 | Z16: BSC65 | AA16: DEFAULT | AB16: 1 | AC16: 1 | AD16: 1 | AE16: 0 | AF16: 0 | AG16: 0 | AH16: RNC10 | AI16: DEFAULT | AJ16: 1 | AK16: 0.8558567589 | AL16: 0.1341432411 | AM16: 0 | AN16: 0.01 | AO16: D | AQ16: RNC10 | AR16: 0.1921942229 | AS16: 0.0001089627689 | AT16: 0.7891177927 | AU16: 0.0004473831647
A17: 13 | B17: URBANA | C17: PROVINCIA | D17: LIMA | E17: LIMA | F17: PROVINCIA117 | G17: DISTRITO1983 | H17: 77 | I17: 4 | J17: 12 | K17: 22 | L17: 12 | M17: 3 | N17: IDCELL13 | O17: 1 | P17: 0 | Q17: TERCERO | R17: MACROCELDA | S17: FO | T17: 0.0003278162428 | U17: 0.0002022014978 | V17: 0.07813751658 | W17: 0.2572479423 | X17: 0.9218624834 | Y17: 0.7427520577 | Z17: BSC28 | AA17: DEFAULT | AB17: 1 | AC17: 1 | AD17: 1 | AE17: 0 | AF17: 0 | AG17: 0 | AH17: RNC06 | AI17: DEFAULT | AJ17: 1 | AK17: 0.8112525734 | AL17: 0.1787474266 | AM17: 0 | AN17: 0.01 | AO17: D | AQ17: RNC06 | AR17: 0.9143198988 | AS17: 0.0005183653615 | AT17: 0.7141964868 | AU17: 0.0004049072109
A18: 14 | B18: URBANA | C18: PROVINCIA | D18: NORTE | E18: AREQUIPA | F18: PROVINCIA17 | G18: DISTRITO1205 | H18: 77 | I18: 4 | J18: 12 | K18: 22 | L18: 12 | M18: 3 | N18: IDCELL14 | O18: 1 | P18: 0 | Q18: D | R18: MACROCELDA | S18: FO | T18: 0.0001544647825 | U18: 5.128913217e-05 | V18: 0.07849623103 | W18: 0.971194871 | X18: 0.921503769 | Y18: 0.02880512903 | Z18: BSC54 | AA18: DEFAULT | AB18: 1 | AC18: 1 | AD18: 1 | AE18: 0 | AF18: 0 | AG18: 0 | AH18: RNC31 | AI18: DEFAULT | AJ18: 1 | AK18: 0.836730253 | AL18: 0.153269747 | AM18: 0 | AN18: 0.01 | AO18: D | AQ18: RNC31 | AR18: 0.00403889276 | AS18: 2.289813563e-06 | AT18: 0.7927268113 | AU18: 0.000449429265
A19: 15 | B19: URBANA | C19: PROVINCIA | D19: SUR | E19: LA LIBERTAD | F19: PROVINCIA68 | G19: DISTRITO2764 | H19: 77 | I19: 4 | J19: 12 | K19: 22 | L19: 12 | M19: 3 | N19: IDCELL15 | O19: 1 | P19: 0 | Q19: TM | R19: MACROCELDA | S19: FO | T19: 0.000125726605 | U19: 0.0003378458353 | V19: 0.7125911384 | W19: 0.7900468325 | X19: 0.2874088616 | Y19: 0.2099531675 | Z19: BSC15 | AA19: DEFAULT | AB19: 1 | AC19: 0.4979495693 | AD19: 0.4979495693 | AE19: 1 | AF19: 0.5020504307 | AG19: 0.5020504307 | AH19: RNC14 | AI19: DEFAULT | AJ19: 1 | AK19: 0.8389270362 | AL19: 0.1510729638 | AM19: 0 | AN19: 0.01 | AO19: D | AQ19: RNC14 | AR19: 0.670849277 | AS19: 0.000380331904 | AT19: 0.2132774298 | AU19: 0.0001209157015
A20: 16 | B20: RURAL | C20: PROVINCIA | D20: SUR | E20: LIMA | F20: PROVINCIA92 | G20: DISTRITO1467 | H20: 77 | I20: 4 | J20: 12 | K20: 22 | L20: 12 | M20: 3 | N20: IDCELL16 | O20: 1 | P20: 0 | Q20: D | R20: MACROCELDA | S20: FO | T20: 6.59913829e-05 | U20: 0.0001097576789 | V20: 0.4965670073 | W20: 0.3704414661 | X20: 0.5034329927 | Y20: 0.6295585339 | Z20: BSC30 | AA20: DEFAULT | AB20: 1 | AC20: 0.3391024723 | AD20: 0.3391024723 | AE20: 1 | AF20: 0.6608975277 | AG20: 0.6608975277 | AH20: RNC06 | AI20: DEFAULT | AJ20: 1 | AK20: 0.8626236465 | AL20: 0.1273763535 | AM20: 0 | AN20: 0.01 | AO20: D | AQ20: RNC06 | AR20: 0.8380042052 | AS20: 0.0004750988722 | AT20: 0.3231213736 | AU20: 0.0001831907277
A21: 17 | B21: RURAL | C21: LIMA | D21: NORTE | E21: LA LIBERTAD | F21: PROVINCIA11 | G21: DISTRITO2311 | H21: 77 | I21: 4 | J21: 12 | K21: 22 | L21: 12 | M21: 3 | N21: IDCELL17 | O21: 1 | P21: 0 | Q21: TM | R21: MACROCELDA | S21: FO | T21: 0.0004729781893 | U21: 0.0001490545823 | V21: 0.7068292222 | W21: 0.3093815705 | X21: 0.2931707778 | Y21: 0.6906184295 | Z21: BSC37 | AA21: DEFAULT | AB21: 1 | AC21: 1 | AD21: 1 | AE21: 0 | AF21: 0 | AG21: 0 | AH21: RNC18 | AI21: DEFAULT | AJ21: 1 | AK21: 0.8595410555 | AL21: 0.1304589445 | AM21: 0 | AN21: 0.01 | AO21: D | AQ21: RNC18 | AR21: 0.9243890549 | AS21: 0.0005240739781 | AT21: 0.6534969099 | AU21: 0.0003704941371
A22: 18 | B22: URBANA | C22: PROVINCIA | D22: NORTE | E22: LA LIBERTAD | F22: PROVINCIA114 | G22: DISTRITO1073 | H22: 77 | I22: 4 | J22: 12 | K22: 22 | L22: 12 | M22: 3 | N22: IDCELL18 | O22: 1 | P22: 0 | Q22: TM | R22: MACROCELDA | S22: FO | T22: 0.0004266325372 | U22: 0.0003591392113 | V22: 0.9948312388 | W22: 0.5610960521 | X22: 0.005168761222 | Y22: 0.4389039479 | Z22: BSC57 | AA22: DEFAULT | AB22: 1 | AC22: 1 | AD22: 1 | AE22: 0 | AF22: 0 | AG22: 0 | AH22: RNC25 | AI22: DEFAULT | AJ22: 1 | AK22: 0.8754394053 | AL22: 0.1145605947 | AM22: 0 | AN22: 0.01 | AO22: D | AQ22: RNC25 | AR22: 0.1218211765 | AS22: 6.906540947e-05 | AT22: 0.4991355449 | AU22: 0.0002829803633
A23: 19 | B23: RURAL | C23: PROVINCIA | D23: LIMA | E23: AREQUIPA | F23: PROVINCIA69 | G23: DISTRITO1414 | H23: 77 | I23: 4 | J23: 12 | K23: 22 | L23: 12 | M23: 3 | N23: IDCELL19 | O23: 1 | P23: 0 | Q23: D | R23: MACROCELDA | S23: FO | T23: 0.0004274569656 | U23: 7.851616758e-05 | V23: 0.6607959785 | W23: 0.685641413 | X23: 0.3392040215 | Y23: 0.314358587 | Z23: BSC08 | AA23: DEFAULT | AB23: 1 | AC23: 1 | AD23: 1 | AE23: 0 | AF23: 0 | AG23: 0 | AH23: RNC30 | AI23: DEFAULT | AJ23: 1 | AK23: 0.8982881095 | AL23: 0.09171189053 | AM23: 0 | AN23: 0.01 | AO23: D | AQ23: RNC30 | AR23: 0.2389630419 | AS23: 0.000135477926 | AT23: 0.3900772299 | AU23: 0.0002211507423
A24: 20 | B24: URBANA | C24: LIMA | D24: LIMA | E24: LIMA | F24: PROVINCIA65 | G24: DISTRITO2976 | H24: 77 | I24: 4 | J24: 12 | K24: 22 | L24: 12 | M24: 3 | N24: IDCELL20 | O24: 1 | P24: 0 | Q24: D | R24: MACROCELDA | S24: FO | T24: 0.0001851091179 | U24: 0.0003767649065 | V24: 0.2650175924 | W24: 0.9649880451 | X24: 0.7349824076 | Y24: 0.03501195492 | Z24: BSC34 | AA24: DEFAULT | AB24: 1 | AC24: 1 | AD24: 1 | AE24: 0 | AF24: 0 | AG24: 0 | AH24: RNC05 | AI24: DEFAULT | AJ24: 1 | AK24: 0.8046498519 | AL24: 0.1853501481 | AM24: 0 | AN24: 0.01 | AO24: D | AQ24: RNC05 | AR24: 0.3384120217 | AS24: 0.0001918596218 | AT24: 0.07870252269 | AU24: 4.461968035e-05
A25: 21 | B25: RURAL | C25: LIMA | D25: NORTE | E25: LA LIBERTAD | F25: PROVINCIA36 | G25: DISTRITO1910 | H25: 77 | I25: 4 | J25: 12 | K25: 22 | L25: 12 | M25: 3 | N25: IDCELL21 | O25: 1 | P25: 0 | Q25: TERCERO | R25: MACROCELDA | S25: FO | T25: 0.0004232862714 | U25: 1.895160076e-05 | V25: 0.2728059615 | W25: 0.8871606261 | X25: 0.7271940385 | Y25: 0.1128393739 | Z25: BSC44 | AA25: DEFAULT | AB25: 1 | AC25: 1 | AD25: 1 | AE25: 0 | AF25: 0 | AG25: 0 | AH25: RNC02 | AI25: DEFAULT | AJ25: 1 | AK25: 0.8723033765 | AL25: 0.1176966235 | AM25: 0 | AN25: 0.01 | AO25: D | AQ25: RNC02 | AR25: 0.4121265105 | AS25: 0.0002336513816 | AT25: 0.9596767094 | AU25: 0.0005440799932
A26: 22 | B26: URBANA | C26: PROVINCIA | D26: LIMA | E26: LA LIBERTAD | F26: PROVINCIA61 | G26: DISTRITO2840 | H26: 77 | I26: 4 | J26: 12 | K26: 22 | L26: 12 | M26: 3 | N26: IDCELL22 | O26: 1 | P26: 0 | Q26: D | R26: MACROCELDA | S26: FO | T26: 0.0001492661968 | U26: 0.000384322 | V26: 0.3310366896 | W26: 0.2388956567 | X26: 0.6689633104 | Y26: 0.7611043433 | Z26: BSC54 | AA26: DEFAULT | AB26: 1 | AC26: 1 | AD26: 1 | AE26: 0 | AF26: 0 | AG26: 0 | AH26: RNC23 | AI26: DEFAULT | AJ26: 1 | AK26: 0.8923884593 | AL26: 0.09761154074 | AM26: 0 | AN26: 0.01 | AO26: D | AQ26: RNC23 | AR26: 0.7545600393 | AS26: 0.0004277909603 | AT26: 0.3637276442 | AU26: 0.000206212084
A27: 23 | B27: RURAL | C27: LIMA | D27: LIMA | E27: AREQUIPA | F27: PROVINCIA40 | G27: DISTRITO520 | H27: 77 | I27: 4 | J27: 12 | K27: 22 | L27: 12 | M27: 3 | N27: IDCELL23 | O27: 1 | P27: 0 | Q27: D | R27: MACROCELDA | S27: FO | T27: 5.367370321e-05 | U27: 0.0002672294324 | V27: 0.8002742584 | W27: 0.3543611587 | X27: 0.1997257416 | Y27: 0.6456388413 | Z27: BSC32 | AA27: DEFAULT | AB27: 1 | AC27: 1 | AD27: 1 | AE27: 0 | AF27: 0 | AG27: 0 | AH27: RNC08 | AI27: DEFAULT | AJ27: 1 | AK27: 0.8483632134 | AL27: 0.1416367866 | AM27: 0 | AN27: 0.01 | AO27: D | AQ27: RNC08 | AR27: 0.4823049615 | AS27: 0.0002734384169 | AT27: 0.8994103279 | AU27: 0.0005099125157
A28: 24 | B28: RURAL | C28: PROVINCIA | D28: LIMA | E28: LA LIBERTAD | F28: PROVINCIA54 | G28: DISTRITO1096 | H28: 77 | I28: 4 | J28: 12 | K28: 22 | L28: 12 | M28: 3 | N28: IDCELL24 | O28: 1 | P28: 0 | Q28: D | R28: PICOCELDA | S28: SAT | T28: 7.374105384e-05 | U28: 0.0003247189983 | V28: 1 | W28: 1 | X28: 0 | Y28: 0 | Z28: BSC11 | AA28: DEFAULT | AB28: 1 | AC28: 1 | AD28: 1 | AE28: 0 | AF28: 0 | AG28: 0 | AJ28: 0 | AK28: 0 | AL28: 0 | AM28: 0 | AN28: 0 | AO28: D | AR28: 0.0714985591 | AS28: 4.053545863e-05 | AT28: 0.8193050105 | AU28: 0.0004644975337
A29: 25 | B29: URBANA | C29: LIMA | D29: SUR | E29: LA LIBERTAD | F29: PROVINCIA39 | G29: DISTRITO2754 | H29: 77 | I29: 4 | J29: 12 | K29: 22 | L29: 12 | M29: 3 | N29: IDCELL25 | O29: 1 | P29: 0 | Q29: D | R29: MACROCELDA | S29: FO | T29: 0.000142397593 | U29: 0.0001153356231 | V29: 0.8209667696 | W29: 0.9873325649 | X29: 0.1790332304 | Y29: 0.01266743508 | Z29: BSC30 | AA29: DEFAULT | AB29: 1 | AC29: 1 | AD29: 1 | AE29: 0 | AF29: 0 | AG29: 0 | AH29: RNC31 | AI29: DEFAULT | AJ29: 1 | AK29: 0.8493716225 | AL29: 0.1406283775 | AM29: 0 | AN29: 0.01 | AO29: D | AQ29: RNC31 | AR29: 0.6969466404 | AS29: 0.0003951275672 | AT29: 0.5682234317 | AU29: 0.0003221491132
A30: 26 | B30: URBANA | C30: PROVINCIA | D30: LIMA | E30: LA LIBERTAD | F30: PROVINCIA16 | G30: DISTRITO1660 | H30: 77 | I30: 4 | J30: 12 | K30: 22 | L30: 12 | M30: 3 | N30: IDCELL26 | O30: 1 | P30: 0 | Q30: TM | R30: MACROCELDA | S30: FO | T30: 0.0002183317914 | U30: 0.0005335543569 | V30: 0.07699226146 | W30: 0.9728933722 | X30: 0.9230077385 | Y30: 0.02710662777 | Z30: BSC15 | AA30: DEFAULT | AB30: 1 | AC30: 1 | AD30: 1 | AE30: 0 | AF30: 0 | AG30: 0 | AH30: RNC27 | AI30: DEFAULT | AJ30: 1 | AK30: 0.8717608066 | AL30: 0.1182391934 | AM30: 0 | AN30: 0.01 | AO30: D | AQ30: RNC27 | AR30: 0.7166786919 | AS30: 0.0004063144745 | AT30: 0.1602285611 | AU30: 9.084012732e-05
A31: 27 | B31: RURAL | C31: PROVINCIA | D31: LIMA | E31: LA LIBERTAD | F31: PROVINCIA23 | G31: DISTRITO2054 | H31: 77 | I31: 4 | J31: 12 | K31: 22 | L31: 12 | M31: 3 | N31: IDCELL27 | O31: 1 | P31: 0 | Q31: TM | R31: MACROCELDA | S31: FO | T31: 0.0001382068563 | U31: 0.0005070115616 | V31: 0.02054183611 | W31: 0.0654434163 | X31: 0.9794581639 | Y31: 0.9345565837 | Z31: BSC04 | AA31: DEFAULT | AB31: 1 | AC31: 1 | AD31: 1 | AE31: 0 | AF31: 0 | AG31: 0 | AH31: RNC19 | AI31: DEFAULT | AJ31: 1 | AK31: 0.8202674276 | AL31: 0.1697325724 | AM31: 0 | AN31: 0.01 | AO31: D | AQ31: RNC19 | AR31: 0.4261621909 | AS31: 0.0002416087831 | AT31: 0.9272834151 | AU31: 0.0005257149093
A32: 28 | B32: URBANA | C32: PROVINCIA | D32: LIMA | E32: LA LIBERTAD | F32: PROVINCIA40 | G32: DISTRITO1069 | H32: 77 | I32: 4 | J32: 12 | K32: 22 | L32: 12 | M32: 3 | N32: IDCELL28 | O32: 1 | P32: 0 | Q32: D | R32: MACROCELDA | S32: FO | T32: 0.0001240431054 | U32: 0.0004005241767 | V32: 0.984302111 | W32: 0.4176586753 | X32: 0.01569788904 | Y32: 0.5823413247 | Z32: BSC03 | AA32: DEFAULT | AB32: 1 | AC32: 0.5389720081 | AD32: 0.5389720081 | AE32: 1 | AF32: 0.4610279919 | AG32: 0.4610279919 | AH32: RNC40 | AI32: DEFAULT | AJ32: 1 | AK32: 0.8951625402 | AL32: 0.09483745982 | AM32: 0 | AN32: 0.01 | AO32: D | AQ32: RNC40 | AR32: 0.3045221729 | AS32: 0.0001726460798 | AT32: 0.01379946973 | AU32: 7.823484017e-06
A33: 29 | B33: RURAL | C33: LIMA | D33: NORTE | E33: LIMA | F33: PROVINCIA12 | G33: DISTRITO2546 | H33: 77 | I33: 4 | J33: 12 | K33: 22 | L33: 12 | M33: 3 | N33: IDCELL29 | O33: 1 | P33: 0 | Q33: D | R33: MACROCELDA | S33: FO | T33: 3.553562442e-05 | U33: 0.000330636106 | V33: 0.5108795879 | W33: 0.2545859755 | X33: 0.4891204121 | Y33: 0.7454140245 | Z33: BSC14 | AA33: DEFAULT | AB33: 1 | AC33: 1 | AD33: 1 | AE33: 0 | AF33: 0 | AG33: 0 | AH33: RNC23 | AI33: DEFAULT | AJ33: 1 | AK33: 0.8770306716 | AL33: 0.1129693284 | AM33: 0 | AN33: 0.01 | AO33: D | AQ33: RNC23 | AR33: 0.2606249621 | AS33: 0.0001477589549 | AT33: 0.3302899806 | AU33: 0.0001872549044
A34: 30 | B34: RURAL | C34: PROVINCIA | D34: NORTE | E34: LA LIBERTAD | F34: PROVINCIA100 | G34: DISTRITO1227 | H34: 77 | I34: 4 | J34: 12 | K34: 22 | L34: 12 | M34: 3 | N34: IDCELL30 | O34: 1 | P34: 0 | Q34: D | R34: MACROCELDA | S34: FO | T34: 0.0002489427493 | U34: 0.0005239891012 | V34: 0.8263515708 | W34: 0.01808489808 | X34: 0.1736484292 | Y34: 0.9819151019 | Z34: BSC48 | AA34: DEFAULT | AB34: 1 | AC34: 1 | AD34: 1 | AE34: 0 | AF34: 0 | AG34: 0 | AH34: RNC39 | AI34: DEFAULT | AJ34: 1 | AK34: 0.8885259079 | AL34: 0.1014740921 | AM34: 0 | AN34: 0.01 | AO34: D | AQ34: RNC39 | AR34: 0.9994264562 | AS34: 0.0005666157512 | AT34: 0.8604872251 | AU34: 0.0004878454161
A35: 31 | B35: RURAL | C35: PROVINCIA | D35: NORTE | E35: LA LIBERTAD | F35: PROVINCIA109 | G35: DISTRITO1059 | H35: 77 | I35: 4 | J35: 12 | K35: 22 | L35: 12 | M35: 3 | N35: IDCELL31 | O35: 1 | P35: 0 | Q35: D | R35: MACROCELDA | S35: FO | T35: 8.696446058e-05 | U35: 5.095189065e-06 | V35: 0.7327670723 | W35: 0.448950353 | X35: 0.2672329277 | Y35: 0.551049647 | Z35: BSC60 | AA35: DEFAULT | AB35: 1 | AC35: 0.5169663259 | AD35: 0.5169663259 | AE35: 1 | AF35: 0.4830336741 | AG35: 0.4830336741 | AH35: RNC11 | AI35: DEFAULT | AJ35: 1 | AK35: 0.8431932778 | AL35: 0.1468067222 | AM35: 0 | AN35: 0.01 | AO35: D | AQ35: RNC11 | AR35: 0.960108333 | AS35: 0.0005443246984 | AT35: 0.01932377479 | AU35: 1.095543859e-05
A36: 32 | B36: RURAL | C36: PROVINCIA | D36: NORTE | E36: LA LIBERTAD | F36: PROVINCIA24 | G36: DISTRITO678 | H36: 77 | I36: 4 | J36: 12 | K36: 22 | L36: 12 | M36: 3 | N36: IDCELL32 | O36: 1 | P36: 0 | Q36: TM | R36: MACROCELDA | S36: FO | T36: 0.000286962159 | U36: 0.0004410283494 | V36: 0.407386817 | W36: 0.03807981687 | X36: 0.592613183 | Y36: 0.9619201831 | Z36: BSC11 | AA36: DEFAULT | AB36: 1 | AC36: 1 | AD36: 1 | AE36: 0 | AF36: 0 | AG36: 0 | AH36: RNC30 | AI36: DEFAULT | AJ36: 1 | AK36: 0.8986945666 | AL36: 0.09130543339 | AM36: 0 | AN36: 0.01 | AO36: D | AQ36: RNC30 | AR36: 0.05938560778 | AS36: 3.366813091e-05 | AT36: 0.7627817397 | AU36: 0.0004324521787
A37: 33 | B37: RURAL | C37: PROVINCIA | D37: NORTE | E37: LIMA | F37: PROVINCIA26 | G37: DISTRITO1800 | H37: 77 | I37: 4 | J37: 12 | K37: 22 | L37: 12 | M37: 3 | N37: IDCELL33 | O37: 1 | P37: 0 | Q37: D | R37: MACROCELDA | S37: FO | T37: 0.0001096144377 | U37: 0.0001329444418 | V37: 0.1438523958 | W37: 0.9547312657 | X37: 0.8561476042 | Y37: 0.04526873428 | Z37: BSC02 | AA37: DEFAULT | AB37: 1 | AC37: 0.393466731 | AD37: 0.393466731 | AE37: 1 | AF37: 0.606533269 | AG37: 0.606533269 | AH37: RNC22 | AI37: DEFAULT | AJ37: 1 | AK37: 0.891387422 | AL37: 0.09861257799 | AM37: 0 | AN37: 0.01 | AO37: D | AQ37: RNC22 | AR37: 0.79048072 | AS37: 0.0004481558639 | AT37: 0.3203160061 | AU37: 0.0001816002501
A38: 34 | B38: RURAL | C38: PROVINCIA | D38: SUR | E38: AREQUIPA | F38: PROVINCIA85 | G38: DISTRITO90 | H38: 77 | I38: 4 | J38: 12 | K38: 22 | L38: 12 | M38: 3 | N38: IDCELL34 | O38: 1 | P38: 0 | Q38: D | R38: MACROCELDA | S38: FO | T38: 0.0004895551219 | U38: 0.000561398024 | V38: 0.4870129741 | W38: 0.6173518313 | X38: 0.5129870259 | Y38: 0.3826481687 | Z38: BSC01 | AA38: DEFAULT | AB38: 1 | AC38: 1 | AD38: 1 | AE38: 0 | AF38: 0 | AG38: 0 | AH38: RNC22 | AI38: DEFAULT | AJ38: 1 | AK38: 0.8899019945 | AL38: 0.1000980055 | AM38: 0 | AN38: 0.01 | AO38: D | AQ38: RNC22 | AR38: 0.8121786125 | AS38: 0.000460457287 | AT38: 0.2266528431 | AU38: 0.0001284987706
A39: 35 | B39: URBANA | C39: LIMA | D39: LIMA | E39: LA LIBERTAD | F39: PROVINCIA42 | G39: DISTRITO403 | H39: 77 | I39: 4 | J39: 12 | K39: 22 | L39: 12 | M39: 3 | N39: IDCELL35 | O39: 1 | P39: 0 | Q39: D | R39: MACROCELDA | S39: FO | T39: 0.0001471259783 | U39: 0.0002517188802 | V39: 0.3867109179 | W39: 0.4125661522 | X39: 0.6132890821 | Y39: 0.5874338478 | Z39: BSC44 | AA39: DEFAULT | AB39: 1 | AC39: 1 | AD39: 1 | AE39: 0 | AF39: 0 | AG39: 0 | AH39: RNC28 | AI39: DEFAULT | AJ39: 1 | AK39: 0.8359298007 | AL39: 0.1540701993 | AM39: 0 | AN39: 0.01 | AO39: D | AQ39: RNC28 | AR39: 0.9627160935 | AS39: 0.0005458031445 | AT39: 0.1895121868 | AU39: 0.0001074422129
A40: 36 | B40: URBANA | C40: PROVINCIA | D40: SUR | E40: AREQUIPA | F40: PROVINCIA65 | G40: DISTRITO865 | H40: 77 | I40: 4 | J40: 12 | K40: 22 | L40: 12 | M40: 3 | N40: IDCELL36 | O40: 1 | P40: 0 | Q40: D | R40: MACROCELDA | S40: FO | T40: 0.0004392738023 | U40: 0.0003756525981 | V40: 0.2788032609 | W40: 0.2105525966 | X40: 0.7211967391 | Y40: 0.7894474034 | Z40: BSC56 | AA40: DEFAULT | AB40: 1 | AC40: 1 | AD40: 1 | AE40: 0 | AF40: 0 | AG40: 0 | AH40: RNC40 | AI40: DEFAULT | AJ40: 1 | AK40: 0.8419108638 | AL40: 0.1480891362 | AM40: 0 | AN40: 0.01 | AO40: D | AQ40: RNC40 | AR40: 0.4922685419 | AS40: 0.0002790871784 | AT40: 0.4239583022 | AU40: 0.0002403593084
A41: 37 | B41: RURAL | C41: PROVINCIA | D41: SUR | E41: AREQUIPA | F41: PROVINCIA96 | G41: DISTRITO311 | H41: 77 | I41: 4 | J41: 12 | K41: 22 | L41: 12 | M41: 3 | N41: IDCELL37 | O41: 1 | P41: 0 | Q41: D | R41: MACROCELDA | S41: FO | T41: 0.0005301038822 | U41: 0.0005408491251 | V41: 0.9792897366 | W41: 0.06993232826 | X41: 0.02071026344 | Y41: 0.9300676717 | Z41: BSC35 | AA41: DEFAULT | AB41: 1 | AC41: 1 | AD41: 1 | AE41: 0 | AF41: 0 | AG41: 0 | AH41: RNC11 | AI41: DEFAULT | AJ41: 1 | AK41: 0.8749414124 | AL41: 0.1150585876 | AM41: 0 | AN41: 0.01 | AO41: D | AQ41: RNC11 | AR41: 0.5270421185 | AS41: 0.0002988017418 | AT41: 0.5759128805 | AU41: 0.0003265085764
A42: 38 | B42: URBANA | C42: LIMA | D42: LIMA | E42: LA LIBERTAD | F42: PROVINCIA85 | G42: DISTRITO2417 | H42: 77 | I42: 4 | J42: 12 | K42: 22 | L42: 12 | M42: 3 | N42: IDCELL38 | O42: 1 | P42: 0 | Q42: TERCERO | R42: MACROCELDA | S42: FO | T42: 3.071010953e-05 | U42: 4.474126697e-05 | V42: 0.354066702 | W42: 0.09773633813 | X42: 0.645933298 | Y42: 0.9022636619 | Z42: BSC41 | AA42: DEFAULT | AB42: 1 | AC42: 1 | AD42: 1 | AE42: 0 | AF42: 0 | AG42: 0 | AH42: RNC32 | AI42: DEFAULT | AJ42: 1 | AK42: 0.8822413243 | AL42: 0.1077586757 | AM42: 0 | AN42: 0.01 | AO42: D | AQ42: RNC32 | AR42: 0.2649314341 | AS42: 0.0001502004701 | AT42: 0.7595003289 | AU42: 0.0004305918126
A43: 39 | B43: RURAL | C43: PROVINCIA | D43: SUR | E43: LA LIBERTAD | F43: PROVINCIA9 | G43: DISTRITO1731 | H43: 77 | I43: 4 | J43: 12 | K43: 22 | L43: 12 | M43: 3 | N43: IDCELL39 | O43: 1 | P43: 0 | Q43: D | R43: MACROCELDA | S43: FO | T43: 0.0004388193816 | U43: 0.000212023066 | V43: 0.4016304616 | W43: 0.713304531 | X43: 0.5983695384 | Y43: 0.286695469 | Z43: BSC29 | AA43: DEFAULT | AB43: 1 | AC43: 1 | AD43: 1 | AE43: 0 | AF43: 0 | AG43: 0 | AH43: RNC05 | AI43: DEFAULT | AJ43: 1 | AK43: 0.8831384604 | AL43: 0.1068615396 | AM43: 0 | AN43: 0.01 | AO43: D | AQ43: RNC05 | AR43: 0.3172439235 | AS43: 0.0001798585608 | AT43: 0.5917982175 | AU43: 0.0003355146239
A44: 40 | B44: RURAL | C44: PROVINCIA | D44: LIMA | E44: AREQUIPA | F44: PROVINCIA57 | G44: DISTRITO1058 | H44: 77 | I44: 4 | J44: 12 | K44: 22 | L44: 12 | M44: 3 | N44: IDCELL40 | O44: 1 | P44: 0 | Q44: D | R44: MACROCELDA | S44: FO | T44: 0.0001900087301 | U44: 0.0004274923446 | V44: 0.5281710969 | W44: 0.6877023295 | X44: 0.4718289031 | Y44: 0.3122976705 | Z44: BSC08 | AA44: DEFAULT | AB44: 1 | AC44: 0.6705436282 | AD44: 0.6705436282 | AE44: 1 | AF44: 0.3294563718 | AG44: 0.3294563718 | AH44: RNC32 | AI44: DEFAULT | AJ44: 1 | AK44: 0.8797492606 | AL44: 0.1102507394 | AM44: 0 | AN44: 0.01 | AO44: D | AQ44: RNC32 | AR44: 0.02526575295 | AS44: 1.432418913e-05 | AT44: 0.6560052088 | AU44: 0.0003719161944
A45: 41 | B45: URBANA | C45: PROVINCIA | D45: NORTE | E45: LA LIBERTAD | F45: PROVINCIA108 | G45: DISTRITO1815 | H45: 77 | I45: 4 | J45: 12 | K45: 22 | L45: 12 | M45: 3 | N45: IDCELL41 | O45: 1 | P45: 0 | Q45: D | R45: MACROCELDA | S45: FO | T45: 0.0003272367629 | U45: 4.926086977e-07 | V45: 0.3770385281 | W45: 0.8593222572 | X45: 0.6229614719 | Y45: 0.1406777428 | Z45: BSC52 | AA45: DEFAULT | AB45: 1 | AC45: 1 | AD45: 1 | AE45: 0 | AF45: 0 | AG45: 0 | AH45: RNC06 | AI45: DEFAULT | AJ45: 1 | AK45: 0.8225079877 | AL45: 0.1674920123 | AM45: 0 | AN45: 0.01 | AO45: D | AQ45: RNC06 | AR45: 0.8687379323 | AS45: 0.0004925230796 | AT45: 0.5311040061 | AU45: 0.000301104592
A46: 42 | B46: URBANA | C46: LIMA | D46: LIMA | E46: AREQUIPA | F46: PROVINCIA84 | G46: DISTRITO1482 | H46: 77 | I46: 4 | J46: 12 | K46: 22 | L46: 12 | M46: 3 | N46: IDCELL42 | O46: 1 | P46: 0 | Q46: TM | R46: MACROCELDA | S46: FO | T46: 0.0004998970284 | U46: 0.0001324865019 | V46: 0.04616844845 | W46: 0.286164695 | X46: 0.9538315516 | Y46: 0.713835305 | Z46: BSC46 | AA46: DEFAULT | AB46: 1 | AC46: 1 | AD46: 1 | AE46: 0 | AF46: 0 | AG46: 0 | AH46: RNC34 | AI46: DEFAULT | AJ46: 1 | AK46: 0.8348498421 | AL46: 0.1551501579 | AM46: 0 | AN46: 0.01 | AO46: D | AQ46: RNC34 | AR46: 0.2427086989 | AS46: 0.0001376014922 | AT46: 0.4010744008 | AU46: 0.0002273854884
A47: 43 | B47: RURAL | C47: PROVINCIA | D47: LIMA | E47: LA LIBERTAD | F47: PROVINCIA35 | G47: DISTRITO2230 | H47: 77 | I47: 4 | J47: 12 | K47: 22 | L47: 12 | M47: 3 | N47: IDCELL43 | O47: 1 | P47: 0 | Q47: D | R47: MACROCELDA | S47: FO | T47: 0.0003822741061 | U47: 0.0001977120294 | V47: 0.9642401848 | W47: 0.9592102699 | X47: 0.03575981521 | Y47: 0.04078973009 | Z47: BSC13 | AA47: DEFAULT | AB47: 1 | AC47: 1 | AD47: 1 | AE47: 0 | AF47: 0 | AG47: 0 | AH47: RNC14 | AI47: DEFAULT | AJ47: 1 | AK47: 0.8294561849 | AL47: 0.1605438151 | AM47: 0 | AN47: 0.01 | AO47: D | AQ47: RNC14 | AR47: 0.9603135686 | AS47: 0.0005444410548 | AT47: 0.0162452763 | AU47: 9.210111833e-06
A48: 44 | B48: RURAL | C48: PROVINCIA | D48: LIMA | E48: LIMA | F48: PROVINCIA15 | G48: DISTRITO2373 | H48: 77 | I48: 4 | J48: 12 | K48: 22 | L48: 12 | M48: 3 | N48: IDCELL44 | O48: 1 | P48: 0 | Q48: TM | R48: MACROCELDA | S48: FO | T48: 0.000304668633 | U48: 0.000492368241 | V48: 0.1763721414 | W48: 0.1711809865 | X48: 0.8236278586 | Y48: 0.8288190135 | Z48: BSC25 | AA48: DEFAULT | AB48: 1 | AC48: 1 | AD48: 1 | AE48: 0 | AF48: 0 | AG48: 0 | AH48: RNC16 | AI48: DEFAULT | AJ48: 1 | AK48: 0.8469819505 | AL48: 0.1430180495 | AM48: 0 | AN48: 0.01 | AO48: D | AQ48: RNC16 | AR48: 0.1747415151 | AS48: 9.906811476e-05 | AT48: 0.6716752783 | AU48: 0.0003808001979
A49: 45 | B49: URBANA | C49: PROVINCIA | D49: NORTE | E49: LA LIBERTAD | F49: PROVINCIA68 | G49: DISTRITO959 | H49: 77 | I49: 4 | J49: 12 | K49: 22 | L49: 12 | M49: 3 | N49: IDCELL45 | O49: 1 | P49: 0 | Q49: D | R49: MACROCELDA | S49: FO | T49: 0.0001101466728 | U49: 1.550330012e-05 | V49: 0.05711996596 | W49: 0.9791129394 | X49: 0.942880034 | Y49: 0.02088706065 | Z49: BSC06 | AA49: DEFAULT | AB49: 1 | AC49: 1 | AD49: 1 | AE49: 0 | AF49: 0 | AG49: 0 | AH49: RNC32 | AI49: DEFAULT | AJ49: 1 | AK49: 0.8492388075 | AL49: 0.1407611925 | AM49: 0 | AN49: 0.01 | AO49: D | AQ49: RNC32 | AR49: 0.03759846703 | AS49: 2.131610936e-05 | AT49: 0.9695484885 | AU49: 0.0005496767087
A50: 46 | B50: URBANA | C50: LIMA | D50: NORTE | E50: LA LIBERTAD | F50: PROVINCIA33 | G50: DISTRITO2668 | H50: 77 | I50: 4 | J50: 12 | K50: 22 | L50: 12 | M50: 3 | N50: IDCELL46 | O50: 1 | P50: 0 | Q50: D | R50: MACROCELDA | S50: FO | T50: 0.0004800819583 | U50: 0.0002636902958 | V50: 0.05542327031 | W50: 0.4472547402 | X50: 0.9445767297 | Y50: 0.5527452598 | Z50: BSC50 | AA50: DEFAULT | AB50: 1 | AC50: 0.6481247332 | AD50: 0.6481247332 | AE50: 1 | AF50: 0.3518752668 | AG50: 0.3518752668 | AH50: RNC03 | AI50: DEFAULT | AJ50: 1 | AK50: 0.8744456829 | AL50: 0.1155543171 | AM50: 0 | AN50: 0.01 | AO50: D | AQ50: RNC03 | AR50: 0.5130351892 | AS50: 0.0002908606404 | AT50: 0.8931489142 | AU50: 0.0005063626641
A51: 47 | B51: RURAL | C51: LIMA | D51: LIMA | E51: LA LIBERTAD | F51: PROVINCIA54 | G51: DISTRITO360 | H51: 77 | I51: 4 | J51: 12 | K51: 22 | L51: 12 | M51: 3 | N51: IDCELL47 | O51: 1 | P51: 0 | Q51: TERCERO | R51: PICOCELDA | S51: SAT | T51: 1.724556802e-05 | U51: 0.0003045886284 | V51: 1 | W51: 1 | X51: 0 | Y51: 0 | Z51: BSC39 | AA51: DEFAULT | AB51: 1 | AC51: 0.3520655223 | AD51: 0.3520655223 | AE51: 1 | AF51: 0.6479344777 | AG51: 0.6479344777 | AJ51: 0 | AK51: 0 | AL51: 0 | AM51: 0 | AN51: 0 | AO51: D | AR51: 0.2396365928 | AS51: 0.0001358597896 | AT51: 0.2422913005 | AU51: 0.000137364852
A52: 48 | B52: RURAL | C52: PROVINCIA | D52: NORTE | E52: LIMA | F52: PROVINCIA2 | G52: DISTRITO1764 | H52: 77 | I52: 4 | J52: 12 | K52: 22 | L52: 12 | M52: 3 | N52: IDCELL48 | O52: 1 | P52: 0 | Q52: D | R52: MACROCELDA | S52: FO | T52: 0.0004209774468 | U52: 0.0005430618776 | V52: 0.04395640675 | W52: 0.6055726155 | X52: 0.9560435932 | Y52: 0.3944273845 | Z52: BSC55 | AA52: DEFAULT | AB52: 1 | AC52: 1 | AD52: 1 | AE52: 0 | AF52: 0 | AG52: 0 | AH52: RNC37 | AI52: DEFAULT | AJ52: 1 | AK52: 0.8122092208 | AL52: 0.1777907792 | AM52: 0 | AN52: 0.01 | AO52: D | AQ52: RNC37 | AR52: 0.4820872622 | AS52: 0.0002733149943 | AT52: 0.1148147537 | AU52: 6.509318172e-05
A53: 49 | B53: RURAL | C53: PROVINCIA | D53: LIMA | E53: LA LIBERTAD | F53: PROVINCIA16 | G53: DISTRITO2066 | H53: 77 | I53: 4 | J53: 12 | K53: 22 | L53: 12 | M53: 3 | N53: IDCELL49 | O53: 1 | P53: 0 | Q53: D | R53: MACROCELDA | S53: FO | T53: 0.00014976788 | U53: 0.0004270494868 | V53: 0.8656961433 | W53: 0.1674667604 | X53: 0.1343038567 | Y53: 0.8325332396 | Z53: BSC06 | AA53: DEFAULT | AB53: 1 | AC53: 1 | AD53: 1 | AE53: 0 | AF53: 0 | AG53: 0 | AH53: RNC38 | AI53: DEFAULT | AJ53: 1 | AK53: 0.8745219016 | AL53: 0.1154780984 | AM53: 0 | AN53: 0.01 | AO53: D | AQ53: RNC38 | AR53: 0.3215671325 | AS53: 0.0001823095649 | AT53: 0.0006127556674 | AU53: 3.473962597e-07
A54: 50 | B54: RURAL | C54: LIMA | D54: NORTE | E54: LA LIBERTAD | F54: PROVINCIA101 | G54: DISTRITO1744 | H54: 77 | I54: 4 | J54: 12 | K54: 22 | L54: 12 | M54: 3 | N54: IDCELL50 | O54: 1 | P54: 0 | Q54: D | R54: MACROCELDA | S54: FO | T54: 0.0005459911071 | U54: 0.0005358732097 | V54: 0.4928920687 | W54: 0.9730693255 | X54: 0.5071079313 | Y54: 0.02693067448 | Z54: BSC46 | AA54: DEFAULT | AB54: 1 | AC54: 0.240252646 | AD54: 0.240252646 | AE54: 1 | AF54: 0.759747354 | AG54: 0.759747354 | AH54: RNC18 | AI54: DEFAULT | AJ54: 1 | AK54: 0.8010111404 | AL54: 0.1889888596 | AM54: 0 | AN54: 0.01 | AO54: D | AQ54: RNC18 | AR54: 0.151086625 | AS54: 8.565718968e-05 | AT54: 0.3453722095 | AU54: 0.000195805637
A55: 51 | B55: RURAL | C55: PROVINCIA | D55: NORTE | E55: LA LIBERTAD | F55: PROVINCIA86 | G55: DISTRITO271 | H55: 77 | I55: 4 | J55: 12 | K55: 22 | L55: 12 | M55: 3 | N55: IDCELL51 | O55: 1 | P55: 0 | Q55: D | R55: PICOCELDA | S55: SAT | T55: 0.0005175501968 | U55: 0.0005340350507 | V55: 1 | W55: 1 | X55: 0 | Y55: 0 | Z55: BSC11 | AA55: DEFAULT | AB55: 1 | AC55: 1 | AD55: 1 | AE55: 0 | AF55: 0 | AG55: 0 | AJ55: 0 | AK55: 0 | AL55: 0 | AM55: 0 | AN55: 0 | AO55: D | AR55: 0.4402204565 | AS55: 0.0002495789891 | AT55: 0.201417251 | AU55: 0.0001141916809
A56: 52 | B56: RURAL | C56: LIMA | D56: NORTE | E56: LA LIBERTAD | F56: PROVINCIA34 | G56: DISTRITO1030 | H56: 77 | I56: 4 | J56: 12 | K56: 22 | L56: 12 | M56: 3 | N56: IDCELL52 | O56: 1 | P56: 0 | Q56: TM | R56: MACROCELDA | S56: FO | T56: 0.0004794215074 | U56: 0.0001635054317 | V56: 0.4479960572 | W56: 0.8170810195 | X56: 0.5520039428 | Y56: 0.1829189805 | Z56: BSC58 | AA56: DEFAULT | AB56: 0 | AC56: 0 | AD56: 0 | AE56: 1 | AF56: 1 | AG56: 1 | AH56: RNC20 | AI56: DEFAULT | AJ56: 1 | AK56: 0.8915970032 | AL56: 0.09840299679 | AM56: 0 | AN56: 0.01 | AO56: D | AQ56: RNC20 | AR56: 0.1869634693 | AS56: 0.0001059972407 | AT56: 0.5279787891 | AU56: 0.0002993327786
A57: 53 | B57: URBANA | C57: PROVINCIA | D57: NORTE | E57: LIMA | F57: PROVINCIA103 | G57: DISTRITO2875 | H57: 77 | I57: 4 | J57: 12 | K57: 22 | L57: 12 | M57: 3 | N57: IDCELL53 | O57: 1 | P57: 0 | Q57: TM | R57: MACROCELDA | S57: FO | T57: 3.667350803e-05 | U57: 0.0005190302308 | V57: 0.7039874439 | W57: 0.7285705458 | X57: 0.2960125561 | Y57: 0.2714294542 | Z57: BSC40 | AA57: DEFAULT | AB57: 1 | AC57: 1 | AD57: 1 | AE57: 0 | AF57: 0 | AG57: 0 | AH57: RNC08 | AI57: DEFAULT | AJ57: 1 | AK57: 0.8139095154 | AL57: 0.1760904846 | AM57: 0 | AN57: 0.01 | AO57: D | AQ57: RNC08 | AR57: 0.5361865812 | AS57: 0.0003039861118 | AT57: 0.707817629 | AU57: 0.0004012907754
A58: 54 | B58: URBANA | C58: PROVINCIA | D58: NORTE | E58: LA LIBERTAD | F58: PROVINCIA98 | G58: DISTRITO1738 | H58: 77 | I58: 4 | J58: 12 | K58: 22 | L58: 12 | M58: 3 | N58: IDCELL54 | O58: 1 | P58: 0 | Q58: D | R58: MACROCELDA | S58: FO | T58: 0.000341059384 | U58: 0.0004066249747 | V58: 0.08824160514 | W58: 0.8577704473 | X58: 0.9117583949 | Y58: 0.1422295527 | Z58: BSC27 | AA58: DEFAULT | AB58: 1 | AC58: 1 | AD58: 1 | AE58: 0 | AF58: 0 | AG58: 0 | AH58: RNC37 | AI58: DEFAULT | AJ58: 1 | AK58: 0.8786803397 | AL58: 0.1113196603 | AM58: 0 | AN58: 0.01 | AO58: D | AQ58: RNC37 | AR58: 0.6587876132 | AS58: 0.0003734936533 | AT58: 0.892173767 | AU58: 0.0005058098132
A59: 55 | B59: RURAL | C59: LIMA | D59: LIMA | E59: AREQUIPA | F59: PROVINCIA96 | G59: DISTRITO1565 | H59: 77 | I59: 4 | J59: 12 | K59: 22 | L59: 12 | M59: 3 | N59: IDCELL55 | O59: 1 | P59: 0 | Q59: D | R59: MACROCELDA | S59: FO | T59: 0.0003011416774 | U59: 0.000144225287 | V59: 0.9141457218 | W59: 0.8028406406 | X59: 0.08585427819 | Y59: 0.1971593594 | Z59: BSC65 | AA59: DEFAULT | AB59: 1 | AC59: 1 | AD59: 1 | AE59: 0 | AF59: 0 | AG59: 0 | AH59: RNC43 | AI59: DEFAULT | AJ59: 1 | AK59: 0.8863213431 | AL59: 0.1036786569 | AM59: 0 | AN59: 0.01 | AO59: D | AQ59: RNC43 | AR59: 0.7510122144 | AS59: 0.0004257795532 | AT59: 0.269370483 | AU59: 0.0001527171485
A60: 56 | B60: RURAL | C60: PROVINCIA | D60: LIMA | E60: LA LIBERTAD | F60: PROVINCIA27 | G60: DISTRITO1820 | H60: 77 | I60: 4 | J60: 12 | K60: 22 | L60: 12 | M60: 3 | N60: IDCELL56 | O60: 1 | P60: 0 | Q60: TERCERO | R60: MACROCELDA | S60: FO | T60: 4.143530214e-05 | U60: 0.000315281221 | V60: 0.241268911 | W60: 0.7853790486 | X60: 0.758731089 | Y60: 0.2146209514 | Z60: BSC02 | AA60: DEFAULT | AB60: 1 | AC60: 0.5202082194 | AD60: 0.5202082194 | AE60: 1 | AF60: 0.4797917806 | AG60: 0.4797917806 | AH60: RNC39 | AI60: DEFAULT | AJ60: 1 | AK60: 0.8394971595 | AL60: 0.1505028405 | AM60: 0 | AN60: 0.01 | AO60: D | AQ60: RNC39 | AR60: 0.9054979416 | AS60: 0.000513363833 | AT60: 0.02203308406 | AU60: 1.249145687e-05
A61: 57 | B61: RURAL | C61: PROVINCIA | D61: NORTE | E61: LA LIBERTAD | F61: PROVINCIA20 | G61: DISTRITO403 | H61: 77 | I61: 4 | J61: 12 | K61: 22 | L61: 12 | M61: 3 | N61: IDCELL57 | O61: 1 | P61: 0 | Q61: D | R61: MACROCELDA | S61: FO | T61: 0.0005549503257 | U61: 0.000156950377 | V61: 0.1244379442 | W61: 0.9850759037 | X61: 0.8755620558 | Y61: 0.01492409626 | Z61: BSC21 | AA61: DEFAULT | AB61: 1 | AC61: 1 | AD61: 1 | AE61: 0 | AF61: 0 | AG61: 0 | AH61: RNC38 | AI61: DEFAULT | AJ61: 1 | AK61: 0.8361706163 | AL61: 0.1538293837 | AM61: 0 | AN61: 0.01 | AO61: D | AQ61: RNC38 | AR61: 0.868801344 | AS61: 0.0004925590303 | AT61: 0.2022992479 | AU61: 0.000114691721
A62: 58 | B62: URBANA | C62: PROVINCIA | D62: NORTE | E62: LA LIBERTAD | F62: PROVINCIA90 | G62: DISTRITO802 | H62: 77 | I62: 4 | J62: 12 | K62: 22 | L62: 12 | M62: 3 | N62: IDCELL58 | O62: 1 | P62: 0 | Q62: TM | R62: MACROCELDA | S62: FO | T62: 0.0005313535589 | U62: 0.0004652771836 | V62: 0.8519104428 | W62: 0.7064311029 | X62: 0.1480895572 | Y62: 0.2935688971 | Z62: BSC64 | AA62: DEFAULT | AB62: 1 | AC62: 1 | AD62: 1 | AE62: 0 | AF62: 0 | AG62: 0 | AH62: RNC29 | AI62: DEFAULT | AJ62: 1 | AK62: 0.8949751168 | AL62: 0.09502488318 | AM62: 0 | AN62: 0.01 | AO62: D | AQ62: RNC29 | AR62: 0.7874312286 | AS62: 0.0004464269825 | AT62: 0.7786119963 | AU62: 0.0004414269989
A63: 59 | B63: RURAL | C63: PROVINCIA | D63: SUR | E63: AREQUIPA | F63: PROVINCIA101 | G63: DISTRITO2757 | H63: 77 | I63: 4 | J63: 12 | K63: 22 | L63: 12 | M63: 3 | N63: IDCELL59 | O63: 1 | P63: 0 | Q63: D | R63: MACROCELDA | S63: FO | T63: 6.673300671e-05 | U63: 0.0004356218032 | V63: 0.9842338462 | W63: 0.5862131247 | X63: 0.01576615378 | Y63: 0.4137868753 | Z63: BSC56 | AA63: DEFAULT | AB63: 1 | AC63: 0.4020618557 | AD63: 0.4020618557 | AE63: 1 | AF63: 0.5979381443 | AG63: 0.5979381443 | AH63: RNC13 | AI63: DEFAULT | AJ63: 1 | AK63: 0.8166961459 | AL63: 0.1733038541 | AM63: 0 | AN63: 0.01 | AO63: D | AQ63: RNC13 | AR63: 0.6222715175 | AS63: 0.0003527911845 | AT63: 0.8061391479 | AU63: 0.0004570332674
A64: 60 | B64: URBANA | C64: PROVINCIA | D64: SUR | E64: LA LIBERTAD | F64: PROVINCIA49 | G64: DISTRITO2727 | H64: 77 | I64: 4 | J64: 12 | K64: 22 | L64: 12 | M64: 3 | N64: IDCELL60 | O64: 1 | P64: 0 | Q64: D | R64: MACROCELDA | S64: FO | T64: 0.0002351238776 | U64: 0.0003263881642 | V64: 0.05417952175 | W64: 0.07156024257 | X64: 0.9458204782 | Y64: 0.9284397574 | Z64: BSC34 | AA64: DEFAULT | AB64: 1 | AC64: 1 | AD64: 1 | AE64: 0 | AF64: 0 | AG64: 0 | AH64: RNC13 | AI64: DEFAULT | AJ64: 1 | AK64: 0.8081638435 | AL64: 0.1818361565 | AM64: 0 | AN64: 0.01 | AO64: D | AQ64: RNC13 | AR64: 0.1100933015 | AS64: 6.241639727e-05 | AT64: 0.5645805096 | AU64: 0.0003200837916
A65: 61 | B65: RURAL | C65: PROVINCIA | D65: NORTE | E65: LA LIBERTAD | F65: PROVINCIA17 | G65: DISTRITO130 | H65: 77 | I65: 4 | J65: 12 | K65: 22 | L65: 12 | M65: 3 | N65: IDCELL61 | O65: 1 | P65: 0 | Q65: TERCERO | R65: MACROCELDA | S65: FO | T65: 0.0003345685664 | U65: 0.0005290161886 | V65: 0.5118554499 | W65: 0.9407938463 | X65: 0.4881445501 | Y65: 0.05920615374 | Z65: BSC15 | AA65: DEFAULT | AB65: 1 | AC65: 1 | AD65: 1 | AE65: 0 | AF65: 0 | AG65: 0 | AH65: RNC21 | AI65: DEFAULT | AJ65: 1 | AK65: 0.8285732888 | AL65: 0.1614267112 | AM65: 0 | AN65: 0.01 | AO65: D | AQ65: RNC21 | AR65: 0.6829928801 | AS65: 0.0003872166095 | AT65: 0.05565987134 | AU65: 3.155585848e-05
A66: 62 | B66: RURAL | C66: LIMA | D66: SUR | E66: LIMA | F66: PROVINCIA79 | G66: DISTRITO2161 | H66: 77 | I66: 4 | J66: 12 | K66: 22 | L66: 12 | M66: 3 | N66: IDCELL62 | O66: 1 | P66: 0 | Q66: D | R66: MACROCELDA | S66: FO | T66: 2.75799053e-05 | U66: 7.152396462e-05 | V66: 0.4994561144 | W66: 0.6726072808 | X66: 0.5005438856 | Y66: 0.3273927192 | Z66: BSC19 | AA66: DEFAULT | AB66: 0 | AC66: 0 | AD66: 0 | AE66: 0 | AF66: 0 | AG66: 0 | AH66: RNC44 | AI66: DEFAULT | AJ66: 1 | AK66: 0.881353308 | AL66: 0.108646692 | AM66: 0 | AN66: 0.01 | AO66: D | AQ66: RNC44 | AR66: 0.9674699008 | AS66: 0.0005484982723 | AT66: 0.4963778134 | AU66: 0.0002814168925
A67: 63 | B67: RURAL | C67: PROVINCIA | D67: SUR | E67: LA LIBERTAD | F67: PROVINCIA42 | G67: DISTRITO1348 | H67: 77 | I67: 4 | J67: 12 | K67: 22 | L67: 12 | M67: 3 | N67: IDCELL63 | O67: 1 | P67: 0 | Q67: TM | R67: MACROCELDA | S67: FO | T67: 0.0005419972627 | U67: 0.0004809334971 | V67: 0.3679356179 | W67: 0.5611298425 | X67: 0.6320643821 | Y67: 0.4388701575 | Z67: BSC55 | AA67: DEFAULT | AB67: 1 | AC67: 1 | AD67: 1 | AE67: 0 | AF67: 0 | AG67: 0 | AH67: RNC38 | AI67: DEFAULT | AJ67: 1 | AK67: 0.8555301143 | AL67: 0.1344698857 | AM67: 0 | AN67: 0.01 | AO67: D | AQ67: RNC38 | AR67: 0.8903616276 | AS67: 0.0005047824372 | AT67: 0.5737727511 | AU67: 0.0003252952494
A68: 64 | B68: RURAL | C68: PROVINCIA | D68: NORTE | E68: LA LIBERTAD | F68: PROVINCIA70 | G68: DISTRITO1791 | H68: 77 | I68: 4 | J68: 12 | K68: 22 | L68: 12 | M68: 3 | N68: IDCELL64 | O68: 1 | P68: 0 | Q68: D | R68: MACROCELDA | S68: FO | T68: 0.0001481578578 | U68: 0.0002089530552 | V68: 0.9909185486 | W68: 0.4315449496 | X68: 0.009081451372 | Y68: 0.5684550504 | Z68: BSC23 | AA68: DEFAULT | AB68: 1 | AC68: 1 | AD68: 1 | AE68: 0 | AF68: 0 | AG68: 0 | AH68: RNC30 | AI68: DEFAULT | AJ68: 1 | AK68: 0.8429110809 | AL68: 0.1470889191 | AM68: 0 | AN68: 0.01 | AO68: D | AQ68: RNC30 | AR68: 0.9726183561 | AS68: 0.0005514171423 | AT68: 0.6783585828 | AU68: 0.0003845892367
A69: 65 | B69: RURAL | C69: LIMA | D69: LIMA | E69: LA LIBERTAD | F69: PROVINCIA88 | G69: DISTRITO247 | H69: 77 | I69: 4 | J69: 12 | K69: 22 | L69: 12 | M69: 3 | N69: IDCELL65 | O69: 1 | P69: 0 | Q69: D | R69: MACROCELDA | S69: FO | T69: 0.0005263568876 | U69: 0.0002708121665 | V69: 0.1663011609 | W69: 0.5550575204 | X69: 0.8336988391 | Y69: 0.4449424796 | Z69: BSC28 | AA69: DEFAULT | AB69: 1 | AC69: 1 | AD69: 1 | AE69: 0 | AF69: 0 | AG69: 0 | AH69: RNC24 | AI69: DEFAULT | AJ69: 1 | AK69: 0.862677892 | AL69: 0.127322108 | AM69: 0 | AN69: 0.01 | AO69: D | AQ69: RNC24 | AR69: =RAND() -> 0.4407435087 | AS69: 0.0002498755288 | AT69: 0.9547197356 | AU69: 0.000541269682
A70: 66 | B70: RURAL | C70: LIMA | D70: NORTE | E70: AREQUIPA | F70: PROVINCIA100 | G70: DISTRITO1029 | H70: 77 | I70: 4 | J70: 12 | K70: 22 | L70: 12 | M70: 3 | N70: IDCELL66 | O70: 1 | P70: 0 | Q70: TERCERO | R70: MACROCELDA | S70: FO | T70: 0.0001152858069 | U70: 7.39601973e-05 | V70: 0.313477076 | W70: 0.298786395 | X70: 0.686522924 | Y70: 0.701213605 | Z70: BSC48 | AA70: DEFAULT | AB70: 1 | AC70: 1 | AD70: 1 | AE70: 0 | AF70: 0 | AG70: 0 | AH70: RNC14 | AI70: DEFAULT | AJ70: 1 | AK70: 0.816567283 | AL70: 0.173432717 | AM70: 0 | AN70: 0.01 | AO70: D | AQ70: =IF(R70="PICOCELDA","",AH70) -> RNC14 | AR70: 0.4068559745 | AS70: =AR70/$AR$3536 -> 0.0002306632991 | AT70: 0.04433551318 | AU70: 2.513561648e-05
A71: 67 | B71: RURAL | C71: LIMA | D71: NORTE | E71: LA LIBERTAD | F71: PROVINCIA15 | G71: DISTRITO427 | H71: 77 | I71: 4 | J71: 12 | K71: 22 | L71: 12 | M71: 3 | N71: IDCELL67 | O71: 1 | P71: 0 | Q71: TM | R71: MACROCELDA | S71: FO | T71: 7.375103292e-05 | U71: 0.0004092183164 | V71: 0.1279616608 | W71: 0.7691305694 | X71: 0.8720383392 | Y71: 0.2308694306 | Z71: BSC23 | AA71: DEFAULT | AB71: 1 | AC71: 1 | AD71: 1 | AE71: 0 | AF71: 0 | AG71: 0 | AH71: RNC44 | AI71: DEFAULT | AJ71: 1 | AK71: 0.844223637 | AL71: 0.145776363 | AM71: 0 | AN71: 0.01 | AO71: D | AQ71: RNC44 | AR71: 0.1051756094 | AS71: 5.962835639e-05 | AT71: 0.2551516403 | AU71: 0.0001446559048
A72: 68 | B72: RURAL | C72: PROVINCIA | D72: NORTE | E72: AREQUIPA | F72: PROVINCIA37 | G72: DISTRITO2418 | H72: 77 | I72: 4 | J72: 12 | K72: 22 | L72: 12 | M72: 3 | N72: IDCELL68 | O72: 1 | P72: 0 | Q72: D | R72: MACROCELDA | S72: FO | T72: 0.0003312782076 | U72: 9.310754088e-06 | V72: 0.2619280693 | W72: 0.529762986 | X72: 0.7380719307 | Y72: 0.470237014 | Z72: BSC57 | AA72: DEFAULT | AB72: 1 | AC72: 1 | AD72: 1 | AE72: 0 | AF72: 0 | AG72: 0 | AH72: RNC26 | AI72: DEFAULT | AJ72: 1 | AK72: 0.8984917757 | AL72: 0.09150822431 | AM72: 0 | AN72: 0.01 | AO72: D | AQ72: RNC26 | AR72: 0.7916146758 | AS72: 0.0004487987499 | AT72: 0.2938737114 | AU72: 0.0001666090313
A73: 69 | B73: URBANA | C73: PROVINCIA | D73: SUR | E73: AREQUIPA | F73: PROVINCIA13 | G73: DISTRITO1613 | H73: 77 | I73: 4 | J73: 12 | K73: 22 | L73: 12 | M73: 3 | N73: IDCELL69 | O73: 1 | P73: 0 | Q73: TERCERO | R73: MACROCELDA | S73: FO | T73: 0.0002442010921 | U73: 0.0002994518545 | V73: 0.1064086041 | W73: 0.5084826351 | X73: 0.8935913959 | Y73: 0.4915173649 | Z73: BSC64 | AA73: DEFAULT | AB73: 1 | AC73: 1 | AD73: 1 | AE73: 0 | AF73: 0 | AG73: 0 | AH73: RNC35 | AI73: DEFAULT | AJ73: 1 | AK73: 0.8342286036 | AL73: 0.1557713964 | AM73: 0 | AN73: 0.01 | AO73: D | AQ73: RNC35 | AR73: 0.2207223484 | AS73: 0.0001251365305 | AT73: 0.9873339419 | AU73: 0.00055976001
A74: 70 | B74: URBANA | C74: PROVINCIA | D74: NORTE | E74: LA LIBERTAD | F74: PROVINCIA29 | G74: DISTRITO1502 | H74: 77 | I74: 4 | J74: 12 | K74: 22 | L74: 12 | M74: 3 | N74: IDCELL70 | O74: 1 | P74: 0 | Q74: D | R74: MACROCELDA | S74: FO | T74: 6.995269043e-05 | U74: 0.0002465440125 | V74: 0.858980888 | W74: 0.08897585485 | X74: 0.141019112 | Y74: 0.9110241452 | Z74: BSC62 | AA74: DEFAULT | AB74: 1 | AC74: 1 | AD74: 1 | AE74: 0 | AF74: 0 | AG74: 0 | AH74: RNC28 | AI74: DEFAULT | AJ74: 1 | AK74: 0.8221901082 | AL74: 0.1678098918 | AM74: 0 | AN74: 0.01 | AO74: D | AQ74: RNC28 | AR74: 0.1175425953 | AS74: 6.663970671e-05 | AT74: 0.9998046514 | AU74: 0.0005668301655
A75: 71 | B75: RURAL | C75: PROVINCIA | D75: SUR | E75: LA LIBERTAD | F75: PROVINCIA29 | G75: DISTRITO2581 | H75: 77 | I75: 4 | J75: 12 | K75: 22 | L75: 12 | M75: 3 | N75: IDCELL71 | O75: 1 | P75: 0 | Q75: TERCERO | R75: MACROCELDA | S75: FO | T75: 0.0004580200739 | U75: 0.0002372554571 | V75: 0.7263434507 | W75: 0.222945232 | X75: 0.2736565493 | Y75: 0.777054768 | Z75: BSC01 | AA75: DEFAULT | AB75: 1 | AC75: 1 | AD75: 1 | AE75: 0 | AF75: 0 | AG75: 0 | AH75: RNC26 | AI75: DEFAULT | AJ75: 1 | AK75: 0.8267495857 | AL75: 0.1632504143 | AM75: 0 | AN75: 0.01 | AO75: D | AQ75: RNC26 | AR75: 0.8017511913 | AS75: 0.0004545455553 | AT75: 0.8072405318 | AU75: 0.000457657687
A76: 72 | B76: RURAL | C76: LIMA | D76: NORTE | E76: LIMA | F76: PROVINCIA18 | G76: DISTRITO1555 | H76: 77 | I76: 4 | J76: 12 | K76: 22 | L76: 12 | M76: 3 | N76: IDCELL72 | O76: 1 | P76: 0 | Q76: D | R76: MACROCELDA | S76: FO | T76: 0.0005154058177 | U76: 8.955727831e-05 | V76: 0.5444961109 | W76: 0.4251553405 | X76: 0.4555038891 | Y76: 0.5748446595 | Z76: BSC26 | AA76: DEFAULT | AB76: 1 | AC76: 1 | AD76: 1 | AE76: 0 | AF76: 0 | AG76: 0 | AH76: RNC39 | AI76: DEFAULT | AJ76: 1 | AK76: 0.838690452 | AL76: 0.151309548 | AM76: 0 | AN76: 0.01 | AO76: D | AQ76: RNC39 | AR76: 0.7227682926 | AS76: 0.0004097669183 | AT76: 0.622976715 | AU76: 0.0003531909898
A77: 73 | B77: RURAL | C77: PROVINCIA | D77: SUR | E77: LIMA | F77: PROVINCIA26 | G77: DISTRITO157 | H77: 77 | I77: 4 | J77: 12 | K77: 22 | L77: 12 | M77: 3 | N77: IDCELL73 | O77: 1 | P77: 0 | Q77: TM | R77: MACROCELDA | S77: FO | T77: 0.0002013566339 | U77: 0.0002331371222 | V77: 0.9479628146 | W77: 0.09704603746 | X77: 0.05203718541 | Y77: 0.9029539625 | Z77: BSC64 | AA77: DEFAULT | AB77: 1 | AC77: 1 | AD77: 1 | AE77: 0 | AF77: 0 | AG77: 0 | AH77: RNC25 | AI77: DEFAULT | AJ77: 1 | AK77: 0.831609746 | AL77: 0.158390254 | AM77: 0 | AN77: 0.01 | AO77: D | AQ77: RNC25 | AR77: 0.4050265758 | AS77: 0.0002296261382 | AT77: 0.2572911377 | AU77: 0.0001458688734
A78: 74 | B78: RURAL | C78: LIMA | D78: SUR | E78: LA LIBERTAD | F78: PROVINCIA118 | G78: DISTRITO782 | H78: 77 | I78: 4 | J78: 12 | K78: 22 | L78: 12 | M78: 3 | N78: IDCELL74 | O78: 1 | P78: 0 | Q78: D | R78: MACROCELDA | S78: FO | T78: 0.0005398244486 | U78: 0.0004665519358 | V78: 0.3018887645 | W78: 0.3796861301 | X78: 0.6981112355 | Y78: 0.6203138699 | Z78: BSC12 | AA78: DEFAULT | AB78: 1 | AC78: 1 | AD78: 1 | AE78: 0 | AF78: 0 | AG78: 0 | AH78: RNC44 | AI78: DEFAULT | AJ78: 1 | AK78: 0.8262704022 | AL78: 0.1637295978 | AM78: 0 | AN78: 0.01 | AO78: D | AQ78: RNC44 | AR78: 0.2989875661 | AS78: 0.0001695082848 | AT78: 0.7548635356 | AU78: 0.0004279630248
A79: 75 | B79: RURAL | C79: PROVINCIA | D79: NORTE | E79: LA LIBERTAD | F79: PROVINCIA70 | G79: DISTRITO537 | H79: 77 | I79: 4 | J79: 12 | K79: 22 | L79: 12 | M79: 3 | N79: IDCELL75 | O79: 1 | P79: 0 | Q79: D | R79: MACROCELDA | S79: FO | T79: 0.0004463538703 | U79: 4.021094517e-06 | V79: 0.412218347 | W79: 0.7728263383 | X79: 0.587781653 | Y79: 0.2271736617 | Z79: BSC53 | AA79: DEFAULT | AB79: 1 | AC79: 1 | AD79: 1 | AE79: 0 | AF79: 0 | AG79: 0 | AH79: RNC24 | AI79: DEFAULT | AJ79: 1 | AK79: 0.8094845852 | AL79: 0.1805154148 | AM79: 0 | AN79: 0.01 | AO79: D | AQ79: RNC24 | AR79: 0.1552424302 | AS79: 8.801328568e-05 | AT79: 0.1708778402 | AU79: 9.687763937e-05
A80: 76 | B80: RURAL | C80: PROVINCIA | D80: NORTE | E80: LA LIBERTAD | F80: PROVINCIA115 | G80: DISTRITO2491 | H80: 77 | I80: 4 | J80: 12 | K80: 22 | L80: 12 | M80: 3 | N80: IDCELL76 | O80: 1 | P80: 0 | Q80: D | R80: MACROCELDA | S80: FO | T80: 0.000225372713 | U80: 0.0004093617089 | V80: 0.7112906452 | W80: 0.7655661491 | X80: 0.2887093548 | Y80: 0.2344338509 | Z80: BSC36 | AA80: DEFAULT | AB80: 1 | AC80: 1 | AD80: 1 | AE80: 0 | AF80: 0 | AG80: 0 | AH80: RNC36 | AI80: DEFAULT | AJ80: 1 | AK80: 0.8973613208 | AL80: 0.09263867919 | AM80: 0 | AN80: 0.01 | AO80: D | AQ80: RNC36 | AR80: 0.988529311 | AS80: 0.0005604377137 | AT80: 0.6355570633 | AU80: 0.000360323304
A81: 77 | B81: RURAL | C81: PROVINCIA | D81: NORTE | E81: LA LIBERTAD | F81: PROVINCIA109 | G81: DISTRITO2045 | H81: 77 | I81: 4 | J81: 12 | K81: 22 | L81: 12 | M81: 3 | N81: IDCELL77 | O81: 1 | P81: 0 | Q81: TM | R81: MACROCELDA | S81: FO | T81: 2.501381703e-05 | U81: 0.0005423806517 | V81: 0.8892800607 | W81: 0.3608684276 | X81: 0.1107199393 | Y81: 0.6391315724 | Z81: BSC27 | AA81: DEFAULT | AB81: 1 | AC81: 1 | AD81: 1 | AE81: 0 | AF81: 0 | AG81: 0 | AH81: RNC25 | AI81: DEFAULT | AJ81: 1 | AK81: 0.8931086256 | AL81: 0.09689137444 | AM81: 0 | AN81: 0.01 | AO81: D | AQ81: RNC25 | AR81: 0.5351734938 | AS81: 0.0003034117511 | AT81: 0.4404597176 | AU81: 0.000249714636
A82: 78 | B82: URBANA | C82: PROVINCIA | D82: NORTE | E82: LIMA | F82: PROVINCIA92 | G82: DISTRITO1994 | H82: 77 | I82: 4 | J82: 12 | K82: 22 | L82: 12 | M82: 3 | N82: IDCELL78 | O82: 1 | P82: 0 | Q82: D | R82: MACROCELDA | S82: FO | T82: 0.0005007214649 | U82: 0.0002016554832 | V82: 0.4644532427 | W82: 0.6758466943 | X82: 0.5355467573 | Y82: 0.3241533057 | Z82: BSC22 | AA82: DEFAULT | AB82: 1 | AC82: 1 | AD82: 1 | AE82: 0 | AF82: 0 | AG82: 0 | AH82: RNC42 | AI82: DEFAULT | AJ82: 1 | AK82: 0.8858922106 | AL82: 0.1041077894 | AM82: 0 | AN82: 0.01 | AO82: D | AQ82: RNC42 | AR82: 0.2571104557 | AS82: 0.0001457664374 | AT82: 0.9879132686 | AU82: 0.000560088454
A83: 79 | B83: RURAL | C83: PROVINCIA | D83: LIMA | E83: AREQUIPA | F83: PROVINCIA42 | G83: DISTRITO2451 | H83: 77 | I83: 4 | J83: 12 | K83: 22 | L83: 12 | M83: 3 | N83: IDCELL79 | O83: 1 | P83: 0 | Q83: TERCERO | R83: MACROCELDA | S83: FO | T83: 0.0001556787927 | U83: 0.0002369391529 | V83: 0.4733027283 | W83: 0.06530143113 | X83: 0.5266972717 | Y83: 0.9346985689 | Z83: BSC54 | AA83: DEFAULT | AB83: 0 | AC83: 0 | AD83: 0 | AE83: 1 | AF83: 1 | AG83: 1 | AH83: RNC41 | AI83: DEFAULT | AJ83: 1 | AK83: 0.8502693338 | AL83: 0.1397306662 | AM83: 0 | AN83: 0.01 | AO83: D | AQ83: RNC41 | AR83: 0.5208499329 | AS83: 0.0002952911384 | AT83: 0.7860140574 | AU83: 0.0004456235302
A84: 80 | B84: URBANA | C84: LIMA | D84: LIMA | E84: LIMA | F84: PROVINCIA62 | G84: DISTRITO271 | H84: 77 | I84: 4 | J84: 12 | K84: 22 | L84: 12 | M84: 3 | N84: IDCELL80 | O84: 1 | P84: 0 | Q84: D | R84: MACROCELDA | S84: FO | T84: 0.000162701978 | U84: 0.0004634033032 | V84: 0.6218882261 | W84: 0.3090706729 | X84: 0.3781117739 | Y84: 0.6909293271 | Z84: BSC29 | AA84: DEFAULT | AB84: 1 | AC84: 0.2466904903 | AD84: 0.2466904903 | AE84: 1 | AF84: 0.7533095097 | AG84: 0.7533095097 | AH84: RNC21 | AI84: DEFAULT | AJ84: 1 | AK84: 0.8187646729 | AL84: 0.1712353271 | AM84: 0 | AN84: 0.01 | AO84: D | AQ84: RNC21 | AR84: 0.4648238364 | AS84: 0.0002635276519 | AT84: 0.4799018119 | AU84: 0.0002720759731
A85: 81 | B85: URBANA | C85: LIMA | D85: NORTE | E85: LIMA | F85: PROVINCIA105 | G85: DISTRITO2010 | H85: 77 | I85: 4 | J85: 12 | K85: 22 | L85: 12 | M85: 3 | N85: IDCELL81 | O85: 1 | P85: 0 | Q85: D | R85: MACROCELDA | S85: FO | T85: 0.0002128768222 | U85: 0.0002684048953 | V85: 0.1485407717 | W85: 0.6854470581 | X85: 0.8514592283 | Y85: 0.3145529419 | Z85: BSC22 | AA85: DEFAULT | AB85: 1 | AC85: 0 | AD85: 0 | AE85: 1 | AF85: 1 | AG85: 1 | AH85: RNC31 | AI85: DEFAULT | AJ85: 1 | AK85: 0.8264095049 | AL85: 0.1635904951 | AM85: 0 | AN85: 0.01 | AO85: D | AQ85: RNC31 | AR85: 0.4982275813 | AS85: 0.0002824656016 | AT85: 0.1584747862 | AU85: 8.984584057e-05
A86: 82 | B86: URBANA | C86: LIMA | D86: NORTE | E86: AREQUIPA | F86: PROVINCIA97 | G86: DISTRITO36 | H86: 77 | I86: 4 | J86: 12 | K86: 22 | L86: 12 | M86: 3 | N86: IDCELL82 | O86: 1 | P86: 0 | Q86: TERCERO | R86: MACROCELDA | S86: FO | T86: 2.734763942e-05 | U86: 0.0004189520137 | V86: 0.4407937722 | W86: 0.2927799539 | X86: 0.5592062278 | Y86: 0.7072200461 | Z86: BSC29 | AA86: DEFAULT | AB86: 1 | AC86: 0.909082086 | AD86: 0.909082086 | AE86: 1 | AF86: 0.09091791399 | AG86: 0.09091791399 | AH86: RNC41 | AI86: DEFAULT | AJ86: 1 | AK86: 0.8664776054 | AL86: 0.1235223946 | AM86: 0 | AN86: 0.01 | AO86: D | AQ86: RNC41 | AR86: 0.5016495587 | AS86: 0.0002844056606 | AT86: 0.04687747174 | AU86: 2.657675679e-05
A87: 83 | B87: RURAL | C87: LIMA | D87: NORTE | E87: LA LIBERTAD | F87: PROVINCIA78 | G87: DISTRITO720 | H87: 77 | I87: 4 | J87: 12 | K87: 22 | L87: 12 | M87: 3 | N87: IDCELL83 | O87: 1 | P87: 0 | Q87: TERCERO | R87: MACROCELDA | S87: FO | T87: 0.0003343690854 | U87: 0.0001699307743 | V87: 0.3636564811 | W87: 0.485457561 | X87: 0.6363435189 | Y87: 0.514542439 | Z87: BSC40 | AA87: DEFAULT | AB87: 1 | AC87: 1 | AD87: 1 | AE87: 0 | AF87: 0 | AG87: 0 | AH87: RNC36 | AI87: DEFAULT | AJ87: 1 | AK87: 0.846561368 | AL87: 0.143438632 | AM87: 0 | AN87: 0.01 | AO87: D | AQ87: RNC36 | AR87: 0.08870546226 | AS87: 5.029075608e-05 | AT87: 0.7265154081 | AU87: 0.0004118913114
A88: 84 | B88: URBANA | C88: PROVINCIA | D88: SUR | E88: LIMA | F88: PROVINCIA63 | G88: DISTRITO1618 | H88: 77 | I88: 4 | J88: 12 | K88: 22 | L88: 12 | M88: 3 | N88: IDCELL84 | O88: 1 | P88: 0 | Q88: TERCERO | R88: MACROCELDA | S88: FO | T88: 0.0004155464108 | U88: 0.0004316696264 | V88: 0.7431903964 | W88: 0.7956579011 | X88: 0.2568096036 | Y88: 0.2043420989 | Z88: BSC12 | AA88: DEFAULT | AB88: 1 | AC88: 1 | AD88: 1 | AE88: 0 | AF88: 0 | AG88: 0 | AH88: RNC26 | AI88: DEFAULT | AJ88: 1 | AK88: 0.8479635425 | AL88: 0.1420364575 | AM88: 0 | AN88: 0.01 | AO88: D | AQ88: RNC26 | AR88: 0.3814664707 | AS88: 0.0002162689506 | AT88: 0.6436628978 | AU88: 0.0003649188333
A89: 85 | B89: URBANA | C89: LIMA | D89: LIMA | E89: AREQUIPA | F89: PROVINCIA4 | G89: DISTRITO683 | H89: 77 | I89: 4 | J89: 12 | K89: 22 | L89: 12 | M89: 3 | N89: IDCELL85 | O89: 1 | P89: 0 | Q89: D | R89: MACROCELDA | S89: FO | T89: 0.000269984229 | U89: 9.583817473e-05 | V89: 0.3770459925 | W89: 0.4581006899 | X89: 0.6229540075 | Y89: 0.5418993101 | Z89: BSC39 | AA89: DEFAULT | AB89: 1 | AC89: 1 | AD89: 1 | AE89: 0 | AF89: 0 | AG89: 0 | AH89: RNC25 | AI89: DEFAULT | AJ89: 1 | AK89: 0.8886536 | AL89: 0.1013464 | AM89: 0 | AN89: 0.01 | AO89: D | AQ89: RNC25 | AR89: 0.2517463765 | AS89: 0.0001427253215 | AT89: 0.1416833273 | AU89: 8.032607547e-05
A90: 86 | B90: URBANA | C90: LIMA | D90: LIMA | E90: LA LIBERTAD | F90: PROVINCIA91 | G90: DISTRITO2122 | H90: 77 | I90: 4 | J90: 12 | K90: 22 | L90: 12 | M90: 3 | N90: IDCELL86 | O90: 1 | P90: 0 | Q90: D | R90: MACROCELDA | S90: FO | T90: 1.133869771e-05 | U90: 0.000326681379 | V90: 0.5365188869 | W90: 0.9052540218 | X90: 0.4634811131 | Y90: 0.09474597818 | Z90: BSC36 | AA90: DEFAULT | AB90: 1 | AC90: 1 | AD90: 1 | AE90: 0 | AF90: 0 | AG90: 0 | AH90: RNC05 | AI90: DEFAULT | AJ90: 1 | AK90: 0.8167378368 | AL90: 0.1732621632 | AM90: 0 | AN90: 0.01 | AO90: D | AQ90: RNC05 | AR90: 0.3546517813 | AS90: 0.0002010666059 | AT90: 0.2913764859 | AU90: 0.000165193252
A91: 87 | B91: URBANA | C91: PROVINCIA | D91: LIMA | E91: LA LIBERTAD | F91: PROVINCIA9 | G91: DISTRITO933 | H91: 77 | I91: 4 | J91: 12 | K91: 22 | L91: 12 | M91: 3 | N91: IDCELL87 | O91: 1 | P91: 0 | Q91: TERCERO | R91: MACROCELDA | S91: FO | T91: 0.0004093964317 | U91: 0.0001469357537 | V91: 0.5533226386 | W91: 0.5569954114 | X91: 0.4466773614 | Y91: 0.4430045886 | Z91: BSC43 | AA91: DEFAULT | AB91: 1 | AC91: 1 | AD91: 1 | AE91: 0 | AF91: 0 | AG91: 0 | AH91: RNC17 | AI91: DEFAULT | AJ91: 1 | AK91: 0.827763843 | AL91: 0.162236157 | AM91: 0 | AN91: 0.01 | AO91: D | AQ91: RNC17 | AR91: 0.7015869772 | AS91: 0.0003977583639 | AT91: 0.5565831861 | AU91: 0.0003155497817
A92: 88 | B92: RURAL | C92: PROVINCIA | D92: NORTE | E92: LA LIBERTAD | F92: PROVINCIA19 | G92: DISTRITO2615 | H92: 77 | I92: 4 | J92: 12 | K92: 22 | L92: 12 | M92: 3 | N92: IDCELL88 | O92: 1 | P92: 0 | Q92: TERCERO | R92: MACROCELDA | S92: FO | T92: 0.0001572611898 | U92: 0.0001151057187 | V92: 0.6531611569 | W92: 0.09413888703 | X92: 0.3468388431 | Y92: 0.905861113 | Z92: BSC64 | AA92: DEFAULT | AB92: 1 | AC92: 1 | AD92: 1 | AE92: 0 | AF92: 0 | AG92: 0 | AH92: RNC15 | AI92: DEFAULT | AJ92: 1 | AK92: 0.8623847279 | AL92: 0.1276152721 | AM92: 0 | AN92: 0.01 | AO92: D | AQ92: RNC15 | AR92: 0.7609224016 | AS92: 0.0004313980438 | AT92: 0.9029140698 | AU92: 0.0005118989304
A93: 89 | B93: RURAL | C93: PROVINCIA | D93: SUR | E93: LA LIBERTAD | F93: PROVINCIA9 | G93: DISTRITO2151 | H93: 77 | I93: 4 | J93: 12 | K93: 22 | L93: 12 | M93: 3 | N93: IDCELL89 | O93: 1 | P93: 0 | Q93: D | R93: MACROCELDA | S93: FO | T93: 6.066350038e-05 | U93: 6.832230023e-05 | V93: 0.3973441016 | W93: 0.5425292077 | X93: 0.6026558984 | Y93: 0.4574707923 | Z93: BSC02 | AA93: DEFAULT | AB93: 1 | AC93: 0.4632265535 | AD93: 0.4632265535 | AE93: 1 | AF93: 0.5367734465 | AG93: 0.5367734465 | AH93: RNC07 | AI93: DEFAULT | AJ93: 1 | AK93: 0.8163590755 | AL93: 0.1736409245 | AM93: 0 | AN93: 0.01 | AO93: D | AQ93: RNC07 | AR93: 0.7423371363 | AS93: 0.0004208612965 | AT93: 0.09602863982 | AU93: 5.444256508e-05
A94: 90 | B94: RURAL | C94: LIMA | D94: SUR | E94: LIMA | F94: PROVINCIA124 | G94: DISTRITO2297 | H94: 77 | I94: 4 | J94: 12 | K94: 22 | L94: 12 | M94: 3 | N94: IDCELL90 | O94: 1 | P94: 0 | Q94: D | R94: MACROCELDA | S94: FO | T94: 0.0003214628456 | U94: 0.0002432413085 | V94: 0.5289457738 | W94: 0.5970909013 | X94: 0.4710542262 | Y94: 0.4029090987 | Z94: BSC17 | AA94: DEFAULT | AB94: 1 | AC94: 0.3631642449 | AD94: 0.3631642449 | AE94: 1 | AF94: 0.6368357551 | AG94: 0.6368357551 | AH94: RNC42 | AI94: DEFAULT | AJ94: 1 | AK94: 0.8418955962 | AL94: 0.1481044038 | AM94: 0 | AN94: 0.01 | AO94: D | AQ94: RNC42 | AR94: 0.9095020116 | AS94: 0.0005156339041 | AT94: 0.8226929204 | AU94: 0.0004664182784
A95: 91 | B95: URBANA | C95: PROVINCIA | D95: LIMA | E95: LA LIBERTAD | F95: PROVINCIA10 | G95: DISTRITO208 | H95: 77 | I95: 4 | J95: 12 | K95: 22 | L95: 12 | M95: 3 | N95: IDCELL91 | O95: 1 | P95: 0 | Q95: D | R95: MACROCELDA | S95: FO | T95: 0.0003250677016 | U95: 0.0005247569867 | V95: 0.3509968474 | W95: 0.8810889851 | X95: 0.6490031526 | Y95: 0.1189110149 | Z95: BSC61 | AA95: DEFAULT | AB95: 1 | AC95: 1 | AD95: 1 | AE95: 0 | AF95: 0 | AG95: 0 | AH95: RNC10 | AI95: DEFAULT | AJ95: 1 | AK95: 0.8387019459 | AL95: 0.1512980541 | AM95: 0 | AN95: 0.01 | AO95: D | AQ95: RNC10 | AR95: 0.3259894669 | AS95: 0.0001848167672 | AT95: 0.1644661452 | AU95: 9.32425871e-05
A96: 92 | B96: RURAL | C96: PROVINCIA | D96: NORTE | E96: LA LIBERTAD | F96: PROVINCIA123 | G96: DISTRITO421 | H96: 77 | I96: 4 | J96: 12 | K96: 22 | L96: 12 | M96: 3 | N96: IDCELL92 | O96: 1 | P96: 0 | Q96: D | R96: MACROCELDA | S96: FO | T96: 0.0002486315955 | U96: 0.0003131908809 | V96: 0.77757658 | W96: 0.6354215155 | X96: 0.22242342 | Y96: 0.3645784845 | Z96: BSC43 | AA96: DEFAULT | AB96: 1 | AC96: 1 | AD96: 1 | AE96: 0 | AF96: 0 | AG96: 0 | AH96: RNC15 | AI96: DEFAULT | AJ96: 1 | AK96: 0.8093065964 | AL96: 0.1806934036 | AM96: 0 | AN96: 0.01 | AO96: D | AQ96: RNC15 | AR96: 0.8884820177 | AS96: 0.0005037168095 | AT96: 0.4863022122 | AU96: 0.000275704622
A97: 93 | B97: URBANA | C97: PROVINCIA | D97: NORTE | E97: LA LIBERTAD | F97: PROVINCIA30 | G97: DISTRITO25 | H97: 77 | I97: 4 | J97: 12 | K97: 22 | L97: 12 | M97: 3 | N97: IDCELL93 | O97: 1 | P97: 0 | Q97: TM | R97: MACROCELDA | S97: FO | T97: 0.0005428723831 | U97: 0.000351836606 | V97: 0.1795347705 | W97: 0.9730783897 | X97: 0.8204652295 | Y97: 0.02692161034 | Z97: BSC53 | AA97: DEFAULT | AB97: 1 | AC97: 1 | AD97: 1 | AE97: 0 | AF97: 0 | AG97: 0 | AH97: RNC31 | AI97: DEFAULT | AJ97: 1 | AK97: 0.8269378885 | AL97: 0.1630621115 | AM97: 0 | AN97: 0.01 | AO97: D | AQ97: RNC31 | AR97: 0.5761558384 | AS97: 0.0003266463191 | AT97: 0.1122307606 | AU97: 6.36282103e-05
A98: 94 | B98: RURAL | C98: PROVINCIA | D98: LIMA | E98: LA LIBERTAD | F98: PROVINCIA59 | G98: DISTRITO2761 | H98: 77 | I98: 4 | J98: 12 | K98: 22 | L98: 12 | M98: 3 | N98: IDCELL94 | O98: 1 | P98: 0 | Q98: D | R98: MACROCELDA | S98: FO | T98: 0.0004891647212 | U98: 0.0005269090347 | V98: 0.8467617367 | W98: 0.7681000145 | X98: 0.1532382633 | Y98: 0.2318999855 | Z98: BSC62 | AA98: DEFAULT | AB98: 1 | AC98: 1 | AD98: 1 | AE98: 0 | AF98: 0 | AG98: 0 | AH98: RNC06 | AI98: DEFAULT | AJ98: 1 | AK98: 0.8979892027 | AL98: 0.09201079727 | AM98: 0 | AN98: 0.01 | AO98: D | AQ98: RNC06 | AR98: 0.1967462249 | AS98: 0.0001115434851 | AT98: 0.3124592082 | AU98: 0.0001771459099
A99: 95 | B99: URBANA | C99: PROVINCIA | D99: NORTE | E99: LA LIBERTAD | F99: PROVINCIA78 | G99: DISTRITO2742 | H99: 77 | I99: 4 | J99: 12 | K99: 22 | L99: 12 | M99: 3 | N99: IDCELL95 | O99: 1 | P99: 0 | Q99: D | R99: MACROCELDA | S99: FO | T99: 0.0001762439183 | U99: 0.0003388354406 | V99: 0.2958088851 | W99: 0.6140486913 | X99: 0.7041911149 | Y99: 0.3859513087 | Z99: BSC64 | AA99: DEFAULT | AB99: 1 | AC99: 1 | AD99: 1 | AE99: 0 | AF99: 0 | AG99: 0 | AH99: RNC42 | AI99: DEFAULT | AJ99: 1 | AK99: 0.846206287 | AL99: 0.143793713 | AM99: 0 | AN99: 0.01 | AO99: D | AQ99: RNC42 | AR99: 0.5320734634 | AS99: 0.000301654217 | AT99: 0.184426774 | AU99: 0.0001045590843
A100: 96 | B100: RURAL | C100: PROVINCIA | D100: LIMA | E100: LA LIBERTAD | F100: PROVINCIA34 | G100: DISTRITO1843 | H100: 77 | I100: 4 | J100: 12 | K100: 22 | L100: 12 | M100: 3 | N100: IDCELL96 | O100: 1 | P100: 0 | Q100: TERCERO | R100: MACROCELDA | S100: FO | T100: 0.0005385037767 | U100: 8.70720108e-05 | V100: 0.6041195874 | W100: 0.5568601809 | X100: 0.3958804126 | Y100: 0.4431398191 | Z100: BSC35 | AA100: DEFAULT | AB100: 1 | AC100: 1 | AD100: 1 | AE100: 0 | AF100: 0 | AG100: 0 | AH100: RNC32 | AI100: DEFAULT | AJ100: 1 | AK100: 0.8145950583 | AL100: 0.1754049417 | AM100: 0 | AN100: 0.01 | AO100: D | AQ100: RNC32 | AR100: 0.4534971028 | AS100: 0.0002571060631 | AT100: 0.9681002695 | AU100: 0.0005488556542
A101: 97 | B101: URBANA | C101: PROVINCIA | D101: NORTE | E101: LA LIBERTAD | F101: PROVINCIA37 | G101: DISTRITO1128 | H101: 77 | I101: 4 | J101: 12 | K101: 22 | L101: 12 | M101: 3 | N101: IDCELL97 | O101: 1 | P101: 0 | Q101: D | R101: MACROCELDA | S101: FO | T101: 3.441020867e-05 | U101: 0.0003439131728 | V101: 0.3770018671 | W101: 0.4281554986 | X101: 0.6229981329 | Y101: 0.5718445014 | Z101: BSC05 | AA101: DEFAULT | AB101: 1 | AC101: 0.4297080327 | AD101: 0.4297080327 | AE101: 1 | AF101: 0.5702919673 | AG101: 0.5702919673 | AH101: RNC20 | AI101: DEFAULT | AJ101: 1 | AK101: 0.8556714674 | AL101: 0.1343285326 | AM101: 0 | AN101: 0.01 | AO101: D | AQ101: RNC20 | AR101: 0.9958417123 | AS101: 0.0005645834132 | AT101: 0.8761145479 | AU101: 0.0004967051848
A102: 98 | B102: URBANA | C102: LIMA | D102: NORTE | E102: LA LIBERTAD | F102: PROVINCIA21 | G102: DISTRITO283 | H102: 77 | I102: 4 | J102: 12 | K102: 22 | L102: 12 | M102: 3 | N102: IDCELL98 | O102: 1 | P102: 0 | Q102: D | R102: MACROCELDA | S102: FO | T102: 0.0001494288198 | U102: 0.0004407994972 | V102: 0.9688616889 | W102: 0.4456190078 | X102: 0.03113831108 | Y102: 0.5543809922 | Z102: BSC21 | AA102: DEFAULT | AB102: 1 | AC102: 1 | AD102: 1 | AE102: 0 | AF102: 0 | AG102: 0 | AH102: RNC44 | AI102: DEFAULT | AJ102: 1 | AK102: 0.8996566925 | AL102: 0.09034330755 | AM102: 0 | AN102: 0.01 | AO102: D | AQ102: RNC44 | AR102: 0.2366288317 | AS102: 0.0001341545667 | AT102: 0.4032221479 | AU102: 0.0002286031342
A103: 99 | B103: URBANA | C103: PROVINCIA | D103: NORTE | E103: LA LIBERTAD | F103: PROVINCIA25 | G103: DISTRITO677 | H103: 77 | I103: 4 | J103: 12 | K103: 22 | L103: 12 | M103: 3 | N103: IDCELL99 | O103: 1 | P103: 0 | Q103: D | R103: MACROCELDA | S103: FO | T103: 0.0004629273696 | U103: 0.0002014462826 | V103: 0.4891875936 | W103: 0.125760711 | X103: 0.5108124064 | Y103: 0.874239289 | Z103: BSC14 | AA103: DEFAULT | AB103: 1 | AC103: 1 | AD103: 1 | AE103: 0 | AF103: 0 | AG103: 0 | AH103: RNC29 | AI103: DEFAULT | AJ103: 1 | AK103: 0.8461890436 | AL103: 0.1438109564 | AM103: 0 | AN103: 0.01 | AO103: D | AQ103: RNC29 | AR103: 0.3620429136 | AS103: 0.0002052569413 | AT103: 0.298791793 | AU103: 0.000169397293
A104: 100 | B104: RURAL | C104: PROVINCIA | D104: NORTE | E104: LA LIBERTAD | F104: PROVINCIA32 | G104: DISTRITO975 | H104: 77 | I104: 4 | J104: 12 | K104: 22 | L104: 12 | M104: 3 | N104: IDCELL100 | O104: 1 | P104: 0 | Q104: TM | R104: MACROCELDA | S104: FO | T104: 0.000342920784 | U104: 0.0005366120027 | V104: 0.8307584747 | W104: 0.148322317 | X104: 0.1692415253 | Y104: 0.851677683 | Z104: BSC59 | AA104: DEFAULT | AB104: 1 | AC104: 1 | AD104: 1 | AE104: 0 | AF104: 0 | AG104: 0 | AH104: RNC10 | AI104: DEFAULT | AJ104: 1 | AK104: 0.886307838 | AL104: 0.103692162 | AM104: 0 | AN104: 0.01 | AO104: D | AQ104: RNC10 | AR104: 0.01258929576 | AS104: 7.137386878e-06 | AT104: 0.9519228149 | AU104: 0.0005396839932
A105: 101 | B105: RURAL | C105: PROVINCIA | D105: NORTE | E105: AREQUIPA | F105: PROVINCIA91 | G105: DISTRITO2369 | H105: 77 | I105: 4 | J105: 12 | K105: 22 | L105: 12 | M105: 3 | N105: IDCELL101 | O105: 1 | P105: 0 | Q105: D | R105: MACROCELDA | S105: FO | T105: 0.0002288860149 | U105: 0.000538124596 | V105: 0.972164918 | W105: 0.6930995062 | X105: 0.02783508197 | Y105: 0.3069004938 | Z105: BSC20 | AA105: DEFAULT | AB105: 1 | AC105: 1 | AD105: 1 | AE105: 0 | AF105: 0 | AG105: 0 | AH105: RNC22 | AI105: DEFAULT | AJ105: 1 | AK105: 0.8671478749 | AL105: 0.1228521251 | AM105: 0 | AN105: 0.01 | AO105: D | AQ105: RNC22 | AR105: 0.9610823771 | AS105: 0.0005448769238 | AT105: 0.3186375176 | AU105: 0.0001806486463
A106: 102 | B106: RURAL | C106: PROVINCIA | D106: NORTE | E106: LIMA | F106: PROVINCIA58 | G106: DISTRITO1356 | H106: 77 | I106: 4 | J106: 12 | K106: 22 | L106: 12 | M106: 3 | N106: IDCELL102 | O106: 1 | P106: 0 | Q106: D | R106: MACROCELDA | S106: FO | T106: 0.0001883839816 | U106: 0.0004362397895 | V106: 0.9791829032 | W106: 0.0802409796 | X106: 0.02081709676 | Y106: 0.9197590204 | Z106: BSC14 | AA106: DEFAULT | AB106: 0 | AC106: 0 | AD106: 0 | AE106: 1 | AF106: 1 | AG106: 1 | AH106: RNC34 | AI106: DEFAULT | AJ106: 1 | AK106: 0.8940317417 | AL106: 0.09596825828 | AM106: 0 | AN106: 0.01 | AO106: D | AQ106: RNC34 | AR106: 0.8770576545 | AS106: 0.0004972398706 | AT106: 0.218445749 | AU106: 0.0001238458332
A107: 103 | B107: RURAL | C107: PROVINCIA | D107: NORTE | E107: LA LIBERTAD | F107: PROVINCIA124 | G107: DISTRITO1197 | H107: 77 | I107: 4 | J107: 12 | K107: 22 | L107: 12 | M107: 3 | N107: IDCELL103 | O107: 1 | P107: 0 | Q107: TERCERO | R107: MACROCELDA | S107: FO | T107: 3.154326943e-05 | U107: 0.0002175670885 | V107: 0.1393671664 | W107: 0.9730808418 | X107: 0.8606328336 | Y107: 0.0269191582 | Z107: BSC57 | AA107: DEFAULT | AB107: 1 | AC107: 1 | AD107: 1 | AE107: 0 | AF107: 0 | AG107: 0 | AH107: RNC41 | AI107: DEFAULT | AJ107: 1 | AK107: 0.8396314401 | AL107: 0.1503685599 | AM107: 0 | AN107: 0.01 | AO107: D | AQ107: RNC41 | AR107: 0.5536985997 | AS107: 0.0003139143917 | AT107: 0.3355778377 | AU107: 0.0001902528069
A108: 104 | B108: URBANA | C108: LIMA | D108: SUR | E108: LA LIBERTAD | F108: PROVINCIA36 | G108: DISTRITO2080 | H108: 77 | I108: 4 | J108: 12 | K108: 22 | L108: 12 | M108: 3 | N108: IDCELL104 | O108: 1 | P108: 0 | Q108: D | R108: MACROCELDA | S108: FO | T108: 0.0004841919375 | U108: 0.0004132694274 | V108: 0.7399346883 | W108: 0.9018112921 | X108: 0.2600653117 | Y108: 0.09818870793 | Z108: BSC47 | AA108: DEFAULT | AB108: 1 | AC108: 1 | AD108: 1 | AE108: 0 | AF108: 0 | AG108: 0 | AH108: RNC36 | AI108: DEFAULT | AJ108: 1 | AK108: 0.8699697725 | AL108: 0.1200302275 | AM108: 0 | AN108: 0.01 | AO108: D | AQ108: RNC36 | AR108: 0.5088627644 | AS108: 0.0002884951221 | AT108: 0.6265526746 | AU108: 0.0003552183477
A109: 105 | B109: RURAL | C109: PROVINCIA | D109: SUR | E109: LIMA | F109: PROVINCIA70 | G109: DISTRITO1370 | H109: 77 | I109: 4 | J109: 12 | K109: 22 | L109: 12 | M109: 3 | N109: IDCELL105 | O109: 1 | P109: 0 | Q109: D | R109: MACROCELDA | S109: FO | T109: 6.703927038e-06 | U109: 0.0003673029766 | V109: 0.3563668641 | W109: 0.03102316534 | X109: 0.6436331359 | Y109: 0.9689768347 | Z109: BSC42 | AA109: DEFAULT | AB109: 1 | AC109: 1 | AD109: 1 | AE109: 0 | AF109: 0 | AG109: 0 | AH109: RNC33 | AI109: DEFAULT | AJ109: 1 | AK109: 0.8649324312 | AL109: 0.1250675688 | AM109: 0 | AN109: 0.01 | AO109: D | AQ109: RNC33 | AR109: 0.8049561713 | AS109: 0.0004563625896 | AT109: 0.9259478419 | AU109: 0.0005249577182
A110: 106 | B110: URBANA | C110: PROVINCIA | D110: SUR | E110: LA LIBERTAD | F110: PROVINCIA49 | G110: DISTRITO2766 | H110: 77 | I110: 4 | J110: 12 | K110: 22 | L110: 12 | M110: 3 | N110: IDCELL106 | O110: 1 | P110: 0 | Q110: D | R110: MACROCELDA | S110: FO | T110: 0.0005559367535 | U110: 6.93171689e-05 | V110: 0.1522655217 | W110: 0.639710904 | X110: 0.8477344783 | Y110: 0.360289096 | Z110: BSC10 | AA110: DEFAULT | AB110: 1 | AC110: 1 | AD110: 1 | AE110: 0 | AF110: 0 | AG110: 0 | AH110: RNC42 | AI110: DEFAULT | AJ110: 1 | AK110: 0.8405141215 | AL110: 0.1494858785 | AM110: 0 | AN110: 0.01 | AO110: D | AQ110: RNC42 | AR110: 0.4542604012 | AS110: 0.0002575388082 | AT110: 0.1912650674 | AU110: 0.0001084359926
A111: 107 | B111: URBANA | C111: PROVINCIA | D111: LIMA | E111: LA LIBERTAD | F111: PROVINCIA38 | G111: DISTRITO1765 | H111: 77 | I111: 4 | J111: 12 | K111: 22 | L111: 12 | M111: 3 | N111: IDCELL107 | O111: 1 | P111: 0 | Q111: TERCERO | R111: MACROCELDA | S111: FO | T111: 0.0005502980973 | U111: 0.0003384513131 | V111: 0.5244868994 | W111: 0.4294719011 | X111: 0.4755131006 | Y111: 0.5705280989 | Z111: BSC22 | AA111: DEFAULT | AB111: 1 | AC111: 1 | AD111: 1 | AE111: 0 | AF111: 0 | AG111: 0 | AH111: RNC34 | AI111: DEFAULT | AJ111: 1 | AK111: 0.8278013322 | AL111: 0.1621986678 | AM111: 0 | AN111: 0.01 | AO111: D | AQ111: RNC34 | AR111: 0.6010045086 | AS111: 0.000340734047 | AT111: 0.8019209604 | AU111: 0.0004546418044
A112: 108 | B112: RURAL | C112: PROVINCIA | D112: SUR | E112: LA LIBERTAD | F112: PROVINCIA54 | G112: DISTRITO784 | H112: 77 | I112: 4 | J112: 12 | K112: 22 | L112: 12 | M112: 3 | N112: IDCELL108 | O112: 1 | P112: 0 | Q112: D | R112: MACROCELDA | S112: FO | T112: 0.0002799479046 | U112: 0.0003445361981 | V112: 0.08513192802 | W112: 0.6671192486 | X112: 0.914868072 | Y112: 0.3328807514 | Z112: BSC18 | AA112: DEFAULT | AB112: 1 | AC112: 1 | AD112: 1 | AE112: 0 | AF112: 0 | AG112: 0 | AH112: RNC13 | AI112: DEFAULT | AJ112: 1 | AK112: 0.8592413267 | AL112: 0.1307586733 | AM112: 0 | AN112: 0.01 | AO112: D | AQ112: RNC13 | AR112: 0.4760219205 | AS112: 0.0002698763039 | AT112: 0.6645032599 | AU112: 0.0003767340872
A113: 109 | B113: RURAL | C113: PROVINCIA | D113: NORTE | E113: LA LIBERTAD | F113: PROVINCIA44 | G113: DISTRITO864 | H113: 77 | I113: 4 | J113: 12 | K113: 22 | L113: 12 | M113: 3 | N113: IDCELL109 | O113: 1 | P113: 0 | Q113: TERCERO | R113: MACROCELDA | S113: FO | T113: 0.0002135265557 | U113: 7.593326585e-05 | V113: 0.8083544843 | W113: 0.003696224502 | X113: 0.1916455157 | Y113: 0.9963037755 | Z113: BSC11 | AA113: DEFAULT | AB113: 1 | AC113: 0.7578142663 | AD113: 0.7578142663 | AE113: 1 | AF113: 0.2421857337 | AG113: 0.2421857337 | AH113: RNC21 | AI113: DEFAULT | AJ113: 1 | AK113: 0.8922954515 | AL113: 0.09770454846 | AM113: 0 | AN113: 0.01 | AO113: D | AQ113: RNC21 | AR113: 0.2367465038 | AS113: 0.0001342212799 | AT113: 0.2993031179 | AU113: 0.000169687184
A114: 110 | B114: RURAL | C114: LIMA | D114: LIMA | E114: LIMA | F114: PROVINCIA76 | G114: DISTRITO2366 | H114: 77 | I114: 4 | J114: 12 | K114: 22 | L114: 12 | M114: 3 | N114: IDCELL110 | O114: 1 | P114: 0 | Q114: TERCERO | R114: MACROCELDA | S114: FO | T114: 0.0005345891704 | U114: 0.0003006320982 | V114: 0.8018764238 | W114: 0.8646903957 | X114: 0.1981235762 | Y114: 0.1353096043 | Z114: BSC28 | AA114: DEFAULT | AB114: 1 | AC114: 0.663201086 | AD114: 0.663201086 | AE114: 1 | AF114: 0.336798914 | AG114: 0.336798914 | AH114: RNC25 | AI114: DEFAULT | AJ114: 1 | AK114: 0.892610729 | AL114: 0.09738927097 | AM114: 0 | AN114: 0.01 | AO114: D | AQ114: RNC25 | AR114: 0.7790371929 | AS114: 0.0004416680602 | AT114: 0.373080322 | AU114: 0.0002115144997
A115: 111 | B115: RURAL | C115: LIMA | D115: NORTE | E115: AREQUIPA | F115: PROVINCIA8 | G115: DISTRITO1343 | H115: 77 | I115: 4 | J115: 12 | K115: 22 | L115: 12 | M115: 3 | N115: IDCELL111 | O115: 1 | P115: 0 | Q115: D | R115: MACROCELDA | S115: FO | T115: 9.88643693e-05 | U115: 0.0004365092897 | V115: 0.96994135 | W115: 0.1188736237 | X115: 0.03005865004 | Y115: 0.8811263763 | Z115: BSC24 | AA115: DEFAULT | AB115: 1 | AC115: 1 | AD115: 1 | AE115: 0 | AF115: 0 | AG115: 0 | AH115: RNC33 | AI115: DEFAULT | AJ115: 1 | AK115: 0.8812224081 | AL115: 0.1087775919 | AM115: 0 | AN115: 0.01 | AO115: D | AQ115: RNC33 | AR115: 0.5189251369 | AS115: 0.0002941998928 | AT115: 0.4145288212 | AU115: 0.0002350133499
A116: 112 | B116: URBANA | C116: PROVINCIA | D116: LIMA | E116: LA LIBERTAD | F116: PROVINCIA103 | G116: DISTRITO1175 | H116: 77 | I116: 4 | J116: 12 | K116: 22 | L116: 12 | M116: 3 | N116: IDCELL112 | O116: 1 | P116: 0 | Q116: D | R116: MACROCELDA | S116: FO | T116: 0.0001983032578 | U116: 0.0004083603958 | V116: 0.7990883603 | W116: 0.6768825462 | X116: 0.2009116397 | Y116: 0.3231174538 | Z116: BSC28 | AA116: DEFAULT | AB116: 1 | AC116: 1 | AD116: 1 | AE116: 0 | AF116: 0 | AG116: 0 | AH116: RNC37 | AI116: DEFAULT | AJ116: 1 | AK116: 0.8953987486 | AL116: 0.09460125138 | AM116: 0 | AN116: 0.01 | AO116: D | AQ116: RNC37 | AR116: 0.8141173682 | AS116: 0.000461556447 | AT116: 0.4615348045 | AU116: 0.0002616629651
A117: 113 | B117: RURAL | C117: PROVINCIA | D117: LIMA | E117: LA LIBERTAD | F117: PROVINCIA71 | G117: DISTRITO1114 | H117: 77 | I117: 4 | J117: 12 | K117: 22 | L117: 12 | M117: 3 | N117: IDCELL113 | O117: 1 | P117: 0 | Q117: D | R117: MACROCELDA | S117: FO | T117: 7.374443616e-06 | U117: 0.0003700895361 | V117: 0.2671457176 | W117: 0.8161177919 | X117: 0.7328542824 | Y117: 0.1838822081 | Z117: BSC16 | AA117: DEFAULT | AB117: 1 | AC117: 1 | AD117: 1 | AE117: 0 | AF117: 0 | AG117: 0 | AH117: RNC05 | AI117: DEFAULT | AJ117: 1 | AK117: 0.8985691564 | AL117: 0.09143084361 | AM117: 0 | AN117: 0.01 | AO117: D | AQ117: RNC05 | AR117: 0.4556307949 | AS117: 0.0002583157405 | AT117: 0.3304736534 | AU117: 0.000187359036
A118: 114 | B118: RURAL | C118: PROVINCIA | D118: LIMA | E118: LA LIBERTAD | F118: PROVINCIA107 | G118: DISTRITO585 | H118: 77 | I118: 4 | J118: 12 | K118: 22 | L118: 12 | M118: 3 | N118: IDCELL114 | O118: 1 | P118: 0 | Q118: D | R118: MACROCELDA | S118: FO | T118: 0.0002582864742 | U118: 0.000528465405 | V118: 0.337807767 | W118: 0.987905996 | X118: 0.662192233 | Y118: 0.01209400395 | Z118: BSC65 | AA118: DEFAULT | AB118: 1 | AC118: 0.7758967482 | AD118: 0.7758967482 | AE118: 1 | AF118: 0.2241032518 | AG118: 0.2241032518 | AH118: RNC27 | AI118: DEFAULT | AJ118: 1 | AK118: 0.8939229821 | AL118: 0.09607701786 | AM118: 0 | AN118: 0.01 | AO118: D | AQ118: RNC27 | AR118: 0.04741734969 | AS118: 2.68828357e-05 | AT118: 0.09337607454 | AU118: 5.293871729e-05
A119: 115 | B119: URBANA | C119: PROVINCIA | D119: NORTE | E119: LA LIBERTAD | F119: PROVINCIA43 | G119: DISTRITO628 | H119: 77 | I119: 4 | J119: 12 | K119: 22 | L119: 12 | M119: 3 | N119: IDCELL115 | O119: 1 | P119: 0 | Q119: D | R119: MACROCELDA | S119: FO | T119: 8.49073773e-05 | U119: 0.0004566993547 | V119: 0.8832223672 | W119: 0.4159638431 | X119: 0.1167776328 | Y119: 0.5840361569 | Z119: BSC56 | AA119: DEFAULT | AB119: 0 | AC119: 0 | AD119: 0 | AE119: 1 | AF119: 1 | AG119: 1 | AH119: RNC03 | AI119: DEFAULT | AJ119: 1 | AK119: 0.8444506081 | AL119: 0.1455493919 | AM119: 0 | AN119: 0.01 | AO119: D | AQ119: RNC03 | AR119: 0.5080405717 | AS119: 0.0002880289874 | AT119: 0.44780004 | AU119: 0.0002538761651
A120: 116 | B120: URBANA | C120: PROVINCIA | D120: SUR | E120: LA LIBERTAD | F120: PROVINCIA98 | G120: DISTRITO402 | H120: 77 | I120: 4 | J120: 12 | K120: 22 | L120: 12 | M120: 3 | N120: IDCELL116 | O120: 1 | P120: 0 | Q120: D | R120: MACROCELDA | S120: FO | T120: 0.0003842541998 | U120: 0.000406682974 | V120: 0.5907467944 | W120: 0.6613810607 | X120: 0.4092532056 | Y120: 0.3386189393 | Z120: BSC06 | AA120: DEFAULT | AB120: 1 | AC120: 1 | AD120: 1 | AE120: 0 | AF120: 0 | AG120: 0 | AH120: RNC40 | AI120: DEFAULT | AJ120: 1 | AK120: 0.8091657682 | AL120: 0.1808342318 | AM120: 0 | AN120: 0.01 | AO120: D | AQ120: RNC40 | AR120: 0.9773932489 | AS120: 0.0005541242244 | AT120: 0.6446745441 | AU120: 0.000365492377
A121: 117 | B121: RURAL | C121: LIMA | D121: LIMA | E121: LA LIBERTAD | F121: PROVINCIA45 | G121: DISTRITO906 | H121: 77 | I121: 4 | J121: 12 | K121: 22 | L121: 12 | M121: 3 | N121: IDCELL117 | O121: 1 | P121: 0 | Q121: D | R121: MACROCELDA | S121: FO | T121: 0.0001881728388 | U121: 5.308761911e-05 | V121: 0.1816219831 | W121: 0.4721534563 | X121: 0.8183780169 | Y121: 0.5278465437 | Z121: BSC33 | AA121: DEFAULT | AB121: 0 | AC121: 0 | AD121: 0 | AE121: 1 | AF121: 1 | AG121: 1 | AH121: RNC31 | AI121: DEFAULT | AJ121: 1 | AK121: 0.8504248986 | AL121: 0.1395751014 | AM121: 0 | AN121: 0.01 | AO121: D | AQ121: RNC31 | AR121: 0.7145361691 | AS121: 0.0004050997906 | AT121: 0.3413009768 | AU121: 0.0001934974886
A122: 118 | B122: URBANA | C122: PROVINCIA | D122: LIMA | E122: LA LIBERTAD | F122: PROVINCIA101 | G122: DISTRITO1285 | H122: 77 | I122: 4 | J122: 12 | K122: 22 | L122: 12 | M122: 3 | N122: IDCELL118 | O122: 1 | P122: 0 | Q122: D | R122: MACROCELDA | S122: FO | T122: 0.0001838584438 | U122: 0.0001514294573 | V122: 0.9448579487 | W122: 0.8835146439 | X122: 0.05514205132 | Y122: 0.1164853561 | Z122: BSC08 | AA122: DEFAULT | AB122: 1 | AC122: 0.467605264 | AD122: 0.467605264 | AE122: 1 | AF122: 0.532394736 | AG122: 0.532394736 | AH122: RNC11 | AI122: DEFAULT | AJ122: 1 | AK122: 0.8906730547 | AL122: 0.09932694529 | AM122: 0 | AN122: 0.01 | AO122: D | AQ122: RNC11 | AR122: 0.9720169724 | AS122: 0.0005510761933 | AT122: 0.5613112186 | AU122: 0.0003182302968
A123: 119 | B123: URBANA | C123: PROVINCIA | D123: LIMA | E123: LA LIBERTAD | F123: PROVINCIA106 | G123: DISTRITO464 | H123: 77 | I123: 4 | J123: 12 | K123: 22 | L123: 12 | M123: 3 | N123: IDCELL119 | O123: 1 | P123: 0 | Q123: D | R123: MACROCELDA | S123: FO | T123: 0.0002891043333 | U123: 0.0004618740387 | V123: 0.7777534659 | W123: 0.9804767222 | X123: 0.2222465341 | Y123: 0.0195232778 | Z123: BSC40 | AA123: DEFAULT | AB123: 1 | AC123: 0.4055047711 | AD123: 0.4055047711 | AE123: 1 | AF123: 0.5944952289 | AG123: 0.5944952289 | AH123: RNC33 | AI123: DEFAULT | AJ123: 1 | AK123: 0.8612943151 | AL123: 0.1287056849 | AM123: 0 | AN123: 0.01 | AO123: D | AQ123: RNC33 | AR123: 0.372158213 | AS123: 0.0002109917184 | AT123: 0.9665549086 | AU123: 0.0005479795258
A124: 120 | B124: RURAL | C124: PROVINCIA | D124: LIMA | E124: LIMA | F124: PROVINCIA17 | G124: DISTRITO174 | H124: 77 | I124: 4 | J124: 12 | K124: 22 | L124: 12 | M124: 3 | N124: IDCELL120 | O124: 1 | P124: 0 | Q124: D | R124: MACROCELDA | S124: FO | T124: 0.0001216016981 | U124: 0.0005537870219 | V124: 0.03126940396 | W124: 0.5142438803 | X124: 0.968730596 | Y124: 0.4857561197 | Z124: BSC39 | AA124: DEFAULT | AB124: 1 | AC124: 0.3470210127 | AD124: 0.3470210127 | AE124: 1 | AF124: 0.6529789873 | AG124: 0.6529789873 | AH124: RNC01 | AI124: DEFAULT | AJ124: 1 | AK124: 0.8676573117 | AL124: 0.1223426883 | AM124: 0 | AN124: 0.01 | AO124: D | AQ124: RNC01 | AR124: 0.4253737873 | AS124: 0.0002411618048 | AT124: 0.3455612007 | AU124: 0.0001959127839
A125: 121 | B125: URBANA | C125: LIMA | D125: NORTE | E125: LA LIBERTAD | F125: PROVINCIA12 | G125: DISTRITO2208 | H125: 77 | I125: 4 | J125: 12 | K125: 22 | L125: 12 | M125: 3 | N125: IDCELL121 | O125: 1 | P125: 0 | Q125: D | R125: MACROCELDA | S125: FO | T125: 0.0002973315389 | U125: 0.0005056096159 | V125: 0.396948725 | W125: 0.05686697879 | X125: 0.603051275 | Y125: 0.9431330212 | Z125: BSC03 | AA125: DEFAULT | AB125: 1 | AC125: 0.300736129 | AD125: 0.300736129 | AE125: 1 | AF125: 0.699263871 | AG125: 0.699263871 | AH125: RNC13 | AI125: DEFAULT | AJ125: 1 | AK125: 0.8310747186 | AL125: 0.1589252814 | AM125: 0 | AN125: 0.01 | AO125: D | AQ125: RNC13 | AR125: 0.1109996885 | AS125: 6.293026516e-05 | AT125: 0.6693041499 | AU125: 0.0003794559082
A126: 122 | B126: URBANA | C126: PROVINCIA | D126: SUR | E126: AREQUIPA | F126: PROVINCIA98 | G126: DISTRITO1314 | H126: 77 | I126: 4 | J126: 12 | K126: 22 | L126: 12 | M126: 3 | N126: IDCELL122 | O126: 1 | P126: 0 | Q126: TM | R126: MACROCELDA | S126: FO | T126: 0.0005224122743 | U126: 0.0002436766734 | V126: 0.8094561495 | W126: 0.2381314032 | X126: 0.1905438505 | Y126: 0.7618685968 | Z126: BSC30 | AA126: DEFAULT | AB126: 1 | AC126: 0.4296030734 | AD126: 0.4296030734 | AE126: 1 | AF126: 0.5703969266 | AG126: 0.5703969266 | AH126: RNC27 | AI126: DEFAULT | AJ126: 1 | AK126: 0.8078870744 | AL126: 0.1821129256 | AM126: 0 | AN126: 0.01 | AO126: D | AQ126: RNC27 | AR126: 0.1642260329 | AS126: 9.310645765e-05 | AT126: 0.149174149 | AU126: 8.457292874e-05
A127: 123 | B127: URBANA | C127: PROVINCIA | D127: NORTE | E127: LA LIBERTAD | F127: PROVINCIA21 | G127: DISTRITO1225 | H127: 77 | I127: 4 | J127: 12 | K127: 22 | L127: 12 | M127: 3 | N127: IDCELL123 | O127: 1 | P127: 0 | Q127: D | R127: MACROCELDA | S127: FO | T127: 0.000299247316 | U127: 0.0002143948966 | V127: 0.03517852941 | W127: 0.3383134232 | X127: 0.9648214706 | Y127: 0.6616865768 | Z127: BSC02 | AA127: DEFAULT | AB127: 1 | AC127: 0.5479081225 | AD127: 0.5479081225 | AE127: 1 | AF127: 0.4520918775 | AG127: 0.4520918775 | AH127: RNC33 | AI127: DEFAULT | AJ127: 1 | AK127: 0.8152477838 | AL127: 0.1747522162 | AM127: 0 | AN127: 0.01 | AO127: D | AQ127: RNC33 | AR127: 0.4461138199 | AS127: 0.000252920178 | AT127: 0.1418747212 | AU127: 8.043458446e-05
A128: 124 | B128: RURAL | C128: PROVINCIA | D128: SUR | E128: LIMA | F128: PROVINCIA45 | G128: DISTRITO186 | H128: 77 | I128: 4 | J128: 12 | K128: 22 | L128: 12 | M128: 3 | N128: IDCELL124 | O128: 1 | P128: 0 | Q128: D | R128: MACROCELDA | S128: FO | T128: 0.0003284317947 | U128: 5.29733836e-05 | V128: 0.08877920112 | W128: 0.3916099524 | X128: 0.9112207989 | Y128: 0.6083900476 | Z128: BSC05 | AA128: DEFAULT | AB128: 1 | AC128: 0.4112602223 | AD128: 0.4112602223 | AE128: 1 | AF128: 0.5887397777 | AG128: 0.5887397777 | AH128: RNC04 | AI128: DEFAULT | AJ128: 1 | AK128: 0.8888025232 | AL128: 0.1011974768 | AM128: 0 | AN128: 0.01 | AO128: D | AQ128: RNC04 | AR128: 0.7628477421 | AS128: 0.0004324895982 | AT128: 0.3560809075 | AU128: 0.0002018768361
A129: 125 | B129: RURAL | C129: PROVINCIA | D129: NORTE | E129: LA LIBERTAD | F129: PROVINCIA39 | G129: DISTRITO1538 | H129: 77 | I129: 4 | J129: 12 | K129: 22 | L129: 12 | M129: 3 | N129: IDCELL125 | O129: 1 | P129: 0 | Q129: D | R129: MACROCELDA | S129: FO | T129: 4.508927784e-05 | U129: 0.000556937223 | V129: 0.6620389811 | W129: 0.4167705325 | X129: 0.3379610189 | Y129: 0.5832294675 | Z129: BSC27 | AA129: DEFAULT | AB129: 1 | AC129: 1 | AD129: 1 | AE129: 0 | AF129: 0 | AG129: 0 | AH129: RNC31 | AI129: DEFAULT | AJ129: 1 | AK129: 0.8213181521 | AL129: 0.1686818479 | AM129: 0 | AN129: 0.01 | AO129: D | AQ129: RNC31 | AR129: 0.09469154406 | AS129: 5.368451078e-05 | AT129: 0.132764431 | AU129: 7.526958821e-05
A130: 126 | B130: URBANA | C130: PROVINCIA | D130: NORTE | E130: AREQUIPA | F130: PROVINCIA23 | G130: DISTRITO1156 | H130: 77 | I130: 4 | J130: 12 | K130: 22 | L130: 12 | M130: 3 | N130: IDCELL126 | O130: 1 | P130: 0 | Q130: D | R130: MACROCELDA | S130: FO | T130: 0.0001155906578 | U130: 0.0002478836916 | V130: 0.7713724208 | W130: 0.5987740739 | X130: 0.2286275792 | Y130: 0.4012259261 | Z130: BSC14 | AA130: DEFAULT | AB130: 1 | AC130: 1 | AD130: 1 | AE130: 0 | AF130: 0 | AG130: 0 | AH130: RNC27 | AI130: DEFAULT | AJ130: 1 | AK130: 0.8605428318 | AL130: 0.1294571682 | AM130: 0 | AN130: 0.01 | AO130: D | AQ130: RNC27 | AR130: 0.8120625962 | AS130: 0.0004603915126 | AT130: 0.5258533477 | AU130: 0.0002981277789
A131: 127 | B131: URBANA | C131: PROVINCIA | D131: NORTE | E131: LA LIBERTAD | F131: PROVINCIA2 | G131: DISTRITO2612 | H131: 77 | I131: 4 | J131: 12 | K131: 22 | L131: 12 | M131: 3 | N131: IDCELL127 | O131: 1 | P131: 0 | Q131: D | R131: MACROCELDA | S131: FO | T131: 0.0003588124669 | U131: 0.0002462308772 | V131: 0.7239746133 | W131: 0.4572572535 | X131: 0.2760253867 | Y131: 0.5427427465 | Z131: BSC47 | AA131: DEFAULT | AB131: 1 | AC131: 0.5809195884 | AD131: 0.5809195884 | AE131: 1 | AF131: 0.4190804116 | AG131: 0.4190804116 | AH131: RNC26 | AI131: DEFAULT | AJ131: 1 | AK131: 0.8935783986 | AL131: 0.09642160144 | AM131: 0 | AN131: 0.01 | AO131: D | AQ131: RNC26 | AR131: 0.3776737097 | AS131: 0.0002141186791 | AT131: 0.284933866 | AU131: 0.0001615406672
A132: 128 | B132: URBANA | C132: PROVINCIA | D132: NORTE | E132: LA LIBERTAD | F132: PROVINCIA120 | G132: DISTRITO2779 | H132: 77 | I132: 4 | J132: 12 | K132: 22 | L132: 12 | M132: 3 | N132: IDCELL128 | O132: 1 | P132: 0 | Q132: D | R132: MACROCELDA | S132: FO | T132: 0.0001451204262 | U132: 0.0001266754056 | V132: 0.6219751669 | W132: 0.1031535901 | X132: 0.3780248331 | Y132: 0.8968464099 | Z132: BSC12 | AA132: DEFAULT | AB132: 1 | AC132: 1 | AD132: 1 | AE132: 0 | AF132: 0 | AG132: 0 | AH132: RNC26 | AI132: DEFAULT | AJ132: 1 | AK132: 0.8628834999 | AL132: 0.1271165001 | AM132: 0 | AN132: 0.01 | AO132: D | AQ132: RNC26 | AR132: 0.4056429432 | AS132: 0.000229975582 | AT132: 0.5054510391 | AU132: 0.0002865608754
A133: 129 | B133: URBANA | C133: PROVINCIA | D133: LIMA | E133: LIMA | F133: PROVINCIA16 | G133: DISTRITO2867 | H133: 77 | I133: 4 | J133: 12 | K133: 22 | L133: 12 | M133: 3 | N133: IDCELL129 | O133: 1 | P133: 0 | Q133: D | R133: MACROCELDA | S133: FO | T133: 0.0003849136839 | U133: 0.0001424264098 | V133: 0.6827584897 | W133: 0.38898989 | X133: 0.3172415103 | Y133: 0.61101011 | Z133: BSC27 | AA133: DEFAULT | AB133: 1 | AC133: 1 | AD133: 1 | AE133: 0 | AF133: 0 | AG133: 0 | AH133: RNC06 | AI133: DEFAULT | AJ133: 1 | AK133: 0.8057168575 | AL133: 0.1842831425 | AM133: 0 | AN133: 0.01 | AO133: D | AQ133: RNC06 | AR133: =RAND() -> 0.0466271693 | AS133: 2.64348501e-05 | AT133: 0.6141167934 | AU133: 0.0003481679377
A134: 130 | B134: URBANA | C134: PROVINCIA | D134: NORTE | E134: LA LIBERTAD | F134: PROVINCIA50 | G134: DISTRITO2396 | H134: 77 | I134: 4 | J134: 12 | K134: 22 | L134: 12 | M134: 3 | N134: IDCELL130 | O134: 1 | P134: 0 | Q134: D | R134: MACROCELDA | S134: FO | T134: 0.0004756729766 | U134: 0.0003027010385 | V134: 0.8556344497 | W134: 0.4239179695 | X134: 0.1443655503 | Y134: 0.5760820305 | Z134: BSC49 | AA134: DEFAULT | AB134: 1 | AC134: 1 | AD134: 1 | AE134: 0 | AF134: 0 | AG134: 0 | AH134: RNC42 | AI134: DEFAULT | AJ134: 1 | AK134: 0.811256017 | AL134: 0.178743983 | AM134: 0 | AN134: 0.01 | AO134: D | AQ134: =IF(R134="PICOCELDA","",AH134) -> RNC42 | AR134: 0.2150561392 | AS134: =AR134/$AR$3536 -> 0.0001219241247 | AT134: 0.4837070665 | AU134: 0.0002742333276
A135: 131 | B135: URBANA | C135: PROVINCIA | D135: LIMA | E135: LA LIBERTAD | F135: PROVINCIA108 | G135: DISTRITO94 | H135: 77 | I135: 4 | J135: 12 | K135: 22 | L135: 12 | M135: 3 | N135: IDCELL131 | O135: 1 | P135: 0 | Q135: D | R135: PICOCELDA | S135: SAT | T135: 8.501182273e-05 | U135: 0.0002147316272 | V135: 1 | W135: 1 | X135: 0 | Y135: 0 | Z135: BSC02 | AA135: DEFAULT | AB135: 1 | AC135: 0.2556174268 | AD135: 0.2556174268 | AE135: 1 | AF135: 0.7443825732 | AG135: 0.7443825732 | AJ135: 0 | AK135: 0 | AL135: 0 | AM135: 0 | AN135: 0 | AO135: D | AR135: 0.1556702508 | AS135: 8.825583469e-05 | AT135: 0.6350494031 | AU135: 0.0003600354907
A136: 132 | B136: RURAL | C136: PROVINCIA | D136: LIMA | E136: LA LIBERTAD | F136: PROVINCIA79 | G136: DISTRITO45 | H136: 77 | I136: 4 | J136: 12 | K136: 22 | L136: 12 | M136: 3 | N136: IDCELL132 | O136: 1 | P136: 0 | Q136: TERCERO | R136: MACROCELDA | S136: FO | T136: 5.362751813e-05 | U136: 0.0003899448565 | V136: 0.5065429736 | W136: 0.5030095175 | X136: 0.4934570264 | Y136: 0.4969904825 | Z136: BSC21 | AA136: DEFAULT | AB136: 0 | AC136: 0 | AD136: 0 | AE136: 1 | AF136: 1 | AG136: 1 | AH136: RNC22 | AI136: DEFAULT | AJ136: 1 | AK136: 0.8623291413 | AL136: 0.1276708587 | AM136: 0 | AN136: 0.01 | AO136: D | AQ136: RNC22 | AR136: 0.07827822798 | AS136: 4.437913032e-05 | AT136: 0.8353653294 | AU136: 0.0004736027855
A137: 133 | B137: URBANA | C137: PROVINCIA | D137: NORTE | E137: LA LIBERTAD | F137: PROVINCIA118 | G137: DISTRITO2769 | H137: 77 | I137: 4 | J137: 12 | K137: 22 | L137: 12 | M137: 3 | N137: IDCELL133 | O137: 1 | P137: 0 | Q137: D | R137: MACROCELDA | S137: FO | T137: 0.0003720930427 | U137: 0.0003551294598 | V137: 0.008219659073 | W137: 0.354987453 | X137: 0.9917803409 | Y137: 0.645012547 | Z137: BSC46 | AA137: DEFAULT | AB137: 1 | AC137: 0.2785311913 | AD137: 0.2785311913 | AE137: 1 | AF137: 0.7214688087 | AG137: 0.7214688087 | AH137: RNC40 | AI137: DEFAULT | AJ137: 1 | AK137: 0.8709258624 | AL137: 0.1190741376 | AM137: 0 | AN137: 0.01 | AO137: D | AQ137: RNC40 | AR137: 0.8396157304 | AS137: 0.0004760125118 | AT137: 0.8395088004 | AU137: 0.0004759518888
A138: 134 | B138: RURAL | C138: PROVINCIA | D138: NORTE | E138: LIMA | F138: PROVINCIA57 | G138: DISTRITO2846 | H138: 77 | I138: 4 | J138: 12 | K138: 22 | L138: 12 | M138: 3 | N138: IDCELL134 | O138: 1 | P138: 0 | Q138: D | R138: MACROCELDA | S138: FO | T138: 0.0001692045741 | U138: 0.0003349635697 | V138: 0.5031555531 | W138: 0.7362440802 | X138: 0.4968444469 | Y138: 0.2637559198 | Z138: BSC62 | AA138: DEFAULT | AB138: 1 | AC138: 1 | AD138: 1 | AE138: 0 | AF138: 0 | AG138: 0 | AH138: RNC38 | AI138: DEFAULT | AJ138: 1 | AK138: 0.8138620206 | AL138: 0.1761379794 | AM138: 0 | AN138: 0.01 | AO138: D | AQ138: RNC38 | AR138: 0.3969865059 | AS138: 0.0002250678936 | AT138: 0.8157941586 | AU138: 0.000462507088
A139: 135 | B139: URBANA | C139: PROVINCIA | D139: LIMA | E139: LA LIBERTAD | F139: PROVINCIA76 | G139: DISTRITO2503 | H139: 77 | I139: 4 | J139: 12 | K139: 22 | L139: 12 | M139: 3 | N139: IDCELL135 | O139: 1 | P139: 0 | Q139: D | R139: MACROCELDA | S139: FO | T139: 0.0003805577414 | U139: 0.0004549940127 | V139: 0.04796709999 | W139: 0.8700037794 | X139: 0.9520329 | Y139: 0.1299962206 | Z139: BSC20 | AA139: DEFAULT | AB139: 0 | AC139: 0 | AD139: 0 | AE139: 1 | AF139: 1 | AG139: 1 | AH139: RNC04 | AI139: DEFAULT | AJ139: 1 | AK139: 0.8281865497 | AL139: 0.1618134503 | AM139: 0 | AN139: 0.01 | AO139: D | AQ139: RNC04 | AR139: 0.2406820826 | AS139: 0.0001364525205 | AT139: 0.0614888995 | AU139: 3.486057304e-05
A140: 136 | B140: RURAL | C140: LIMA | D140: SUR | E140: LIMA | F140: PROVINCIA23 | G140: DISTRITO159 | H140: 77 | I140: 4 | J140: 12 | K140: 22 | L140: 12 | M140: 3 | N140: IDCELL136 | O140: 1 | P140: 0 | Q140: D | R140: MACROCELDA | S140: FO | T140: 7.914565013e-05 | U140: 8.167316019e-05 | V140: 0.9964934794 | W140: 0.01319987747 | X140: 0.003506520568 | Y140: 0.9868001225 | Z140: BSC05 | AA140: DEFAULT | AB140: 0 | AC140: 0 | AD140: 0 | AE140: 1 | AF140: 1 | AG140: 1 | AH140: RNC29 | AI140: DEFAULT | AJ140: 1 | AK140: 0.8391901359 | AL140: 0.1508098641 | AM140: 0 | AN140: 0.01 | AO140: D | AQ140: RNC29 | AR140: 0.5533884524 | AS140: 0.0003137385565 | AT140: 0.8819083439 | AU140: 0.0004999899248
A141: 137 | B141: URBANA | C141: PROVINCIA | D141: LIMA | E141: AREQUIPA | F141: PROVINCIA16 | G141: DISTRITO92 | H141: 77 | I141: 4 | J141: 12 | K141: 22 | L141: 12 | M141: 3 | N141: IDCELL137 | O141: 1 | P141: 0 | Q141: TERCERO | R141: MACROCELDA | S141: FO | T141: 0.0001560055369 | U141: 0.000347239497 | V141: 0.4593531485 | W141: 0.6175585069 | X141: 0.5406468515 | Y141: 0.3824414931 | Z141: BSC36 | AA141: DEFAULT | AB141: 1 | AC141: 0.2959227072 | AD141: 0.2959227072 | AE141: 1 | AF141: 0.7040772928 | AG141: 0.7040772928 | AH141: RNC06 | AI141: DEFAULT | AJ141: 1 | AK141: 0.8999368262 | AL141: 0.09006317378 | AM141: 0 | AN141: 0.01 | AO141: D | AQ141: RNC06 | AR141: 0.3807267852 | AS141: 0.0002158495926 | AT141: 0.6376123379 | AU141: 0.0003614885233
A142: 138 | B142: URBANA | C142: PROVINCIA | D142: LIMA | E142: LA LIBERTAD | F142: PROVINCIA39 | G142: DISTRITO1234 | H142: 77 | I142: 4 | J142: 12 | K142: 22 | L142: 12 | M142: 3 | N142: IDCELL138 | O142: 1 | P142: 0 | Q142: D | R142: MACROCELDA | S142: FO | T142: 0.0002934584341 | U142: 0.0001821705043 | V142: 0.1426615218 | W142: 0.7968354316 | X142: 0.8573384782 | Y142: 0.2031645684 | Z142: BSC59 | AA142: DEFAULT | AB142: 1 | AC142: 0.1921759719 | AD142: 0.1921759719 | AE142: 1 | AF142: 0.8078240281 | AG142: 0.8078240281 | AH142: RNC27 | AI142: DEFAULT | AJ142: 1 | AK142: 0.8902024963 | AL142: 0.09979750374 | AM142: 0 | AN142: 0.01 | AO142: D | AQ142: RNC27 | AR142: 0.6037547139 | AS142: 0.0003422932509 | AT142: 0.3220773168 | AU142: 0.0001825988092
A143: 139 | B143: RURAL | C143: PROVINCIA | D143: NORTE | E143: AREQUIPA | F143: PROVINCIA8 | G143: DISTRITO2341 | H143: 77 | I143: 4 | J143: 12 | K143: 22 | L143: 12 | M143: 3 | N143: IDCELL139 | O143: 1 | P143: 0 | Q143: D | R143: MACROCELDA | S143: FO | T143: 0.0003253163781 | U143: 0.0002051211281 | V143: 0.009191039686 | W143: 0.01684899048 | X143: 0.9908089603 | Y143: 0.9831510095 | Z143: BSC29 | AA143: DEFAULT | AB143: 1 | AC143: 0.4633066135 | AD143: 0.4633066135 | AE143: 1 | AF143: 0.5366933865 | AG143: 0.5366933865 | AH143: RNC13 | AI143: DEFAULT | AJ143: 1 | AK143: 0.8526265547 | AL143: 0.1373734453 | AM143: 0 | AN143: 0.01 | AO143: D | AQ143: RNC13 | AR143: 0.9605987902 | AS143: 0.0005446027586 | AT143: 0.2830716029 | AU143: 0.000160484874
A144: 140 | B144: RURAL | C144: PROVINCIA | D144: SUR | E144: LA LIBERTAD | F144: PROVINCIA62 | G144: DISTRITO2621 | H144: 77 | I144: 4 | J144: 12 | K144: 22 | L144: 12 | M144: 3 | N144: IDCELL140 | O144: 1 | P144: 0 | Q144: D | R144: MACROCELDA | S144: FO | T144: 0.0003589975805 | U144: 0.0001023064421 | V144: 0.06334033104 | W144: 0.1231566156 | X144: 0.936659669 | Y144: 0.8768433844 | Z144: BSC09 | AA144: DEFAULT | AB144: 1 | AC144: 0.1608742516 | AD144: 0.1608742516 | AE144: 1 | AF144: 0.8391257484 | AG144: 0.8391257484 | AH144: RNC39 | AI144: DEFAULT | AJ144: 1 | AK144: 0.8713594237 | AL144: 0.1186405763 | AM144: 0 | AN144: 0.01 | AO144: D | AQ144: RNC39 | AR144: 0.8537996694 | AS144: 0.0004840539672 | AT144: 0.3044772513 | AU144: 0.0001726206119
A145: 141 | B145: RURAL | C145: PROVINCIA | D145: LIMA | E145: LA LIBERTAD | F145: PROVINCIA42 | G145: DISTRITO309 | H145: 77 | I145: 4 | J145: 12 | K145: 22 | L145: 12 | M145: 3 | N145: IDCELL141 | O145: 1 | P145: 0 | Q145: D | R145: MACROCELDA | S145: FO | T145: 0.0003294915326 | U145: 0.000455418037 | V145: 0.5885662474 | W145: 0.7307459169 | X145: 0.4114337526 | Y145: 0.2692540831 | Z145: BSC48 | AA145: DEFAULT | AB145: 1 | AC145: 0.5538586688 | AD145: 0.5538586688 | AE145: 1 | AF145: 0.4461413312 | AG145: 0.4461413312 | AH145: RNC12 | AI145: DEFAULT | AJ145: 1 | AK145: 0.8742454507 | AL145: 0.1157545493 | AM145: 0 | AN145: 0.01 | AO145: D | AQ145: RNC12 | AR145: 0.3841893773 | AS145: 0.0002178126777 | AT145: 0.3097010859 | AU145: 0.0001755822175
A146: 142 | B146: RURAL | C146: PROVINCIA | D146: NORTE | E146: LA LIBERTAD | F146: PROVINCIA122 | G146: DISTRITO1974 | H146: 77 | I146: 4 | J146: 12 | K146: 22 | L146: 12 | M146: 3 | N146: IDCELL142 | O146: 1 | P146: 0 | Q146: D | R146: MACROCELDA | S146: FO | T146: 0.0002534944657 | U146: 2.587252814e-05 | V146: 0.7082970133 | W146: 0.4132556918 | X146: 0.2917029867 | Y146: 0.5867443082 | Z146: BSC21 | AA146: DEFAULT | AB146: 1 | AC146: 0.5704086682 | AD146: 0.5704086682 | AE146: 1 | AF146: 0.4295913318 | AG146: 0.4295913318 | AH146: RNC23 | AI146: DEFAULT | AJ146: 1 | AK146: 0.884128727 | AL146: 0.105871273 | AM146: 0 | AN146: 0.01 | AO146: D | AQ146: RNC23 | AR146: 0.3940819128 | AS146: 0.0002234211609 | AT146: 0.08428362726 | AU146: 4.77838369e-05
A147: 143 | B147: URBANA | C147: PROVINCIA | D147: NORTE | E147: LA LIBERTAD | F147: PROVINCIA92 | G147: DISTRITO482 | H147: 77 | I147: 4 | J147: 12 | K147: 22 | L147: 12 | M147: 3 | N147: IDCELL143 | O147: 1 | P147: 0 | Q147: TERCERO | R147: MACROCELDA | S147: FO | T147: 0.000535435916 | U147: 7.100920859e-05 | V147: 0.5725232092 | W147: 0.8700394599 | X147: 0.4274767908 | Y147: 0.1299605401 | Z147: BSC50 | AA147: DEFAULT | AB147: 1 | AC147: 0.2972021173 | AD147: 0.2972021173 | AE147: 1 | AF147: 0.7027978827 | AG147: 0.7027978827 | AH147: RNC12 | AI147: DEFAULT | AJ147: 1 | AK147: 0.8973454498 | AL147: 0.09265455016 | AM147: 0 | AN147: 0.01 | AO147: D | AQ147: RNC12 | AR147: 0.3595303062 | AS147: 0.0002038324413 | AT147: 0.05209410168 | AU147: 2.953427776e-05
A148: 144 | B148: URBANA | C148: PROVINCIA | D148: SUR | E148: LIMA | F148: PROVINCIA82 | G148: DISTRITO2767 | H148: 77 | I148: 4 | J148: 12 | K148: 22 | L148: 12 | M148: 3 | N148: IDCELL144 | O148: 1 | P148: 0 | Q148: D | R148: MACROCELDA | S148: FO | T148: 0.0003544938499 | U148: 0.0003197981444 | V148: 0.3907851658 | W148: 0.8204879946 | X148: 0.6092148342 | Y148: 0.1795120054 | Z148: BSC23 | AA148: DEFAULT | AB148: 1 | AC148: 0.4129615586 | AD148: 0.4129615586 | AE148: 1 | AF148: 0.5870384414 | AG148: 0.5870384414 | AH148: RNC37 | AI148: DEFAULT | AJ148: 1 | AK148: 0.853984515 | AL148: 0.136015485 | AM148: 0 | AN148: 0.01 | AO148: D | AQ148: RNC37 | AR148: 0.5620268292 | AS148: 0.0003186360057 | AT148: 0.5918395079 | AU148: 0.0003355380331
A149: 145 | B149: URBANA | C149: PROVINCIA | D149: LIMA | E149: LA LIBERTAD | F149: PROVINCIA20 | G149: DISTRITO162 | H149: 77 | I149: 4 | J149: 12 | K149: 22 | L149: 12 | M149: 3 | N149: IDCELL145 | O149: 1 | P149: 0 | Q149: D | R149: MACROCELDA | S149: FO | T149: 8.822271346e-05 | U149: 0.0003130740337 | V149: 0.6844968479 | W149: 0.04541393705 | X149: 0.3155031521 | Y149: 0.9545860629 | Z149: BSC47 | AA149: DEFAULT | AB149: 1 | AC149: 0.2674521119 | AD149: 0.2674521119 | AE149: 1 | AF149: 0.7325478881 | AG149: 0.7325478881 | AH149: RNC40 | AI149: DEFAULT | AJ149: 1 | AK149: 0.876767721 | AL149: 0.113232279 | AM149: 0 | AN149: 0.01 | AO149: D | AQ149: RNC40 | AR149: 0.1091009894 | AS149: 6.185381492e-05 | AT149: 0.4845743054 | AU149: 0.0002747250008
A150: 146 | B150: RURAL | C150: PROVINCIA | D150: LIMA | E150: LIMA | F150: PROVINCIA54 | G150: DISTRITO1430 | H150: 77 | I150: 4 | J150: 12 | K150: 22 | L150: 12 | M150: 3 | N150: IDCELL146 | O150: 1 | P150: 0 | Q150: TM | R150: MACROCELDA | S150: FO | T150: 0.0003998386131 | U150: 0.0002490458974 | V150: 0.8435565498 | W150: 0.1272861329 | X150: 0.1564434502 | Y150: 0.8727138671 | Z150: BSC47 | AA150: DEFAULT | AB150: 1 | AC150: 1 | AD150: 1 | AE150: 0 | AF150: 0 | AG150: 0 | AH150: RNC02 | AI150: DEFAULT | AJ150: 1 | AK150: 0.8653399476 | AL150: 0.1246600524 | AM150: 0 | AN150: 0.01 | AO150: D | AQ150: RNC02 | AR150: 0.0255484467 | AS150: 1.448445979e-05 | AT150: 0.07166686069 | AU150: 4.063087569e-05
A151: 147 | B151: RURAL | C151: PROVINCIA | D151: NORTE | E151: LA LIBERTAD | F151: PROVINCIA37 | G151: DISTRITO1929 | H151: 77 | I151: 4 | J151: 12 | K151: 22 | L151: 12 | M151: 3 | N151: IDCELL147 | O151: 1 | P151: 0 | Q151: D | R151: MACROCELDA | S151: FO | T151: 7.536130055e-05 | U151: 0.0001571864825 | V151: 0.7934830166 | W151: 0.430027084 | X151: 0.2065169834 | Y151: 0.569972916 | Z151: BSC58 | AA151: DEFAULT | AB151: 0 | AC151: 0 | AD151: 0 | AE151: 1 | AF151: 1 | AG151: 1 | AH151: RNC19 | AI151: DEFAULT | AJ151: 1 | AK151: 0.8938689608 | AL151: 0.09613103922 | AM151: 0 | AN151: 0.01 | AO151: D | AQ151: RNC19 | AR151: 0.9869808229 | AS151: 0.0005595598124 | AT151: 0.4996896185 | AU151: 0.0002832944903
A152: 148 | B152: URBANA | C152: LIMA | D152: NORTE | E152: AREQUIPA | F152: PROVINCIA11 | G152: DISTRITO1933 | H152: 77 | I152: 4 | J152: 12 | K152: 22 | L152: 12 | M152: 3 | N152: IDCELL148 | O152: 1 | P152: 0 | Q152: TM | R152: MACROCELDA | S152: FO | T152: 0.0001380804613 | U152: 0.0005193162289 | V152: 0.00698703569 | W152: 0.8903799798 | X152: 0.9930129643 | Y152: 0.1096200202 | Z152: BSC36 | AA152: DEFAULT | AB152: 1 | AC152: 0.5808089214 | AD152: 0.5808089214 | AE152: 1 | AF152: 0.4191910786 | AG152: 0.4191910786 | AH152: RNC43 | AI152: DEFAULT | AJ152: 1 | AK152: 0.8990942813 | AL152: 0.09090571871 | AM152: 0 | AN152: 0.01 | AO152: D | AQ152: RNC43 | AR152: 0.8759968022 | AS152: 0.00049663843 | AT152: 0.9716080778 | AU152: 0.0005508443742
A153: 149 | B153: RURAL | C153: PROVINCIA | D153: SUR | E153: LA LIBERTAD | F153: PROVINCIA95 | G153: DISTRITO442 | H153: 77 | I153: 4 | J153: 12 | K153: 22 | L153: 12 | M153: 3 | N153: IDCELL149 | O153: 1 | P153: 0 | Q153: D | R153: MACROCELDA | S153: FO | T153: 0.0002616957693 | U153: 0.0002215091292 | V153: 0.8114021527 | W153: 0.3442554751 | X153: 0.1885978473 | Y153: 0.6557445249 | Z153: BSC16 | AA153: DEFAULT | AB153: 1 | AC153: 0.4443776167 | AD153: 0.4443776167 | AE153: 1 | AF153: 0.5556223833 | AG153: 0.5556223833 | AH153: RNC08 | AI153: DEFAULT | AJ153: 1 | AK153: 0.8799329738 | AL153: 0.1100670262 | AM153: 0 | AN153: 0.01 | AO153: D | AQ153: RNC08 | AR153: 0.4405373338 | AS153: 0.0002497586398 | AT153: 0.8574786685 | AU153: 0.0004861397423
A154: 150 | B154: URBANA | C154: LIMA | D154: LIMA | E154: LIMA | F154: PROVINCIA48 | G154: DISTRITO1994 | H154: 77 | I154: 4 | J154: 12 | K154: 22 | L154: 12 | M154: 3 | N154: IDCELL150 | O154: 1 | P154: 0 | Q154: D | R154: MACROCELDA | S154: FO | T154: 0.00037560925 | U154: 0.0002115705444 | V154: 0.7835483354 | W154: 0.7329194658 | X154: 0.2164516646 | Y154: 0.2670805342 | Z154: BSC52 | AA154: DEFAULT | AB154: 0 | AC154: 0 | AD154: 0 | AE154: 0 | AF154: 0 | AG154: 0 | AH154: RNC37 | AI154: DEFAULT | AJ154: 1 | AK154: 0.8853315309 | AL154: 0.1046684691 | AM154: 0 | AN154: 0.01 | AO154: D | AQ154: RNC37 | AR154: 0.6474229125 | AS154: 0.0003670505395 | AT154: 0.5919851566 | AU154: 0.0003356206073
A155: 151 | B155: URBANA | C155: LIMA | D155: NORTE | E155: LA LIBERTAD | F155: PROVINCIA108 | G155: DISTRITO2888 | H155: 77 | I155: 4 | J155: 12 | K155: 22 | L155: 12 | M155: 3 | N155: IDCELL151 | O155: 1 | P155: 0 | Q155: D | R155: MACROCELDA | S155: FO | T155: 0.0004363900414 | U155: 9.379429631e-05 | V155: 0.02379465145 | W155: 0.1564661376 | X155: 0.9762053485 | Y155: 0.8435338624 | Z155: BSC01 | AA155: DEFAULT | AB155: 0 | AC155: 0 | AD155: 0 | AE155: 1 | AF155: 1 | AG155: 1 | AH155: RNC25 | AI155: DEFAULT | AJ155: 1 | AK155: 0.855201067 | AL155: 0.134798933 | AM155: 0 | AN155: 0.01 | AO155: D | AQ155: RNC25 | AR155: 0.1630534886 | AS155: 9.244169428e-05 | AT155: 0.2784335268 | AU155: 0.0001578553589
A156: 152 | B156: RURAL | C156: LIMA | D156: LIMA | E156: AREQUIPA | F156: PROVINCIA55 | G156: DISTRITO2939 | H156: 77 | I156: 4 | J156: 12 | K156: 22 | L156: 12 | M156: 3 | N156: IDCELL152 | O156: 1 | P156: 0 | Q156: D | R156: MACROCELDA | S156: FO | T156: 0.0004039647013 | U156: 0.0001549562893 | V156: 0.3116072302 | W156: 0.2607587005 | X156: 0.6883927698 | Y156: 0.7392412995 | Z156: BSC19 | AA156: DEFAULT | AB156: 1 | AC156: 1 | AD156: 1 | AE156: 0 | AF156: 0 | AG156: 0 | AH156: RNC31 | AI156: DEFAULT | AJ156: 1 | AK156: 0.8837393494 | AL156: 0.1062606506 | AM156: 0 | AN156: 0.01 | AO156: D | AQ156: RNC31 | AR156: 0.7662873867 | AS156: 0.0004344396734 | AT156: 0.1766965134 | AU156: 0.0001001764832
A157: 153 | B157: RURAL | C157: PROVINCIA | D157: SUR | E157: LIMA | F157: PROVINCIA95 | G157: DISTRITO2024 | H157: 77 | I157: 4 | J157: 12 | K157: 22 | L157: 12 | M157: 3 | N157: IDCELL153 | O157: 1 | P157: 0 | Q157: D | R157: MACROCELDA | S157: FO | T157: 5.061999166e-05 | U157: 3.508786398e-06 | V157: 0.1954750011 | W157: 0.4858101384 | X157: 0.8045249989 | Y157: 0.5141898616 | Z157: BSC32 | AA157: DEFAULT | AB157: 1 | AC157: 1 | AD157: 1 | AE157: 0 | AF157: 0 | AG157: 0 | AH157: RNC03 | AI157: DEFAULT | AJ157: 1 | AK157: 0.877645652 | AL157: 0.112354348 | AM157: 0 | AN157: 0.01 | AO157: D | AQ157: RNC03 | AR157: 0.9085999441 | AS157: 0.0005151224851 | AT157: 0.1048345312 | AU157: 5.94349852e-05
A158: 154 | B158: RURAL | C158: LIMA | D158: LIMA | E158: LA LIBERTAD | F158: PROVINCIA121 | G158: DISTRITO2037 | H158: 77 | I158: 4 | J158: 12 | K158: 22 | L158: 12 | M158: 3 | N158: IDCELL154 | O158: 1 | P158: 0 | Q158: TM | R158: MACROCELDA | S158: FO | T158: 0.0002389990102 | U158: 0.0004241032705 | V158: 0.1978662559 | W158: 0.463326893 | X158: 0.8021337441 | Y158: 0.536673107 | Z158: BSC33 | AA158: DEFAULT | AB158: 1 | AC158: 1 | AD158: 1 | AE158: 0 | AF158: 0 | AG158: 0 | AH158: RNC40 | AI158: DEFAULT | AJ158: 1 | AK158: 0.8399095652 | AL158: 0.1500904348 | AM158: 0 | AN158: 0.01 | AO158: D | AQ158: RNC40 | AR158: 0.9197469569 | AS158: 0.0005214421828 | AT158: 0.9144210381 | AU158: 0.0005184227015
A159: 155 | B159: RURAL | C159: PROVINCIA | D159: LIMA | E159: LA LIBERTAD | F159: PROVINCIA122 | G159: DISTRITO109 | H159: 77 | I159: 4 | J159: 12 | K159: 22 | L159: 12 | M159: 3 | N159: IDCELL155 | O159: 1 | P159: 0 | Q159: D | R159: MACROCELDA | S159: FO | T159: 0.0003427198951 | U159: 0.000480663885 | V159: 0.1702772729 | W159: 0.4384290124 | X159: 0.8297227271 | Y159: 0.5615709876 | Z159: BSC49 | AA159: DEFAULT | AB159: 0 | AC159: 0 | AD159: 0 | AE159: 0 | AF159: 0 | AG159: 0 | AH159: RNC08 | AI159: DEFAULT | AJ159: 1 | AK159: 0.8605479548 | AL159: 0.1294520452 | AM159: 0 | AN159: 0.01 | AO159: D | AQ159: RNC08 | AR159: 0.4751207435 | AS159: 0.0002693653898 | AT159: 0.09922672689 | AU159: 5.62556915e-05
A160: 156 | B160: URBANA | C160: LIMA | D160: SUR | E160: LIMA | F160: PROVINCIA124 | G160: DISTRITO122 | H160: 77 | I160: 4 | J160: 12 | K160: 22 | L160: 12 | M160: 3 | N160: IDCELL156 | O160: 1 | P160: 0 | Q160: D | R160: MACROCELDA | S160: FO | T160: 0.0003485403663 | U160: 0.0003832032747 | V160: 0.01391702257 | W160: 0.2267068411 | X160: 0.9860829774 | Y160: 0.7732931589 | Z160: BSC55 | AA160: DEFAULT | AB160: 1 | AC160: 1 | AD160: 1 | AE160: 0 | AF160: 0 | AG160: 0 | AH160: RNC35 | AI160: DEFAULT | AJ160: 1 | AK160: 0.8121104569 | AL160: 0.1778895431 | AM160: 0 | AN160: 0.01 | AO160: D | AQ160: RNC35 | AR160: 0.1000199555 | AS160: 5.670540527e-05 | AT160: 0.5749613617 | AU160: 0.0003259691214
A161: 157 | B161: URBANA | C161: PROVINCIA | D161: LIMA | E161: LA LIBERTAD | F161: PROVINCIA59 | G161: DISTRITO1384 | H161: 77 | I161: 4 | J161: 12 | K161: 22 | L161: 12 | M161: 3 | N161: IDCELL157 | O161: 1 | P161: 0 | Q161: D | R161: MACROCELDA | S161: FO | T161: 0.0001603672338 | U161: 0.000199555255 | V161: 0.5137397557 | W161: 0.9533139718 | X161: 0.4862602443 | Y161: 0.04668602825 | Z161: BSC41 | AA161: DEFAULT | AB161: 0 | AC161: 0 | AD161: 0 | AE161: 0 | AF161: 0 | AG161: 0 | AH161: RNC05 | AI161: DEFAULT | AJ161: 1 | AK161: 0.8146850066 | AL161: 0.1753149934 | AM161: 0 | AN161: 0.01 | AO161: D | AQ161: RNC05 | AR161: 0.08021879514 | AS161: 4.547931725e-05 | AT161: 0.2151649228 | AU161: 0.0001219857985
A162: 158 | B162: RURAL | C162: PROVINCIA | D162: SUR | E162: LA LIBERTAD | F162: PROVINCIA108 | G162: DISTRITO2374 | H162: 77 | I162: 4 | J162: 12 | K162: 22 | L162: 12 | M162: 3 | N162: IDCELL158 | O162: 1 | P162: 0 | Q162: D | R162: MACROCELDA | S162: FO | T162: 0.0002770553082 | U162: 0.0004352195592 | V162: 0.6689623116 | W162: 0.4117814112 | X162: 0.3310376884 | Y162: 0.5882185888 | Z162: BSC36 | AA162: DEFAULT | AB162: 0 | AC162: 0 | AD162: 0 | AE162: 1 | AF162: 1 | AG162: 1 | AH162: RNC03 | AI162: DEFAULT | AJ162: 1 | AK162: 0.8084323263 | AL162: 0.1815676737 | AM162: 0 | AN162: 0.01 | AO162: D | AQ162: RNC03 | AR162: 0.458841816 | AS162: 0.0002601361997 | AT162: 0.9194106155 | AU162: 0.0005212514971
A163: 159 | B163: URBANA | C163: PROVINCIA | D163: LIMA | E163: LA LIBERTAD | F163: PROVINCIA14 | G163: DISTRITO2199 | H163: 77 | I163: 4 | J163: 12 | K163: 22 | L163: 12 | M163: 3 | N163: IDCELL159 | O163: 1 | P163: 0 | Q163: D | R163: MACROCELDA | S163: FO | T163: 0.0003856615573 | U163: 0.0005203277767 | V163: 0.8134295032 | W163: 0.7448743065 | X163: 0.1865704968 | Y163: 0.2551256935 | Z163: BSC01 | AA163: DEFAULT | AB163: 0 | AC163: 0 | AD163: 0 | AE163: 1 | AF163: 1 | AG163: 1 | AH163: RNC06 | AI163: DEFAULT | AJ163: 1 | AK163: 0.8791646125 | AL163: 0.1108353875 | AM163: 0 | AN163: 0.01 | AO163: D | AQ163: RNC06 | AR163: 0.188580036 | AS163: 0.0001069137385 | AT163: 0.1078401875 | AU163: 6.113901477e-05
A164: 160 | B164: URBANA | C164: PROVINCIA | D164: NORTE | E164: LA LIBERTAD | F164: PROVINCIA100 | G164: DISTRITO1083 | H164: 77 | I164: 4 | J164: 12 | K164: 22 | L164: 12 | M164: 3 | N164: IDCELL160 | O164: 1 | P164: 0 | Q164: D | R164: MACROCELDA | S164: FO | T164: 0.0004727750264 | U164: 0.0002449099456 | V164: 0.9516290832 | W164: 0.8310351875 | X164: 0.04837091685 | Y164: 0.1689648125 | Z164: BSC06 | AA164: DEFAULT | AB164: 0 | AC164: 0 | AD164: 0 | AE164: 1 | AF164: 1 | AG164: 1 | AH164: RNC35 | AI164: DEFAULT | AJ164: 1 | AK164: 0.8837924138 | AL164: 0.1062075862 | AM164: 0 | AN164: 0.01 | AO164: D | AQ164: RNC35 | AR164: 0.466201145 | AS164: 0.0002643085045 | AT164: 0.9703313912 | AU164: 0.0005501205683
A165: 161 | B165: URBANA | C165: PROVINCIA | D165: LIMA | E165: LIMA | F165: PROVINCIA103 | G165: DISTRITO2269 | H165: 77 | I165: 4 | J165: 12 | K165: 22 | L165: 12 | M165: 3 | N165: IDCELL161 | O165: 1 | P165: 0 | Q165: TERCERO | R165: MACROCELDA | S165: FO | T165: 0.0003575357022 | U165: 0.0004265833704 | V165: 0.2435681365 | W165: 0.1140448288 | X165: 0.7564318635 | Y165: 0.8859551712 | Z165: BSC50 | AA165: DEFAULT | AB165: 1 | AC165: 1 | AD165: 1 | AE165: 0 | AF165: 0 | AG165: 0 | AH165: RNC32 | AI165: DEFAULT | AJ165: 1 | AK165: 0.8948144704 | AL165: 0.09518552956 | AM165: 0 | AN165: 0.01 | AO165: D | AQ165: RNC32 | AR165: 0.4936775275 | AS165: 0.0002798859899 | AT165: 0.0889842563 | AU165: 5.044881583e-05
A166: 162 | B166: RURAL | C166: PROVINCIA | D166: NORTE | E166: LA LIBERTAD | F166: PROVINCIA101 | G166: DISTRITO588 | H166: 77 | I166: 4 | J166: 12 | K166: 22 | L166: 12 | M166: 3 | N166: IDCELL162 | O166: 1 | P166: 0 | Q166: D | R166: MACROCELDA | S166: FO | T166: 9.403247652e-05 | U166: 0.000224955013 | V166: 0.66355455 | W166: 0.380986866 | X166: 0.33644545 | Y166: 0.619013134 | Z166: BSC53 | AA166: DEFAULT | AB166: 1 | AC166: 1 | AD166: 1 | AE166: 0 | AF166: 0 | AG166: 0 | AH166: RNC10 | AI166: DEFAULT | AJ166: 1 | AK166: 0.8899296081 | AL166: 0.1000703919 | AM166: 0 | AN166: 0.01 | AO166: D | AQ166: RNC10 | AR166: 0.8756272318 | AS166: 0.0004964289054 | AT166: 0.2476896597 | AU166: 0.0001404254027
A167: 163 | B167: RURAL | C167: PROVINCIA | D167: LIMA | E167: LA LIBERTAD | F167: PROVINCIA60 | G167: DISTRITO565 | H167: 77 | I167: 4 | J167: 12 | K167: 22 | L167: 12 | M167: 3 | N167: IDCELL163 | O167: 1 | P167: 0 | Q167: D | R167: MACROCELDA | S167: FO | T167: 6.823056481e-05 | U167: 0.0002787567173 | V167: 0.6406614516 | W167: 0.9291950113 | X167: 0.3593385484 | Y167: 0.07080498866 | Z167: BSC19 | AA167: DEFAULT | AB167: 1 | AC167: 1 | AD167: 1 | AE167: 0 | AF167: 0 | AG167: 0 | AH167: RNC41 | AI167: DEFAULT | AJ167: 1 | AK167: 0.8400281692 | AL167: 0.1499718308 | AM167: 0 | AN167: 0.01 | AO167: D | AQ167: RNC41 | AR167: 0.3350486375 | AS167: 0.0001899527817 | AT167: 0.1440503181 | AU167: 8.166801938e-05
A168: 164 | B168: URBANA | C168: PROVINCIA | D168: SUR | E168: LA LIBERTAD | F168: PROVINCIA50 | G168: DISTRITO1454 | H168: 77 | I168: 4 | J168: 12 | K168: 22 | L168: 12 | M168: 3 | N168: IDCELL164 | O168: 1 | P168: 0 | Q168: D | R168: MACROCELDA | S168: FO | T168: 4.411422511e-05 | U168: 0.0005437586121 | V168: 0.08583178922 | W168: 0.5857865617 | X168: 0.9141682108 | Y168: 0.4142134383 | Z168: BSC23 | AA168: DEFAULT | AB168: 1 | AC168: 1 | AD168: 1 | AE168: 0 | AF168: 0 | AG168: 0 | AH168: RNC16 | AI168: DEFAULT | AJ168: 1 | AK168: 0.8322776586 | AL168: 0.1577223414 | AM168: 0 | AN168: 0.01 | AO168: D | AQ168: RNC16 | AR168: 0.8160524309 | AS168: 0.0004626535132 | AT168: 0.6766635966 | AU168: 0.0003836282797
A169: 165 | B169: URBANA | C169: PROVINCIA | D169: NORTE | E169: AREQUIPA | F169: PROVINCIA47 | G169: DISTRITO2777 | H169: 77 | I169: 4 | J169: 12 | K169: 22 | L169: 12 | M169: 3 | N169: IDCELL165 | O169: 1 | P169: 0 | Q169: D | R169: MACROCELDA | S169: FO | T169: 0.0002063718525 | U169: 0.0001773515997 | V169: 0.5560507083 | W169: 0.7001235942 | X169: 0.4439492917 | Y169: 0.2998764058 | Z169: BSC15 | AA169: DEFAULT | AB169: 1 | AC169: 1 | AD169: 1 | AE169: 0 | AF169: 0 | AG169: 0 | AH169: RNC28 | AI169: DEFAULT | AJ169: 1 | AK169: 0.8839272673 | AL169: 0.1060727327 | AM169: 0 | AN169: 0.01 | AO169: D | AQ169: RNC28 | AR169: 0.6689949815 | AS169: 0.000379280628 | AT169: 0.1264034876 | AU169: 7.166330914e-05
A170: 166 | B170: URBANA | C170: PROVINCIA | D170: LIMA | E170: LA LIBERTAD | F170: PROVINCIA84 | G170: DISTRITO2153 | H170: 77 | I170: 4 | J170: 12 | K170: 22 | L170: 12 | M170: 3 | N170: IDCELL166 | O170: 1 | P170: 0 | Q170: TM | R170: MACROCELDA | S170: FO | T170: 0.0004799017338 | U170: 4.472749994e-05 | V170: 0.02052956085 | W170: 0.873262186 | X170: 0.9794704391 | Y170: 0.126737814 | Z170: BSC14 | AA170: DEFAULT | AB170: 1 | AC170: 1 | AD170: 1 | AE170: 0 | AF170: 0 | AG170: 0 | AH170: RNC39 | AI170: DEFAULT | AJ170: 1 | AK170: 0.8577084068 | AL170: 0.1322915932 | AM170: 0 | AN170: 0.01 | AO170: D | AQ170: RNC39 | AR170: 0.02762303363 | AS170: 1.5660628e-05 | AT170: 0.136481554 | AU170: 7.737697734e-05
A171: 167 | B171: RURAL | C171: PROVINCIA | D171: SUR | E171: LIMA | F171: PROVINCIA112 | G171: DISTRITO2735 | H171: 77 | I171: 4 | J171: 12 | K171: 22 | L171: 12 | M171: 3 | N171: IDCELL167 | O171: 1 | P171: 0 | Q171: D | R171: MACROCELDA | S171: FO | T171: 0.0003845628341 | U171: 0.0001736323167 | V171: 0.251768804 | W171: 0.5969904106 | X171: 0.748231196 | Y171: 0.4030095894 | Z171: BSC32 | AA171: DEFAULT | AB171: 1 | AC171: 1 | AD171: 1 | AE171: 0 | AF171: 0 | AG171: 0 | AH171: RNC29 | AI171: DEFAULT | AJ171: 1 | AK171: 0.8695320564 | AL171: 0.1204679436 | AM171: 0 | AN171: 0.01 | AO171: D | AQ171: RNC29 | AR171: 0.6615215461 | AS171: 0.0003750436317 | AT171: 0.9272105113 | AU171: 0.0005256735772
A172: 168 | B172: URBANA | C172: PROVINCIA | D172: SUR | E172: LA LIBERTAD | F172: PROVINCIA6 | G172: DISTRITO1413 | H172: 77 | I172: 4 | J172: 12 | K172: 22 | L172: 12 | M172: 3 | N172: IDCELL168 | O172: 1 | P172: 0 | Q172: D | R172: MACROCELDA | S172: FO | T172: 0.0003524706255 | U172: 0.0003597272724 | V172: 0.3382658076 | W172: 0.2518347454 | X172: 0.6617341924 | Y172: 0.7481652546 | Z172: BSC41 | AA172: DEFAULT | AB172: 1 | AC172: 1 | AD172: 1 | AE172: 0 | AF172: 0 | AG172: 0 | AH172: RNC03 | AI172: DEFAULT | AJ172: 1 | AK172: 0.8514768892 | AL172: 0.1385231108 | AM172: 0 | AN172: 0.01 | AO172: D | AQ172: RNC03 | AR172: 0.3530662432 | AS172: 0.0002001676995 | AT172: 0.9960470124 | AU172: 0.0005646998062
A173: 169 | B173: RURAL | C173: PROVINCIA | D173: SUR | E173: LA LIBERTAD | F173: PROVINCIA31 | G173: DISTRITO2731 | H173: 77 | I173: 4 | J173: 12 | K173: 22 | L173: 12 | M173: 3 | N173: IDCELL169 | O173: 1 | P173: 0 | Q173: D | R173: MACROCELDA | S173: FO | T173: 0.0002065052882 | U173: 0.0001484946028 | V173: 0.08206880173 | W173: 0.2230437934 | X173: 0.9179311983 | Y173: 0.7769562066 | Z173: BSC15 | AA173: DEFAULT | AB173: 1 | AC173: 1 | AD173: 1 | AE173: 0 | AF173: 0 | AG173: 0 | AH173: RNC31 | AI173: DEFAULT | AJ173: 1 | AK173: 0.8065256606 | AL173: 0.1834743394 | AM173: 0 | AN173: 0.01 | AO173: D | AQ173: RNC31 | AR173: 0.4311314306 | AS173: 0.0002444260485 | AT173: 0.2319882165 | AU173: 0.0001315236121
A174: 170 | B174: RURAL | C174: PROVINCIA | D174: NORTE | E174: AREQUIPA | F174: PROVINCIA34 | G174: DISTRITO2262 | H174: 77 | I174: 4 | J174: 12 | K174: 22 | L174: 12 | M174: 3 | N174: IDCELL170 | O174: 1 | P174: 0 | Q174: TERCERO | R174: MACROCELDA | S174: FO | T174: 0.0002408993776 | U174: 0.0002153455649 | V174: 0.6196876943 | W174: 0.6401540977 | X174: 0.3803123057 | Y174: 0.3598459023 | Z174: BSC41 | AA174: DEFAULT | AB174: 1 | AC174: 1 | AD174: 1 | AE174: 0 | AF174: 0 | AG174: 0 | AH174: RNC21 | AI174: DEFAULT | AJ174: 1 | AK174: 0.8524685087 | AL174: 0.1375314913 | AM174: 0 | AN174: 0.01 | AO174: D | AQ174: RNC21 | AR174: 0.9191745214 | AS174: 0.0005211176457 | AT174: 0.3956873871 | AU174: 0.0002243313699
A175: 171 | B175: URBANA | C175: LIMA | D175: SUR | E175: LIMA | F175: PROVINCIA52 | G175: DISTRITO2677 | H175: 77 | I175: 4 | J175: 12 | K175: 22 | L175: 12 | M175: 3 | N175: IDCELL171 | O175: 1 | P175: 0 | Q175: D | R175: MACROCELDA | S175: FO | T175: 0.0001402175185 | U175: 0.0001149980626 | V175: 0.35137974 | W175: 0.5371564706 | X175: 0.64862026 | Y175: 0.4628435294 | Z175: BSC23 | AA175: DEFAULT | AB175: 1 | AC175: 1 | AD175: 1 | AE175: 0 | AF175: 0 | AG175: 0 | AH175: RNC34 | AI175: DEFAULT | AJ175: 1 | AK175: 0.8889046877 | AL175: 0.1010953123 | AM175: 0 | AN175: 0.01 | AO175: D | AQ175: RNC34 | AR175: 0.4818074039 | AS175: 0.0002731563312 | AT175: 0.8418596468 | AU175: 0.0004772846798
A176: 172 | B176: RURAL | C176: PROVINCIA | D176: SUR | E176: LIMA | F176: PROVINCIA23 | G176: DISTRITO734 | H176: 77 | I176: 4 | J176: 12 | K176: 22 | L176: 12 | M176: 3 | N176: IDCELL172 | O176: 1 | P176: 0 | Q176: D | R176: MACROCELDA | S176: FO | T176: 4.970674935e-05 | U176: 9.260134917e-05 | V176: 0.8313844852 | W176: 0.4148868832 | X176: 0.1686155148 | Y176: 0.5851131168 | Z176: BSC23 | AA176: DEFAULT | AB176: 1 | AC176: 1 | AD176: 1 | AE176: 0 | AF176: 0 | AG176: 0 | AH176: RNC01 | AI176: DEFAULT | AJ176: 1 | AK176: 0.8186907437 | AL176: 0.1713092563 | AM176: 0 | AN176: 0.01 | AO176: D | AQ176: RNC01 | AR176: 0.872629129 | AS176: 0.0004947291582 | AT176: 0.0993519228 | AU176: 5.632667018e-05
A177: 173 | B177: URBANA | C177: PROVINCIA | D177: LIMA | E177: LA LIBERTAD | F177: PROVINCIA100 | G177: DISTRITO1188 | H177: 77 | I177: 4 | J177: 12 | K177: 22 | L177: 12 | M177: 3 | N177: IDCELL173 | O177: 1 | P177: 0 | Q177: TERCERO | R177: MACROCELDA | S177: FO | T177: 0.0005054412038 | U177: 0.0004679360628 | V177: 0.3416740786 | W177: 0.5472668463 | X177: 0.6583259214 | Y177: 0.4527331537 | Z177: BSC16 | AA177: DEFAULT | AB177: 1 | AC177: 1 | AD177: 1 | AE177: 0 | AF177: 0 | AG177: 0 | AH177: RNC10 | AI177: DEFAULT | AJ177: 1 | AK177: 0.851036284 | AL177: 0.138963716 | AM177: 0 | AN177: 0.01 | AO177: D | AQ177: RNC10 | AR177: 0.1714863291 | AS177: 9.72226166e-05 | AT177: 0.3111744056 | AU177: 0.0001764175027
A178: 174 | B178: URBANA | C178: PROVINCIA | D178: NORTE | E178: LIMA | F178: PROVINCIA85 | G178: DISTRITO2384 | H178: 77 | I178: 4 | J178: 12 | K178: 22 | L178: 12 | M178: 3 | N178: IDCELL174 | O178: 1 | P178: 0 | Q178: TM | R178: MACROCELDA | S178: FO | T178: 0.000364088079 | U178: 6.122403341e-05 | V178: 0.4493073858 | W178: 0.4839728599 | X178: 0.5506926142 | Y178: 0.5160271401 | Z178: BSC20 | AA178: DEFAULT | AB178: 1 | AC178: 1 | AD178: 1 | AE178: 0 | AF178: 0 | AG178: 0 | AH178: RNC33 | AI178: DEFAULT | AJ178: 1 | AK178: 0.8685900868 | AL178: 0.1214099132 | AM178: 0 | AN178: 0.01 | AO178: D | AQ178: RNC33 | AR178: 0.7602373867 | AS178: 0.0004310096808 | AT178: 0.7014542148 | AU178: 0.0003976830955
A179: 175 | B179: URBANA | C179: LIMA | D179: SUR | E179: LA LIBERTAD | F179: PROVINCIA20 | G179: DISTRITO2890 | H179: 77 | I179: 4 | J179: 12 | K179: 22 | L179: 12 | M179: 3 | N179: IDCELL175 | O179: 1 | P179: 0 | Q179: TERCERO | R179: MACROCELDA | S179: FO | T179: 0.0004694923371 | U179: 0.0001613118162 | V179: 0.1342121901 | W179: 0.6429533912 | X179: 0.8657878099 | Y179: 0.3570466088 | Z179: BSC16 | AA179: DEFAULT | AB179: 1 | AC179: 1 | AD179: 1 | AE179: 0 | AF179: 0 | AG179: 0 | AH179: RNC31 | AI179: DEFAULT | AJ179: 1 | AK179: 0.8729156342 | AL179: 0.1170843658 | AM179: 0 | AN179: 0.01 | AO179: D | AQ179: RNC31 | AR179: 0.9820327189 | AS179: 0.0005567545298 | AT179: 0.947057311 | AU179: 0.00053692554
A180: 176 | B180: URBANA | C180: LIMA | D180: LIMA | E180: LIMA | F180: PROVINCIA97 | G180: DISTRITO919 | H180: 77 | I180: 4 | J180: 12 | K180: 22 | L180: 12 | M180: 3 | N180: IDCELL176 | O180: 1 | P180: 0 | Q180: D | R180: MACROCELDA | S180: FO | T180: 0.0004902801211 | U180: 1.265281037e-05 | V180: 0.6392692663 | W180: 0.2319503139 | X180: 0.3607307337 | Y180: 0.7680496861 | Z180: BSC41 | AA180: DEFAULT | AB180: 1 | AC180: 1 | AD180: 1 | AE180: 0 | AF180: 0 | AG180: 0 | AH180: RNC28 | AI180: DEFAULT | AJ180: 1 | AK180: 0.8156381031 | AL180: 0.1743618969 | AM180: 0 | AN180: 0.01 | AO180: D | AQ180: RNC28 | AR180: 0.7327031662 | AS180: 0.0004153994046 | AT180: 0.966561024 | AU180: 0.0005479829929
A181: 177 | B181: RURAL | C181: PROVINCIA | D181: NORTE | E181: LA LIBERTAD | F181: PROVINCIA111 | G181: DISTRITO1085 | H181: 77 | I181: 4 | J181: 12 | K181: 22 | L181: 12 | M181: 3 | N181: IDCELL177 | O181: 1 | P181: 0 | Q181: D | R181: MACROCELDA | S181: FO | T181: 0.0003835602681 | U181: 0.0004639496046 | V181: 0.9520293669 | W181: 0.7064302287 | X181: 0.04797063306 | Y181: 0.2935697713 | Z181: BSC03 | AA181: DEFAULT | AB181: 1 | AC181: 1 | AD181: 1 | AE181: 0 | AF181: 0 | AG181: 0 | AH181: RNC42 | AI181: DEFAULT | AJ181: 1 | AK181: 0.8368789513 | AL181: 0.1531210487 | AM181: 0 | AN181: 0.01 | AO181: D | AQ181: RNC42 | AR181: 0.5671290844 | AS181: 0.0003215286829 | AT181: 0.1210224545 | AU181: 6.861258128e-05
A182: 178 | B182: RURAL | C182: LIMA | D182: LIMA | E182: LIMA | F182: PROVINCIA2 | G182: DISTRITO946 | H182: 77 | I182: 4 | J182: 12 | K182: 22 | L182: 12 | M182: 3 | N182: IDCELL178 | O182: 1 | P182: 0 | Q182: TM | R182: MACROCELDA | S182: FO | T182: 0.0002587643956 | U182: 0.0004245537808 | V182: 0.6574462578 | W182: 0.9279220291 | X182: 0.3425537422 | Y182: 0.07207797086 | Z182: BSC28 | AA182: DEFAULT | AB182: 0 | AC182: 0 | AD182: 0 | AE182: 1 | AF182: 1 | AG182: 1 | AH182: RNC39 | AI182: DEFAULT | AJ182: 1 | AK182: 0.8154185611 | AL182: 0.1745814389 | AM182: 0 | AN182: 0.01 | AO182: D | AQ182: RNC39 | AR182: 0.1436644091 | AS182: 8.144923176e-05 | AT182: 0.5129608135 | AU182: 0.0002908184738
A183: 179 | B183: URBANA | C183: PROVINCIA | D183: LIMA | E183: LA LIBERTAD | F183: PROVINCIA9 | G183: DISTRITO763 | H183: 77 | I183: 4 | J183: 12 | K183: 22 | L183: 12 | M183: 3 | N183: IDCELL179 | O183: 1 | P183: 0 | Q183: TERCERO | R183: MACROCELDA | S183: FO | T183: 0.0003076590852 | U183: 0.0003919637903 | V183: 0.073729794 | W183: 0.474340401 | X183: 0.926270206 | Y183: 0.525659599 | Z183: BSC47 | AA183: DEFAULT | AB183: 1 | AC183: 1 | AD183: 1 | AE183: 0 | AF183: 0 | AG183: 0 | AH183: RNC01 | AI183: DEFAULT | AJ183: 1 | AK183: 0.8433862767 | AL183: 0.1466137233 | AM183: 0 | AN183: 0.01 | AO183: D | AQ183: RNC01 | AR183: 0.8149154458 | AS183: 0.0004620089098 | AT183: 0.8215124321 | AU183: 0.0004657490113
A184: 180 | B184: RURAL | C184: LIMA | D184: SUR | E184: LA LIBERTAD | F184: PROVINCIA96 | G184: DISTRITO2824 | H184: 77 | I184: 4 | J184: 12 | K184: 22 | L184: 12 | M184: 3 | N184: IDCELL180 | O184: 1 | P184: 0 | Q184: D | R184: MACROCELDA | S184: FO | T184: 0.0003153392016 | U184: 0.0001047359629 | V184: 0.7248158949 | W184: 0.03087216362 | X184: 0.2751841051 | Y184: 0.9691278364 | Z184: BSC05 | AA184: DEFAULT | AB184: 1 | AC184: 1 | AD184: 1 | AE184: 0 | AF184: 0 | AG184: 0 | AH184: RNC23 | AI184: DEFAULT | AJ184: 1 | AK184: 0.8744132011 | AL184: 0.1155867989 | AM184: 0 | AN184: 0.01 | AO184: D | AQ184: RNC23 | AR184: 0.3405038169 | AS184: 0.0001930455461 | AT184: 0.5273199397 | AU184: 0.00029895925
A185: 181 | B185: RURAL | C185: PROVINCIA | D185: SUR | E185: LA LIBERTAD | F185: PROVINCIA112 | G185: DISTRITO1534 | H185: 77 | I185: 4 | J185: 12 | K185: 22 | L185: 12 | M185: 3 | N185: IDCELL181 | O185: 1 | P185: 0 | Q185: TM | R185: MACROCELDA | S185: FO | T185: 0.0005544955056 | U185: 0.000239066428 | V185: 0.9494027929 | W185: 0.480833419 | X185: 0.05059720707 | Y185: 0.519166581 | Z185: BSC35 | AA185: DEFAULT | AB185: 1 | AC185: 1 | AD185: 1 | AE185: 0 | AF185: 0 | AG185: 0 | AH185: RNC25 | AI185: DEFAULT | AJ185: 1 | AK185: 0.8934978738 | AL185: 0.09650212617 | AM185: 0 | AN185: 0.01 | AO185: D | AQ185: RNC25 | AR185: 0.1651400557 | AS185: 9.362465454e-05 | AT185: 0.5111649758 | AU185: 0.0002898003399
A186: 182 | B186: URBANA | C186: LIMA | D186: NORTE | E186: LA LIBERTAD | F186: PROVINCIA27 | G186: DISTRITO2378 | H186: 77 | I186: 4 | J186: 12 | K186: 22 | L186: 12 | M186: 3 | N186: IDCELL182 | O186: 1 | P186: 0 | Q186: TERCERO | R186: MACROCELDA | S186: FO | T186: 0.000217177703 | U186: 0.0001570297183 | V186: 0.8393842432 | W186: 0.05444222521 | X186: 0.1606157568 | Y186: 0.9455577748 | Z186: BSC35 | AA186: DEFAULT | AB186: 1 | AC186: 1 | AD186: 1 | AE186: 0 | AF186: 0 | AG186: 0 | AH186: RNC43 | AI186: DEFAULT | AJ186: 1 | AK186: 0.8875283567 | AL186: 0.1024716433 | AM186: 0 | AN186: 0.01 | AO186: D | AQ186: RNC43 | AR186: 0.8566312875 | AS186: 0.0004856593273 | AT186: 0.1542453418 | AU186: 8.744799544e-05
A187: 183 | B187: URBANA | C187: PROVINCIA | D187: LIMA | E187: LA LIBERTAD | F187: PROVINCIA51 | G187: DISTRITO2692 | H187: 77 | I187: 4 | J187: 12 | K187: 22 | L187: 12 | M187: 3 | N187: IDCELL183 | O187: 1 | P187: 0 | Q187: D | R187: MACROCELDA | S187: FO | T187: 0.0002932240715 | U187: 0.0005537620487 | V187: 0.5368920712 | W187: 0.2011761927 | X187: 0.4631079288 | Y187: 0.7988238073 | Z187: BSC29 | AA187: DEFAULT | AB187: 1 | AC187: 1 | AD187: 1 | AE187: 0 | AF187: 0 | AG187: 0 | AH187: RNC20 | AI187: DEFAULT | AJ187: 1 | AK187: 0.8575668685 | AL187: 0.1324331315 | AM187: 0 | AN187: 0.01 | AO187: D | AQ187: RNC20 | AR187: 0.1724193176 | AS187: 9.775156593e-05 | AT187: 0.8393231934 | AU187: 0.0004758466606
A188: 184 | B188: RURAL | C188: PROVINCIA | D188: NORTE | E188: LIMA | F188: PROVINCIA22 | G188: DISTRITO1343 | H188: 77 | I188: 4 | J188: 12 | K188: 22 | L188: 12 | M188: 3 | N188: IDCELL184 | O188: 1 | P188: 0 | Q188: TM | R188: MACROCELDA | S188: FO | T188: 0.0003139249741 | U188: 0.0004513232019 | V188: 0.3795928503 | W188: 0.9168249438 | X188: 0.6204071497 | Y188: 0.08317505624 | Z188: BSC61 | AA188: DEFAULT | AB188: 1 | AC188: 0.4247540377 | AD188: 0.4247540377 | AE188: 1 | AF188: 0.5752459623 | AG188: 0.5752459623 | AH188: RNC36 | AI188: DEFAULT | AJ188: 1 | AK188: 0.8508881574 | AL188: 0.1391118426 | AM188: 0 | AN188: 0.01 | AO188: D | AQ188: RNC36 | AR188: 0.2763162336 | AS188: 0.0001566549788 | AT188: 0.533036061 | AU188: 0.000302199953
A189: 185 | B189: URBANA | C189: LIMA | D189: SUR | E189: LA LIBERTAD | F189: PROVINCIA81 | G189: DISTRITO817 | H189: 77 | I189: 4 | J189: 12 | K189: 22 | L189: 12 | M189: 3 | N189: IDCELL185 | O189: 1 | P189: 0 | Q189: D | R189: MACROCELDA | S189: FO | T189: 0.000146091447 | U189: 0.0003537556186 | V189: 0.1797241861 | W189: 0.9162476123 | X189: 0.8202758139 | Y189: 0.08375238772 | Z189: BSC35 | AA189: DEFAULT | AB189: 1 | AC189: 0.3214208442 | AD189: 0.3214208442 | AE189: 1 | AF189: 0.6785791558 | AG189: 0.6785791558 | AH189: RNC12 | AI189: DEFAULT | AJ189: 1 | AK189: 0.8292474722 | AL189: 0.1607525278 | AM189: 0 | AN189: 0.01 | AO189: D | AQ189: RNC12 | AR189: 0.8687927512 | AS189: 0.0004925541587 | AT189: 0.9709761549 | AU189: 0.0005504861113
A190: 186 | B190: URBANA | C190: LIMA | D190: NORTE | E190: AREQUIPA | F190: PROVINCIA20 | G190: DISTRITO176 | H190: 77 | I190: 4 | J190: 12 | K190: 22 | L190: 12 | M190: 3 | N190: IDCELL186 | O190: 1 | P190: 0 | Q190: D | R190: MACROCELDA | S190: FO | T190: 0.0002834265029 | U190: 0.0004907068136 | V190: 0.3471702486 | W190: 0.4819733522 | X190: 0.6528297514 | Y190: 0.5180266478 | Z190: BSC17 | AA190: DEFAULT | AB190: 1 | AC190: 1 | AD190: 1 | AE190: 0 | AF190: 0 | AG190: 0 | AH190: RNC39 | AI190: DEFAULT | AJ190: 1 | AK190: 0.8802150352 | AL190: 0.1097849648 | AM190: 0 | AN190: 0.01 | AO190: D | AQ190: RNC39 | AR190: 0.265810518 | AS190: 0.0001506988587 | AT190: 0.03294137719 | AU190: 1.867581458e-05
A191: 187 | B191: RURAL | C191: LIMA | D191: LIMA | E191: LA LIBERTAD | F191: PROVINCIA17 | G191: DISTRITO2208 | H191: 77 | I191: 4 | J191: 12 | K191: 22 | L191: 12 | M191: 3 | N191: IDCELL187 | O191: 1 | P191: 0 | Q191: D | R191: MACROCELDA | S191: FO | T191: 0.0001375258782 | U191: 0.0005021143662 | V191: 0.9276751396 | W191: 0.05090911838 | X191: 0.07232486041 | Y191: 0.9490908816 | Z191: BSC14 | AA191: DEFAULT | AB191: 1 | AC191: 1 | AD191: 1 | AE191: 0 | AF191: 0 | AG191: 0 | AH191: RNC09 | AI191: DEFAULT | AJ191: 1 | AK191: 0.8947078491 | AL191: 0.0952921509 | AM191: 0 | AN191: 0.01 | AO191: D | AQ191: RNC09 | AR191: 0.299032966 | AS191: 0.0001695340238 | AT191: 0.4600458335 | AU191: 0.0002608188065
A192: 188 | B192: RURAL | C192: LIMA | D192: LIMA | E192: LA LIBERTAD | F192: PROVINCIA48 | G192: DISTRITO917 | H192: 77 | I192: 4 | J192: 12 | K192: 22 | L192: 12 | M192: 3 | N192: IDCELL188 | O192: 1 | P192: 0 | Q192: D | R192: MACROCELDA | S192: FO | T192: 0.000328555324 | U192: 0.0004233286694 | V192: 0.7081500701 | W192: 0.4805499066 | X192: 0.2918499299 | Y192: 0.5194500934 | Z192: BSC21 | AA192: DEFAULT | AB192: 1 | AC192: 1 | AD192: 1 | AE192: 0 | AF192: 0 | AG192: 0 | AH192: RNC41 | AI192: DEFAULT | AJ192: 1 | AK192: 0.8780422697 | AL192: 0.1119577303 | AM192: 0 | AN192: 0.01 | AO192: D | AQ192: RNC41 | AR192: 0.5130149737 | AS192: 0.0002908491794 | AT192: 0.3112134906 | AU192: 0.0001764396616
A193: 189 | B193: URBANA | C193: LIMA | D193: SUR | E193: LIMA | F193: PROVINCIA59 | G193: DISTRITO1446 | H193: 77 | I193: 4 | J193: 12 | K193: 22 | L193: 12 | M193: 3 | N193: IDCELL189 | O193: 1 | P193: 0 | Q193: D | R193: MACROCELDA | S193: FO | T193: 0.0003698578639 | U193: 0.0002061875399 | V193: 0.5244388337 | W193: 0.657174325 | X193: 0.4755611663 | Y193: 0.342825675 | Z193: BSC20 | AA193: DEFAULT | AB193: 1 | AC193: 1 | AD193: 1 | AE193: 0 | AF193: 0 | AG193: 0 | AH193: RNC12 | AI193: DEFAULT | AJ193: 1 | AK193: 0.8622488816 | AL193: 0.1277511184 | AM193: 0 | AN193: 0.01 | AO193: D | AQ193: RNC12 | AR193: 0.3227417647 | AS193: 0.0001829755119 | AT193: 0.4936768296 | AU193: 0.0002798855943
A194: 190 | B194: RURAL | C194: LIMA | D194: NORTE | E194: LA LIBERTAD | F194: PROVINCIA11 | G194: DISTRITO1136 | H194: 77 | I194: 4 | J194: 12 | K194: 22 | L194: 12 | M194: 3 | N194: IDCELL190 | O194: 1 | P194: 0 | Q194: TERCERO | R194: PICOCELDA | S194: SAT | T194: 0.0002404799378 | U194: 0.0004230357913 | V194: 1 | W194: 1 | X194: 0 | Y194: 0 | Z194: BSC52 | AA194: DEFAULT | AB194: 1 | AC194: 1 | AD194: 1 | AE194: 0 | AF194: 0 | AG194: 0 | AJ194: 0 | AK194: 0 | AL194: 0 | AM194: 0 | AN194: 0 | AO194: D | AR194: 0.8370261064 | AS194: 0.000474544348 | AT194: 0.44938131 | AU194: 0.0002547726518
A195: 191 | B195: URBANA | C195: PROVINCIA | D195: LIMA | E195: LA LIBERTAD | F195: PROVINCIA36 | G195: DISTRITO1032 | H195: 77 | I195: 4 | J195: 12 | K195: 22 | L195: 12 | M195: 3 | N195: IDCELL191 | O195: 1 | P195: 0 | Q195: D | R195: MACROCELDA | S195: FO | T195: 8.444493983e-05 | U195: 0.000295222438 | V195: 0.4659547925 | W195: 0.5649809398 | X195: 0.5340452075 | Y195: 0.4350190602 | Z195: BSC08 | AA195: DEFAULT | AB195: 1 | AC195: 1 | AD195: 1 | AE195: 0 | AF195: 0 | AG195: 0 | AH195: RNC33 | AI195: DEFAULT | AJ195: 1 | AK195: 0.8577341238 | AL195: 0.1322658762 | AM195: 0 | AN195: 0.01 | AO195: D | AQ195: RNC33 | AR195: 0.4220333197 | AS195: 0.0002392679571 | AT195: 0.245805173 | AU195: 0.0001393570101
A196: 192 | B196: URBANA | C196: PROVINCIA | D196: SUR | E196: LA LIBERTAD | F196: PROVINCIA100 | G196: DISTRITO2678 | H196: 77 | I196: 4 | J196: 12 | K196: 22 | L196: 12 | M196: 3 | N196: IDCELL192 | O196: 1 | P196: 0 | Q196: D | R196: MACROCELDA | S196: FO | T196: 0.0001107387544 | U196: 0.0005025094738 | V196: 0.4469375068 | W196: 0.7137235993 | X196: 0.5530624932 | Y196: 0.2862764007 | Z196: BSC61 | AA196: DEFAULT | AB196: 1 | AC196: 1 | AD196: 1 | AE196: 0 | AF196: 0 | AG196: 0 | AH196: RNC30 | AI196: DEFAULT | AJ196: 1 | AK196: 0.8808081592 | AL196: 0.1091918408 | AM196: 0 | AN196: 0.01 | AO196: D | AQ196: RNC30 | AR196: 0.6457331012 | AS196: 0.0003660925163 | AT196: 0.9782214635 | AU196: 0.0005545937731
A197: 193 | B197: URBANA | C197: PROVINCIA | D197: NORTE | E197: LA LIBERTAD | F197: PROVINCIA14 | G197: DISTRITO1642 | H197: 77 | I197: 4 | J197: 12 | K197: 22 | L197: 12 | M197: 3 | N197: IDCELL193 | O197: 1 | P197: 0 | Q197: D | R197: MACROCELDA | S197: FO | T197: 8.40902826e-05 | U197: 0.000449802958 | V197: 0.03506764574 | W197: 0.003925017634 | X197: 0.9649323543 | Y197: 0.9960749824 | Z197: BSC54 | AA197: DEFAULT | AB197: 1 | AC197: 1 | AD197: 1 | AE197: 0 | AF197: 0 | AG197: 0 | AH197: RNC36 | AI197: DEFAULT | AJ197: 1 | AK197: 0.8758835482 | AL197: 0.1141164518 | AM197: 0 | AN197: 0.01 | AO197: D | AQ197: RNC36 | AR197: =RAND() -> 0.2329209601 | AS197: 0.0001320524226 | AT197: 0.7925085237 | AU197: 0.0004493055088
A198: 194 | B198: URBANA | C198: PROVINCIA | D198: LIMA | E198: LA LIBERTAD | F198: PROVINCIA109 | G198: DISTRITO2788 | H198: 77 | I198: 4 | J198: 12 | K198: 22 | L198: 12 | M198: 3 | N198: IDCELL194 | O198: 1 | P198: 0 | Q198: D | R198: MACROCELDA | S198: FO | T198: 0.0002778555882 | U198: 0.0005412705416 | V198: 0.954865975 | W198: 0.4375200864 | X198: 0.045134025 | Y198: 0.5624799136 | Z198: BSC16 | AA198: DEFAULT | AB198: 1 | AC198: 1 | AD198: 1 | AE198: 0 | AF198: 0 | AG198: 0 | AH198: RNC36 | AI198: DEFAULT | AJ198: 1 | AK198: 0.877096373 | AL198: 0.112903627 | AM198: 0 | AN198: 0.01 | AO198: D | AQ198: =IF(R198="PICOCELDA","",AH198) -> RNC36 | AR198: 0.4376178461 | AS198: =AR198/$AR$3536 -> 0.0002481034628 | AT198: 0.9075927539 | AU198: 0.0005145514678
A199: 195 | B199: URBANA | C199: PROVINCIA | D199: LIMA | E199: LA LIBERTAD | F199: PROVINCIA82 | G199: DISTRITO389 | H199: 77 | I199: 4 | J199: 12 | K199: 22 | L199: 12 | M199: 3 | N199: IDCELL195 | O199: 1 | P199: 0 | Q199: TM | R199: MACROCELDA | S199: FO | T199: 0.0004984195692 | U199: 0.0004864470892 | V199: 0.09699984429 | W199: 0.7463580369 | X199: 0.9030001557 | Y199: 0.2536419631 | Z199: BSC59 | AA199: DEFAULT | AB199: 1 | AC199: 1 | AD199: 1 | AE199: 0 | AF199: 0 | AG199: 0 | AH199: RNC14 | AI199: DEFAULT | AJ199: 1 | AK199: 0.8764726534 | AL199: 0.1135273466 | AM199: 0 | AN199: 0.01 | AO199: D | AQ199: RNC14 | AR199: 0.6949434212 | AS199: 0.0003939918602 | AT199: 0.347669048 | AU199: 0.0001971078087
A200: 196 | B200: RURAL | C200: PROVINCIA | D200: NORTE | E200: LIMA | F200: PROVINCIA20 | G200: DISTRITO2838 | H200: 77 | I200: 4 | J200: 12 | K200: 22 | L200: 12 | M200: 3 | N200: IDCELL196 | O200: 1 | P200: 0 | Q200: D | R200: MACROCELDA | S200: FO | T200: 0.0003322232089 | U200: 0.0004774282216 | V200: 0.6867516227 | W200: 0.80484874 | X200: 0.3132483773 | Y200: 0.19515126 | Z200: BSC31 | AA200: DEFAULT | AB200: 0 | AC200: 0 | AD200: 0 | AE200: 1 | AF200: 1 | AG200: 1 | AH200: RNC06 | AI200: DEFAULT | AJ200: 1 | AK200: 0.8886840763 | AL200: 0.1013159237 | AM200: 0 | AN200: 0.01 | AO200: D | AQ200: RNC06 | AR200: 0.03745694615 | AS200: 2.123587538e-05 | AT200: 0.2518206045 | AU200: 0.0001427674043
... 362 more rows

Sheet Parametros Radio 2G
A1: <-- EDICIÓN | B1: PARÁMETROS DIMENSIONADO 2G
A3: Probabilidad de Bloqueo
B5: Probabilidad de bloqueo Interfaz Radio | F5: 0.02 | G5: pBloqueo
B7: Probabilidad de bloqueo Nucleo | F7: 0.02 | G7: pBloqueoN
A9: Tipos de Entorno
B12: Tipo de zona
B13: =tipoEntorno -> LIMA URBANA
B14: LIMA RURAL
B15: PROVINCIA URBANA
B16: PROVINCIA RURAL
B17: DEFAULT
B18: DEFAULT
A21: Espectro
B24: Nº de portadoras por sector | F24: =TRANSPOSE(bandasEspectro) -> Banda 850MHz | G24: Banda 1900MHz
B25: Lima | F25: 3 | G25: 5
B26: Provincias | F26: 3 | G26: 8
B28: Nº Mínimo de portadoras por sector | F28: 1 | G28: minTRXSector.2G
B30: Nº Máximo canales tráfico por portadora | F30: 7 | G30: maxCanalesTraficoTRX.2G
B32: Factor de utilización portadora | F32: 0.8 | G32: factorUtilTRX.2G | I32: Porcentaje half-rate | K32: 0.6
B34: Factor de no homogeneidad | F34: 0.5
F36: Portadoras reservadas
B37: Tipo de Entorno | F37: =TRANSPOSE(tipoCelda.2G) -> MACROCELDA | G37: PICOCELDA | H37: FEMTOCELDA
B38: =tipoEntorno -> LIMA URBANA | F38: 0 | G38: 0 | H38: 0 | I38: 0 | J38: 0
B39: LIMA RURAL | F39: 0 | G39: 0 | H39: 0 | I39: 0 | J39: 0
B40: PROVINCIA URBANA | F40: 0 | G40: 0 | H40: 0 | I40: 0 | J40: 0
B41: PROVINCIA RURAL | F41: 0 | G41: 0 | H41: 0 | I41: 0 | J41: 0
B42: DEFAULT | F42: 0 | G42: 0 | H42: 0 | I42: 0 | J42: 0
B43: DEFAULT | F43: 0 | G43: 0 | H43: 0 | I43: 0 | J43: 0
B44: reservadasTRX.2G
A45: Tipos de Celdas
B47: 850MHz | F47: SECTORES | K47: LIMITE TRX | P47: MÁXIMO TRX | U47: CAPACIDAD MÁXIMA POR SECTOR (Erlang)
B48: Tipo de Entorno | F48: =TRANSPOSE(tipoCelda.2G) -> MACROCELDA | G48: PICOCELDA | H48: FEMTOCELDA | K48: =F48 -> MACROCELDA | L48: PICOCELDA | M48: FEMTOCELDA | P48: MACROCELDA | Q48: PICOCELDA | R48: FEMTOCELDA | U48: MACROCELDA | V48: PICOCELDA | W48: FEMTOCELDA
B49: =tipoEntorno -> LIMA URBANA | F49: 3 | G49: 1 | H49: 1 | I49: 0 | J49: 0 | K49: 3 | L49: 3 | M49: 3 | N49: 0 | O49: 0 | P49: =MIN(K49,'Parametros Radio 2G'!$F$25-SUM(G38:J38)) -> 3 | Q49: =IF(G38>0,MIN(L49,'Parametros Radio 2G'!$F$25,G38),MIN(L49,'Parametros Radio 2G'!$F$25)) -> 3 | R49: =IF(H38>0,MIN(M49,'Parametros Radio 2G'!$F$25,H38),MIN(M49,'Parametros Radio 2G'!$F$25)) -> 3 | S49: =IF(I38>0,MIN(N49,'Parametros Radio 2G'!$F$25,I38),MIN(N49,'Parametros Radio 2G'!$F$25)) -> 0 | T49: =IF(J38>0,MIN(O49,'Parametros Radio 2G'!$F$25,J38),MIN(O49,'Parametros Radio 2G'!$F$25)) -> 0 | U49: =ErlangBInv(pBloqueo,P49*maxCanalesTraficoTRX.2G*factorUtilTRX.2G,0.001)*(1-$K$32+2*$K$32) -> 15.7262396 | V49: =ErlangBInv(pBloqueo,Q49*maxCanalesTraficoTRX.2G*factorUtilTRX.2G,0.001) -> 9.828899747 | W49: 9.828899747 | X49: 0 | Y49: 0
B50: LIMA RURAL | F50: 3 | G50: 1 | H50: 1 | I50: 0 | J50: 0 | K50: 3 | L50: 3 | M50: 3 | N50: 0 | O50: 0 | P50: =MIN(K50,'Parametros Radio 2G'!$F$25-SUM(G39:J39)) -> 3 | Q50: =IF(G39>0,MIN(L50,'Parametros Radio 2G'!$F$25,G39),MIN(L50,'Parametros Radio 2G'!$F$25)) -> 3 | R50: =IF(H39>0,MIN(M50,'Parametros Radio 2G'!$F$25,H39),MIN(M50,'Parametros Radio 2G'!$F$25)) -> 3 | S50: =IF(I39>0,MIN(N50,'Parametros Radio 2G'!$F$25,I39),MIN(N50,'Parametros Radio 2G'!$F$25)) -> 0 | T50: =IF(J39>0,MIN(O50,'Parametros Radio 2G'!$F$25,J39),MIN(O50,'Parametros Radio 2G'!$F$25)) -> 0 | U50: 15.7262396 | V50: 9.828899747 | W50: 9.828899747 | X50: 0 | Y50: 0
B51: PROVINCIA URBANA | F51: 3 | G51: 1 | H51: 1 | I51: 0 | J51: 0 | K51: 3 | L51: 3 | M51: 3 | N51: 0 | O51: 0 | P51: =MIN(K51,'Parametros Radio 2G'!$F$26-SUM(G40:J40)) -> 3 | Q51: =IF(G40>0,MIN(L51,'Parametros Radio 2G'!$F$25,G40),MIN(L51,'Parametros Radio 2G'!$F$25)) -> 3 | R51: =IF(H40>0,MIN(M51,'Parametros Radio 2G'!$F$25,H40),MIN(M51,'Parametros Radio 2G'!$F$25)) -> 3 | S51: =IF(I40>0,MIN(N51,'Parametros Radio 2G'!$F$25,I40),MIN(N51,'Parametros Radio 2G'!$F$25)) -> 0 | T51: =IF(J40>0,MIN(O51,'Parametros Radio 2G'!$F$25,J40),MIN(O51,'Parametros Radio 2G'!$F$25)) -> 0 | U51: 15.7262396 | V51: 9.828899747 | W51: 9.828899747 | X51: 0 | Y51: 0
B52: PROVINCIA RURAL | F52: 3 | G52: 1 | H52: 1 | I52: 0 | J52: 0 | K52: 3 | L52: 3 | M52: 3 | N52: 0 | O52: 0 | P52: =MIN(K52,'Parametros Radio 2G'!$F$26-SUM(G41:J41)) -> 3 | Q52: =IF(G41>0,MIN(L52,'Parametros Radio 2G'!$F$25,G41),MIN(L52,'Parametros Radio 2G'!$F$25)) -> 3 | R52: =IF(H41>0,MIN(M52,'Parametros Radio 2G'!$F$25,H41),MIN(M52,'Parametros Radio 2G'!$F$25)) -> 3 | S52: =IF(I41>0,MIN(N52,'Parametros Radio 2G'!$F$25,I41),MIN(N52,'Parametros Radio 2G'!$F$25)) -> 0 | T52: =IF(J41>0,MIN(O52,'Parametros Radio 2G'!$F$25,J41),MIN(O52,'Parametros Radio 2G'!$F$25)) -> 0 | U52: 15.7262396 | V52: 9.828899747 | W52: 9.828899747 | X52: 0 | Y52: 0
B53: DEFAULT | F53: 0 | G53: 0 | H53: 0 | I53: 0 | J53: 0 | K53: 0 | L53: 0 | M53: 0 | N53: 0 | O53: 0 | P53: =MIN(K53,'Parametros Radio 2G'!$F$25-SUM(G42:J42)) -> 0 | Q53: =IF(G42>0,MIN(L53,'Parametros Radio 2G'!$F$25,G42),MIN(L53,'Parametros Radio 2G'!$F$25)) -> 0 | R53: =IF(H42>0,MIN(M53,'Parametros Radio 2G'!$F$25,H42),MIN(M53,'Parametros Radio 2G'!$F$25)) -> 0 | S53: =IF(I42>0,MIN(N53,'Parametros Radio 2G'!$F$25,I42),MIN(N53,'Parametros Radio 2G'!$F$25)) -> 0 | T53: =IF(J42>0,MIN(O53,'Parametros Radio 2G'!$F$25,J42),MIN(O53,'Parametros Radio 2G'!$F$25)) -> 0 | U53: 0 | V53: 0 | W53: 0 | X53: 0 | Y53: 0
B54: DEFAULT | F54: 0 | G54: 0 | H54: 0 | I54: 0 | J54: 0 | K54: 0 | L54: 0 | M54: 0 | N54: 0 | O54: 0 | P54: =MIN(K54,'Parametros Radio 2G'!$F$25-SUM(G43:J43)) -> 0 | Q54: =IF(G43>0,MIN(L54,'Parametros Radio 2G'!$F$25,G43),MIN(L54,'Parametros Radio 2G'!$F$25)) -> 0 | R54: =IF(H43>0,MIN(M54,'Parametros Radio 2G'!$F$25,H43),MIN(M54,'Parametros Radio 2G'!$F$25)) -> 0 | S54: =IF(I43>0,MIN(N54,'Parametros Radio 2G'!$F$25,I43),MIN(N54,'Parametros Radio 2G'!$F$25)) -> 0 | T54: =IF(J43>0,MIN(O54,'Parametros Radio 2G'!$F$25,J43),MIN(O54,'Parametros Radio 2G'!$F$25)) -> 0 | U54: 0 | V54: 0 | W54: 0 | X54: 0 | Y54: 0
B55: tiposEntornoSectores.2G | F55: sectores.2G | P55: maxTRX.2G
B57: 1900MHz | F57: SECTORES | K57: LIMITE TRX | P57: MÁXIMO TRX | U57: CAPACIDAD MÁXIMA POR SECTOR (Erlang)
B58: Tipo de Entorno | F58: =TRANSPOSE(tipoCelda.2G) -> MACROCELDA | G58: PICOCELDA | H58: FEMTOCELDA | K58: =F58 -> MACROCELDA | L58: PICOCELDA | M58: FEMTOCELDA | P58: MACROCELDA | Q58: PICOCELDA | R58: FEMTOCELDA | U58: MACROCELDA | V58: PICOCELDA | W58: FEMTOCELDA
B59: =tipoEntorno -> LIMA URBANA | F59: 3 | G59: 1 | H59: 1 | I59: 0 | J59: 0 | K59: 5 | L59: 3 | M59: 3 | N59: 0 | O59: 0 | P59: =MIN(K59,'Parametros Radio 2G'!$G$25-SUM(G38:J38)) -> 5 | Q59: =IF(G38>0,MIN(L59,'Parametros Radio 2G'!$G$25,G38),MIN(L59,'Parametros Radio 2G'!$G$25)) -> 3 | R59: =IF(H38>0,MIN(M59,'Parametros Radio 2G'!$G$25,H38),MIN(M59,'Parametros Radio 2G'!$G$25)) -> 3 | S59: =IF(I48>0,MIN(N59,'Parametros Radio 2G'!$F$25,I48),MIN(N59,'Parametros Radio 2G'!$F$25)) ->  | T59: =IF(J48>0,MIN(O59,'Parametros Radio 2G'!$F$25,J48),MIN(O59,'Parametros Radio 2G'!$F$25)) ->  | U59: =ErlangBInv(pBloqueo,P59*maxCanalesTraficoTRX.2G*factorUtilTRX.2G,0.001) -> 19.26649308 | V59: =ErlangBInv(pBloqueo,Q59*maxCanalesTraficoTRX.2G*factorUtilTRX.2G,0.001) -> 9.828899747 | W59: =ErlangBInv(pBloqueo,R59*maxCanalesTraficoTRX.2G*factorUtilTRX.2G,0.001) -> 9.828899747 | X59: =ErlangBInv(pBloqueo,S59*maxCanalesTraficoTRX.2G*factorUtilTRX.2G,0.001) ->  | Y59: =ErlangBInv(pBloqueo,T59*maxCanalesTraficoTRX.2G*factorUtilTRX.2G,0.001) -> 
B60: LIMA RURAL | F60: 3 | G60: 1 | H60: 1 | I60: 0 | J60: 0 | K60: 5 | L60: 3 | M60: 3 | N60: 0 | O60: 0 | P60: =MIN(K60,'Parametros Radio 2G'!$G$25-SUM(G39:J39)) -> 5 | Q60: =IF(G39>0,MIN(L60,'Parametros Radio 2G'!$G$25,G39),MIN(L60,'Parametros Radio 2G'!$G$25)) -> 3 | R60: =IF(H39>0,MIN(M60,'Parametros Radio 2G'!$G$25,H39),MIN(M60,'Parametros Radio 2G'!$G$25)) -> 3 | S60: =IF(I49>0,MIN(N60,'Parametros Radio 2G'!$F$25,I49),MIN(N60,'Parametros Radio 2G'!$F$25)) -> 0 | T60: =IF(J49>0,MIN(O60,'Parametros Radio 2G'!$F$25,J49),MIN(O60,'Parametros Radio 2G'!$F$25)) -> 0 | U60: 19.26649308 | V60: 9.828899747 | W60: 9.828899747 | X60: 0 | Y60: 0
B61: PROVINCIA URBANA | F61: 3 | G61: 1 | H61: 1 | I61: 0 | J61: 0 | K61: 8 | L61: 3 | M61: 3 | N61: 0 | O61: 0 | P61: =MIN(K61,'Parametros Radio 2G'!$G$26-SUM(G40:J40)) -> 8 | Q61: =IF(G40>0,MIN(L61,'Parametros Radio 2G'!$G$25,G40),MIN(L61,'Parametros Radio 2G'!$G$25)) -> 3 | R61: =IF(H40>0,MIN(M61,'Parametros Radio 2G'!$G$25,H40),MIN(M61,'Parametros Radio 2G'!$G$25)) -> 3 | S61: =IF(I50>0,MIN(N61,'Parametros Radio 2G'!$F$25,I50),MIN(N61,'Parametros Radio 2G'!$F$25)) -> 0 | T61: =IF(J50>0,MIN(O61,'Parametros Radio 2G'!$F$25,J50),MIN(O61,'Parametros Radio 2G'!$F$25)) -> 0 | U61: 34.70662035 | V61: 9.828899747 | W61: 9.828899747 | X61: 0 | Y61: 0
B62: PROVINCIA RURAL | F62: 1 | G62: 1 | H62: 1 | I62: 0 | J62: 0 | K62: 8 | L62: 3 | M62: 3 | N62: 0 | O62: 0 | P62: =MIN(K62,'Parametros Radio 2G'!$G$26-SUM(G41:J41)) -> 8 | Q62: =IF(G41>0,MIN(L62,'Parametros Radio 2G'!$G$25,G41),MIN(L62,'Parametros Radio 2G'!$G$25)) -> 3 | R62: =IF(H41>0,MIN(M62,'Parametros Radio 2G'!$G$25,H41),MIN(M62,'Parametros Radio 2G'!$G$25)) -> 3 | S62: =IF(I51>0,MIN(N62,'Parametros Radio 2G'!$F$25,I51),MIN(N62,'Parametros Radio 2G'!$F$25)) -> 0 | T62: =IF(J51>0,MIN(O62,'Parametros Radio 2G'!$F$25,J51),MIN(O62,'Parametros Radio 2G'!$F$25)) -> 0 | U62: 34.70662035 | V62: 9.828899747 | W62: 9.828899747 | X62: 0 | Y62: 0
B63: DEFAULT | F63: 0 | G63: 0 | H63: 0 | I63: 0 | J63: 0 | K63: 0 | L63: 0 | M63: 0 | N63: 0 | O63: 0 | P63: =MIN(K63,'Parametros Radio 2G'!$G$25-SUM(G42:J42)) -> 0 | Q63: =IF(G42>0,MIN(L63,'Parametros Radio 2G'!$G$25,G42),MIN(L63,'Parametros Radio 2G'!$G$25)) -> 0 | R63: =IF(H42>0,MIN(M63,'Parametros Radio 2G'!$G$25,H42),MIN(M63,'Parametros Radio 2G'!$G$25)) -> 0 | S63: =IF(I52>0,MIN(N63,'Parametros Radio 2G'!$F$25,I52),MIN(N63,'Parametros Radio 2G'!$F$25)) -> 0 | T63: =IF(J52>0,MIN(O63,'Parametros Radio 2G'!$F$25,J52),MIN(O63,'Parametros Radio 2G'!$F$25)) -> 0 | U63: 0 | V63: 0 | W63: 0 | X63: 0 | Y63: 0
B64: DEFAULT | F64: 0 | G64: 0 | H64: 0 | I64: 0 | J64: 0 | K64: 0 | L64: 0 | M64: 0 | N64: 0 | O64: 0 | P64: =MIN(K64,'Parametros Radio 2G'!$G$25-SUM(G43:J43)) -> 0 | Q64: =IF(G43>0,MIN(L64,'Parametros Radio 2G'!$G$25,G43),MIN(L64,'Parametros Radio 2G'!$G$25)) -> 0 | R64: =IF(H43>0,MIN(M64,'Parametros Radio 2G'!$G$25,H43),MIN(M64,'Parametros Radio 2G'!$G$25)) -> 0 | S64: =IF(I53>0,MIN(N64,'Parametros Radio 2G'!$F$25,I53),MIN(N64,'Parametros Radio 2G'!$F$25)) -> 0 | T64: =IF(J53>0,MIN(O64,'Parametros Radio 2G'!$F$25,J53),MIN(O64,'Parametros Radio 2G'!$F$25)) -> 0 | U64: 0 | V64: 0 | W64: 0 | X64: 0 | Y64: 0
B65: tiposEntornoSectores.2G.1900 | P65: maxTRX.2G.1900
A66: Parámetros de Tráfico
B69: Tasa tráfico voz (Kbps) | F69: 12.2 | G69: vozRate.2G
B71: Tasa tráfico voz Core (Kbps) | F71: 64 | G71: vozRateCore.2G
B75: Factores de Conversión a Mbps
B77: Voz 2G | C77: =vozRate.2G/60/1000 -> 0.0002033333333 | D77: de erlangs a mbps
B78: Datos 2G | C78: =8/3600 -> 0.002222222222
B79: SMS 2G | C79: =Parametros!F43*8/1000/3600 -> 3.333333333e-07
B80: MMS 2G | C80: =Parametros!F45*8/1000/3600 -> 9.408888889e-05
A83: Costos Equipamiento
F86: MACRO | I86: PICO | K86: FEMTO | M86: 0 | O86: 0 | R86: MACRO | T86: PICO | V86: FEMTO | X86: 0 | Z86: 0
B87: FABRICANTE | F87: MODULO TRX | G87: EQUIPO | H87: PORTADORA | I87: EQUIPO | J87: PORTADORA | K87: EQUIPO | L87: PORTADORA | M87: EQUIPO | N87: PORTADORA | O87: EQUIPO | P87: PORTADORA | Q87: UNIDADES | R87: EQUIPO | S87: PORTADORA | T87: EQUIPO | U87: PORTADORA | V87: EQUIPO | W87: PORTADORA | X87: EQUIPO | Y87: PORTADORA | Z87: EQUIPO | AA87: PORTADORA
B88: =fabricantes.2G -> DEFAULT | F88: 4 | G88: 0 | H88: 0 | I88: 0 | J88: 0 | K88: 0 | L88: 0 | M88: 0 | N88: 0 | O88: 0 | P88: 0 | Q88: US$ | R88: =IF(moneda=$Q88,1,IF(moneda="US$",1/tipoC,IF(moneda="S/.",tipoC,0)))*G88*(1+pc_planifica.2G) -> 0 | S88: 0 | T88: 0 | U88: 0 | V88: 0 | W88: 0 | X88: 0 | Y88: 0 | Z88: 0 | AA88: 0
B89: DEFAULT | F89: 4 | G89: 0 | H89: 0 | I89: 0 | J89: 0 | K89: 0 | L89: 0 | M89: 0 | N89: 0 | O89: 0 | P89: 0 | Q89: US$ | R89: 0 | S89: 0 | T89: 0 | U89: 0 | V89: 0 | W89: 0 | X89: 0 | Y89: 0 | Z89: 0 | AA89: 0
B90: DEFAULT | F90: 4 | G90: 0 | H90: 0 | I90: 0 | J90: 0 | K90: 0 | L90: 0 | M90: 0 | N90: 0 | O90: 0 | P90: 0 | Q90: US$ | R90: 0 | S90: 0 | T90: 0 | U90: 0 | V90: 0 | W90: 0 | X90: 0 | Y90: 0 | Z90: 0 | AA90: 0
B91: DEFAULT | F91: 4 | G91: 0 | H91: 0 | I91: 0 | J91: 0 | K91: 0 | L91: 0 | M91: 0 | N91: 0 | O91: 0 | P91: 0 | Q91: US$ | R91: 0 | S91: 0 | T91: 0 | U91: 0 | V91: 0 | W91: 0 | X91: 0 | Y91: 0 | Z91: 0 | AA91: 0
B92: DEFAULT | F92: 4 | G92: 0 | H92: 0 | I92: 0 | J92: 0 | K92: 0 | L92: 0 | M92: 0 | N92: 0 | O92: 0 | P92: 0 | Q92: US$ | R92: 0 | S92: 0 | T92: 0 | U92: 0 | V92: 0 | W92: 0 | X92: 0 | Y92: 0 | Z92: 0 | AA92: 0
B93: EQUIPO | F93: 4 | G93: 46057 | H93: 0 | I93: 3870.28 | J93: 0 | K93: 3870.28 | L93: 0 | M93: 0 | N93: 0 | O93: 0 | P93: 0 | Q93: US$ | R93: 46057 | S93: 0 | T93: 3870.28 | U93: 0 | V93: 3870.28 | W93: 0 | X93: 0 | Y93: 0 | Z93: 0 | AA93: 0
B95: Planificación | F95: 0 | G95: pc_planifica.2G
B97: Típico | F97: SI | G97: usaTipico.2G
B99: Costos Comunes
B101: DESCRIPCIÓN | D101: CU | E101: UNIDAD | F101: ="COSTO ("&moneda&")" -> COSTO (US$)
B102: Upgrade de Planta GSM _ BSC | D102: 2482207.52 | E102: US$ | F102: =IF(moneda=E102,1,IF(moneda="US$",1/tipoC,IF(moneda="S/.",tipoC,0)))*D102 -> 2482207.52
B103: Actualización SW OSS | D103: 383070.57 | E103: US$ | F103: =IF(moneda=E103,1,IF(moneda="US$",1/tipoC,IF(moneda="S/.",tipoC,0)))*D103 -> 383070.57
B104: Features | D104: 746122.58 | E104: US$ | F104: =IF(moneda=E104,1,IF(moneda="US$",1/tipoC,IF(moneda="S/.",tipoC,0)))*D104 -> 746122.58
F105: =SUM(F102:F104) -> 3611400.67
A107: BSC
B109: Criterios de Dimensionado
B111: CRITERIO | C111: DESCRIPCIÓN | D111: VALOR
B112: Tráfico | C112: Erlang en HC | D112: 6000 | E112: criterioBSC.trafico
B113: TRX | C113: Nº de portadoras | D113: 1000000 | E113: criterioBSC.TRX
B115: Factor de utilización BSC | E115: 0.8 | F115: fUtilizacionBSC.2G
B129: Costos BSC
B131: COMPONENTE | C131: COSTO | D131: UNDADES | E131: ="COSTO ("&moneda&")" -> COSTO (US$)
B132: HW | C132: 2900000 | D132: S/. | E132: =IF(moneda=D132,1,IF(moneda="US$",1/tipoC,IF(moneda="S/.",tipoC,0)))*C132*(1+pc_planifica.2G) -> 1065230.035
B133: SW | C133: 3300000 | D133: S/. | E133: =IF(moneda=D133,1,IF(moneda="US$",1/tipoC,IF(moneda="S/.",tipoC,0)))*C133*(1+pc_planifica.2G) -> 1212158.315
B134: SERVICIOS | C134: 800000 | D134: S/. | E134: =IF(moneda=D134,1,IF(moneda="US$",1/tipoC,IF(moneda="S/.",tipoC,0)))*C134*(1+pc_planifica.2G) -> 293856.5613
A139: Enlaces BTS-BSC
B141: Capacidad E1 BTS-BSC (Interfaz A-bis) | E141: 80 | F141: CtosporE1InterfazAbis.2G
B143: Factor Utilización E1 BTS-BSC (Interfaz A-bis) | E143: 0.8 | F143: fUtilE1Abis.2G
A146: Enlaces BSC-MSC
B148: Capacidad E1 BSC-MSC (Interfaz A) | E148: 120 | F148: CtosporE1InterfazA.2G
B150: Factor Utilización E1 BSC-MSC (Interfaz A) | E150: 0.8 | F150: fUtilE1A.2G

Sheet Parametros Radio 3G
A1: <-- EDICIÓN | B1: PARÁMETROS DIMENSIONADO 3G
A3: Probabilidad de Bloqueo
B5: Probabilidad de bloqueo Interfaz Radio | F5: 0.02 | G5: pBloqueo.3G
B7: Probabilidad de bloqueo Nucleo | F7: 0.02 | G7: pBloqueoN.3G
A9: Tipos de Entorno
B12: Tipo de Entorno
B13: =tipoEntorno -> LIMA URBANA
B14: LIMA RURAL
B15: PROVINCIA URBANA
B16: PROVINCIA RURAL
B17: DEFAULT
B18: DEFAULT
B19: tiposEntorno.3G
A22: Espectro
F26: Banda 850MHz
B27: Nº Máximo de portadoras por sector | F27: 2
B29: Nº Mínimo de portadoras por sector | F29: 1 | G29: minPortadorasSector.3G
F31: Portadoras reservadas
B32: Tipo de Entorno | F32: =TRANSPOSE(tipoCelda.3G) -> MACROCELDA | G32: DEFAULT1 | H32: DEFAULT2 | I32: DEFAULT3 | J32: DEFAULT4
B33: =tipoEntorno -> LIMA URBANA | F33: 0 | G33: 0 | H33: 0 | I33: 0 | J33: 0
B34: LIMA RURAL | F34: 0 | G34: 0 | H34: 0 | I34: 0 | J34: 0
B35: PROVINCIA URBANA | F35: 0 | G35: 0 | H35: 0 | I35: 0 | J35: 0
B36: PROVINCIA RURAL | F36: 0 | G36: 0 | H36: 0 | I36: 0 | J36: 0
B37: DEFAULT | F37: 0 | G37: 0 | H37: 0 | I37: 0 | J37: 0
B38: DEFAULT | F38: 0 | G38: 0 | H38: 0 | I38: 0 | J38: 0
B39: reservadasTRX.2G
A42: Tipos de Celdas
F44: SECTORES | K44: MÁXIMO PORTADORAS | P44: PORTADORAS DISPONIBLES | U44: CAPACIDAD MÁXIMA POR SECTOR
B45: Tipo de Entorno | F45: =TRANSPOSE(tipoCelda.3G) -> MACROCELDA | G45: DEFAULT1 | H45: DEFAULT2 | I45: DEFAULT3 | J45: DEFAULT4 | K45: =F45 -> MACROCELDA | L45: DEFAULT1 | M45: DEFAULT2 | N45: DEFAULT3 | O45: DEFAULT4 | P45: MACROCELDA | Q45: DEFAULT1 | R45: DEFAULT2 | S45: DEFAULT3 | T45: DEFAULT4 | U45: MACROCELDA | V45: DEFAULT1 | W45: DEFAULT2 | X45: DEFAULT3 | Y45: DEFAULT4
B46: =tipoEntorno -> LIMA URBANA | F46: 3 | G46: 0 | H46: 0 | I46: 0 | J46: 0 | K46: 3 | L46: 0 | M46: 0 | N46: 0 | O46: 0 | P46: =MIN(K46,$F$27-SUM(G33:J33)) -> 2 | Q46: =IF(G33>0,MIN($F$27,L46,G33),MIN($F$27,L46)) -> 0 | R46: 0 | S46: 0 | T46: 0 | U46: =P46*$F$67 -> 6.8 | V46: 0 | W46: 0 | X46: 0 | Y46: 0
B47: LIMA RURAL | F47: 3 | G47: 0 | H47: 0 | I47: 0 | J47: 0 | K47: 3 | L47: 0 | M47: 0 | N47: 0 | O47: 0 | P47: 2 | Q47: 0 | R47: 0 | S47: 0 | T47: 0 | U47: 6.8 | V47: 0 | W47: 0 | X47: 0 | Y47: 0
B48: PROVINCIA URBANA | F48: 3 | G48: 0 | H48: 0 | I48: 0 | J48: 0 | K48: 3 | L48: 0 | M48: 0 | N48: 0 | O48: 0 | P48: 2 | Q48: 0 | R48: 0 | S48: 0 | T48: 0 | U48: 6.8 | V48: 0 | W48: 0 | X48: 0 | Y48: 0
B49: PROVINCIA RURAL | F49: 3 | G49: 0 | H49: 0 | I49: 0 | J49: 0 | K49: 3 | L49: 0 | M49: 0 | N49: 0 | O49: 0 | P49: 2 | Q49: 0 | R49: 0 | S49: 0 | T49: 0 | U49: 6.8 | V49: 0 | W49: 0 | X49: 0 | Y49: 0
B50: DEFAULT | F50: 0 | G50: 0 | H50: 0 | I50: 0 | J50: 0 | K50: 0 | L50: 0 | M50: 0 | N50: 0 | O50: 0 | P50: 0 | Q50: 0 | R50: 0 | S50: 0 | T50: 0 | U50: 0 | V50: 0 | W50: 0 | X50: 0 | Y50: 0
B51: DEFAULT | F51: 0 | G51: 0 | H51: 0 | I51: 0 | J51: 0 | K51: 0 | L51: 0 | M51: 0 | N51: 0 | O51: 0 | P51: 0 | Q51: 0 | R51: 0 | S51: 0 | T51: 0 | U51: 0 | V51: 0 | W51: 0 | X51: 0 | Y51: 0
B52: tiposEntornoSectores.3G | F52: sectores.3G | P52: maxPortadoras.3G
A54: Parámetros de Tráfico
B56: Factor de softhandover | F56: 0.3
B58: Factor de no uniformidad distribución de tráfico (MINUTOS A ERLANGS) | F58: 0.2
B61: Tasa tráfico voz (Kbps) | F61: 12.2
B63: Tasa tráfico voz Core (Kbps) | F63: 64
B65: Capacidad por porportadora
B67: Capacidad portadora equivalente voz (Mbps) | F67: =3.4 -> 3.4 | G67: capacidadPortadora.3G
B69: Capacidad máxima
B71: SERVICIO PORTADOR | G71: Tasa binaria | H71: Elementos de Canal Equivalentes | I71: Factor Tráfico Equivalente
B72: =idServicios.3G -> CS12 | G72: 12.2 | H72: 1 | I72: 0.12
B73: R99_UL | G73: 64 | H73: 4 | I73: 6.440071556
B74: R99_DL | G74: 2000 | H74: 4 | I74: 6.440071556
B75: HSUPA | G75: 324.6 | H75: 8 | I75: 2.571428571
B76: HSDPA | G76: 3520.193 | H76: 16 | I76: 1
G77: vozRate.3G
B78: OVERHEAD CANALES RADIO 3G | F78: 0.2
B81: Factores de Conversión a Mbps
B83: Voz 2G | C83: =vozRate.2G/60/1000 -> 0.0002033333333
B84: Datos 2G | C84: =8/3600 -> 0.002222222222
B85: SMS 2G | C85: =Parametros!F43*8/1000/3600 -> 3.333333333e-07
B86: MMS 2G | C86: =Parametros!F45*8/1000/3600 -> 9.408888889e-05
B89: Distribución Tráfico
B91: Utilizar Distribución nacional | C91: NO
B93: CAPACIDAD | C93: UNIDADES | D93: % DISTRIBUCIÓN
B94: =idServicios.3G -> CS12 | C94: MINUTOS | D94: 1
B95: R99_UL | C95: Kb | D95: 0.002056399425
B96: R99_DL | C96: Kb | D96: 0.03049165129
B97: HSUPA | C97: Kb | D97: 0.1553099442
B98: HSDPA | C98: Kb | D98: 0.8121420051
B99: capacidades.3G | E99: distribucionCapacidades.3G
A102: Costos Equipamiento
F105: MACRO | J105: DEFAULT1 | N105: DEFAULT2 | R105: DEFAULT3 | V105: DEFAULT4 | AA105: MACRO | AE105: DEFAULT1 | AI105: DEFAULT2 | AM105: DEFAULT3 | AQ105: DEFAULT4
B106: FABRICANTE | F106: EQUIPO | G106: EC | H106: PORTADORA ADICIONAL | I106: ACTUALIZACIÓN HSPA | J106: EQUIPO | K106: EC | L106: PORTADORA ADICIONAL | M106: ACTUALIZACIÓN HSPA | N106: EQUIPO | O106: EC | P106: PORTADORA ADICIONAL | Q106: ACTUALIZACIÓN HSPA | R106: EQUIPO | S106: EC | T106: PORTADORA ADICIONAL | U106: ACTUALIZACIÓN HSPA | V106: EQUIPO | W106: EC | X106: PORTADORA ADICIONAL | Y106: ACTUALIZACIÓN HSPA | Z106: UNIDADES | AA106: EQUIPO | AB106: EC | AC106: PORTADORA ADICIONAL | AD106: ACTUALIZACIÓN HSPA | AE106: EQUIPO | AF106: EC | AG106: PORTADORA ADICIONAL | AH106: ACTUALIZACIÓN HSPA | AI106: EQUIPO | AJ106: EC | AK106: PORTADORA ADICIONAL | AL106: ACTUALIZACIÓN HSPA | AM106: EQUIPO | AN106: EC | AO106: PORTADORA ADICIONAL | AP106: ACTUALIZACIÓN HSPA | AQ106: EQUIPO | AR106: EC | AS106: PORTADORA ADICIONAL | AT106: ACTUALIZACIÓN HSPA
B107: =fabricantes.3G -> DEFAULT | F107: 0 | G107: 0 | H107: 0 | I107: 0 | J107: 0 | K107: 0 | L107: 0 | M107: 0 | N107: 0 | O107: 0 | P107: 0 | Q107: 0 | R107: 0 | S107: 0 | T107: 0 | U107: 0 | V107: 0 | W107: 0 | X107: 0 | Y107: 0 | Z107: US$ | AA107: =IF(moneda=$Z107,1,IF(moneda="US$",1/tipoC,IF(moneda="S/.",tipoC,0)))*F107*(1+pc_planifica.3G) -> 0 | AB107: 0 | AC107: 0 | AD107: 0 | AE107: 0 | AF107: 0 | AG107: 0 | AH107: 0 | AI107: 0 | AJ107: 0 | AK107: =IF(moneda=$Z107,1,IF(moneda="US$",1/tipoC,IF(moneda="S/.",tipoC,0)))*P107*(1+pc_planifica.3G) -> 0 | AL107: 0 | AM107: 0 | AN107: 0 | AO107: 0 | AP107: 0 | AQ107: 0 | AR107: 0 | AS107: 0 | AT107: 0
B108: DEFAULT | F108: 0 | G108: 0 | H108: 0 | I108: 0 | J108: 0 | K108: 0 | L108: 0 | M108: 0 | N108: 0 | O108: 0 | P108: 0 | Q108: 0 | R108: 0 | S108: 0 | T108: 0 | U108: 0 | V108: 0 | W108: 0 | X108: 0 | Y108: 0 | Z108: US$ | AA108: 0 | AB108: 0 | AC108: 0 | AD108: 0 | AE108: 0 | AF108: 0 | AG108: 0 | AH108: 0 | AI108: 0 | AJ108: 0 | AK108: 0 | AL108: 0 | AM108: 0 | AN108: 0 | AO108: 0 | AP108: 0 | AQ108: 0 | AR108: 0 | AS108: 0 | AT108: 0
B109: DEFAULT | F109: 0 | G109: 0 | H109: 0 | I109: 0 | J109: 0 | K109: 0 | L109: 0 | M109: 0 | N109: 0 | O109: 0 | P109: 0 | Q109: 0 | R109: 0 | S109: 0 | T109: 0 | U109: 0 | V109: 0 | W109: 0 | X109: 0 | Y109: 0 | Z109: US$ | AA109: 0 | AB109: 0 | AC109: 0 | AD109: 0 | AE109: 0 | AF109: 0 | AG109: 0 | AH109: 0 | AI109: 0 | AJ109: 0 | AK109: 0 | AL109: 0 | AM109: 0 | AN109: 0 | AO109: 0 | AP109: 0 | AQ109: 0 | AR109: 0 | AS109: 0 | AT109: 0
B110: DEFAULT1 | F110: 0 | G110: 0 | H110: 0 | I110: 0 | J110: 0 | K110: 0 | L110: 0 | M110: 0 | N110: 0 | O110: 0 | P110: 0 | Q110: 0 | R110: 0 | S110: 0 | T110: 0 | U110: 0 | V110: 0 | W110: 0 | X110: 0 | Y110: 0 | Z110: US$ | AA110: 0 | AB110: 0 | AC110: 0 | AD110: 0 | AE110: 0 | AF110: 0 | AG110: 0 | AH110: 0 | AI110: 0 | AJ110: 0 | AK110: 0 | AL110: 0 | AM110: 0 | AN110: 0 | AO110: 0 | AP110: 0 | AQ110: 0 | AR110: 0 | AS110: 0 | AT110: 0
B111: DEFAULT2 | F111: 0 | G111: 0 | H111: 0 | I111: 0 | J111: 0 | K111: 0 | L111: 0 | M111: 0 | N111: 0 | O111: 0 | P111: 0 | Q111: 0 | R111: 0 | S111: 0 | T111: 0 | U111: 0 | V111: 0 | W111: 0 | X111: 0 | Y111: 0 | Z111: US$ | AA111: 0 | AB111: 0 | AC111: 0 | AD111: 0 | AE111: 0 | AF111: 0 | AG111: 0 | AH111: 0 | AI111: 0 | AJ111: 0 | AK111: 0 | AL111: 0 | AM111: 0 | AN111: 0 | AO111: 0 | AP111: 0 | AQ111: 0 | AR111: 0 | AS111: 0 | AT111: 0
B112: EQUIPO | F112: 50160 | G112: 28.15 | H112: 22860.59063 | I112: 0 | J112: 0 | K112: 0 | L112: 0 | M112: 0 | N112: 0 | O112: 0 | P112: 0 | Q112: 0 | R112: 0 | S112: 0 | T112: 0 | U112: 0 | V112: 0 | W112: 0 | X112: 0 | Y112: 0 | Z112: US$ | AA112: 50160 | AB112: 28.15 | AC112: 22860.59063 | AD112: 0 | AE112: 0 | AF112: 0 | AG112: 0 | AH112: 0 | AI112: 0 | AJ112: 0 | AK112: 0 | AL112: 0 | AM112: 0 | AN112: 0 | AO112: 0 | AP112: 0 | AQ112: 0 | AR112: 0 | AS112: 0 | AT112: 0
B114: Planificación | F114: 0 | G114: pc_planifica.3G
B116: Típico | C116: SI | D116: usaTipico.3G
B118: Modularidad EC | C118: 384 | D118: moduloEC
B120: Costos Comunes
B122: DESCRIPCIÓN | D122: CU | E122: UNIDAD | F122: ="COSTO ("&moneda&")" -> COSTO (US$)
B123: Annual Sw Fee | D123: 9916820.01 | E123: US$ | F123: =IF(moneda=E123,1,IF(moneda="US$",1/tipoC,IF(moneda="S/.",tipoC,0)))*D123 -> 9916820.01
F124: =SUM(F123:F123) -> 9916820.01
A126: RNC
B128: Criterios de Dimensionado
B130: CRITERIO | C130: DESCRIPCIÓN | D130: VALOR
B131: Tráfico CS12 | C131: Erlang en HC | D131: 4500 | E131: criterioRNC.trafico
B134: Factor de utilización RNC | E134: 0.8 | F134: fUtilizacionRNC.3G
B136: Costos BSC
B138: COMPONENTE | C138: COSTO | D138: UNDADES | E138: ="COSTO ("&moneda&")" -> COSTO (US$)
B139: HW | C139: 1500000 | D139: S/. | E139: =IF(moneda=D139,1,IF(moneda="US$",1/tipoC,IF(moneda="S/.",tipoC,0)))*C139*(1+pc_planifica.2G) -> 550981.0524
B140: SW | C140: 3500000 | D140: S/. | E140: =IF(moneda=D140,1,IF(moneda="US$",1/tipoC,IF(moneda="S/.",tipoC,0)))*C140*(1+pc_planifica.2G) -> 1285622.456
B141: SERVICIOS | C141: 1000000 | D141: S/. | E141: =IF(moneda=D141,1,IF(moneda="US$",1/tipoC,IF(moneda="S/.",tipoC,0)))*C141*(1+pc_planifica.2G) -> 367320.7016
E142: =SUM(E139:E141) -> 2203924.209
B143: Comprobar que se incluye la instalación
A145: Enlaces Nodo B-RNC
B147: Capacidad E1 Nodo B-RNC (Interfaz Iub) | E147: 0.8 | F147: MbpsporE1InterfazIub.3G
B149: Factor Utilización E1 Nodo B-RNC (Interfaz Iub) | E149: 1 | F149: fUtilE1Iub.3G
A152: Enlaces Nodo B-MSC
B154: Capacidad E1 RNC-MSC (Interfaz IuCs) | E154: 2.048 | F154: capE1interfazIuCs.3G
B156: Factor Utilización E1 Nodo B-MSC (Interfaz IuCs) | E156: 0.8 | F156: fUtilE1IcCs.3G

Sheet RNC
A1: <-- EDICIÓN | B1: RNC
A3: Listado RNC
G5: GRADOS | I5: MINUTOS | K5: SEGUNDOS
A6: ID_RNC | B6: DEPARTAMENTO | C6: PROVINCIA | D6: DISTRITO | E6: COD_RNC | F6: REGIÓN | G6: GLON. | H6: GLAT. | I6: MLON. | J6: MLAT. | K6: SLON. | L6: SLAT.
A7: 1 | B7: LIMA | E7: RNC01 | F7: LIMA | G7: 76 | H7: 8 | I7: 5 | J7: 51 | K7: 47.55215076 | L7: 42.42224433
A8: 2 | B8: LIMA | E8: RNC02 | F8: LIMA | G8: 77 | H8: 10 | I8: 21 | J8: 10 | K8: 46.82334716 | L8: 17.22248089
A9: 3 | B9: LIMA | E9: RNC03 | F9: LIMA | G9: 78 | H9: 9 | I9: 13 | J9: 13 | K9: 2.209917812 | L9: 43.26291381
A10: 4 | B10: LIMA | E10: RNC04 | F10: LIMA | G10: 73 | H10: 13 | I10: 49 | J10: 26 | K10: 27.72731691 | L10: 42.336444
A11: 5 | B11: LIMA | E11: RNC05 | F11: LIMA | G11: 73 | H11: 11 | I11: 11 | J11: 29 | K11: 17.8565599 | L11: 51.08435129
A12: 6 | B12: LIMA | E12: RNC06 | F12: LIMA | G12: 71 | H12: 13 | I12: 56 | J12: 0 | K12: 28.74631741 | L12: 53.07103128
A13: 7 | B13: LA LIBERTAD | E13: RNC07 | F13: NORTE | G13: 72 | H13: 11 | I13: 4 | J13: 21 | K13: 9.434392761 | L13: 54.19089713
A14: 8 | B14: LIMA | E14: RNC08 | F14: LIMA | G14: 76 | H14: 12 | I14: 51 | J14: 35 | K14: 31.12024261 | L14: 23.40098839
A15: 9 | B15: LIMA | E15: RNC09 | F15: LIMA | G15: 77 | H15: 15 | I15: 4 | J15: 35 | K15: 51.00907942 | L15: 34.47427797
A16: 10 | B16: LIMA | E16: RNC10 | F16: LIMA | G16: 76 | H16: 16 | I16: 46 | J16: 26 | K16: 10.95414512 | L16: 49.1904992
A17: 11 | B17: LA LIBERTAD | E17: RNC11 | F17: NORTE | G17: 78 | H17: 13 | I17: 59 | J17: 25 | K17: 15.0411525 | L17: 10.99494511
A18: 12 | B18: LIMA | E18: RNC12 | F18: LIMA | G18: 78 | H18: 13 | I18: 34 | J18: 17 | K18: 29.46388092 | L18: 49.47281905
A19: 13 | B19: LA LIBERTAD | E19: RNC13 | F19: NORTE | G19: 72 | H19: 12 | I19: 21 | J19: 55 | K19: 23.9331321 | L19: 44.48703347
A20: 14 | B20: LIMA | E20: RNC14 | F20: LIMA | G20: 73 | H20: 8 | I20: 43 | J20: 57 | K20: 57.82194938 | L20: 23.79835074
A21: 15 | B21: AREQUIPA | E21: RNC15 | F21: SUR | G21: 76 | H21: 15 | I21: 23 | J21: 18 | K21: 56.49308682 | L21: 50.10675216
A22: 16 | B22: LIMA | E22: RNC16 | F22: LIMA | G22: 72 | H22: 8 | I22: 39 | J22: 33 | K22: 48.99288782 | L22: 43.92738048
A23: 17 | B23: LIMA | E23: RNC17 | F23: LIMA | G23: 76 | H23: 16 | I23: 46 | J23: 29 | K23: 53.57280021 | L23: 48.93032275
A24: 18 | B24: LIMA | E24: RNC18 | F24: LIMA | G24: 73 | H24: 9 | I24: 23 | J24: 4 | K24: 11.98548102 | L24: 12.13836494
A25: 19 | B25: LIMA | E25: RNC19 | F25: LIMA | G25: 71 | H25: 14 | I25: 51 | J25: 48 | K25: 33.42255447 | L25: 45.65000723
A26: 20 | B26: LIMA | E26: RNC20 | F26: LIMA | G26: 73 | H26: 10 | I26: 3 | J26: 9 | K26: 29.80149082 | L26: 24.41878142
A27: 21 | B27: LIMA | E27: RNC21 | F27: LIMA | G27: 75 | H27: 14 | I27: 53 | J27: 40 | K27: 57.95260369 | L27: 15.83328142
A28: 22 | B28: LIMA | E28: RNC22 | F28: LIMA | G28: 78 | H28: 14 | I28: 15 | J28: 23 | K28: 47.80802619 | L28: 13.88535741
A29: 23 | B29: LIMA | E29: RNC23 | F29: LIMA | G29: 76 | H29: 15 | I29: 42 | J29: 35 | K29: 34.78542906 | L29: 33.21804345
A30: 24 | B30: LIMA | E30: RNC24 | F30: LIMA | G30: 73 | H30: 15 | I30: 11 | J30: 47 | K30: 3.195671585 | L30: 14.81197968
A31: 25 | B31: LIMA | E31: RNC25 | F31: LIMA | G31: 77 | H31: 10 | I31: 19 | J31: 46 | K31: 27.55447404 | L31: 47.78699869
A32: 26 | B32: LIMA | E32: RNC26 | F32: LIMA | G32: 73 | H32: 9 | I32: 11 | J32: 52 | K32: 56.30426888 | L32: 32.21140222
A33: 27 | B33: LIMA | E33: RNC27 | F33: LIMA | G33: 76 | H33: 12 | I33: 53 | J33: 28 | K33: 37.35661441 | L33: 43.90699588
A34: 28 | B34: LA LIBERTAD | E34: RNC28 | F34: NORTE | G34: 77 | H34: 10 | I34: 17 | J34: 16 | K34: 42.35491252 | L34: 21.98620923
A35: 29 | B35: LIMA | E35: RNC29 | F35: LIMA | G35: 75 | H35: 14 | I35: 57 | J35: 22 | K35: 15.29823375 | L35: 34.11772265
A36: 30 | B36: LIMA | E36: RNC30 | F36: LIMA | G36: 71 | H36: 11 | I36: 1 | J36: 27 | K36: 26.84267705 | L36: 17.53547051
A37: 31 | B37: AREQUIPA | E37: RNC31 | F37: SUR | G37: 77 | H37: 15 | I37: 1 | J37: 2 | K37: 8.400614003 | L37: 41.30852361
A38: 32 | B38: LIMA | E38: RNC32 | F38: LIMA | G38: 72 | H38: 12 | I38: 26 | J38: 52 | K38: 53.4953178 | L38: 35.52402284
A39: 33 | B39: LIMA | E39: RNC33 | F39: LIMA | G39: 71 | H39: 8 | I39: 2 | J39: 36 | K39: 1.578357384 | L39: 24.43733614
A40: 34 | B40: LIMA | E40: RNC34 | F40: LIMA | G40: 75 | H40: 8 | I40: 28 | J40: 58 | K40: 29.91055258 | L40: 46.35710079
A41: 35 | B41: LIMA | E41: RNC35 | F41: LIMA | G41: 78 | H41: 11 | I41: 53 | J41: 46 | K41: 45.30714522 | L41: 14.27807105
A42: 36 | B42: LIMA | E42: RNC36 | F42: LIMA | G42: 78 | H42: 15 | I42: 39 | J42: 49 | K42: 1.532353229 | L42: 52.74163944
A43: 37 | B43: LIMA | E43: RNC37 | F43: LIMA | G43: 74 | H43: 10 | I43: 28 | J43: 41 | K43: 6.855015364 | L43: 22.49980171
A44: 38 | B44: LIMA | E44: RNC38 | F44: LIMA | G44: 74 | H44: 9 | I44: 19 | J44: 25 | K44: 10.44596316 | L44: 30.15806667
A45: 39 | B45: LIMA | E45: RNC39 | F45: LIMA | G45: 77 | H45: 11 | I45: 0 | J45: 59 | K45: 49.58472597 | L45: 12.0886941
A46: 30 | B46: LIMA | E46: RNC40 | F46: LIMA | G46: 72 | H46: 16 | I46: 42 | J46: 1 | K46: 43.00791807 | L46: 3.806668345
A47: 41 | B47: AREQUIPA | E47: RNC41 | F47: SUR | G47: 72 | H47: 16 | I47: 21 | J47: 57 | K47: 29.04613888 | L47: 43.59880893
A48: 42 | B48: LIMA | E48: RNC42 | F48: LIMA | G48: 77 | H48: 10 | I48: 21 | J48: 8 | K48: 58.86511719 | L48: 34.92114028
A49: 43 | B49: AREQUIPA | E49: RNC43 | F49: SUR | G49: 75 | H49: 13 | I49: 43 | J49: 16 | K49: 28.16568778 | L49: 58.37173027
A50: 44 | B50: LIMA | E50: RNC44 | F50: LIMA | G50: 72 | H50: 8 | I50: 33 | J50: 30 | K50: 20.35182432 | L50: 22.22811022

Sheet BSC
A1: <-- EDICIÓN | B1: BSC
A3: Listado BSC
G5: GRADOS | I5: MINUTOS | K5: SEGUNDOS
A6: ID_BSC | B6: DEPARTAMENTO | C6: PROVINCIA | D6: DISTRITO | E6: COD_BSC | F6: REGIÓN | G6: GLON. | H6: GLAT. | I6: MLON. | J6: MLAT. | K6: SLON. | L6: SLAT.
A7: 1 | B7: LIMA | E7: BSC01 | F7: LIMA | G7: 78 | H7: 9 | I7: 31 | J7: 37 | K7: 3.503597847 | L7: 18.201861
A8: 2 | B8: AREQUIPA | E8: BSC02 | F8: SUR | G8: 78 | H8: 8 | I8: 10 | J8: 48 | K8: 28.3115669 | L8: 6.96983066
A9: 3 | B9: AREQUIPA | E9: BSC03 | F9: SUR | G9: 79 | H9: 9 | I9: 59 | J9: 18 | K9: 46.72472415 | L9: 27.49098427
A10: 4 | B10: AREQUIPA | E10: BSC04 | F10: SUR | G10: 78 | H10: 8 | I10: 24 | J10: 17 | K10: 7.538596776 | L10: 51.12719331
A11: 5 | B11: LA LIBERTAD | E11: BSC05 | F11: NORTE | G11: 77 | H11: 16 | I11: 7 | J11: 38 | K11: 27.2878405 | L11: 23.85139271
A12: 6 | B12: LA LIBERTAD | E12: BSC06 | F12: NORTE | G12: 79 | H12: 13 | I12: 54 | J12: 52 | K12: 25.7625448 | L12: 14.86445867
A13: 7 | B13: LIMA | E13: BSC07 | F13: LIMA | G13: 77 | H13: 13 | I13: 53 | J13: 31 | K13: 0.1061766534 | L13: 27.08217718
A14: 8 | B14: LIMA | E14: BSC08 | F14: LIMA | G14: 77 | H14: 16 | I14: 12 | J14: 0 | K14: 51.75926647 | L14: 37.32478735
A15: 9 | B15: AREQUIPA | E15: BSC09 | F15: SUR | G15: 78 | H15: 14 | I15: 13 | J15: 12 | K15: 12.24391473 | L15: 9.858936143
A16: 10 | B16: LIMA | E16: BSC10 | F16: LIMA | G16: 77 | H16: 13 | I16: 10 | J16: 47 | K16: 58.60249016 | L16: 11.35774636
A17: 11 | B17: LIMA | E17: BSC11 | F17: LIMA | G17: 77 | H17: 10 | I17: 47 | J17: 57 | K17: 57.35552684 | L17: 11.81120821
A18: 12 | B18: AREQUIPA | E18: BSC12 | F18: SUR | G18: 79 | H18: 13 | I18: 49 | J18: 30 | K18: 7.620776967 | L18: 41.82635206
A19: 13 | B19: AREQUIPA | E19: BSC13 | F19: SUR | G19: 79 | H19: 10 | I19: 30 | J19: 41 | K19: 50.03484439 | L19: 18.68605319
A20: 14 | B20: AREQUIPA | E20: BSC14 | F20: SUR | G20: 79 | H20: 13 | I20: 21 | J20: 57 | K20: 2.112898286 | L20: 26.70543845
A21: 15 | B21: LIMA | E21: BSC15 | F21: LIMA | G21: 79 | H21: 15 | I21: 28 | J21: 6 | K21: 28.60477912 | L21: 23.48878891
A22: 16 | B22: AREQUIPA | E22: BSC16 | F22: SUR | G22: 78 | H22: 15 | I22: 48 | J22: 11 | K22: 48.86779284 | L22: 51.02582158
A23: 17 | B23: LA LIBERTAD | E23: BSC17 | F23: NORTE | G23: 77 | H23: 9 | I23: 33 | J23: 39 | K23: 7.583929207 | L23: 9.857417349
A24: 18 | B24: LA LIBERTAD | E24: BSC18 | F24: NORTE | G24: 79 | H24: 8 | I24: 10 | J24: 3 | K24: 48.16238297 | L24: 44.54632662
A25: 19 | B25: LIMA | E25: BSC19 | F25: LIMA | G25: 78 | H25: 8 | I25: 21 | J25: 6 | K25: 0.3962289825 | L25: 12.87715584
A26: 20 | B26: AREQUIPA | E26: BSC20 | F26: SUR | G26: 77 | H26: 8 | I26: 17 | J26: 3 | K26: 1.926056082 | L26: 52.7768145
A27: 21 | B27: LIMA | E27: BSC21 | F27: LIMA | G27: 78 | H27: 16 | I27: 4 | J27: 25 | K27: 18.58391857 | L27: 30.59414013
A28: 22 | B28: LIMA | E28: BSC22 | F28: LIMA | G28: 77 | H28: 16 | I28: 57 | J28: 25 | K28: 26.77557576 | L28: 29.2706872
A29: 23 | B29: LIMA | E29: BSC23 | F29: LIMA | G29: 78 | H29: 16 | I29: 23 | J29: 52 | K29: 59.26282781 | L29: 32.86089113
A30: 24 | B30: AREQUIPA | E30: BSC24 | F30: SUR | G30: 79 | H30: 8 | I30: 58 | J30: 33 | K30: 41.84072808 | L30: 26.64197366
A31: 25 | B31: AREQUIPA | E31: BSC25 | F31: SUR | G31: 78 | H31: 11 | I31: 3 | J31: 30 | K31: 40.60127077 | L31: 40.0204158
A32: 26 | B32: LIMA | E32: BSC26 | F32: LIMA | G32: 79 | H32: 13 | I32: 60 | J32: 59 | K32: 50.19877652 | L32: 35.77760966
A33: 27 | B33: LIMA | E33: BSC27 | F33: LIMA | G33: 77 | H33: 10 | I33: 30 | J33: 35 | K33: 8.245478323 | L33: 16.68800126
A34: 28 | B34: LIMA | E34: BSC28 | F34: LIMA | G34: 79 | H34: 15 | I34: 47 | J34: 43 | K34: 44.36041733 | L34: 47.1251795
A35: 29 | B35: AREQUIPA | E35: BSC29 | F35: SUR | G35: 79 | H35: 12 | I35: 60 | J35: 16 | K35: 47.30634427 | L35: 27.24293598
A36: 30 | B36: LIMA | E36: BSC30 | F36: LIMA | G36: 78 | H36: 15 | I36: 27 | J36: 58 | K36: 57.09262426 | L36: 4.864427639
A37: 31 | B37: AREQUIPA | E37: BSC31 | F37: SUR | G37: 78 | H37: 13 | I37: 20 | J37: 0 | K37: 0.7574262592 | L37: 15.45530713
A38: 32 | B38: LIMA | E38: BSC32 | F38: LIMA | G38: 79 | H38: 13 | I38: 6 | J38: 2 | K38: 35.66457171 | L38: 1.278673504
A39: 33 | B39: LIMA | E39: BSC33 | F39: LIMA | G39: 79 | H39: 8 | I39: 12 | J39: 1 | K39: 8.409346884 | L39: 26.23661532
A40: 34 | B40: LIMA | E40: BSC34 | F40: LIMA | G40: 78 | H40: 8 | I40: 6 | J40: 24 | K40: 1.726045163 | L40: 43.12093642
A41: 35 | B41: AREQUIPA | E41: BSC35 | F41: SUR | G41: 77 | H41: 16 | I41: 56 | J41: 18 | K41: 54.71924129 | L41: 14.71103321
A42: 36 | B42: LIMA | E42: BSC36 | F42: LIMA | G42: 77 | H42: 15 | I42: 28 | J42: 47 | K42: 6.726829108 | L42: 58.49932151
A43: 37 | B43: LIMA | E43: BSC37 | F43: LIMA | G43: 77 | H43: 12 | I43: 35 | J43: 24 | K43: 17.83893357 | L43: 8.244804966
A44: 38 | B44: LA LIBERTAD | E44: BSC38 | F44: NORTE | G44: 77 | H44: 8 | I44: 49 | J44: 35 | K44: 32.51159351 | L44: 6.83876409
A45: 39 | B45: LA LIBERTAD | E45: BSC39 | F45: NORTE | G45: 79 | H45: 14 | I45: 14 | J45: 40 | K45: 33.72837471 | L45: 15.74604251
A46: 40 | B46: AREQUIPA | E46: BSC40 | F46: SUR | G46: 79 | H46: 11 | I46: 42 | J46: 47 | K46: 53.95964766 | L46: 36.32357268
A47: 41 | B47: AREQUIPA | E47: BSC41 | F47: SUR | G47: 77 | H47: 15 | I47: 4 | J47: 35 | K47: 44.20637128 | L47: 12.59862592
A48: 42 | B48: LIMA | E48: BSC42 | F48: LIMA | G48: 77 | H48: 10 | I48: 0 | J48: 7 | K48: 0.9350110004 | L48: 25.28592536
A49: 43 | B49: LIMA | E49: BSC43 | F49: LIMA | G49: 77 | H49: 14 | I49: 25 | J49: 35 | K49: 50.54252327 | L49: 1.431743031
A50: 44 | B50: AREQUIPA | E50: BSC44 | F50: SUR | G50: 77 | H50: 10 | I50: 40 | J50: 60 | K50: 49.49926896 | L50: 5.726433502
A51: 45 | B51: LIMA | E51: BSC45 | F51: LIMA | G51: 78 | H51: 13 | I51: 50 | J51: 10 | K51: 23.47866435 | L51: 27.09449333
A52: 46 | B52: AREQUIPA | E52: BSC46 | F52: SUR | G52: 78 | H52: 9 | I52: 48 | J52: 20 | K52: 12.71959202 | L52: 21.66283362
A53: 47 | B53: LA LIBERTAD | E53: BSC47 | F53: NORTE | G53: 77 | H53: 14 | I53: 15 | J53: 27 | K53: 3.338818631 | L53: 30.94585027
A54: 48 | B54: LIMA | E54: BSC48 | F54: LIMA | G54: 79 | H54: 15 | I54: 53 | J54: 11 | K54: 37.6059384 | L54: 34.43046708
A55: 49 | B55: LIMA | E55: BSC49 | F55: LIMA | G55: 79 | H55: 13 | I55: 37 | J55: 43 | K55: 46.8314793 | L55: 25.00093836
A56: 50 | B56: AREQUIPA | E56: BSC50 | F56: SUR | G56: 77 | H56: 11 | I56: 9 | J56: 28 | K56: 1.313525685 | L56: 47.43454732
A57: 51 | B57: AREQUIPA | E57: BSC51 | F57: SUR | G57: 78 | H57: 15 | I57: 52 | J57: 16 | K57: 11.41589127 | L57: 24.98744795
A58: 52 | B58: LA LIBERTAD | E58: BSC52 | F58: NORTE | G58: 79 | H58: 14 | I58: 32 | J58: 49 | K58: 8.178809163 | L58: 40.623262
A59: 53 | B59: AREQUIPA | E59: BSC53 | F59: SUR | G59: 77 | H59: 15 | I59: 60 | J59: 6 | K59: 13.25356608 | L59: 20.24350152
A60: 54 | B60: LIMA | E60: BSC54 | F60: LIMA | G60: 79 | H60: 11 | I60: 48 | J60: 33 | K60: 50.23562348 | L60: 39.32548409
A61: 55 | B61: LA LIBERTAD | E61: BSC55 | F61: NORTE | G61: 78 | H61: 11 | I61: 36 | J61: 37 | K61: 36.38458602 | L61: 9.383836826
A62: 56 | B62: LIMA | E62: BSC56 | F62: LIMA | G62: 77 | H62: 8 | I62: 3 | J62: 45 | K62: 18.01677538 | L62: 55.96505078
A63: 57 | B63: LA LIBERTAD | E63: BSC57 | F63: NORTE | G63: 78 | H63: 12 | I63: 8 | J63: 6 | K63: 53.5398946 | L63: 53.80105482
A64: 58 | B64: AREQUIPA | E64: BSC58 | F64: SUR | G64: 78 | H64: 8 | I64: 14 | J64: 43 | K64: 30.40902042 | L64: 4.76747797
A65: 59 | B65: LA LIBERTAD | E65: BSC59 | F65: NORTE | G65: 77 | H65: 10 | I65: 36 | J65: 16 | K65: 18.87301192 | L65: 57.99938943
A66: 60 | B66: LIMA | E66: BSC60 | F66: LIMA | G66: 77 | H66: 12 | I66: 5 | J66: 29 | K66: 27.07286159 | L66: 34.0182478
A67: 61 | B67: LIMA | E67: BSC61 | F67: LIMA | G67: 77 | H67: 9 | I67: 34 | J67: 0 | K67: 27.82900023 | L67: 28.19433632
A68: 62 | B68: LIMA | E68: BSC62 | F68: LIMA | G68: 78 | H68: 14 | I68: 18 | J68: 39 | K68: 13.16437157 | L68: 16.04930039
A69: 63 | B69: AREQUIPA | E69: BSC63 | F69: SUR | G69: 77 | H69: 11 | I69: 21 | J69: 50 | K69: 43.82187421 | L69: 10.54193806
A70: 64 | B70: AREQUIPA | E70: BSC64 | F70: SUR | G70: 79 | H70: 9 | I70: 58 | J70: 26 | K70: 59.72525336 | L70: 29.46430758
A71: 65 | B71: AREQUIPA | E71: BSC65 | F71: SUR | G71: 77 | H71: 15 | I71: 37 | J71: 32 | K71: 38.00274924 | L71: 21.78502768

Sheet Parámetros Terrenos
A1: <-- EDICIÓN | B1: PARÁMETROS Terrenos
A3: TERRENOS
B5: TIPO TERRENO | C5: DISTRITO / UBICACIÓN | D5: INVERSIÓN/m2 | E5: UNIDAD | F5: ="COSTO ("&moneda&")" -> COSTO (US$)
B6: MI | C6: LA MOLINA, MIRAFLORES, SAN BORJA, SAN ISIDRO, SANTIAGO DE SURCO,WASHINGTON | D6: 1800 | E6: US$ | F6: =IF(moneda=E6,1,IF(moneda="US$",1/tipoC,IF(moneda="S/.",tipoC,0)))*D6 -> 1800
B7: MII | C7: LIMA, BARRANCO, BREÑA, CERCADO DE LIMA, CHORRILLOS, JESUS MARIA, LINCE, MAGDALENA, PUEBLO LIBRE, RIMAC, SAN MIGUEL, SURQUILLO,ATE, COMAS, EL AGUSTINO, LA VICTORIA, SAN JUAN DE LURIGANCHO, SAN LUIS, SAN MARTIN DE PORRES, VILLA MARIA DEL TRIUNFO, LOS OLIVOS, CALLAO, VENTANILLA, HUACHIPA, VILLA EL SALVADOR | D7: 636.0564056 | E7: US$ | F7: =IF(moneda=E7,1,IF(moneda="US$",1/tipoC,IF(moneda="S/.",tipoC,0)))*D7 -> 636.0564056
B8: PI | C8: Zonas urbanas de capitales de Departamento:Tumbes, Piura, Chiclayo, Trujillo, Chimbote, Ica , Arequipa, Moquegua, Tacna, Puno, Cusco, Apurímac, Ayacucho, Huancavelica, Huancayo, Pasco, Huanuco, San Martin, Amazonas, Cajamarca, Iquitos, Ucayali, Madre de Dios | D8: 499.2070382 | E8: US$ | F8: =IF(moneda=E8,1,IF(moneda="US$",1/tipoC,IF(moneda="S/.",tipoC,0)))*D8 -> 499.2070382
B9: PII | C9: El resto de provincias , Lunahuana | D9: 499.2070382 | E9: US$ | F9: =IF(moneda=E9,1,IF(moneda="US$",1/tipoC,IF(moneda="S/.",tipoC,0)))*D9 -> 499.2070382
B10: CER | C10: Cerros Lima y Provincia | D10: 193.7796557 | E10: US$ | F10: =IF(moneda=E10,1,IF(moneda="US$",1/tipoC,IF(moneda="S/.",tipoC,0)))*D10 -> 193.7796557
B13: ID_TIPO | C13: m2
B14: =listaTiposEmplazamiento -> GF | C14: 148
B15: HTBS | C15: 0
B16: RT_V | C16: 65
B17: RT_M | C17: 70
B18: PI | C18: 0
B19: FE | C19: 0
B21: Espacio medio en sala (m2) | C21: 45

Sheet Parametros Backhaul
A1: <-- EDICIÓN | B1: PARÁMETROS BACKHAUL
A3: BACKHAUL
B5: Umbral E1 pto a pto | F5: 1 | G5: umbralBackhaulETH
B8: Equipos agregación
B10: Emplazamientos por GWT | C10: 1 | D10: emplxGWT
B11: GWT por GWD | C11: 12 | D11: GWTxGWD
B12: GWD por GWC | C12: 14 | D12: GWDxGWC
B14: Utilizar Distancias medias | C14: NO
B15: GWT-GWD | C15: 1
B16: GWD-GWC | C16: 1
B17: GWC-Controlador | C17: 1
B19: Redundancia GWD-GWC | C19: 1 | D19: redundaGWDGWC | E19: 1 indica topología en anillo
B21: EQUIPO | C21: COSTO | D21: UNIDADES | E21: ="COSTO ("&moneda&")" -> COSTO (US$)
B22: GWT | C22: 180000 | D22: S/. | E22: =IF(moneda=D22,1,IF(moneda="US$",1/tipoC,IF(moneda="S/.",tipoC,0)))*C22 -> 66117.72628
B23: GWD | C23: 900000 | D23: S/. | E23: =IF(moneda=D23,1,IF(moneda="US$",1/tipoC,IF(moneda="S/.",tipoC,0)))*C23 -> 330588.6314
B24: GWC | C24: 1100000 | D24: S/. | E24: =IF(moneda=D24,1,IF(moneda="US$",1/tipoC,IF(moneda="S/.",tipoC,0)))*C24 -> 404052.7717
B27: Red METRO
B29: Estimación Red metro servicio Voz | C29: 0 | D29: US$ | E29: =IF(moneda=D29,1,IF(moneda="US$",1/tipoC,IF(moneda="S/.",tipoC,0)))*C29 -> 0

Sheet Parametros TX
A1: <-- EDICIÓN | B1: TX
B3: Arrendamiento de circuitos
B5: Costo implementación/m | D5: =51.5*100 -> 5150 | E5: US$ | F5: =IF(moneda=E5,1,IF(moneda="US$",1/tipoC,IF(moneda="S/.",tipoC,0)))*D5 -> 5150
C9: COSTO MENSUAL | G9: ="COSTO MENSUAL ("&moneda&")" -> COSTO MENSUAL (US$)
C10: LDN | D10: LOCAL LIMA | E10: LOCAL | F10: UNIDADES | G10: LDN | H10: LOCAL LIMA | I10: LOCAL
B11: CAPACIDAD (Mbps)
B12: 2 | C12: 1616 | D12: 511 | E12: 817 | F12: US$ | G12: =IF(moneda=F12,1,IF(moneda="US$",1/tipoC,IF(moneda="S/.",tipoC,0)))*C12*$D$24 -> 379.1491924 | H12: =IF(moneda=F12,1,IF(moneda="US$",1/tipoC,IF(moneda="S/.",tipoC,0)))*D12*$D$24 -> 119.8918548 | I12: =IF(moneda=F12,1,IF(moneda="US$",1/tipoC,IF(moneda="S/.",tipoC,0)))*E12*$D$24 -> 191.6861944
B13: 10 | C13: 3106 | D13: 1375 | E13: 2200 | F13: US$ | G13: =IF(moneda=F13,1,IF(moneda="US$",1/tipoC,IF(moneda="S/.",tipoC,0)))*C13*$D$24 -> 728.7360097 | H13: =IF(moneda=F13,1,IF(moneda="US$",1/tipoC,IF(moneda="S/.",tipoC,0)))*D13*$D$24 -> 322.6052844 | I13: =IF(moneda=F13,1,IF(moneda="US$",1/tipoC,IF(moneda="S/.",tipoC,0)))*E13*$D$24 -> 516.168455
B14: 100 | C14: 10312 | D14: 3241 | E14: 5186 | F14: US$ | G14: =IF(moneda=F14,1,IF(moneda="US$",1/tipoC,IF(moneda="S/.",tipoC,0)))*C14*$D$24 -> 2419.422322 | H14: =IF(moneda=F14,1,IF(moneda="US$",1/tipoC,IF(moneda="S/.",tipoC,0)))*D14*$D$24 -> 760.409983 | I14: =IF(moneda=F14,1,IF(moneda="US$",1/tipoC,IF(moneda="S/.",tipoC,0)))*E14*$D$24 -> 1216.749822
B15: 155 | C15: 13370 | D15: 4007 | E15: 6411 | F15: US$ | G15: =IF(moneda=F15,1,IF(moneda="US$",1/tipoC,IF(moneda="S/.",tipoC,0)))*C15*$D$24 -> 3136.896474 | H15: =IF(moneda=F15,1,IF(moneda="US$",1/tipoC,IF(moneda="S/.",tipoC,0)))*D15*$D$24 -> 940.1304542 | I15: =IF(moneda=F15,1,IF(moneda="US$",1/tipoC,IF(moneda="S/.",tipoC,0)))*E15*$D$24 -> 1504.161802
B16: 622 | C16: 66042 | D16: 21032 | E16: 33651 | F16: S/. | G16: =IF(moneda=F16,1,IF(moneda="US$",1/tipoC,IF(moneda="S/.",tipoC,0)))*C16*(1-E20) -> 19406.87502 | H16: =IF(moneda=F16,1,IF(moneda="US$",1/tipoC,IF(moneda="S/.",tipoC,0)))*D16*(1-E20) -> 6180.391197 | I16: =IF(moneda=F16,1,IF(moneda="US$",1/tipoC,IF(moneda="S/.",tipoC,0)))*E16*(1-E20) -> 9888.567143
B17: 2500 | C17: 102314 | D17: 36300 | E17: 58080 | F17: S/. | G17: =IF(moneda=F17,1,IF(moneda="US$",1/tipoC,IF(moneda="S/.",tipoC,0)))*C17*(1-E20) -> 30065.64021 | H17: =IF(moneda=F17,1,IF(moneda="US$",1/tipoC,IF(moneda="S/.",tipoC,0)))*D17*(1-E20) -> 10666.99317 | I17: =IF(moneda=F17,1,IF(moneda="US$",1/tipoC,IF(moneda="S/.",tipoC,0)))*E17*(1-E20) -> 17067.18908
B18: 10000 | C18: 202735 | D18: 68750 | E18: 110000 | F18: S/. | G18: =IF(moneda=F18,1,IF(moneda="US$",1/tipoC,IF(moneda="S/.",tipoC,0)))*C18*(1-E20) -> 59575.00995 | H18: =IF(moneda=F18,1,IF(moneda="US$",1/tipoC,IF(moneda="S/.",tipoC,0)))*D18*(1-E20) -> 20202.63859 | I18: =IF(moneda=F18,1,IF(moneda="US$",1/tipoC,IF(moneda="S/.",tipoC,0)))*E18*(1-E20) -> 32324.22174
B20: Descuento por tiempo de contratación | D20: 0.395 | E20: 0.2
B21: Descuento por concentración | D21: 0.395
B22: Descuento proyecto | D22: 0
B23: Descuento facturación | D23: 0.359
B24: Descuento promedio TM | D24: =(1-D20)*(1-D21)*(1-D22)*(1-D23) -> 0.234622025
B26: TX Radio
B28: Factor de no linealidad radio. | D28: 1.12
B30: NOMBRE_EQUIPO | C30: CAPACIDAD E1 | D30: COSTO | E30: UNIDADES | F30: REPETIDOR (Km) | G30: ="COSTO ("&moneda&")" -> COSTO (US$)
B31: Radio Híbrido Split (1+1) | C31: 63 | D31: 13160.37736 | E31: US$ | F31: 15 | G31: =IF(moneda=E31,1,IF(moneda="US$",1/tipoC,IF(moneda="S/.",tipoC,0)))*D31 -> 13160.37736
B34: TX Satelite
E36: UNIDADES
B37: Número de MHz por Mbps | D37: 1
B38: Compresión | D38: 1
B39: Costo Anual de alquiler de 1MHz | D39: 0 | E39: US$
B40: ="Costo Anual de alquiler de 1MHz ("&moneda&")" -> Costo Anual de alquiler de 1MHz (US$) | D40: =IF(moneda=E39,1,IF(moneda="US$",1/tipoC,IF(moneda="S/.",tipoC,0)))*D39 -> 0
B42: NOMBRE_EQUIPO | C42: COSTO | D42: UNIDADES | E42: ="COSTO ("&moneda&")" -> COSTO (US$)
B43: Antena | C43: 8641.509434 | D43: US$ | E43: =IF(moneda=D43,1,IF(moneda="US$",1/tipoC,IF(moneda="S/.",tipoC,0)))*C43 -> 8641.509434
B44: EquipoTx | C44: 46018.86792 | D44: US$ | E44: =IF(moneda=D44,1,IF(moneda="US$",1/tipoC,IF(moneda="S/.",tipoC,0)))*C44 -> 46018.86792

Sheet MSC
A1: <-- EDICIÓN | B1: MSC
A3: LISTADO MSC
H5: GRADOS | J5: MINUTOS | L5: SEGUNDOS
A6: ID_MSC | B6: DEPARTAMENTO | C6: PROVINCIA | D6: DISTRITO | E6: COD_MSC | F6: TIPO | G6: REGIÓN | H6: GLON. | I6: GLAT. | J6: MLON. | K6: MLAT. | L6: SLON. | M6: SLAT.
A7: 1 | B7: AREQUIPA | E7: MGW1 | F7: MGW | G7: SUR | H7: 75 | I7: 11 | J7: 60 | K7: 7 | L7: 46.7396554 | M7: 24.80304114
A8: 2 | B8: TRUJILLO | E8: MGW2 | F8: MGW | G8: NORTE | H8: 75 | I8: 10 | J8: 31 | K8: 19 | L8: 39.94685087 | M8: 51.0922228
A9: 3 | B9: TRUJILLO | E9: MSS3 | F9: MSS | G9: NORTE | H9: 71 | I9: 12 | J9: 55 | K9: 7 | L9: 37.61203942 | M9: 42.56284354
A10: 4 | B10: TRUJILLO | E10: MSS4 | F10: MSS | G10: NORTE | H10: 73 | I10: 11 | J10: 56 | K10: 31 | L10: 23.27559329 | M10: 3.804030312
A11: 5 | B11: LIMA | E11: MGW5 | F11: MGW | G11: LIMA | H11: 77 | I11: 12 | J11: 26 | K11: 4 | L11: 56.98768953 | M11: 13.96612217
A12: 6 | B12: TRUJILLO | E12: MSS6 | F12: MSS | G12: NORTE | H12: 75 | I12: 13 | J12: 27 | K12: 5 | L12: 24.4008389 | M12: 49.77701164
A13: 7 | B13: LIMA | E13: MGW7 | F13: MGW | G13: LIMA | H13: 77 | I13: 8 | J13: 52 | K13: 7 | L13: 43.42276228 | M13: 5.701002292
A14: 8 | B14: TRUJILLO | E14: MGW8 | F14: MGW | G14: NORTE | H14: 75 | I14: 10 | J14: 11 | K14: 35 | L14: 16.58459486 | M14: 20.34799401
A15: 9 | B15: TRUJILLO | E15: MGW9 | F15: MGW | G15: NORTE | H15: 73 | I15: 12 | J15: 33 | K15: 13 | L15: 7.469706787 | M15: 7.593071398
A16: 10 | B16: TRUJILLO | E16: MGW10 | F16: MGW | G16: NORTE | H16: 77 | I16: 8 | J16: 41 | K16: 37 | L16: 29.81493141 | M16: 34.19909538
A17: 11 | B17: TRUJILLO | E17: MGW11 | F17: MGW | G17: NORTE | H17: 71 | I17: 14 | J17: 20 | K17: 57 | L17: 56.4059515 | M17: 58.43712697
A18: 12 | B18: AREQUIPA | E18: MGW12 | F18: MGW | G18: SUR | H18: 71 | I18: 9 | J18: 49 | K18: 35 | L18: 55.09688591 | M18: 41.92484276
A19: 13 | B19: AREQUIPA | E19: MGW13 | F19: MGW | G19: SUR | H19: 71 | I19: 9 | J19: 0 | K19: 46 | L19: 14.28778347 | M19: 21.11162408
A20: 14 | B20: AREQUIPA | E20: MGW14 | F20: MGW | G20: SUR | H20: 72 | I20: 15 | J20: 42 | K20: 19 | L20: 59.53827759 | M20: 16.7993204
A21: 15 | B21: TRUJILLO | E21: MGW15 | F21: MGW | G21: NORTE | H21: 74 | I21: 15 | J21: 26 | K21: 31 | L21: 42.32420406 | M21: 30.25664362
A22: 16 | B22: TRUJILLO | E22: MGW16 | F22: MGW | G22: NORTE | H22: 71 | I22: 14 | J22: 57 | K22: 11 | L22: 23.35516459 | M22: 54.74855718
A23: 17 | B23: LIMA | E23: MGW17 | F23: MGW | G23: LIMA | H23: 75 | I23: 11 | J23: 27 | K23: 2 | L23: 9.107549915 | M23: 43.53272335
A24: 18 | B24: TRUJILLO | E24: MGW18 | F24: MGW | G24: NORTE | H24: 71 | I24: 15 | J24: 19 | K24: 37 | L24: 56.73665371 | M24: 46.67485789
A25: 19 | B25: LIMA | E25: MGW19 | F25: MGW | G25: LIMA | H25: 75 | I25: 15 | J25: 23 | K25: 15 | L25: 58.65802283 | M25: 47.01049408
A26: 20 | B26: LIMA | E26: MSS20 | F26: MSS | G26: LIMA | H26: 77 | I26: 9 | J26: 8 | K26: 10 | L26: 41.61913159 | M26: 16.96214043
A27: 21 | B27: AREQUIPA | E27: MGW21 | F27: MGW | G27: SUR | H27: 73 | I27: 11 | J27: 21 | K27: 10 | L27: 25.2434016 | M27: 34.77695978
A28: 22 | B28: LIMA | E28: MGW22 | F28: MGW | G28: LIMA | H28: 77 | I28: 15 | J28: 42 | K28: 33 | L28: 48.72478041 | M28: 46.63683182
A29: 23 | B29: TRUJILLO | E29: MGW23 | F29: MGW | G29: NORTE | H29: 75 | I29: 10 | J29: 45 | K29: 28 | L29: 56.43221452 | M29: 26.26234379
A30: 24 | B30: TRUJILLO | E30: MSS24 | F30: MSS | G30: NORTE | H30: 72 | I30: 10 | J30: 15 | K30: 24 | L30: 50.72862368 | M30: 9.646491107
A31: 25 | B31: TRUJILLO | E31: MGW25 | F31: MGW | G31: NORTE | H31: 72 | I31: 15 | J31: 53 | K31: 55 | L31: 53.87661929 | M31: 41.54104409
A32: 26 | B32: AREQUIPA | E32: MGW26 | F32: MGW | G32: SUR | H32: 72 | I32: 16 | J32: 53 | K32: 57 | L32: 46.54000228 | M32: 20.84583943
A33: 27 | B33: AREQUIPA | E33: MSS27 | F33: MSS | G33: SUR | H33: 74 | I33: 12 | J33: 51 | K33: 47 | L33: 26.42907954 | M33: 19.01794809
A34: 28 | B34: AREQUIPA | E34: MSS28 | F34: MSS | G34: SUR | H34: 77 | I34: 15 | J34: 53 | K34: 49 | L34: 24.70509927 | M34: 24.48796669
A35: 29 | B35: AREQUIPA | E35: MGW29 | F35: MGW | G35: SUR | H35: 76 | I35: 16 | J35: 21 | K35: 29 | L35: 23.61166161 | M35: 15.33121313
A36: 30 | B36: TRUJILLO | E36: MGW30 | F36: MGW | G36: NORTE | H36: 72 | I36: 16 | J36: 58 | K36: 0 | L36: 29.75556207 | M36: 53.44028221
A37: 31 | B37: TRUJILLO | E37: MGW31 | F37: MGW | G37: NORTE | H37: 77 | I37: 8 | J37: 19 | K37: 31 | L37: 49.40367119 | M37: 41.03167087
A38: 32 | B38: LIMA | E38: MGW32 | F38: MGW | G38: LIMA | H38: 76 | I38: 14 | J38: 2 | K38: 54 | L38: 50.01417018 | M38: 26.19297888
A39: 33 | B39: LIMA | E39: MGW33 | F39: MGW | G39: LIMA | H39: 74 | I39: 11 | J39: 41 | K39: 46 | L39: 46.91291658 | M39: 38.3369795
A40: 34 | B40: LIMA | E40: MGW34 | F40: MGW | G40: LIMA | H40: 74 | I40: 13 | J40: 12 | K40: 52 | L40: 49.19411239 | M40: 14.95036106
A41: 35 | B41: TRUJILLO | E41: MGW35 | F41: MGW | G41: NORTE | H41: 73 | I41: 10 | J41: 25 | K41: 56 | L41: 25.86975242 | M41: 33.22618405
A42: 36 | B42: TRUJILLO | E42: MGW36 | F42: MGW | G42: NORTE | H42: 77 | I42: 16 | J42: 36 | K42: 33 | L42: 44.77837105 | M42: 55.64924639
A43: 37 | B43: LIMA | E43: MGW37 | F43: MGW | G43: LIMA | H43: 75 | I43: 11 | J43: 9 | K43: 44 | L43: 58.81326414 | M43: 58.59225425
A44: 38 | B44: AREQUIPA | E44: MGW38 | F44: MGW | G44: SUR | H44: 71 | I44: 13 | J44: 30 | K44: 26 | L44: 16.50788698 | M44: 18.61148747
A45: 39 | B45: TRUJILLO | E45: MGW39 | F45: MGW | G45: NORTE | H45: 75 | I45: 12 | J45: 48 | K45: 58 | L45: 54.11940824 | M45: 52.80160914
A46: 40 | B46: LIMA | E46: MGW40 | F46: MGW | G46: LIMA | H46: 74 | I46: 14 | J46: 13 | K46: 57 | L46: 49.24423389 | M46: 33.49244402
A47: 41 | B47: LIMA | E47: MGW41 | F47: MGW | G47: LIMA | H47: 71 | I47: 8 | J47: 56 | K47: 54 | L47: 57.99616133 | M47: 24.81405225

Sheet Parámetros Nucleo Red
A1: <-- EDICIÓN | B1: PARÁMETROS NÚCLEO RED
A3: Criterios de dimensionado Equipos Núcleo Móvil
B5: Utilizar Dimensionado Regiones | C5: SI
D7: CRITERIOS DIMENSIONADO
B8: ID_COMPONENTE | C8: COMPONENTE | D8: CRITERIO 1 | E8: UNIDAD CRITERIO1 | F8: CRITERIO2 | G8: UNIDAD CRITERIO 2 | H8: FACTOR DE CARGA | I8: REDUNDANCIA
B9: 1 | C9: MSC-SERVER | D9: 1800000 | E9: BHCA | F9: 3 | G9: NUM_MGW | H9: 0.8 | I9: 1
B10: 2 | C10: MGW | D10: 15000 | E10: ERLANG_BH | H10: 0.8 | I10: 1
B11: 3 | C11: HLR | D11: 5000000 | E11: USUARIOS | H11: 0.8 | I11: 2
B12: 6 | C12: STP | D12: 30000 | E12: MSU/seg | H12: 0.8 | I12: 2
B13: 4 | C13: IN PREPAGO | D13: 16406604 | E13: USUARIOS | F13: 17500000 | G13: BHCA | H13: 0.8 | I13: 1
B14: 5 | C14: IN CORPORATIVA | D14: 1068729 | E14: USUARIOS | F14: 244800 | G14: BHCA | H14: 0.8 | I14: 1
A17: Costos Equipos Núcleo Móvil
B21: ID_COMPONENTE | C21: COMPONENTE | D21: TIPO | E21: HW | F21: SW | G21: INSTALACIÓN | H21: SERVICIOS | I21: PLANIFICACIÓN | J21: UNIDADES | K21: ="COSTO HW ("&moneda&")" -> COSTO HW (US$) | L21: ="COSTO SW ("&moneda&")" -> COSTO SW (US$) | M21: ="COSTO INSTALACIÓN ("&moneda&")" -> COSTO INSTALACIÓN (US$) | N21: ="COSTO SERVICIOS ("&moneda&")" -> COSTO SERVICIOS (US$) | O21: ="COSTO PLANIFICACIÓN ("&moneda&")" -> COSTO PLANIFICACIÓN (US$)
B22: 1 | C22: MSC-SERVER | D22: IPA1800 | E22: 465100 | F22: 1180000 | G22: 100000 | I22: 20000 | J22: US$ | K22: =IF(moneda=J22,1,IF(moneda="US$",1/tipoC,IF(moneda="S/.",tipoC,0)))*E22 -> 465100 | L22: =IF(moneda=J22,1,IF(moneda="US$",1/tipoC,IF(moneda="S/.",tipoC,0)))*F22 -> 1180000 | M22: =IF(moneda=J22,1,IF(moneda="US$",1/tipoC,IF(moneda="S/.",tipoC,0)))*G22 -> 100000 | N22: =IF(moneda=J22,1,IF(moneda="US$",1/tipoC,IF(moneda="S/.",tipoC,0)))*H22 -> 0 | O22: =IF(moneda=J22,1,IF(moneda="US$",1/tipoC,IF(moneda="S/.",tipoC,0)))*I22 -> 20000
B23: 2 | C23: MGW | D23: DX200 | E23: 428600 | F23: 1592180 | G23: 150000 | I23: 20000 | J23: US$ | K23: 428600 | L23: 1592180 | M23: 150000 | N23: 0 | O23: 20000
B24: 3 | C24: HLR | D24: HLR OSIPTEL 2013 | E24: 366527.8125 | F24: 2394648.375 | G24: 24435.1875 | H24: 260642 | I24: 304625.3375 | J24: US$ | K24: 366527.8125 | L24: 2394648.375 | M24: 24435.1875 | N24: 260642 | O24: 304625.3375
B25: 6 | C25: STP | D25: STP | E25: 2927553 | F25: 2927553 | H25: 183193.8 | I25: 603829.98 | J25: US$ | K25: 2927553 | L25: 2927553 | M25: 0 | N25: 183193.8 | O25: 603829.98
B26: 4 | C26: IN PREPAGO | D26: Altamira | E26: 2358751.064 | F26: 1098160.284 | G26: 760638.2979 | H26: 113475.1773 | I26: 0 | J26: US$ | K26: 2358751.064 | L26: 1098160.284 | M26: 760638.2979 | N26: 113475.1773 | O26: 0
B27: 5 | C27: IN CORPORATIVA | D27: NGIN Fija | E27: 479594.24 | F27: 481659.13 | G27: 238121.77 | H27: 345040.3 | I27: 0 | J27: US$ | K27: 479594.24 | L27: 481659.13 | M27: 238121.77 | N27: 345040.3 | O27: 0
A33: Parámetros Núcleo Móvil
B35: Relación valor promedio usuarios/usuarios concurrentes | C35: 1.571428571
B36: Porcentaje adicional por bajas en proceso | C36: 0
B38: Probabilidad perdida | C38: 0.02 | D38: pBloqueoNucleo
A41: Núcleo IP
B44: NODOS POR RN | C44: 2 | D44: nodoxRN
B45: RN | C45: 8 | D45: NumRN
B46: Redundancia RN | C46: 2 | D46: redundanciaRN | E46: 1 indica topología en anillo
B48: Distancia media Nodo RN (Km) | C48: 2 | D48: dNodo_RN
B49: Distancia Loreto (Km) | C49: 800.3125001 | D49: dNodo_RN2
B50: Distancia media RN-RN (Km) | C50: 328.9179524 | D50: dRNRN
B52: EQUIPO | C52: COSTO | D52: UNIDADES | E52: ="COSTO ("&moneda&")" -> COSTO (US$)
B53: RN | C53: 2000000 | D53: US$ | E53: =IF(moneda=D53,1,IF(moneda="US$",1/tipoC,IF(moneda="S/.",tipoC,0)))*C53 -> 2000000

Sheet Vidas utiles
A1: <-- EDICIÓN | B1: VIDAS ÚTILES Y FACTORES DE ANUALIZACIÓN
B3: CATEGORÍA | C3: DESC_CATEGORÍA | D3: VIDA ÚTIL | E3: DEPRECIACIÓN ACELERADA | F3: FACTOR DE ANUALIZACIÓN
B4: CELLSITE_INFRA | C4: CELL SITE INFRAESTRUCTURA | D4: 15 | E4: NO | F4: =IF(D4=0,0,WACC/(1-(1+WACC)^(-D4))) -> 0.1168295449
B5: CELLSITE_ENERGIA | C5: CELL SITE ENERGÍA | D5: 5 | E5: NO | F5: 0.2504564546
B6: 2G_BTS | C6: 2G BTS | D6: 5 | E6: NO | F6: 0.2504564546
B7: 3G_NODOB | C7: 3G NODO B | D7: 5 | E7: NO | F7: 0.2504564546
B8: SW_RADIO | C8: SOFTWARE RADIO | D8: 5 | E8: NO | F8: 0.2504564546
B9: BSC_EQ | C9: BSC EQUIPOS | D9: 10 | E9: NO | F9: 0.1490294887
B10: BSC_SW | C10: BSC SOFTWARE | D10: 5 | E10: NO | F10: 0.2504564546
B11: BSC_SRV | C11: BSC SERVICIOS | D11: 10 | E11: NO | F11: 0.1490294887
B12: BSC_PLA | C12: BSC PLANIFICACIÓN | D12: 10 | E12: NO | F12: 0.1490294887
B13: RNC_EQ | C13: RNC EQUIPOS | D13: 10 | E13: NO | F13: 0.1490294887
B14: RNC_SW | C14: RNC SOFTWARE | D14: 5 | E14: NO | F14: 0.2504564546
B15: RNC_SRV | C15: RNC SERVICIOS | D15: 10 | E15: NO | F15: 0.1490294887
B16: RNC_PLA | C16: RNC PLANIFICACIÓN | D16: 10 | E16: NO | F16: 0.1490294887
B17: ENLACES_ACCESO | C17: ENLACES RED DE ACCESO | D17: 15 | E17: NO | F17: 0.1168295449
B18: CONCENTRADORES | C18: CONCENTRADORES ACCESO | D18: 10 | E18: NO | F18: 0.1490294887
B19: MSS_EQ | C19: MSS | D19: 10 | E19: NO | F19: 0.1490294887
B20: MSS_SW | C20: MSS SOFTWARE | D20: 5 | E20: NO | F20: 0.2504564546
B21: MGW_EQ | C21: MGW | D21: 10 | E21: NO | F21: 0.1490294887
B22: MGW_SW | C22: MGW SOFTWARE | D22: 5 | E22: NO | F22: 0.2504564546
B23: ENLACES_CORE | C23: ENLACES NÚCLEO RED | D23: 15 | E23: NO | F23: 0.1168295449
B24: HLR_EQ | C24: HLR | D24: 10 | E24: NO | F24: 0.1490294887
B25: HLR_SW | C25: HLR SOFTWARE | D25: 5 | E25: NO | F25: 0.2504564546
B26: STP_EQ | C26: STP | D26: 10 | E26: NO | F26: 0.1490294887
B27: STP_SW | C27: STP SOFTWARE | D27: 5 | E27: NO | F27: 0.2504564546
B28: PREPAGO_EQ | C28: IN PREPAGO | D28: 10 | E28: NO | F28: 0.1490294887
B29: PREPAGO_SW | C29: IN PREPAGO SOFTWARE | D29: 5 | E29: NO | F29: 0.2504564546
B30: CORPORATIVO_EQ | C30: IN CORPORATIVO | D30: 10 | E30: NO | F30: 0.1490294887
B31: CORPORATIVO_SW | C31: IN CORPORATIVO SOFTWARE | D31: 5 | E31: NO | F31: 0.2504564546
B32: ESPECTRO | C32: ESPECTRO | D32: 20 | E32: NO | F32: 0.1018522088
B33: ENERGIA | C33: ENERGÍA | D33: 5 | E33: NO | F33: 0.2504564546
B34: ED | C34: EDIFICIO | D34: 20 | E34: NO | F34: 0.1018522088
B35: SIS | C35: SISTEMAS | D35: 5 | E35: NO | F35: 0.2504564546
B36: TX RADIO | C36: EQUIPAMIENTO DE TX RADIO | D36: 10 | E36: NO | F36: 0.1490294887
B37: TX SAT ANTENA | C37: EQUIPAMIENTO DE TX SAT | D37: 10 | E37: NO | F37: 0.1490294887
B38: TX SAT EQUIPO | C38: EQUIPAMIENTO DE TX SAT | D38: 10 | E38: NO | F38: 0.1490294887
B39: CORE | C39: EQUIPOS NÚCLEO | D39: 10 | E39: NO | F39: 0.1490294887

Sheet OPEX
A1: <-- EDICIÓN | B1: COSTOS OPERATIVOS
A3: CLASIFICACIÓN | B3: DESCRIPCIÓN | C3: TOTAL | D3: MONEDA | E3: CRITERIO | F3: TOTAL | H3: ID_CRITERIO | I3: ="MONTO TOTAL ("&moneda&")" -> MONTO TOTAL (US$) | K3: %
A4: ESPACIO | B4: Uso de Torres, contrato TdP | C4: 1332995.1 | D4: US$ | E4: USO_RADIO | F4: =IF(moneda=D4,1,IF(moneda="US$",1/tipoC,IF(moneda="S/.",tipoC,0)))*C4 -> 1332995.1 | H4: =idCriterios -> DIRECTO | I4: =SUMIF($E$4:$E$96,H4,$F$4:$F$96) -> 367737.5362 | K4: =+I4/$I$15 -> 0.001898545803
A5: ESPACIO | B5: Infraestructura American Tower (ATC) | C5: 4355777.023 | D5: S/. | E5: USO_RADIO | F5: =IF(moneda=D5,1,IF(moneda="US$",1/tipoC,IF(moneda="S/.",tipoC,0)))*C5 -> 1599967.072 | H5: INGRESOS | I5: =SUMIF($E$4:$E$96,H5,$F$4:$F$96) -> 27630200.29 | K5: 0.1426484806
A6: ESPACIO | B6: Infraestructura American Tower (ATC) | C6: 6299301 | D6: S/. | E6: USO_RADIO | F6: =IF(moneda=D6,1,IF(moneda="US$",1/tipoC,IF(moneda="S/.",tipoC,0)))*C6 -> 2313863.663 | H6: USO_RADIO | I6: =SUMIF($E$4:$E$96,H6,$F$4:$F$96) -> 95960537.96 | K6: 0.4954225736
A7: ESPACIO | B7: Alquiler de inmuebles para EBC, Lima y Provincias | C7: 37489984.74 | D7: S/. | E7: USO_RADIO | F7: =IF(moneda=D7,1,IF(moneda="US$",1/tipoC,IF(moneda="S/.",tipoC,0)))*C7 -> 13770847.5 | H7: USO_LLAMADAS | I7: 0 | K7: 0
A8: ESPACIO | B8: Usufructo de 348 Torres | C8: 1022869.15 | D8: US$ | E8: USO_RADIO | F8: =IF(moneda=D8,1,IF(moneda="US$",1/tipoC,IF(moneda="S/.",tipoC,0)))*C8 -> 1022869.15 | H8: USO_TRAFICO | I8: =SUMIF($E$4:$E$96,H8,$F$4:$F$96) -> 58398152.89 | K8: 0.3014964673
A9: ESPACIO | B9: Usufructo de 348 Torres | C9: 8305311.96 | D9: S/. | E9: USO_RADIO | F9: 3050713.016 | H9: USO_SEÑA | I9: 0 | K9: 0
A10: ESPACIO | B10: Reforzamiento estructural crítico para inmuebles pertenecientes a terceros | C10: 1580903.58 | D10: S/. | E10: USO_RADIO | F10: 580698.6121 | H10: USO_PLA | I10: 222400 | K10: 0.001148200945
A11: ESPACIO | B11: Alquiler de espacios para antenas (renting), greenfield | C11: 95609.0169 | D11: S/. | E11: USO_RADIO | F11: =IF(moneda=D11,1,IF(moneda="US$",1/tipoC,IF(moneda="S/.",tipoC,0)))*C11 -> 35119.17117 | H11: USO_ESPACIO | I11: 7306741.862 | K11: 0.03772305715
A12: ESPACIO | B12: Alquiler de espacios para antenas (renting), greenfield | C12: 40879.1318 | D12: US$ | E12: USO_RADIO | F12: =IF(moneda=D12,1,IF(moneda="US$",1/tipoC,IF(moneda="S/.",tipoC,0)))*C12 -> 40879.1318 | H12: USO_ENERGIA | I12: 3808548.367 | K12: 0.01966267462
A13: ESPACIO | B13: Arrendamiento almacenes proveedores de rf 1 | C13: 33000 | D13: US$ | E13: USO_RADIO | F13: 33000 | H13: OVERHEAD | I13: 34689498.53 | K13: 0.1790940422
A14: ESPACIO | B14: Reembolso consumo de agua a TdP (EBC coubicadas en locales de TdP) | C14: 16000 | D14: S/. | E14: USO_RADIO | F14: 5877.131225 | H14: Total | I14: =SUM(I4:I13) -> 228383817.4
A15: ESPACIO | B15: Espacios técnicos alquilados, contrato TdP | C15: 2076475.689 | D15: US$ | E15: USO_ESPACIO | F15: 2076475.689 | H15: Total sin overhead | I15: =SUM(I4:I13)-I13 -> 193694318.9
A16: ESPACIO | B16: Mantto. FLM Edificios | C16: 602285 | D16: S/. | E16: USO_ESPACIO | F16: 221231.7488
A17: ESPACIO | B17: Mantto. FLM Edificios | C17: 1027749 | D17: S/. | E17: USO_ESPACIO | F17: 377513.4837
A18: ESPACIO | B18: Limpieza de edificios FLM | C18: 109680 | D18: S/. | E18: USO_ESPACIO | F18: 40287.73455 | H18: TASAS TOTAL (US$) | I18: =SUM(F75:F77) -> 24823864.47
A19: ESPACIO | B19: Limpieza de edificios FLM | C19: 135573.8 | D19: S/. | E19: USO_ESPACIO | F19: 49799.06333
A20: ENERGÍA | B20: Mantto FLM Energia | C20: 5310521 | D20: S/. | E20: USO_ESPACIO | F20: 1950664.299
A21: ENERGÍA | B21: Mantto FLM Energia | C21: 7053155 | D21: S/. | E21: USO_ESPACIO | F21: 2590769.843
A22: ENERGÍA | B22: Alquiler y Gestión de Grupos Electrogenos terceros. | C22: 1080502.11 | D22: S/. | E22: USO_RADIO | F22: 396890.7931
A23: ENERGÍA | B23: Consumo de energía eléctrica de EBC (pago a concesionarios y propietarios en contrato), Lima y Provincias | C23: 19185788.39 | D23: S/. | E23: USO_RADIO | F23: 7047337.252
A24: ENERGÍA | B24: Suministro de Combustible para GE estacionarios, moviles, de emergencia y operación en prime. | C24: 2118519 | D24: S/. | E24: USO_RADIO | F24: 778175.8854
A25: ENERGÍA | B25: Mantto. FLM BTS Norte | C25: 4422863.28 | D25: S/. | E25: USO_RADIO | F25: 1624609.243
A26: ENERGÍA | B26: Mantto. FLM BTS Sur | C26: 3707589.196 | D26: S/. | E26: USO_RADIO | F26: 1361874.265
A27: ENERGÍA | B27: Uso Capacidad Instalada, Contrato TdP | C27: 710684.094 | D27: US$ | E27: USO_ENERGIA | F27: 710684.094
A28: ENERGÍA | B28: Uso GE, Contrato TdP | C28: 1303998.529 | D28: US$ | E28: USO_ENERGIA | F28: 1303998.529
A29: ENERGÍA | B29: Reembolso consumo de energía a TdP (EBC coubicadas en locales de TdP) | C29: 4883650 | D29: S/. | E29: USO_ENERGIA | F29: 1793865.744
A30: O&M | B30: Calidad y optimización de la red celular 1 | C30: 188312.28 | D30: S/. | E30: USO_RADIO | F30: 69170.99881
A31: O&M | B31: Calidad y optimización de la red celular 2 | C31: 281909.49 | D31: S/. | E31: USO_RADIO | F31: 103551.1916
A32: O&M | B32: ERICSSON - Soporte | C32: 2065233.4 | D32: US$ | E32: USO_RADIO | F32: 2065233.4
A33: O&M | B33: ERICSSON - Gestión Integral de Repuestos | C33: 1060429.113 | D33: US$ | E33: USO_RADIO | F33: 1060429.113
A34: O&M | B34: Soporte Controladores femto + IM2000 | C34: 183207.22 | D34: US$ | E34: USO_RADIO | F34: 183207.22
A35: O&M | B35: Soporte Controladores Red 2g y 3G | C35: 774917.75 | D35: US$ | E35: USO_RADIO | F35: 774917.75
A36: O&M | B36: Soporte y mntto. Siemens | C36: 1398399.41 | D36: US$ | E36: USO_RADIO | F36: =IF(moneda=D36,1,IF(moneda="US$",1/tipoC,IF(moneda="S/.",tipoC,0)))*C36 -> 1398399.41
A37: O&M | B37: Repuestos 2G/3G de Nokia Siemens - Acceso | C37: 1137397.43 | D37: US$ | E37: USO_RADIO | F37: 1137397.43
A38: O&M | B38: Mantto. FLM BTS Norte | C38: 4422863.28 | D38: S/. | E38: USO_RADIO | F38: 1624609.243
A39: O&M | B39: Mantto. FLM BTS Sur | C39: 3707589.196 | D39: S/. | E39: USO_RADIO | F39: 1361874.265
A40: O&M | B40: Adecuaciones, rutinas | C40: 117760.37 | D40: US$ | E40: USO_RADIO | F40: 117760.37
A41: O&M | B41: Adecuaciones, rutinas | C41: 7907199.93 | D41: S/. | E41: USO_RADIO | F41: 2904478.226
A42: O&M | B42: Soporte SUN Operaciones Lima & Provincias | C42: 499471.96 | D42: US$ | E42: USO_RADIO | F42: 499471.96
A43: O&M | B43: Soporte y asistencia tecnica de la Red GSM Nokia | C43: 3463728.3 | D43: US$ | E43: USO_RADIO | F43: 3463728.3
A44: O&M | B44: Soporte y Asistencia Técnica en Mantenimiento de SBC (session border controler) | C44: 107861.04 | D44: US$ | E44: DIRECTO | F44: 107861.04 | H44: PLAFATORMA
A45: O&M | B45: Soporte y Asistencia Técnica en Mantenimiento de STP TEKELEC | C45: 0 | D45: US$ | E45: USO_PLA | F45: 0 | H45: 819000
A46: O&M | B46: CONTRATO DE MANTENIMIENTO PARA LA PLATAFORMA ALTAMIRA / ZENOSS | C46: 0 | D46: US$ | E46: USO_PLA | F46: 0 | H46: 44165
A47: O&M | B47: CONTRATO DE MANTENIMIENTO PARA LA PLATAFORMA ALTAMIRA 1 | C47: 0 | D47: US$ | E47: USO_PLA | F47: 0 | H47: 1637685.038
A48: O&M | B48: CONTRATO DE MANTENIMIENTO PARA LA PLATAFORMA ALTAMIRA-Bolsa horas | C48: 0 | D48: US$ | E48: USO_PLA | F48: 0 | H48: 148206.3285
A49: O&M | B49: ORACLE Svc avanzado -MTTO OTRAS PLATAFORMAS TEM ALTAMIRA | C49: 0 | D49: US$ | E49: USO_PLA | F49: 0 | H49: 395581.7817
A50: O&M | B50: SEÑALIZ CENTRAL-PP -MTTO OTRAS PLATAFORMAS TEM ALTAMIRA | C50: 0 | D50: US$ | E50: USO_PLA | F50: 0 | H50: 143429.42
A51: O&M | B51: SOP HW HP(130 serv+14evas) -MTTO OTRAS PLATAFORMAS TEM ALTAMIRA | C51: 0 | D51: US$ | E51: USO_PLA | F51: 0 | H51: 175120.05
A52: O&M | B52: SOPORTE MAQUETA ALTAMIRA | C52: 0 | D52: US$ | E52: USO_PLA | F52: 0 | H52: 228576.1959
A53: O&M | B53: SOPORTE PLATAFORMA LLAMADAS PERDIDAS | C53: 0 | D53: US$ | E53: USO_LLAMADAS | F53: 0 | H53: 199368.52
A54: O&M | B54: Mtto Gestor Gestores-Soporte Herramienta Tivoli | C54: 93394.4 | D54: US$ | E54: USO_TRAFICO | F54: 93394.4
A55: O&M | B55: Mtto Remedy | C55: 102669.79 | D55: US$ | E55: USO_TRAFICO | F55: 102669.79
A56: O&M | B56: Sistema de monitoreo Señalización GeoProbe | C56: 197400 | D56: US$ | E56: USO_PLA | F56: 197400
A57: O&M | B57: Sistema de monitoreo Video Wall | C57: 25000 | D57: US$ | E57: USO_PLA | F57: 25000
A58: O&M | B58: SOPORTE DBA ORACLE Y SQL | C58: 25000.02 | D58: US$ | E58: USO_TRAFICO | F58: 25000.02
A59: O&M | B59: Soporte y Mantenimiento Equipos Cisco (Banda A y B) a traves de TdP, Cisco Avanzados | C59: 552484.76 | D59: US$ | E59: USO_TRAFICO | F59: 552484.76
A60: MEDIOS | B60: Oc arrend. Circuitos coaxiales | C60: 895456 | D60: US$ | E60: USO_TRAFICO | F60: =IF(moneda=D60,1,IF(moneda="US$",1/tipoC,IF(moneda="S/.",tipoC,0)))*C60 -> 895456
A61: MEDIOS | B61: Circuitos arrendados a tdp (e1) | C61: =('Costo anual'!D145+'Costo anual'!D146+'Costo anual'!D147+'Costo anual'!D150+'Costo anual'!D153+'Costo anual'!D154+'Costo anual'!D155+'Costo anual'!D156) -> 52824717.62 | D61: US$ | E61: USO_TRAFICO | F61: =IF(moneda=D61,1,IF(moneda="US$",1/tipoC,IF(moneda="S/.",tipoC,0)))*C61 -> 52824717.62
A62: MEDIOS | B62: Circuitos digitales de datos convencionales | C62: 224892.97 | D62: S/. | E62: USO_TRAFICO | F62: =IF(moneda=D62,1,IF(moneda="US$",1/tipoC,IF(moneda="S/.",tipoC,0)))*C62 -> 82607.84352
A63: MEDIOS | B63: Circuitos digitales de datos convencionales | C63: 2624746.03 | D63: US$ | E63: USO_TRAFICO | F63: =IF(moneda=D63,1,IF(moneda="US$",1/tipoC,IF(moneda="S/.",tipoC,0)))*C63 -> 2624746.03
A64: MEDIOS | B64: Enlace blackberry rim | C64: 0 | D64: US$ | E64: USO_TRAFICO | F64: =IF(moneda=D64,1,IF(moneda="US$",1/tipoC,IF(moneda="S/.",tipoC,0)))*C64 -> 0
A65: MEDIOS | B65: Circuitos arrendados a terceros HISPAMAR (Proyecto SELVA 3.2 mhz Banda Ku ) | C65: 90432 | D65: US$ | E65: USO_TRAFICO | F65: =IF(moneda=D65,1,IF(moneda="US$",1/tipoC,IF(moneda="S/.",tipoC,0)))*C65*0 -> 0
A66: MEDIOS | B66: Circuitos arrendados a terceros SATMEX (Proyecto SELVA 3,2 mhz Banda C) | C66: 84480 | D66: US$ | E66: USO_TRAFICO | F66: =IF(moneda=D66,1,IF(moneda="US$",1/tipoC,IF(moneda="S/.",tipoC,0)))*C66*0 -> 0
A67: MEDIOS | B67: Circuitos arrendados servicio recurrente de conducción de señales por satélite satmex 6, 16.000 mhz en el transpondedor 8c2 | C67: 428560 | D67: US$ | E67: USO_TRAFICO | F67: =IF(moneda=D67,1,IF(moneda="US$",1/tipoC,IF(moneda="S/.",tipoC,0)))*C67*0 -> 0
A68: OTROS | B68: Fondo Fijo | C68: 23141.77 | D68: S/. | E68: INGRESOS | F68: =IF(moneda=D68,1,IF(moneda="US$",1/tipoC,IF(moneda="S/.",tipoC,0)))*C68 -> 8500.451192
A69: OTROS | B69: Gastos de Viaje | C69: 103218.93 | D69: S/. | E69: INGRESOS | F69: 37914.44978
A70: OTROS | B70: Otros Gastos de personal | C70: 416747 | D70: S/. | E70: INGRESOS | F70: 153079.8004
A71: OTROS | B71: Suministros | C71: 6918984.28 | D71: S/. | E71: INGRESOS | F71: 2541486.16
A72: OTROS | B72: Tributos | C72: 177923.42 | D72: S/. | E72: INGRESOS | F72: 65354.95546
A73: OTROS | B73: Varios | C73: 13300.02 | D73: S/. | E73: OVERHEAD | F73: 4885.372677
A74: OTROS | B74: NOMINA | C74: 94425968.93 | D74: S/. | E74: OVERHEAD | F74: 34684613.16
A75: TASAS | B75: MTC - Tasa Explotación | C75: =D121 -> 16895225.59 | D75: S/. | E75: INGRESOS | F75: 6205966.118 | H75: 20049322 | I75: 17995735.85
A76: TASAS | B76: FITEL | C76: =D122 -> 33790451.19 | D76: S/. | E76: INGRESOS | F76: 12411932.24 | H76: =20049322*2 -> 40098644 | I76: 39706087.39
A77: TASAS | B77: OSIPTEL - Supervisión | C77: 16895225.59 | D77: S/. | E77: INGRESOS | F77: 6205966.118 | H77: 20049322 | I77: 19853042.7
A78: TASAS | B78: CANON MTC 2013 Oficio 7249-2013 | C78: 120332428.6 | D78: S/. | E78: USO_RADIO | F78: 44200592.1 | H78: =SUM(H75:H77) -> 80197288 | I78: =SUM(I75:I77) -> 77554865.94
A79: OSS | B79: Soporte a la aplicación SIXU | C79: 288921.6 | D79: S/. | E79: DIRECTO | F79: 106126.8848
A80: OSS | B80: Nomina Sistemas | C80: 210325.824 | D80: S/. | E80: DIRECTO | F80: 77257.02923
A81: OSS | B81: Producción TI - Mantenimiento de Hw | C81: 35628.48258 | D81: S/. | E81: DIRECTO | F81: 13087.07922
A82: OSS | B82: Producción TI - Mantenimiento de Sw | C82: 152789.4903 | D82: S/. | E82: DIRECTO | F82: 56122.74276
A83: OSS | B83: Producción TI - Operación | C83: 19826.70769 | D83: S/. | E83: DIRECTO | F83: 7282.76018
A84: OSS | B84: Soporte a la aplicación Mediación Móvil | C84: 246335.03 | D84: S/. | E84: USO_TRAFICO | F84: 90483.95604
A85: OSS | B85: XMS | C85: 241353 | D85: S/. | E85: USO_TRAFICO | F85: 88653.95329
A86: OSS | B86: 1353LMS Litespan | C86: 458895 | D86: S/. | E86: USO_TRAFICO | F86: 168561.6334
A87: OSS | B87: Huawei I2000 | C87: 498485.0467 | D87: S/. | E87: USO_TRAFICO | F87: 183103.8771
A88: OSS | B88: Huawei M2000 - GPRS | C88: 1030869.297 | D88: S/. | E88: USO_TRAFICO | F88: 378659.6334
A89: OSS | B89: Huawei M2000 CDMA 450 | C89: 0 | D89: S/. | E89: USO_TRAFICO | F89: 0
A90: OSS | B90: NETACTMED | C90: 8394 | D90: S/. | E90: USO_TRAFICO | F90: 3083.289969
A91: OSS | B91: TRAFFICA / Netact | C91: 92334 | D91: S/. | E91: USO_TRAFICO | F91: 33916.18966
A92: OSS | B92: N2000 NGN | C92: 205090.2198 | D92: S/. | E92: USO_TRAFICO | F92: 75333.88344
A93: OSS | B93: NetNumen - IMS_ZTE | C93: 23945.67548 | D93: S/. | E93: USO_TRAFICO | F93: 8795.742318
A94: OSS | B94: IAS | C94: 453239.5465 | D94: S/. | E94: USO_TRAFICO | F94: 166484.2682
F95: 0
F96: 0
F97: =SUM(F4:F96) -> 228383817.4
B99: Calculo de tasas | C99: Fuente | D99: Monto (S/.)
B100: Larga distancia internacional saliente, según RS-050 | C100: RS-050 | D100: 104784955.1
B101: Comunicaciones móviles - Servicios finales, según RS-050 | C101: RS-050 | D101: 3845544223
B102: Inalámbrico Móvil (2.5G, 3G, 4G, WiMax móvil), según RS-050 | C102: RS-050 | D102: 0
B103: Otros Móviles, según RS-050 | C103: RS-050 | D103: 6098658.43
B104: Total Movil, según RS-050 | C104: RS-050 | D104: =SUM(D100:D103) -> 3956427837
B105: Total ingresos por servicios de telecom (no incluye equipos), según RS-050 | C105: RS-050 | D105: 4695036235
B106: Relacion movil/ingresos | C106: RS-050 | D106: =D104/D105 -> 0.8426831314
B107: Total ingresos por servicios de telecom (no incluye equipos), reportado por OSIPTEL-GAF | C107: Osiptel-GAF | D107: 4009864435
B108: Total Movil Total ingresos por servicios de telecomunicaciones (no incluye equipos) | C108: Osiptel-GAF | D108: =D107*D106 -> 3379045119
B109: Aporte Tasas | C109: Osiptel-GAF | D109: =D108*2% -> 67580902.37
B110: Asignador Voz/(Voz+Datos) | C110: Cada Modelo | D110: 0.7951446361
B111: Aporte solo Voz | C111: Osiptel-GAF | D111: =D109*D110 -> 53736592.03
B120: Tasas | C120: Propuesta de TdP | D120: OSIPTEL (S/.)
B121: MTC - Tasa Explotación | C121: 17995735.85 | D121: =$D$108*0.5% -> 16895225.59
B122: FITEL | C122: 39706087.39 | D122: =$D$108*1% -> 33790451.19
B123: OSIPTEL - Supervisión | C123: 19853042.7 | D123: =$D$108*0.5% -> 16895225.59

Sheet Valoración Espectro
A1: <-- EDICIÓN | B1: ESPECTRO
B4: VALOR ESPECTRO | C4: 3348404368 | D4: S/.
B5: ="VALOR ESPECTRO ("&moneda&")" -> VALOR ESPECTRO (US$) | C5: =IF(moneda=D4,1,IF(moneda="US$",1/tipoC,IF(moneda="S/.",tipoC,0)))*C4 -> 1229938242

Sheet Inversión Sistemas
A1: <-- EDICIÓN | B1: SISTEMAS
B4: INVERSIÓN MEDIACIÓN | C4: 500000 | D4: S/. | E4: =IF(moneda=D4,1,IF(moneda="US$",1/tipoC,IF(moneda="S/.",tipoC,0)))*C4 -> 183660.3508
B5: INVERSIÓN SIXU | C5: 500000 | D5: S/. | E5: =IF(moneda=D5,1,IF(moneda="US$",1/tipoC,IF(moneda="S/.",tipoC,0)))*C5 -> 183660.3508

Sheet Parametros Energía
A1: <-- EDICIÓN | B1: EQUIPOS DE ENERGÍA
B2: PÁRAMETROS ENERGÍA
B3: PARÁMETRO | C3: VALOR
B4: KW/A | C4: 0.05
B5: Horas autonomí de baterías | C5: 8
B6: Carga térmica BTU/KW | C6: 3410
B7: BTU/Tonelada Térmica | C7: 12000
B8: Mark-up pérdida TT | C8: 0.15
B9: Mark-up acometidas eléctricas KW | C9: 0.2
B10: Mark-up KW generación Gr. Electr. | C10: 0.2
B11: Amperios mímos para bastidor secundario | C11: 380
B12: KW mínimos para sistema tierra | C12: 30
B13: Rec baterías corriente A/A | C13: 0.08
B14: Porcentaje Instalación | C14: 0.2
B16: Consumo por sala dde conmutación (A) | C16: 3978.694321
B18: Equipamiento
B20: BCO. BATERÍA
B21: CAPACIDAD (Ah) | C21: CAP. TOTAL (Ah) | D21: C.U. | E21: C.I. | F21: C.T. | G21: UNIDAD | H21: C.T.
B22: 0 | C22: 0 | D22: 0 | E22: 0 | F22: 0 | G22: US$ | H22: =IF(moneda=G22,1,IF(moneda="US$",1/tipoC,IF(moneda="S/.",tipoC,0)))*F22 -> 0
B23: 2 x 100 | C23: 200 | D23: 4390 | E23: 878 | F23: 5268 | G23: US$ | H23: 5268
B24: 2 x 150 | C24: 300 | D24: 6585 | E24: 1317 | F24: 7902 | G24: US$ | H24: 7902
B25: 2 x 300 | C25: 600 | D25: 13170 | E25: 2634 | F25: 15804 | G25: US$ | H25: 15804
B26: 2 x 350 | C26: 700 | D26: 15365 | E26: 3073 | F26: 18438 | G26: US$ | H26: 18438
B27: 2 x 420 | C27: 840 | D27: 18438 | E27: 3687.6 | F27: 22125.6 | G27: US$ | H27: 22125.6
B28: 2 x 490 | C28: 980 | D28: 21511 | E28: 4302.2 | F28: 25813.2 | G28: US$ | H28: 25813.2
B29: 2 x 600 | C29: 1200 | D29: 26340 | E29: 5268 | F29: 31608 | G29: US$ | H29: 31608
B30: 2 x 800 | C30: 1600 | D30: 35120 | E30: 7024 | F30: 42144 | G30: US$ | H30: 42144
B31: 2 x 1000 | C31: 2000 | D31: 43900 | E31: 8780 | F31: 52680 | G31: US$ | H31: 52680
B32: 2 x 1200 | C32: 2400 | D32: 52680 | E32: 10536 | F32: 63216 | G32: US$ | H32: 63216
B33: 2 x 1500 | C33: 3000 | D33: 65850 | E33: 13170 | F33: 79020 | G33: US$ | H33: 79020
B34: 2 x 2000 | C34: 4000 | D34: 87800 | E34: 17560 | F34: 105360 | G34: US$ | H34: 105360
B35: 2 x 2500 | C35: 5000 | D35: 109750 | E35: 21950 | F35: 131700 | G35: US$ | H35: 131700
B36: 2 x 3000 | C36: 6000 | D36: 131700 | E36: 26340 | F36: 158040 | G36: US$ | H36: 158040
B37: 3 x 2500 | C37: 7500 | D37: 164625 | E37: 32925 | F37: 197550 | G37: US$ | H37: 197550
B38: 4 x 2000 | C38: 8000 | D38: 175600 | E38: 35120 | F38: 210720 | G38: US$ | H38: 210720
B39: 3 x 3000 | C39: 9000 | D39: 197550 | E39: 39510 | F39: 237060 | G39: US$ | H39: 237060
B40: 4 x 2500 | C40: 10000 | D40: 219500 | E40: 43900 | F40: 263400 | G40: US$ | H40: 263400
B43: RECTIFICADORES
B44: CAPACIDAD (A) | C44: CAP. TOTAL (A) | D44: CAP. EFECTIVA (A) | E44: C.U. | F44: C.I. | G44: C.T. | H44: UNIDAD | I44: C.T.
B45: 0 | C45: 0 | D45: 0 | E45: 0 | F45: 0 | G45: 0 | H45: US$ | I45: =IF(moneda=H45,1,IF(moneda="US$",1/tipoC,IF(moneda="S/.",tipoC,0)))*G45 -> 0
B46: 2 x 33 | C46: 66 | D46: 33 | E46: 1298.88 | F46: 259.776 | G46: 1558.656 | H46: US$ | I46: 1558.656
B47: 3 x 33 | C47: 99 | D47: 66 | E47: 1948.32 | F47: 389.664 | G47: 2337.984 | H47: US$ | I47: 2337.984
B48: 2 x 100 | C48: 200 | D48: 100 | E48: 3936 | F48: 787.2 | G48: 4723.2 | H48: US$ | I48: 4723.2
B49: 2 x 125 | C49: 250 | D49: 125 | E49: 4920 | F49: 984 | G49: 5904 | H49: US$ | I49: 5904
B50: 3 x 100 | C50: 300 | D50: 200 | E50: 5904 | F50: 1180.8 | G50: 7084.8 | H50: US$ | I50: 7084.8
B51: 3 x 125 | C51: 375 | D51: 250 | E51: 7380 | F51: 1476 | G51: 8856 | H51: US$ | I51: 8856
B52: 4 x 100 | C52: 400 | D52: 300 | E52: 7872 | F52: 1574.4 | G52: 9446.4 | H52: US$ | I52: 9446.4
B53: 4 x 125 | C53: 500 | D53: 375 | E53: 9840 | F53: 1968 | G53: 11808 | H53: US$ | I53: 11808
B54: 6 x 100 | C54: 600 | D54: 500 | E54: 11808 | F54: 2361.6 | G54: 14169.6 | H54: US$ | I54: 14169.6
B55: 5 x 125 | C55: 625 | D55: 500 | E55: 12300 | F55: 2460 | G55: 14760 | H55: US$ | I55: 14760
B56: 7 x 100 | C56: 700 | D56: 600 | E56: 13776 | F56: 2755.2 | G56: 16531.2 | H56: US$ | I56: 16531.2
B57: 6 x 125 | C57: 750 | D57: 625 | E57: 14760 | F57: 2952 | G57: 17712 | H57: US$ | I57: 17712
B58: 8 x 100 | C58: 800 | D58: 700 | E58: 15744 | F58: 3148.8 | G58: 18892.8 | H58: US$ | I58: 18892.8
B59: 7 x 125 | C59: 875 | D59: 750 | E59: 17220 | F59: 3444 | G59: 20664 | H59: US$ | I59: 20664
B60: 9 x 100 | C60: 900 | D60: 800 | E60: 17712 | F60: 3542.4 | G60: 21254.4 | H60: US$ | I60: 21254.4
B61: 8 x 125 | C61: 1000 | D61: 875 | E61: 19680 | F61: 3936 | G61: 23616 | H61: US$ | I61: 23616
B62: 11 x 100 | C62: 1100 | D62: 1000 | E62: 21648 | F62: 4329.6 | G62: 25977.6 | H62: US$ | I62: 25977.6
B63: 9 x 125 | C63: 1125 | D63: 1000 | E63: 22140 | F63: 4428 | G63: 26568 | H63: US$ | I63: 26568
B64: 12 x 100 | C64: 1200 | D64: 1100 | E64: 23616 | F64: 4723.2 | G64: 28339.2 | H64: US$ | I64: 28339.2
B65: 10 x 125 | C65: 1250 | D65: 1125 | E65: 24600 | F65: 4920 | G65: 29520 | H65: US$ | I65: 29520
B66: 13 x 100 | C66: 1300 | D66: 1200 | E66: 25584 | F66: 5116.8 | G66: 30700.8 | H66: US$ | I66: 30700.8
B67: 11 x 125 | C67: 1375 | D67: 1250 | E67: 27060 | F67: 5412 | G67: 32472 | H67: US$ | I67: 32472
B68: 14 x 100 | C68: 1400 | D68: 1300 | E68: 27552 | F68: 5510.4 | G68: 33062.4 | H68: US$ | I68: 33062.4
B69: 12 x 125 | C69: 1500 | D69: 1375 | E69: 29520 | F69: 5904 | G69: 35424 | H69: US$ | I69: 35424
B70: 16 x 100 | C70: 1600 | D70: 1500 | E70: 31488 | F70: 6297.6 | G70: 37785.6 | H70: US$ | I70: 37785.6
B71: 13 x 125 | C71: 1625 | D71: 1500 | E71: 31980 | F71: 6396 | G71: 38376 | H71: US$ | I71: 38376
B74: BASTIDOR PRINCIPAL
B75: EQUIPO | C75: CAPACIDAD | D75: C.U | E75: C.I. | F75: C.T. | G75: UNIDAD | H75: C.T.
B76: Bastidor Principal | C76: 800 | D76: 7300 | E76: 1460 | F76: 8760 | G76: US$ | H76: =IF(moneda=G76,1,IF(moneda="US$",1/tipoC,IF(moneda="S/.",tipoC,0)))*F76 -> 8760
B78: BASTIDOR SECUNDARIO
B79: CANTIDAD | C79: CAP. TOTAL (A) | D79: C.U. | E79: C.I. | F79: C.T. | G79: UNIDAD | H79: C.T.
B80: 0 | C80: 0 | D80: 0 | E80: 0 | F80: 0 | G80: US$ | H80: =IF(moneda=G80,1,IF(moneda="US$",1/tipoC,IF(moneda="S/.",tipoC,0)))*F80 -> 0
B81: 1 | C81: 800 | D81: 8000 | E81: 1600 | F81: 9600 | G81: US$ | H81: =IF(moneda=G81,1,IF(moneda="US$",1/tipoC,IF(moneda="S/.",tipoC,0)))*F81 -> 9600
B82: 2 | C82: 1600 | D82: 16000 | E82: 3200 | F82: 19200 | G82: US$ | H82: =IF(moneda=G82,1,IF(moneda="US$",1/tipoC,IF(moneda="S/.",tipoC,0)))*F82 -> 19200
B83: 3 | C83: 2400 | D83: 24000 | E83: 4800 | F83: 28800 | G83: US$ | H83: =IF(moneda=G83,1,IF(moneda="US$",1/tipoC,IF(moneda="S/.",tipoC,0)))*F83 -> 28800
B84: 4 | C84: 3200 | D84: 32000 | E84: 6400 | F84: 38400 | G84: US$ | H84: =IF(moneda=G84,1,IF(moneda="US$",1/tipoC,IF(moneda="S/.",tipoC,0)))*F84 -> 38400
B87: AIRE ACONDICIONADO
B88: TIPO | C88: CAP. TOTAL (Tr) | D88: C.U. | E88: C.I. | F88: C.T. | G88: UNIDAD | H88: C.T.
B89: 0 | C89: 0 | D89: 0 | E89: 0 | F89: 0 | G89: US$ | H89: =IF(moneda=G89,1,IF(moneda="US$",1/tipoC,IF(moneda="S/.",tipoC,0)))*F89 -> 0
B90: Equipo A/A - Tipo Split | C90: 2 | D90: 7000 | E90: 1400 | F90: 8400 | G90: US$ | H90: 8400
B91: Equipo A/A - Tipo Split | C91: 3 | D91: 10500 | E91: 2100 | F91: 12600 | G91: US$ | H91: 12600
B92: Equipo A/A - Tipo Split | C92: 5 | D92: 17500 | E92: 3500 | F92: 21000 | G92: US$ | H92: 21000
B93: Equipo A/A - Tipo Presición | C93: 7.5 | D93: 26250 | E93: 5250 | F93: 31500 | G93: US$ | H93: 31500
B94: Equipo A/A - Tipo Presición | C94: 10 | D94: 35000 | E94: 7000 | F94: 42000 | G94: US$ | H94: 42000
B95: Equipo A/A - Tipo Presición | C95: 15 | D95: 52500 | E95: 10500 | F95: 63000 | G95: US$ | H95: 63000
B96: Equipo A/A - Tipo Presición | C96: 20 | D96: 70000 | E96: 14000 | F96: 84000 | G96: US$ | H96: 84000
B97: Equipo A/A - Tipo Presición | C97: 30 | D97: 105000 | E97: 21000 | F97: 126000 | G97: US$ | H97: 126000
B100: ACOMETIDA
B101: TIPO | C101: CAP. (KW) | D101: C.U. | E101: C.I. | F101: C.T. | G101: UNIDAD | H101: C.T.
B102: 0 | C102: 0 | D102: 0 | E102: 0 | F102: 0 | G102: US$ | H102: =IF(moneda=G102,1,IF(moneda="US$",1/tipoC,IF(moneda="S/.",tipoC,0)))*F102 -> 0
B103: Acometida Electrica BT | C103: 10 | D103: 2500 | E103: 500 | F103: 3000 | G103: US$ | H103: 3000
B104: Acometida Electrica BT | C104: 20 | D104: 5000 | E104: 1000 | F104: 6000 | G104: US$ | H104: 6000
B105: Acometida Electrica BT | C105: 30 | D105: 12000 | E105: 2400 | F105: 14400 | G105: US$ | H105: 14400
B106: Acometida Electrica BT | C106: 50 | D106: 15000 | E106: 3000 | F106: 18000 | G106: US$ | H106: 18000
B107: Acometida Electrica MT | C107: 100 | D107: 30500 | E107: 6100 | F107: 36600 | G107: US$ | H107: 36600
B108: Acometida Electrica MT | C108: 150 | D108: 39500 | E108: 7900 | F108: 47400 | G108: US$ | H108: 47400
B109: Acometida Electrica MT | C109: 200 | D109: 47600 | E109: 9520 | F109: 57120 | G109: US$ | H109: 57120
B110: Acometida Electrica MT | C110: 400 | D110: 62500 | E110: 12500 | F110: 75000 | G110: US$ | H110: 75000
B111: Acometida Electrica MT | C111: 500 | D111: 75200 | E111: 15040 | F111: 90240 | G111: US$ | H111: 90240
B112: Acometida Electrica MT | C112: 800 | D112: 105700 | E112: 21140 | F112: 126840 | G112: US$ | H112: 126840
B115: GRUPO ELECTRÓGENO
B116: Tipo | C116: Cap. (KW) | D116: C.U. | E116: C.I. | F116: C.T. | G116: UNIDAD | H116: C.T.
B117: 0 | C117: 0 | D117: 0 | E117: 0 | F117: 0 | G117: US$ | H117: =IF(moneda=G117,1,IF(moneda="US$",1/tipoC,IF(moneda="S/.",tipoC,0)))*F117 -> 0
B118: Grupo Electrógeno | C118: 20 | D118: 13166.66667 | E118: 2633.333333 | F118: 15800 | G118: US$ | H118: 15800
B119: Grupo Electrógeno | C119: 30 | D119: 19750 | E119: 3950 | F119: 23700 | G119: US$ | H119: 23700
B120: Grupo Electrógeno | C120: 50 | D120: 32916.66667 | E120: 6583.333333 | F120: 39500 | G120: US$ | H120: 39500
B121: Grupo Electrógeno | C121: 100 | D121: 65833.33333 | E121: 13166.66667 | F121: 79000 | G121: US$ | H121: 79000
B122: Grupo Electrógeno | C122: 150 | D122: 98750 | E122: 19750 | F122: 118500 | G122: US$ | H122: 118500
B123: Grupo Electrógeno | C123: 200 | D123: 131666.6667 | E123: 26333.33333 | F123: 158000 | G123: US$ | H123: 158000
B124: Grupo Electrógeno | C124: 300 | D124: 197500 | E124: 39500 | F124: 237000 | G124: US$ | H124: 237000
B125: Grupo Electrógeno | C125: 400 | D125: 263333.3333 | E125: 52666.66667 | F125: 316000 | G125: US$ | H125: 316000
B126: Grupo Electrógeno | C126: 500 | D126: 329166.6667 | E126: 65833.33333 | F126: 395000 | G126: US$ | H126: 395000
B127: Grupo Electrógeno | C127: 800 | D127: 526666.6667 | E127: 105333.3333 | F127: 632000 | G127: US$ | H127: 632000
B130: SISTEMA TOMA DE TIERRA
B131: EQUIPO | C131: C.U | D131: C.I. | E131: C.T. | F131: UNIDAD | G131: C.T.
B132: SISTEMA | C132: 206 | D132: 41.2 | E132: 247.2 | F132: US$ | G132: =IF(moneda=F132,1,IF(moneda="US$",1/tipoC,IF(moneda="S/.",tipoC,0)))*E132 -> 247.2

Sheet Tráfico_calculado
A1: TRÁFICO POR SERVICIO
A3: SERVICIO | B3: MINUTOS MENSUALES | C3: COMUNICACIONES MENSUALES | D3: MB MENSUALES | E3: RADIO | F3: RADIO ESTABLECIMIENTO | G3: RADIO VOZ | H3: RADIO DATOS | I3: SERVER | J3: MGW | K3: ENLACES MGW | L3: HLR | M3: IN PREPAGO | N3: IN CORPORATIVO | O3: STP
A4: =Demanda!A16:A36 -> Entrante LDI | B4: =Demanda!B16:D36 -> 1000000 | C4: 500000 | D4: 0 | E4: =G4+H4 -> 1 | F4: 1 | G4: =1-Estadisticas!$D$34 -> 1 | H4: 0 | I4: =(1*Estadisticas!D36+2*Estadisticas!D37)*Estadisticas!D60 -> 2 | J4: =(1*Estadisticas!D36+2*Estadisticas!D37) -> 2 | K4: =J4 -> 2 | L4: =Estadisticas!D71 -> 1 | M4: 0 | N4: 0 | O4: =Estadisticas!D78 -> 1
A5: Entrante LDN Fijo | B5: 0 | C5: 0 | D5: 0 | E5: =G5+H5 -> 1 | F5: 1 | G5: =1-Estadisticas!$D$34 -> 1 | H5: 0 | I5: =(1*Estadisticas!D38+2*Estadisticas!D39)*Estadisticas!D61 -> 2 | J5: =(1*Estadisticas!D38+2*Estadisticas!D39) -> 2 | K5: =J5 -> 2 | L5: =Estadisticas!D72 -> 1 | M5: 0 | N5: 0 | O5: =Estadisticas!D79 -> 1
A6: Entrante LDN Móvil | B6: 0 | C6: 0 | D6: 0 | E6: 1 | F6: 1 | G6: =1-Estadisticas!$D$34 -> 1 | H6: 0 | I6: =(1*Estadisticas!D40+2*Estadisticas!D41)*Estadisticas!D61 -> 2 | J6: =(1*Estadisticas!D40+2*Estadisticas!D41) -> 2 | K6: 2 | L6: =Estadisticas!D72 -> 1 | M6: 0 | N6: 0 | O6: =Estadisticas!D79 -> 1
A7: Entrante Local Fijo | B7: 25000000 | C7: 45000000 | D7: 0 | E7: 1 | F7: 1 | G7: =1-Estadisticas!$D$34 -> 1 | H7: 0 | I7: =(1*Estadisticas!D42+2*Estadisticas!D43)*Estadisticas!D62 -> 2 | J7: =(1*Estadisticas!D42+2*Estadisticas!D43) -> 2 | K7: 2 | L7: =Estadisticas!D73 -> 1 | M7: 0 | N7: 0 | O7: =Estadisticas!D80 -> 1
A8: Entrante Local Móvil | B8: 60000000 | C8: 63000000 | D8: 0 | E8: 1 | F8: 1 | G8: =1-Estadisticas!$D$34 -> 1 | H8: 0 | I8: =(1*Estadisticas!D44+2*Estadisticas!D45)*Estadisticas!D62 -> 2 | J8: =(1*Estadisticas!D44+2*Estadisticas!D45) -> 2 | K8: 2 | L8: =Estadisticas!D73 -> 1 | M8: 0 | N8: 0 | O8: =Estadisticas!D80 -> 1
A9: On-net LDN | B9: 0 | C9: 0 | D9: 0 | E9: 2 | F9: 2 | G9: =2-Estadisticas!$D$35 -> 2 | H9: 0 | I9: =(1*Estadisticas!D46+2*Estadisticas!D47)*Estadisticas!D63 -> 2 | J9: =(1*Estadisticas!D46+2*Estadisticas!D47) -> 2 | K9: 2 | L9: =Estadisticas!D74 -> 1 | M9: 1 | N9: 0 | O9: =Estadisticas!D81 -> 1
A10: On-net Local | B10: 500000000 | C10: 1253000 | D10: 0 | E10: 2 | F10: 2 | G10: =2-Estadisticas!$D$35 -> 2 | H10: 0 | I10: =(1*Estadisticas!D48+2*Estadisticas!D49)*Estadisticas!D64 -> 2 | J10: =(1*Estadisticas!D48+2*Estadisticas!D49) -> 2 | K10: 2 | L10: =Estadisticas!D75 -> 1 | M10: 1 | N10: 0 | O10: =Estadisticas!D82 -> 1
A11: Saliente LDI | B11: 1500000 | C11: 561256 | D11: 0 | E11: 1 | F11: 1 | G11: 1 | H11: 0 | I11: =(1*Estadisticas!D50+2*Estadisticas!D51)*Estadisticas!D65 -> 1 | J11: =(1*Estadisticas!D50+2*Estadisticas!D51) -> 1 | K11: 1 | L11: 0 | M11: 1 | N11: 0 | O11: =Estadisticas!D83 -> 1
A12: Saliente LDN Fijo | B12: 0 | C12: 0 | D12: 0 | E12: 1 | F12: 1 | G12: 1 | H12: 0 | I12: =(1*Estadisticas!D52+2*Estadisticas!D53)*Estadisticas!D66 -> 1 | J12: =(1*Estadisticas!D52+2*Estadisticas!D53) -> 1 | K12: 1 | L12: 0 | M12: 1 | N12: 0 | O12: =Estadisticas!D84 -> 1
A13: Saliente LDN Móvil | B13: 0 | C13: 0 | D13: 0 | E13: 1 | F13: 1 | G13: 1 | H13: 0 | I13: =(1*Estadisticas!D54+2*Estadisticas!D55)*Estadisticas!D66 -> 1 | J13: =(1*Estadisticas!D54+2*Estadisticas!D55) -> 1 | K13: 1 | L13: 0 | M13: 1 | N13: 0 | O13: =Estadisticas!D84 -> 1
A14: Saliente Local Fijo | B14: 10000 | C14: 123456789 | D14: 0 | E14: 1 | F14: 1 | G14: 1 | H14: 0 | I14: =(1*Estadisticas!D56+2*Estadisticas!D57)*Estadisticas!D67 -> 1 | J14: =(1*Estadisticas!D56+2*Estadisticas!D57) -> 1 | K14: 1 | L14: 0 | M14: 1 | N14: 0 | O14: =Estadisticas!D85 -> 1
A15: Saliente Local Móvil | B15: 450000 | C15: 450220 | D15: 0 | E15: 1 | F15: 1 | G15: 1 | H15: 0 | I15: =(1*Estadisticas!D58+2*Estadisticas!D59)*Estadisticas!D67 -> 1 | J15: =(1*Estadisticas!D58+2*Estadisticas!D59) -> 1 | K15: 1 | L15: 0 | M15: 1 | N15: 0 | O15: =Estadisticas!D85 -> 1
A16: Entrante SMS | B16: 0 | C16: 7484 | D16: 0 | E16: 1 | F16: 1 | G16: 0 | H16: 0 | I16: =Estadisticas!D68 -> 1 | J16: 0 | K16: 0 | L16: =Estadisticas!D76 -> 1 | M16: 0 | N16: 0 | O16: =Estadisticas!D86 -> 1
A17: Entrante MMS | B17: 0 | C17: 0 | D17: 0 | E17: 1 | F17: 1 | G17: 0 | H17: 1 | I17: 0 | J17: 0 | K17: 0 | L17: =L16 -> 1 | M17: 1 | N17: 0 | O17: 0
A18: Saliente SMS | B18: 0 | C18: 0 | D18: 0 | E18: 1 | F18: 1 | G18: 0 | H18: 0 | I18: =Estadisticas!D69 -> 1 | J18: 0 | K18: 0 | L18: 0 | M18: 1 | N18: 0 | O18: =Estadisticas!D87 -> 1
A19: Saliente MMS | B19: 0 | C19: 0 | D19: 0 | E19: 1 | F19: 1 | G19: 0 | H19: 1 | I19: 0 | J19: 0 | K19: 0 | L19: 0 | M19: 0 | N19: 0 | O19: 0
A20: On-net SMS | B20: 0 | C20: 15482 | D20: 0 | E20: 2 | F20: 2 | G20: 0 | H20: 0 | I20: =Estadisticas!D70 -> 1 | J20: 0 | K20: 0 | L20: =Estadisticas!D77 -> 1 | M20: 1 | N20: 0 | O20: =Estadisticas!D88 -> 1
A21: On-net MMS | B21: 0 | C21: 1558888 | D21: 10000 | E21: 2 | F21: 2 | G21: 0 | H21: 2 | I21: 0 | J21: 0 | K21: 0 | L21: =L20 -> 1 | M21: 1 | N21: 0 | O21: 0
A22: Servicios de datos | B22: 0 | C22: 0 | D22: 0 | E22: 1 | F22: 1 | G22: 0 | H22: 1 | I22: 0 | J22: 0 | K22: 0 | L22: 1 | M22: 1 | N22: 0 | O22: 0
A23: Banda Ancha Móvil | B23: 0 | C23: 2000000 | D23: 5488522 | E23: 1 | F23: 1 | G23: 0 | H23: 1 | I23: 0 | J23: 0 | K23: 0 | L23: 1 | M23: 1 | N23: 0 | O23: 0
A24: Telefonía FIJA | B24: 45863 | C24: 544555555 | D24: 0 | E24: 1 | F24: =+F14 -> 1 | G24: =+G14 -> 1 | H24: 0 | I24: 1 | J24: 1 | K24: 1 | L24: 0 | M24: 0 | N24: 1 | O24: 1
A25: TELEFONIA TUP | B25: =+Demanda!B37 -> 250065 | C25: =+Demanda!C37 -> 5894111 | D25: =+Demanda!D37 -> 0 | E25: 1 | F25: =+F14 -> 1 | G25: =+G14 -> 1 | H25: 0 | I25: 1 | J25: 1 | K25: 1 | L25: 0 | M25: 0 | N25: 1 | O25: 1
A26: REVENTA | B26: =+Demanda!B38 -> 0 | C26: =+Demanda!C38 -> 15545765 | D26: =+Demanda!D38 -> 7895445 | E26: 1 | F26: =+F23 -> 1 | G26: =+G23 -> 0 | H26: 1 | I26: 0 | J26: 0 | K26: 0 | L26: 1 | M26: 0 | N26: 1 | O26: 0
A27: TOTAL | E27: =SUMPRODUCT(B4:B15,E4:E15)+B24*E24+B25*E25 -> 1088255928 | F27: =SUMPRODUCT(C4:C26,F4:F26) -> 806625920 | G27: =SUMPRODUCT(B4:B26,G4:G26) -> 1088255928 | H27: =SUMPRODUCT(D4:D26,H4:H26) -> 13403967 | I27: =SUMPRODUCT(C4:C26,I4:I26) -> 894446897 | J27: =SUMPRODUCT(B4:B26,J4:J26) -> 1174255928 | K27: =SUMPRODUCT(B4:B26,K4:K26) -> 1174255928 | L27: =SUMPRODUCT(C4:C26,L4:L26) -> 128880619 | M27: =SUMPRODUCT(C4:C26,M4:M26) -> 129295635 | N27: =SUMPRODUCT(C4:C26,N4:N26) -> 565995431 | O27: =SUMPRODUCT(C4:C26,O4:O26) -> 784693897
A28: Tráfico Datos | E28: =D22*E22+D23*E23+D26*E26 -> 13383967
A29: Tráfico SMS | E29: =C16*E16+C18*E18+C20*E20 -> 38448
A30: Tráfico MMS | E30: =C17*E17+C19*E19+C21*E21 -> 3117776

Sheet Dimensionado 2G
A1: DIMENSIONADO 2G
A3: Dimensionado de EEBB
Q4: =Tráfico_calculado!$E$28 -> 13383967 | R4: =Tráfico_calculado!$E$30 -> 3117776 | T4: =+vozRate.2G -> 12.2
J5: =COUNTIF(J6:J3538,"BSC*") -> 3531 | AA5: MACROCELDA | AB5: MACROCELDA | AC5: PICOCELDA | AD5: FEMTOCELDA | AE5: 0 | AF5: 0
A6: Total de EEBB 2G | B6: =COUNTIF(J6:J3538,"BSC*") -> 3531 | Q6: ='Parametros Radio 2G'!$C$78 -> 0.002222222222 | R6: =+'Parametros Radio 2G'!$C$79 -> 3.333333333e-07 | AA6: TRÁFICO EQUIVALENTE EN ERLANG | AG6: MACRO 850 MHz | AJ6: MACRO 1900 MHz | AM6: PICOS | AP6: FEMTOS | AS6: 0 | AV6: 0 | AY6: RESULTADOS
A7: ID_CELL_SITE | B7: DPTO | C7: REGIÓN | D7: TIPO DE ZONA | E7: ID_CELL | F7: INFRA | G7: TITULARIDAD | H7: TIPO | I7: TIPO DE TRANSMISIÓN | J7: CONTROLADOR 2G | K7: FABRICANTE | L7: SECTORES 850 | M7: SECTORES 1900 | N7: 3G | O7: %TRAFICO VOZ POR CELL SITE | P7: % TRAFICO DATOS POR CELL SITE | Q7: TRÁFICO VOZ 2G | R7: TRÁFICO DATOS 2G | S7: SECTORES 850 | T7: % TRAFICO VOZ HC 850 | U7: %TRAFICO DATOS HC 850 | V7: SECTORES 1900 | W7: % TRAFICO VOZ HC 1900 | X7: % TRAFICO DATOS HC 1900 | Y7: TRAFICO VOZ (Erlang) | Z7: TRAFICO DATOS | AA7: MACRO 850MHz | AB7: MACRO 1900MHz | AC7: PICO | AD7: FEMTO | AE7: 0 | AF7: 0 | AG7: Nº DE SECTORES DIMENSIONADO | AH7: Nº CELDAS DIMENSIONADO | AI7: PORTADORAS POR SECTOR DIMENSIONADO | AJ7: Nº DE SECTORES DIMENSIONADO | AK7: Nº CELDAS DIMENSIONADO | AL7: PORTADORAS POR SECTOR DIMENSIONADO | AM7: Nº DE SECTORES DIMENSIONADO | AN7: Nº DE CELDAS DIMENSIONADO | AO7: PORTADORAS POR SECTOR DIMENSIONADO | AP7: Nº SECTORES DIMENSIONADO | AQ7: Nº CELDAS DIMENSIONADO | AR7: PORTADORAS POR SECTOR DIMENSIONADO | AS7: Nº SECTORES DIMENSIONADO | AT7: Nº PICO DIMENSIONADO | AU7: PORTADORAS POR SECTOR DIMENSIONADO | AV7: Nº SECTORES DIMENSIONADO | AW7: Nº PICO DIMENSIONADO | AX7: PORTADORAS POR SECTOR DIMENSIONADO | AY7: N º MACRO 850 MHZ | AZ7: Nº SECTORES MACRO 850 MHz | BA7: Nº PORTADORAS MACRO 850 MHz | BB7: Nº MACRO 1900MHz | BC7: Nº SECTORES MACRO 1900MHz | BD7: Nº PORTADORAS MACRO 1900 MHz | BE7: Nº PICOCELDAS | BF7: Nº SECTORES PICOCELDA | BG7: Nº PORTADORAS PICOCELDA | BH7: Nº FEMTO | BI7: Nº SECTORES FEMTOCELDA | BJ7: Nº PORTADORAS FEMTO | BK7: Nº 0 | BL7: Nº SECTORES 0 | BM7: Nº PORTADORAS 0 | BN7: Nº 0 | BO7: Nº SECTORES 0 | BP7: Nº PORTADORAS 0 | BQ7: Nº de E1 BTS-BSC | BT7: =+Y7 -> TRAFICO VOZ (Erlang) | BU7: =+Z7 -> TRAFICO DATOS
A8: ='Cell Sites'!A5:A3535 -> 1 | B8: ='Cell Sites'!E5:E3535 -> LA LIBERTAD | C8: ='Cell Sites'!D5:D3535 -> SUR | D8: =IF(OR(ISBLANK(VLOOKUP(A8,siteTipoZona,3,FALSE)),ISBLANK(VLOOKUP(A8,siteTipoZona,2,FALSE))),"DEFAULT",VLOOKUP(A8,siteTipoZona,3,FALSE)&" "&VLOOKUP(A8,siteTipoZona,2,FALSE)) -> PROVINCIA URBANA | E8: ='Cell Sites'!N5:N3535 -> IDCELL1 | F8: ='Cell Sites'!P5:P3535 -> 0 | G8: ='Cell Sites'!Q5:Q3535 -> D | H8: ='Cell Sites'!R5:R3535 -> MACROCELDA | I8: ='Cell Sites'!S5:S3535 -> FO | J8: ='Cell Sites'!Z5:Z3535 -> BSC54 | K8: ='Cell Sites'!AA5:AA3535 -> DEFAULT | L8: ='Cell Sites'!AB5:AB3535 -> 1 | M8: ='Cell Sites'!AE5:AE3535 -> 1 | N8: ='Cell Sites'!AJ5:AJ3535 -> 1 | O8: ='Cell Sites'!T5:U3535 -> 0.0001422363477 | P8: 0.0003757590354 | Q8: =IF(usaDistribucin2G3G="SI",IF(L8+M8=0,0,Parametros!$C$25),'Cell Sites'!V5) -> 0.89 | R8: =IF(usaDistribucin2G3G="SI",IF(L8+M8=0,0,Parametros!$C$26),'Cell Sites'!W5) -> 0.13 | S8: =IF(L8=0,0,INDEX('Parametros Radio 2G'!$F$49:$J$54,MATCH(D8,tiposEntornoSectores.2G,0),MATCH(H8,'Parametros Radio 2G'!$F$48:$J$48,0))) -> 3 | T8: ='Cell Sites'!AC5:AD3535 -> 0.1 | U8: 0.1 | V8: =IF(M8>0,INDEX('Parametros Radio 2G'!$F$59:$J$64,MATCH(D8,tiposEntornoSectores.2G.1900,0),MATCH(H8,'Parametros Radio 2G'!$F$58:$J$58,0)),0) -> 3 | W8: ='Cell Sites'!AF5:AG3535 -> 0.5 | X8: 0.5 | Y8: =(Tráfico_calculado!$E$27*Parametros!$C$17)*O8*Q8/60 -> 9.184179883 | Z8: =(Tráfico_calculado!$E$28*Parametros!$C$18*'Parametros Radio 2G'!$C$78+Tráfico_calculado!$E$30*Parametros!$C$19*'Parametros Radio 2G'!$C$79)*P8*R8*1000/vozRate.2G -> 0.5954612593 | AA8: =IF(H8=AA$5,1,0)*((Tráfico_calculado!$E$27*Parametros!$C$17*'Parametros Radio 2G'!$C$77+Tráfico_calculado!$E$29*Parametros!$C$19*'Parametros Radio 2G'!$C$79)*O8*T8*Q8+(Tráfico_calculado!$E$28*Parametros!$C$18*'Parametros Radio 2G'!$C$78+Tráfico_calculado!$E$30*Parametros!$C$19*'Parametros Radio 2G'!$C$79)*P8*R8*U8)*1000/vozRate.2G -> 0.977964194 | AB8: =IF(H8=AB$5,1,0)*((Tráfico_calculado!$E$27*Parametros!$C$17*'Parametros Radio 2G'!$C$77+Tráfico_calculado!$E$29*Parametros!$C$19*'Parametros Radio 2G'!$C$79)*O8*Q8*W8+(Tráfico_calculado!$E$28*Parametros!$C$18*'Parametros Radio 2G'!$C$78+Tráfico_calculado!$E$30*Parametros!$C$19*'Parametros Radio 2G'!$C$79)*P8*R8*X8)*1000/vozRate.2G -> 4.88982097 | AC8: =IF(H8=AC$5,1,0)*((Tráfico_calculado!$E$27*Parametros!$C$17*'Parametros Radio 2G'!$C$77+Tráfico_calculado!$E$29*Parametros!$C$19*'Parametros Radio 2G'!$C$79)*O8*Q8*T8+(Tráfico_calculado!$E$28*Parametros!$C$18*'Parametros Radio 2G'!$C$78+Tráfico_calculado!$E$30*Parametros!$C$19*'Parametros Radio 2G'!$C$79)*P8*R8*U8)*1000/vozRate.2G -> 0 | AD8: =IF(H8=AD$5,1,0)*((Tráfico_calculado!$E$27*Parametros!$C$17*'Parametros Radio 2G'!$C$77+Tráfico_calculado!$E$29*Parametros!$C$19*'Parametros Radio 2G'!$C$79)*O8*Q8*T8+(Tráfico_calculado!$E$28*Parametros!$C$18*'Parametros Radio 2G'!$C$78+Tráfico_calculado!$E$30*Parametros!$C$19*'Parametros Radio 2G'!$C$79)*P8*R8*U8)*1000/vozRate.2G -> 0 | AE8: =IF(J8=AE$5,1,0)*((Tráfico_calculado!$E$27*Parametros!$C$17*'Parametros Radio 2G'!$C$77+Tráfico_calculado!$E$29*Parametros!$C$19*'Parametros Radio 2G'!$C$79)*O8*Q8*T8+(Tráfico_calculado!$E$28*Parametros!$C$18*'Parametros Radio 2G'!$C$78+Tráfico_calculado!$E$30*Parametros!$C$19*'Parametros Radio 2G'!$C$79)*P8*R8*U8)*1000/vozRate.2G -> 0 | AF8: =IF(J8=AF$5,1,0)*((Tráfico_calculado!$E$27*Parametros!$C$17*'Parametros Radio 2G'!$C$77+Tráfico_calculado!$E$29*Parametros!$C$19*'Parametros Radio 2G'!$C$79)*O8*Q8*T8+(Tráfico_calculado!$E$28*Parametros!$C$18*'Parametros Radio 2G'!$C$78+Tráfico_calculado!$E$30*Parametros!$C$19*'Parametros Radio 2G'!$C$79)*P8*R8*U8)*1000/vozRate.2G -> 0 | AG8: =IF(INDEX('Parametros Radio 2G'!$U$49:$U$54,MATCH(D8,tiposEntornoSectores.2G,0),1)=0,0,ROUNDUP(AA8/INDEX('Parametros Radio 2G'!$U$49:$U$54,MATCH(D8,tiposEntornoSectores.2G,0),1),0)) -> 1 | AH8: =IF(S8=0,0,ROUNDUP(AG8/S8,0)) -> 1 | AI8: =IF(OR(AA8=0,AH8=0,S8=0),0,CEILING(ErlangB(pBloqueo,AA8/(AH8*S8))/(maxCanalesTraficoTRX.2G*(1-'Parametros Radio 2G'!$K$32+2*'Parametros Radio 2G'!$K$32))/factorUtilTRX.2G,1)) -> 1 | AJ8: =IF(INDEX('Parametros Radio 2G'!$U$59:$U$64,MATCH(D8,tiposEntornoSectores.2G,0),1)=0,0,ROUNDUP(AB8/INDEX('Parametros Radio 2G'!$U$59:$U$64,MATCH(D8,tiposEntornoSectores.2G.1900,0),1),0)) -> 1 | AK8: =IF(V8=0,0,ROUNDUP(AJ8/V8,0)) -> 1 | AL8: =IF(OR(AB8=0,AK8=0,V8=0),0,CEILING(ErlangB(pBloqueo,AB8/(AK8*V8))/maxCanalesTraficoTRX.2G/factorUtilTRX.2G,1)) -> 1 | AM8: =IF(INDEX('Parametros Radio 2G'!$V$49:$V$54,MATCH(D8,tiposEntornoSectores.2G,0),1)=0,0,ROUNDUP(AC8/INDEX('Parametros Radio 2G'!$V$49:$V$54,MATCH(D8,tiposEntornoSectores.2G,0),1),0)) -> 0 | AN8: =IF(S8=0,0,ROUNDUP(AM8/S8,0)) -> 0 | AO8: =IF(OR(AC8=0,AN8=0,S8=0),0,CEILING(ErlangB(pBloqueo,AC8/(AN8*S8))/maxCanalesTraficoTRX.2G/factorUtilTRX.2G,1)) -> 0 | AP8: =IF(INDEX('Parametros Radio 2G'!$W$49:$W$54,MATCH(D8,tiposEntornoSectores.2G,0),1)=0,0,ROUNDUP(AD8/INDEX('Parametros Radio 2G'!$W$49:$W$54,MATCH(D8,tiposEntornoSectores.2G,0),1),0)) -> 0 | AQ8: =IF(S8=0,0,ROUNDUP(AP8/S8,0)) -> 0 | AR8: =IF(OR(AD8=0,AQ8=0,S8=0),0,CEILING(ErlangB(pBloqueo,AD8/(AQ8*S8))/maxCanalesTraficoTRX.2G/factorUtilTRX.2G,1)) -> 0 | AS8: =IF(INDEX('Parametros Radio 2G'!$X$49:$X$54,MATCH(D8,tiposEntornoSectores.2G,0),1)=0,0,ROUNDUP(AE8/INDEX('Parametros Radio 2G'!$X$49:$X$54,MATCH(D8,tiposEntornoSectores.2G,0),1),0)) -> 0 | AT8: =IF(S8=0,0,ROUNDUP(AS8/S8,0)) -> 0 | AU8: =IF(OR(AE8=0,AT8=0,S8=0),0,CEILING(ErlangB(pBloqueo,AE8/(AT8*S8))/maxCanalesTraficoTRX.2G/factorUtilTRX.2G,1)) -> 0 | AV8: =IF(INDEX('Parametros Radio 2G'!$Y$49:$Y$54,MATCH(D8,tiposEntornoSectores.2G,0),1)=0,0,ROUNDUP(AF8/INDEX('Parametros Radio 2G'!$Y$49:$Y$54,MATCH(D8,tiposEntornoSectores.2G,0),1),0)) -> 0 | AW8: =IF(S8=0,0,ROUNDUP(AV8/S8,0)) -> 0 | AX8: =IF(OR(AF8=0,AW8=0,S8=0),0,CEILING(ErlangB(pBloqueo,AF8/(AW8*S8))/maxCanalesTraficoTRX.2G/factorUtilTRX.2G,1)) -> 0 | AY8: =AH8 -> 1 | AZ8: =S8*AY8 -> 3 | BA8: =AI8*AZ8 -> 3 | BB8: =AK8 -> 1 | BC8: =BB8*V8 -> 3 | BD8: =AL8*BC8 -> 3 | BE8: =AN8 -> 0 | BF8: =BE8*S8 -> 0 | BG8: =AO8*BF8 -> 0 | BH8: =AQ8 -> 0 | BI8: =S8*BH8 -> 0 | BJ8: =AR8*BI8 -> 0 | BK8: =AT8 -> 0 | BL8: =BK8*S8 -> 0 | BM8: =AU8*BL8 -> 0 | BN8: =AW8 -> 0 | BO8: =BN8*S8 -> 0 | BP8: =AX8*BO8 -> 0 | BQ8: =CEILING(BA8*maxCanalesTraficoTRX.2G/(CtosporE1InterfazAbis.2G*fUtilE1Abis.2G),1)+CEILING(BD8*maxCanalesTraficoTRX.2G/(CtosporE1InterfazAbis.2G*fUtilE1Abis.2G),1)+CEILING(BG8*maxCanalesTraficoTRX.2G/(CtosporE1InterfazAbis.2G*fUtilE1Abis.2G),1)+CEILING(BJ8*maxCanalesTraficoTRX.2G/(CtosporE1InterfazAbis.2G*fUtilE1Abis.2G),1)+CEILING(BM8*maxCanalesTraficoTRX.2G/(CtosporE1InterfazAbis.2G*fUtilE1Abis.2G),1)+CEILING(BP8*maxCanalesTraficoTRX.2G/(CtosporE1InterfazAbis.2G*fUtilE1Abis.2G),1) -> 2 | BT8: =+Y8 -> 9.184179883 | BU8: =+Z8 -> 0.5954612593
A9: 2 | B9: LA LIBERTAD | C9: NORTE | D9: PROVINCIA URBANA | E9: IDCELL2 | F9: 0 | G9: TM | H9: MACROCELDA | I9: FO | J9: BSC27 | K9: DEFAULT | L9: 1 | M9: 1 | N9: 1 | O9: 3.824301846e-05 | P9: 0.0003915758528 | Q9: =IF(usaDistribucin2G3G="SI",IF(L9+M9=0,0,Parametros!$C$25),'Cell Sites'!V6) -> 0.89 | R9: =IF(usaDistribucin2G3G="SI",IF(L9+M9=0,0,Parametros!$C$26),'Cell Sites'!W6) -> 0.13 | S9: =IF(L9=0,0,INDEX('Parametros Radio 2G'!$F$49:$J$54,MATCH(D9,tiposEntornoSectores.2G,0),MATCH(H9,'Parametros Radio 2G'!$F$48:$J$48,0))) -> 3 | T9: 0.6818129573 | U9: 0.6818129573 | V9: =IF(M9>0,INDEX('Parametros Radio 2G'!$F$59:$J$64,MATCH(D9,tiposEntornoSectores.2G.1900,0),MATCH(H9,'Parametros Radio 2G'!$F$58:$J$58,0)),0) -> 3 | W9: 0.3181870427 | X9: 0.3181870427 | Y9: =(Tráfico_calculado!$E$27*Parametros!$C$17)*O9*Q9/60 -> 2.469346031 | Z9: =(Tráfico_calculado!$E$28*Parametros!$C$18*'Parametros Radio 2G'!$C$78+Tráfico_calculado!$E$30*Parametros!$C$19*'Parametros Radio 2G'!$C$79)*P9*R9*1000/vozRate.2G -> 0.620525998 | AA9: =IF(H9=AA$5,1,0)*((Tráfico_calculado!$E$27*Parametros!$C$17*'Parametros Radio 2G'!$C$77+Tráfico_calculado!$E$29*Parametros!$C$19*'Parametros Radio 2G'!$C$79)*O9*T9*Q9+(Tráfico_calculado!$E$28*Parametros!$C$18*'Parametros Radio 2G'!$C$78+Tráfico_calculado!$E$30*Parametros!$C$19*'Parametros Radio 2G'!$C$79)*P9*R9*U9)*1000/vozRate.2G -> 2.106714932 | AB9: =IF(H9=AB$5,1,0)*((Tráfico_calculado!$E$27*Parametros!$C$17*'Parametros Radio 2G'!$C$77+Tráfico_calculado!$E$29*Parametros!$C$19*'Parametros Radio 2G'!$C$79)*O9*Q9*W9+(Tráfico_calculado!$E$28*Parametros!$C$18*'Parametros Radio 2G'!$C$78+Tráfico_calculado!$E$30*Parametros!$C$19*'Parametros Radio 2G'!$C$79)*P9*R9*X9)*1000/vozRate.2G -> 0.9831573117 | AC9: =IF(H9=AC$5,1,0)*((Tráfico_calculado!$E$27*Parametros!$C$17*'Parametros Radio 2G'!$C$77+Tráfico_calculado!$E$29*Parametros!$C$19*'Parametros Radio 2G'!$C$79)*O9*Q9*T9+(Tráfico_calculado!$E$28*Parametros!$C$18*'Parametros Radio 2G'!$C$78+Tráfico_calculado!$E$30*Parametros!$C$19*'Parametros Radio 2G'!$C$79)*P9*R9*U9)*1000/vozRate.2G -> 0 | AD9: =IF(H9=AD$5,1,0)*((Tráfico_calculado!$E$27*Parametros!$C$17*'Parametros Radio 2G'!$C$77+Tráfico_calculado!$E$29*Parametros!$C$19*'Parametros Radio 2G'!$C$79)*O9*Q9*T9+(Tráfico_calculado!$E$28*Parametros!$C$18*'Parametros Radio 2G'!$C$78+Tráfico_calculado!$E$30*Parametros!$C$19*'Parametros Radio 2G'!$C$79)*P9*R9*U9)*1000/vozRate.2G -> 0 | AE9: =IF(J9=AE$5,1,0)*((Tráfico_calculado!$E$27*Parametros!$C$17*'Parametros Radio 2G'!$C$77+Tráfico_calculado!$E$29*Parametros!$C$19*'Parametros Radio 2G'!$C$79)*O9*Q9*T9+(Tráfico_calculado!$E$28*Parametros!$C$18*'Parametros Radio 2G'!$C$78+Tráfico_calculado!$E$30*Parametros!$C$19*'Parametros Radio 2G'!$C$79)*P9*R9*U9)*1000/vozRate.2G -> 0 | AF9: =IF(J9=AF$5,1,0)*((Tráfico_calculado!$E$27*Parametros!$C$17*'Parametros Radio 2G'!$C$77+Tráfico_calculado!$E$29*Parametros!$C$19*'Parametros Radio 2G'!$C$79)*O9*Q9*T9+(Tráfico_calculado!$E$28*Parametros!$C$18*'Parametros Radio 2G'!$C$78+Tráfico_calculado!$E$30*Parametros!$C$19*'Parametros Radio 2G'!$C$79)*P9*R9*U9)*1000/vozRate.2G -> 0 | AG9: =IF(INDEX('Parametros Radio 2G'!$U$49:$U$54,MATCH(D9,tiposEntornoSectores.2G,0),1)=0,0,ROUNDUP(AA9/INDEX('Parametros Radio 2G'!$U$49:$U$54,MATCH(D9,tiposEntornoSectores.2G,0),1),0)) -> 1 | AH9: 1 | AI9: =IF(OR(AA9=0,AH9=0,S9=0),0,CEILING(ErlangB(pBloqueo,AA9/(AH9*S9))/(maxCanalesTraficoTRX.2G*(1-'Parametros Radio 2G'!$K$32+2*'Parametros Radio 2G'!$K$32))/factorUtilTRX.2G,1)) -> 1 | AJ9: =IF(INDEX('Parametros Radio 2G'!$U$59:$U$64,MATCH(D9,tiposEntornoSectores.2G,0),1)=0,0,ROUNDUP(AB9/INDEX('Parametros Radio 2G'!$U$59:$U$64,MATCH(D9,tiposEntornoSectores.2G.1900,0),1),0)) -> 1 | AK9: 1 | AL9: =IF(OR(AB9=0,AK9=0,V9=0),0,CEILING(ErlangB(pBloqueo,AB9/(AK9*V9))/maxCanalesTraficoTRX.2G/factorUtilTRX.2G,1)) -> 1 | AM9: =IF(INDEX('Parametros Radio 2G'!$V$49:$V$54,MATCH(D9,tiposEntornoSectores.2G,0),1)=0,0,ROUNDUP(AC9/INDEX('Parametros Radio 2G'!$V$49:$V$54,MATCH(D9,tiposEntornoSectores.2G,0),1),0)) -> 0 | AN9: 0 | AO9: =IF(OR(AC9=0,AN9=0,S9=0),0,CEILING(ErlangB(pBloqueo,AC9/(AN9*S9))/maxCanalesTraficoTRX.2G/factorUtilTRX.2G,1)) -> 0 | AP9: =IF(INDEX('Parametros Radio 2G'!$W$49:$W$54,MATCH(D9,tiposEntornoSectores.2G,0),1)=0,0,ROUNDUP(AD9/INDEX('Parametros Radio 2G'!$W$49:$W$54,MATCH(D9,tiposEntornoSectores.2G,0),1),0)) -> 0 | AQ9: 0 | AR9: 0 | AS9: =IF(INDEX('Parametros Radio 2G'!$X$49:$X$54,MATCH(D9,tiposEntornoSectores.2G,0),1)=0,0,ROUNDUP(AE9/INDEX('Parametros Radio 2G'!$X$49:$X$54,MATCH(D9,tiposEntornoSectores.2G,0),1),0)) -> 0 | AT9: 0 | AU9: 0 | AV9: =IF(INDEX('Parametros Radio 2G'!$Y$49:$Y$54,MATCH(D9,tiposEntornoSectores.2G,0),1)=0,0,ROUNDUP(AF9/INDEX('Parametros Radio 2G'!$Y$49:$Y$54,MATCH(D9,tiposEntornoSectores.2G,0),1),0)) -> 0 | AW9: 0 | AX9: 0 | AY9: =AH9 -> 1 | AZ9: 3 | BA9: =AI9*AZ9 -> 3 | BB9: =AK9 -> 1 | BC9: 3 | BD9: =AL9*BC9 -> 3 | BE9: =AN9 -> 0 | BF9: 0 | BG9: =AO9*BF9 -> 0 | BH9: =AQ9 -> 0 | BI9: 0 | BJ9: =AR9*BI9 -> 0 | BK9: =AT9 -> 0 | BL9: 0 | BM9: =AU9*BL9 -> 0 | BN9: =AW9 -> 0 | BO9: 0 | BP9: =AX9*BO9 -> 0 | BQ9: =CEILING(BA9*maxCanalesTraficoTRX.2G/(CtosporE1InterfazAbis.2G*fUtilE1Abis.2G),1)+CEILING(BD9*maxCanalesTraficoTRX.2G/(CtosporE1InterfazAbis.2G*fUtilE1Abis.2G),1)+CEILING(BG9*maxCanalesTraficoTRX.2G/(CtosporE1InterfazAbis.2G*fUtilE1Abis.2G),1)+CEILING(BJ9*maxCanalesTraficoTRX.2G/(CtosporE1InterfazAbis.2G*fUtilE1Abis.2G),1)+CEILING(BM9*maxCanalesTraficoTRX.2G/(CtosporE1InterfazAbis.2G*fUtilE1Abis.2G),1)+CEILING(BP9*maxCanalesTraficoTRX.2G/(CtosporE1InterfazAbis.2G*fUtilE1Abis.2G),1) -> 2 | BT9: =+Y9 -> 2.469346031 | BU9: =+Z9 -> 0.620525998
A10: 3 | B10: AREQUIPA | C10: NORTE | D10: PROVINCIA RURAL | E10: IDCELL3 | F10: 0 | G10: D | H10: MACROCELDA | I10: FO | J10: BSC64 | K10: DEFAULT | L10: 1 | M10: 0 | N10: 1 | O10: 0.0002727845914 | P10: 0.0001095360999 | Q10: =IF(usaDistribucin2G3G="SI",IF(L10+M10=0,0,Parametros!$C$25),'Cell Sites'!V7) -> 0.89 | R10: =IF(usaDistribucin2G3G="SI",IF(L10+M10=0,0,Parametros!$C$26),'Cell Sites'!W7) -> 0.13 | S10: =IF(L10=0,0,INDEX('Parametros Radio 2G'!$F$49:$J$54,MATCH(D10,tiposEntornoSectores.2G,0),MATCH(H10,'Parametros Radio 2G'!$F$48:$J$48,0))) -> 3 | T10: 1 | U10: 1 | V10: =IF(M10>0,INDEX('Parametros Radio 2G'!$F$59:$J$64,MATCH(D10,tiposEntornoSectores.2G.1900,0),MATCH(H10,'Parametros Radio 2G'!$F$58:$J$58,0)),0) -> 0 | W10: 0 | X10: 0 | Y10: =(Tráfico_calculado!$E$27*Parametros!$C$17)*O10*Q10/60 -> 17.61366062 | Z10: =(Tráfico_calculado!$E$28*Parametros!$C$18*'Parametros Radio 2G'!$C$78+Tráfico_calculado!$E$30*Parametros!$C$19*'Parametros Radio 2G'!$C$79)*P10*R10*1000/vozRate.2G -> 0.173580667 | AA10: =IF(H10=AA$5,1,0)*((Tráfico_calculado!$E$27*Parametros!$C$17*'Parametros Radio 2G'!$C$77+Tráfico_calculado!$E$29*Parametros!$C$19*'Parametros Radio 2G'!$C$79)*O10*T10*Q10+(Tráfico_calculado!$E$28*Parametros!$C$18*'Parametros Radio 2G'!$C$78+Tráfico_calculado!$E$30*Parametros!$C$19*'Parametros Radio 2G'!$C$79)*P10*R10*U10)*1000/vozRate.2G -> 17.78724282 | AB10: =IF(H10=AB$5,1,0)*((Tráfico_calculado!$E$27*Parametros!$C$17*'Parametros Radio 2G'!$C$77+Tráfico_calculado!$E$29*Parametros!$C$19*'Parametros Radio 2G'!$C$79)*O10*Q10*W10+(Tráfico_calculado!$E$28*Parametros!$C$18*'Parametros Radio 2G'!$C$78+Tráfico_calculado!$E$30*Parametros!$C$19*'Parametros Radio 2G'!$C$79)*P10*R10*X10)*1000/vozRate.2G -> 0 | AC10: =IF(H10=AC$5,1,0)*((Tráfico_calculado!$E$27*Parametros!$C$17*'Parametros Radio 2G'!$C$77+Tráfico_calculado!$E$29*Parametros!$C$19*'Parametros Radio 2G'!$C$79)*O10*Q10*T10+(Tráfico_calculado!$E$28*Parametros!$C$18*'Parametros Radio 2G'!$C$78+Tráfico_calculado!$E$30*Parametros!$C$19*'Parametros Radio 2G'!$C$79)*P10*R10*U10)*1000/vozRate.2G -> 0 | AD10: =IF(H10=AD$5,1,0)*((Tráfico_calculado!$E$27*Parametros!$C$17*'Parametros Radio 2G'!$C$77+Tráfico_calculado!$E$29*Parametros!$C$19*'Parametros Radio 2G'!$C$79)*O10*Q10*T10+(Tráfico_calculado!$E$28*Parametros!$C$18*'Parametros Radio 2G'!$C$78+Tráfico_calculado!$E$30*Parametros!$C$19*'Parametros Radio 2G'!$C$79)*P10*R10*U10)*1000/vozRate.2G -> 0 | AE10: =IF(J10=AE$5,1,0)*((Tráfico_calculado!$E$27*Parametros!$C$17*'Parametros Radio 2G'!$C$77+Tráfico_calculado!$E$29*Parametros!$C$19*'Parametros Radio 2G'!$C$79)*O10*Q10*T10+(Tráfico_calculado!$E$28*Parametros!$C$18*'Parametros Radio 2G'!$C$78+Tráfico_calculado!$E$30*Parametros!$C$19*'Parametros Radio 2G'!$C$79)*P10*R10*U10)*1000/vozRate.2G -> 0 | AF10: =IF(J10=AF$5,1,0)*((Tráfico_calculado!$E$27*Parametros!$C$17*'Parametros Radio 2G'!$C$77+Tráfico_calculado!$E$29*Parametros!$C$19*'Parametros Radio 2G'!$C$79)*O10*Q10*T10+(Tráfico_calculado!$E$28*Parametros!$C$18*'Parametros Radio 2G'!$C$78+Tráfico_calculado!$E$30*Parametros!$C$19*'Parametros Radio 2G'!$C$79)*P10*R10*U10)*1000/vozRate.2G -> 0 | AG10: =IF(INDEX('Parametros Radio 2G'!$U$49:$U$54,MATCH(D10,tiposEntornoSectores.2G,0),1)=0,0,ROUNDUP(AA10/INDEX('Parametros Radio 2G'!$U$49:$U$54,MATCH(D10,tiposEntornoSectores.2G,0),1),0)) -> 2 | AH10: 1 | AI10: =IF(OR(AA10=0,AH10=0,S10=0),0,CEILING(ErlangB(pBloqueo,AA10/(AH10*S10))/(maxCanalesTraficoTRX.2G*(1-'Parametros Radio 2G'!$K$32+2*'Parametros Radio 2G'!$K$32))/factorUtilTRX.2G,1)) -> 2 | AJ10: =IF(INDEX('Parametros Radio 2G'!$U$59:$U$64,MATCH(D10,tiposEntornoSectores.2G,0),1)=0,0,ROUNDUP(AB10/INDEX('Parametros Radio 2G'!$U$59:$U$64,MATCH(D10,tiposEntornoSectores.2G.1900,0),1),0)) -> 0 | AK10: 0 | AL10: 0 | AM10: =IF(INDEX('Parametros Radio 2G'!$V$49:$V$54,MATCH(D10,tiposEntornoSectores.2G,0),1)=0,0,ROUNDUP(AC10/INDEX('Parametros Radio 2G'!$V$49:$V$54,MATCH(D10,tiposEntornoSectores.2G,0),1),0)) -> 0 | AN10: 0 | AO10: 0 | AP10: =IF(INDEX('Parametros Radio 2G'!$W$49:$W$54,MATCH(D10,tiposEntornoSectores.2G,0),1)=0,0,ROUNDUP(AD10/INDEX('Parametros Radio 2G'!$W$49:$W$54,MATCH(D10,tiposEntornoSectores.2G,0),1),0)) -> 0 | AQ10: 0 | AR10: 0 | AS10: =IF(INDEX('Parametros Radio 2G'!$X$49:$X$54,MATCH(D10,tiposEntornoSectores.2G,0),1)=0,0,ROUNDUP(AE10/INDEX('Parametros Radio 2G'!$X$49:$X$54,MATCH(D10,tiposEntornoSectores.2G,0),1),0)) -> 0 | AT10: 0 | AU10: 0 | AV10: =IF(INDEX('Parametros Radio 2G'!$Y$49:$Y$54,MATCH(D10,tiposEntornoSectores.2G,0),1)=0,0,ROUNDUP(AF10/INDEX('Parametros Radio 2G'!$Y$49:$Y$54,MATCH(D10,tiposEntornoSectores.2G,0),1),0)) -> 0 | AW10: 0 | AX10: 0 | AY10: 1 | AZ10: 3 | BA10: 6 | BB10: 0 | BC10: 0 | BD10: 0 | BE10: 0 | BF10: 0 | BG10: 0 | BH10: 0 | BI10: 0 | BJ10: 0 | BK10: 0 | BL10: 0 | BM10: 0 | BN10: 0 | BO10: 0 | BP10: 0 | BQ10: 1 | BT10: 17.61366062 | BU10: 0.173580667
A11: 4 | B11: LA LIBERTAD | C11: LIMA | D11: PROVINCIA URBANA | E11: IDCELL4 | F11: 0 | G11: D | H11: MACROCELDA | I11: FO | J11: BSC63 | K11: DEFAULT | L11: 1 | M11: 0 | N11: 1 | O11: 0.000436518954 | P11: 0.0001591645947 | Q11: =IF(usaDistribucin2G3G="SI",IF(L11+M11=0,0,Parametros!$C$25),'Cell Sites'!V8) -> 0.89 | R11: =IF(usaDistribucin2G3G="SI",IF(L11+M11=0,0,Parametros!$C$26),'Cell Sites'!W8) -> 0.13 | S11: =IF(L11=0,0,INDEX('Parametros Radio 2G'!$F$49:$J$54,MATCH(D11,tiposEntornoSectores.2G,0),MATCH(H11,'Parametros Radio 2G'!$F$48:$J$48,0))) -> 3 | T11: 1 | U11: 1 | V11: =IF(M11>0,INDEX('Parametros Radio 2G'!$F$59:$J$64,MATCH(D11,tiposEntornoSectores.2G.1900,0),MATCH(H11,'Parametros Radio 2G'!$F$58:$J$58,0)),0) -> 0 | W11: 0 | X11: 0 | Y11: =(Tráfico_calculado!$E$27*Parametros!$C$17)*O11*Q11/60 -> 28.18596413 | Z11: =(Tráfico_calculado!$E$28*Parametros!$C$18*'Parametros Radio 2G'!$C$78+Tráfico_calculado!$E$30*Parametros!$C$19*'Parametros Radio 2G'!$C$79)*P11*R11*1000/vozRate.2G -> 0.2522264033 | AA11: =IF(H11=AA$5,1,0)*((Tráfico_calculado!$E$27*Parametros!$C$17*'Parametros Radio 2G'!$C$77+Tráfico_calculado!$E$29*Parametros!$C$19*'Parametros Radio 2G'!$C$79)*O11*T11*Q11+(Tráfico_calculado!$E$28*Parametros!$C$18*'Parametros Radio 2G'!$C$78+Tráfico_calculado!$E$30*Parametros!$C$19*'Parametros Radio 2G'!$C$79)*P11*R11*U11)*1000/vozRate.2G -> 28.43819299 | AB11: =IF(H11=AB$5,1,0)*((Tráfico_calculado!$E$27*Parametros!$C$17*'Parametros Radio 2G'!$C$77+Tráfico_calculado!$E$29*Parametros!$C$19*'Parametros Radio 2G'!$C$79)*O11*Q11*W11+(Tráfico_calculado!$E$28*Parametros!$C$18*'Parametros Radio 2G'!$C$78+Tráfico_calculado!$E$30*Parametros!$C$19*'Parametros Radio 2G'!$C$79)*P11*R11*X11)*1000/vozRate.2G -> 0 | AC11: =IF(H11=AC$5,1,0)*((Tráfico_calculado!$E$27*Parametros!$C$17*'Parametros Radio 2G'!$C$77+Tráfico_calculado!$E$29*Parametros!$C$19*'Parametros Radio 2G'!$C$79)*O11*Q11*T11+(Tráfico_calculado!$E$28*Parametros!$C$18*'Parametros Radio 2G'!$C$78+Tráfico_calculado!$E$30*Parametros!$C$19*'Parametros Radio 2G'!$C$79)*P11*R11*U11)*1000/vozRate.2G -> 0 | AD11: =IF(H11=AD$5,1,0)*((Tráfico_calculado!$E$27*Parametros!$C$17*'Parametros Radio 2G'!$C$77+Tráfico_calculado!$E$29*Parametros!$C$19*'Parametros Radio 2G'!$C$79)*O11*Q11*T11+(Tráfico_calculado!$E$28*Parametros!$C$18*'Parametros Radio 2G'!$C$78+Tráfico_calculado!$E$30*Parametros!$C$19*'Parametros Radio 2G'!$C$79)*P11*R11*U11)*1000/vozRate.2G -> 0 | AE11: =IF(J11=AE$5,1,0)*((Tráfico_calculado!$E$27*Parametros!$C$17*'Parametros Radio 2G'!$C$77+Tráfico_calculado!$E$29*Parametros!$C$19*'Parametros Radio 2G'!$C$79)*O11*Q11*T11+(Tráfico_calculado!$E$28*Parametros!$C$18*'Parametros Radio 2G'!$C$78+Tráfico_calculado!$E$30*Parametros!$C$19*'Parametros Radio 2G'!$C$79)*P11*R11*U11)*1000/vozRate.2G -> 0 | AF11: =IF(J11=AF$5,1,0)*((Tráfico_calculado!$E$27*Parametros!$C$17*'Parametros Radio 2G'!$C$77+Tráfico_calculado!$E$29*Parametros!$C$19*'Parametros Radio 2G'!$C$79)*O11*Q11*T11+(Tráfico_calculado!$E$28*Parametros!$C$18*'Parametros Radio 2G'!$C$78+Tráfico_calculado!$E$30*Parametros!$C$19*'Parametros Radio 2G'!$C$79)*P11*R11*U11)*1000/vozRate.2G -> 0 | AG11: =IF(INDEX('Parametros Radio 2G'!$U$49:$U$54,MATCH(D11,tiposEntornoSectores.2G,0),1)=0,0,ROUNDUP(AA11/INDEX('Parametros Radio 2G'!$U$49:$U$54,MATCH(D11,tiposEntornoSectores.2G,0),1),0)) -> 2 | AH11: 1 | AI11: =IF(OR(AA11=0,AH11=0,S11=0),0,CEILING(ErlangB(pBloqueo,AA11/(AH11*S11))/(maxCanalesTraficoTRX.2G*(1-'Parametros Radio 2G'!$K$32+2*'Parametros Radio 2G'!$K$32))/factorUtilTRX.2G,1)) -> 2 | AJ11: =IF(INDEX('Parametros Radio 2G'!$U$59:$U$64,MATCH(D11,tiposEntornoSectores.2G,0),1)=0,0,ROUNDUP(AB11/INDEX('Parametros Radio 2G'!$U$59:$U$64,MATCH(D11,tiposEntornoSectores.2G.1900,0),1),0)) -> 0 | AK11: 0 | AL11: 0 | AM11: =IF(INDEX('Parametros Radio 2G'!$V$49:$V$54,MATCH(D11,tiposEntornoSectores.2G,0),1)=0,0,ROUNDUP(AC11/INDEX('Parametros Radio 2G'!$V$49:$V$54,MATCH(D11,tiposEntornoSectores.2G,0),1),0)) -> 0 | AN11: 0 | AO11: 0 | AP11: =IF(INDEX('Parametros Radio 2G'!$W$49:$W$54,MATCH(D11,tiposEntornoSectores.2G,0),1)=0,0,ROUNDUP(AD11/INDEX('Parametros Radio 2G'!$W$49:$W$54,MATCH(D11,tiposEntornoSectores.2G,0),1),0)) -> 0 | AQ11: 0 | AR11: 0 | AS11: =IF(INDEX('Parametros Radio 2G'!$X$49:$X$54,MATCH(D11,tiposEntornoSectores.2G,0),1)=0,0,ROUNDUP(AE11/INDEX('Parametros Radio 2G'!$X$49:$X$54,MATCH(D11,tiposEntornoSectores.2G,0),1),0)) -> 0 | AT11: 0 | AU11: 0 | AV11: =IF(INDEX('Parametros Radio 2G'!$Y$49:$Y$54,MATCH(D11,tiposEntornoSectores.2G,0),1)=0,0,ROUNDUP(AF11/INDEX('Parametros Radio 2G'!$Y$49:$Y$54,MATCH(D11,tiposEntornoSectores.2G,0),1),0)) -> 0 | AW11: 0 | AX11: 0 | AY11: 1 | AZ11: 3 | BA11: 6 | BB11: 0 | BC11: 0 | BD11: 0 | BE11: 0 | BF11: 0 | BG11: 0 | BH11: 0 | BI11: 0 | BJ11: 0 | BK11: 0 | BL11: 0 | BM11: 0 | BN11: 0 | BO11: 0 | BP11: 0 | BQ11: 1 | BT11: 28.18596413 | BU11: 0.2522264033
A12: 5 | B12: LA LIBERTAD | C12: NORTE | D12: LIMA URBANA | E12: IDCELL5 | F12: 0 | G12: D | H12: MACROCELDA | I12: FO | J12: BSC59 | K12: DEFAULT | L12: 1 | M12: 1 | N12: 1 | O12: 0.0001102694866 | P12: 0.0003529728263 | Q12: =IF(usaDistribucin2G3G="SI",IF(L12+M12=0,0,Parametros!$C$25),'Cell Sites'!V9) -> 0.89 | R12: =IF(usaDistribucin2G3G="SI",IF(L12+M12=0,0,Parametros!$C$26),'Cell Sites'!W9) -> 0.13 | S12: =IF(L12=0,0,INDEX('Parametros Radio 2G'!$F$49:$J$54,MATCH(D12,tiposEntornoSectores.2G,0),MATCH(H12,'Parametros Radio 2G'!$F$48:$J$48,0))) -> 3 | T12: 0.3207611702 | U12: 0.3207611702 | V12: =IF(M12>0,INDEX('Parametros Radio 2G'!$F$59:$J$64,MATCH(D12,tiposEntornoSectores.2G.1900,0),MATCH(H12,'Parametros Radio 2G'!$F$58:$J$58,0)),0) -> 3 | W12: 0.6792388298 | X12: 0.6792388298 | Y12: =(Tráfico_calculado!$E$27*Parametros!$C$17)*O12*Q12/60 -> 7.120084401 | Z12: =(Tráfico_calculado!$E$28*Parametros!$C$18*'Parametros Radio 2G'!$C$78+Tráfico_calculado!$E$30*Parametros!$C$19*'Parametros Radio 2G'!$C$79)*P12*R12*1000/vozRate.2G -> 0.5593522014 | AA12: =IF(H12=AA$5,1,0)*((Tráfico_calculado!$E$27*Parametros!$C$17*'Parametros Radio 2G'!$C$77+Tráfico_calculado!$E$29*Parametros!$C$19*'Parametros Radio 2G'!$C$79)*O12*T12*Q12+(Tráfico_calculado!$E$28*Parametros!$C$18*'Parametros Radio 2G'!$C$78+Tráfico_calculado!$E$30*Parametros!$C$19*'Parametros Radio 2G'!$C$79)*P12*R12*U12)*1000/vozRate.2G -> 2.46326527 | AB12: =IF(H12=AB$5,1,0)*((Tráfico_calculado!$E$27*Parametros!$C$17*'Parametros Radio 2G'!$C$77+Tráfico_calculado!$E$29*Parametros!$C$19*'Parametros Radio 2G'!$C$79)*O12*Q12*W12+(Tráfico_calculado!$E$28*Parametros!$C$18*'Parametros Radio 2G'!$C$78+Tráfico_calculado!$E$30*Parametros!$C$19*'Parametros Radio 2G'!$C$79)*P12*R12*X12)*1000/vozRate.2G -> 5.216171951 | AC12: =IF(H12=AC$5,1,0)*((Tráfico_calculado!$E$27*Parametros!$C$17*'Parametros Radio 2G'!$C$77+Tráfico_calculado!$E$29*Parametros!$C$19*'Parametros Radio 2G'!$C$79)*O12*Q12*T12+(Tráfico_calculado!$E$28*Parametros!$C$18*'Parametros Radio 2G'!$C$78+Tráfico_calculado!$E$30*Parametros!$C$19*'Parametros Radio 2G'!$C$79)*P12*R12*U12)*1000/vozRate.2G -> 0 | AD12: =IF(H12=AD$5,1,0)*((Tráfico_calculado!$E$27*Parametros!$C$17*'Parametros Radio 2G'!$C$77+Tráfico_calculado!$E$29*Parametros!$C$19*'Parametros Radio 2G'!$C$79)*O12*Q12*T12+(Tráfico_calculado!$E$28*Parametros!$C$18*'Parametros Radio 2G'!$C$78+Tráfico_calculado!$E$30*Parametros!$C$19*'Parametros Radio 2G'!$C$79)*P12*R12*U12)*1000/vozRate.2G -> 0 | AE12: =IF(J12=AE$5,1,0)*((Tráfico_calculado!$E$27*Parametros!$C$17*'Parametros Radio 2G'!$C$77+Tráfico_calculado!$E$29*Parametros!$C$19*'Parametros Radio 2G'!$C$79)*O12*Q12*T12+(Tráfico_calculado!$E$28*Parametros!$C$18*'Parametros Radio 2G'!$C$78+Tráfico_calculado!$E$30*Parametros!$C$19*'Parametros Radio 2G'!$C$79)*P12*R12*U12)*1000/vozRate.2G -> 0 | AF12: =IF(J12=AF$5,1,0)*((Tráfico_calculado!$E$27*Parametros!$C$17*'Parametros Radio 2G'!$C$77+Tráfico_calculado!$E$29*Parametros!$C$19*'Parametros Radio 2G'!$C$79)*O12*Q12*T12+(Tráfico_calculado!$E$28*Parametros!$C$18*'Parametros Radio 2G'!$C$78+Tráfico_calculado!$E$30*Parametros!$C$19*'Parametros Radio 2G'!$C$79)*P12*R12*U12)*1000/vozRate.2G -> 0 | AG12: =IF(INDEX('Parametros Radio 2G'!$U$49:$U$54,MATCH(D12,tiposEntornoSectores.2G,0),1)=0,0,ROUNDUP(AA12/INDEX('Parametros Radio 2G'!$U$49:$U$54,MATCH(D12,tiposEntornoSectores.2G,0),1),0)) -> 1 | AH12: 1 | AI12: =IF(OR(AA12=0,AH12=0,S12=0),0,CEILING(ErlangB(pBloqueo,AA12/(AH12*S12))/(maxCanalesTraficoTRX.2G*(1-'Parametros Radio 2G'!$K$32+2*'Parametros Radio 2G'!$K$32))/factorUtilTRX.2G,1)) -> 1 | AJ12: =IF(INDEX('Parametros Radio 2G'!$U$59:$U$64,MATCH(D12,tiposEntornoSectores.2G,0),1)=0,0,ROUNDUP(AB12/INDEX('Parametros Radio 2G'!$U$59:$U$64,MATCH(D12,tiposEntornoSectores.2G.1900,0),1),0)) -> 1 | AK12: 1 | AL12: 2 | AM12: =IF(INDEX('Parametros Radio 2G'!$V$49:$V$54,MATCH(D12,tiposEntornoSectores.2G,0),1)=0,0,ROUNDUP(AC12/INDEX('Parametros Radio 2G'!$V$49:$V$54,MATCH(D12,tiposEntornoSectores.2G,0),1),0)) -> 0 | AN12: 0 | AO12: 0 | AP12: =IF(INDEX('Parametros Radio 2G'!$W$49:$W$54,MATCH(D12,tiposEntornoSectores.2G,0),1)=0,0,ROUNDUP(AD12/INDEX('Parametros Radio 2G'!$W$49:$W$54,MATCH(D12,tiposEntornoSectores.2G,0),1),0)) -> 0 | AQ12: 0 | AR12: 0 | AS12: =IF(INDEX('Parametros Radio 2G'!$X$49:$X$54,MATCH(D12,tiposEntornoSectores.2G,0),1)=0,0,ROUNDUP(AE12/INDEX('Parametros Radio 2G'!$X$49:$X$54,MATCH(D12,tiposEntornoSectores.2G,0),1),0)) -> 0 | AT12: 0 | AU12: 0 | AV12: =IF(INDEX('Parametros Radio 2G'!$Y$49:$Y$54,MATCH(D12,tiposEntornoSectores.2G,0),1)=0,0,ROUNDUP(AF12/INDEX('Parametros Radio 2G'!$Y$49:$Y$54,MATCH(D12,tiposEntornoSectores.2G,0),1),0)) -> 0 | AW12: 0 | AX12: 0 | AY12: 1 | AZ12: 3 | BA12: 3 | BB12: 1 | BC12: 3 | BD12: 6 | BE12: 0 | BF12: 0 | BG12: 0 | BH12: 0 | BI12: 0 | BJ12: 0 | BK12: 0 | BL12: 0 | BM12: 0 | BN12: 0 | BO12: 0 | BP12: 0 | BQ12: 2 | BT12: 7.120084401 | BU12: 0.5593522014
A13: 6 | B13: LA LIBERTAD | C13: NORTE | D13: LIMA URBANA | E13: IDCELL6 | F13: 0 | G13: TM | H13: MACROCELDA | I13: FO | J13: BSC44 | K13: DEFAULT | L13: 1 | M13: 0 | N13: 1 | O13: 0.0005316288823 | P13: 0.0003437610678 | Q13: =IF(usaDistribucin2G3G="SI",IF(L13+M13=0,0,Parametros!$C$25),'Cell Sites'!V10) -> 0.89 | R13: =IF(usaDistribucin2G3G="SI",IF(L13+M13=0,0,Parametros!$C$26),'Cell Sites'!W10) -> 0.13 | S13: =IF(L13=0,0,INDEX('Parametros Radio 2G'!$F$49:$J$54,MATCH(D13,tiposEntornoSectores.2G,0),MATCH(H13,'Parametros Radio 2G'!$F$48:$J$48,0))) -> 3 | T13: 1 | U13: 1 | V13: =IF(M13>0,INDEX('Parametros Radio 2G'!$F$59:$J$64,MATCH(D13,tiposEntornoSectores.2G.1900,0),MATCH(H13,'Parametros Radio 2G'!$F$58:$J$58,0)),0) -> 0 | W13: 0 | X13: 0 | Y13: =(Tráfico_calculado!$E$27*Parametros!$C$17)*O13*Q13/60 -> 34.32719811 | Z13: =(Tráfico_calculado!$E$28*Parametros!$C$18*'Parametros Radio 2G'!$C$78+Tráfico_calculado!$E$30*Parametros!$C$19*'Parametros Radio 2G'!$C$79)*P13*R13*1000/vozRate.2G -> 0.5447544278 | AA13: =IF(H13=AA$5,1,0)*((Tráfico_calculado!$E$27*Parametros!$C$17*'Parametros Radio 2G'!$C$77+Tráfico_calculado!$E$29*Parametros!$C$19*'Parametros Radio 2G'!$C$79)*O13*T13*Q13+(Tráfico_calculado!$E$28*Parametros!$C$18*'Parametros Radio 2G'!$C$78+Tráfico_calculado!$E$30*Parametros!$C$19*'Parametros Radio 2G'!$C$79)*P13*R13*U13)*1000/vozRate.2G -> 34.87195552 | AB13: =IF(H13=AB$5,1,0)*((Tráfico_calculado!$E$27*Parametros!$C$17*'Parametros Radio 2G'!$C$77+Tráfico_calculado!$E$29*Parametros!$C$19*'Parametros Radio 2G'!$C$79)*O13*Q13*W13+(Tráfico_calculado!$E$28*Parametros!$C$18*'Parametros Radio 2G'!$C$78+Tráfico_calculado!$E$30*Parametros!$C$19*'Parametros Radio 2G'!$C$79)*P13*R13*X13)*1000/vozRate.2G -> 0 | AC13: =IF(H13=AC$5,1,0)*((Tráfico_calculado!$E$27*Parametros!$C$17*'Parametros Radio 2G'!$C$77+Tráfico_calculado!$E$29*Parametros!$C$19*'Parametros Radio 2G'!$C$79)*O13*Q13*T13+(Tráfico_calculado!$E$28*Parametros!$C$18*'Parametros Radio 2G'!$C$78+Tráfico_calculado!$E$30*Parametros!$C$19*'Parametros Radio 2G'!$C$79)*P13*R13*U13)*1000/vozRate.2G -> 0 | AD13: =IF(H13=AD$5,1,0)*((Tráfico_calculado!$E$27*Parametros!$C$17*'Parametros Radio 2G'!$C$77+Tráfico_calculado!$E$29*Parametros!$C$19*'Parametros Radio 2G'!$C$79)*O13*Q13*T13+(Tráfico_calculado!$E$28*Parametros!$C$18*'Parametros Radio 2G'!$C$78+Tráfico_calculado!$E$30*Parametros!$C$19*'Parametros Radio 2G'!$C$79)*P13*R13*U13)*1000/vozRate.2G -> 0 | AE13: =IF(J13=AE$5,1,0)*((Tráfico_calculado!$E$27*Parametros!$C$17*'Parametros Radio 2G'!$C$77+Tráfico_calculado!$E$29*Parametros!$C$19*'Parametros Radio 2G'!$C$79)*O13*Q13*T13+(Tráfico_calculado!$E$28*Parametros!$C$18*'Parametros Radio 2G'!$C$78+Tráfico_calculado!$E$30*Parametros!$C$19*'Parametros Radio 2G'!$C$79)*P13*R13*U13)*1000/vozRate.2G -> 0 | AF13: =IF(J13=AF$5,1,0)*((Tráfico_calculado!$E$27*Parametros!$C$17*'Parametros Radio 2G'!$C$77+Tráfico_calculado!$E$29*Parametros!$C$19*'Parametros Radio 2G'!$C$79)*O13*Q13*T13+(Tráfico_calculado!$E$28*Parametros!$C$18*'Parametros Radio 2G'!$C$78+Tráfico_calculado!$E$30*Parametros!$C$19*'Parametros Radio 2G'!$C$79)*P13*R13*U13)*1000/vozRate.2G -> 0 | AG13: =IF(INDEX('Parametros Radio 2G'!$U$49:$U$54,MATCH(D13,tiposEntornoSectores.2G,0),1)=0,0,ROUNDUP(AA13/INDEX('Parametros Radio 2G'!$U$49:$U$54,MATCH(D13,tiposEntornoSectores.2G,0),1),0)) -> 3 | AH13: 1 | AI13: =IF(OR(AA13=0,AH13=0,S13=0),0,CEILING(ErlangB(pBloqueo,AA13/(AH13*S13))/(maxCanalesTraficoTRX.2G*(1-'Parametros Radio 2G'!$K$32+2*'Parametros Radio 2G'!$K$32))/factorUtilTRX.2G,1)) -> 3 | AJ13: =IF(INDEX('Parametros Radio 2G'!$U$59:$U$64,MATCH(D13,tiposEntornoSectores.2G,0),1)=0,0,ROUNDUP(AB13/INDEX('Parametros Radio 2G'!$U$59:$U$64,MATCH(D13,tiposEntornoSectores.2G.1900,0),1),0)) -> 0 | AK13: 0 | AL13: 0 | AM13: =IF(INDEX('Parametros Radio 2G'!$V$49:$V$54,MATCH(D13,tiposEntornoSectores.2G,0),1)=0,0,ROUNDUP(AC13/INDEX('Parametros Radio 2G'!$V$49:$V$54,MATCH(D13,tiposEntornoSectores.2G,0),1),0)) -> 0 | AN13: 0 | AO13: 0 | AP13: =IF(INDEX('Parametros Radio 2G'!$W$49:$W$54,MATCH(D13,tiposEntornoSectores.2G,0),1)=0,0,ROUNDUP(AD13/INDEX('Parametros Radio 2G'!$W$49:$W$54,MATCH(D13,tiposEntornoSectores.2G,0),1),0)) -> 0 | AQ13: 0 | AR13: 0 | AS13: =IF(INDEX('Parametros Radio 2G'!$X$49:$X$54,MATCH(D13,tiposEntornoSectores.2G,0),1)=0,0,ROUNDUP(AE13/INDEX('Parametros Radio 2G'!$X$49:$X$54,MATCH(D13,tiposEntornoSectores.2G,0),1),0)) -> 0 | AT13: 0 | AU13: 0 | AV13: =IF(INDEX('Parametros Radio 2G'!$Y$49:$Y$54,MATCH(D13,tiposEntornoSectores.2G,0),1)=0,0,ROUNDUP(AF13/INDEX('Parametros Radio 2G'!$Y$49:$Y$54,MATCH(D13,tiposEntornoSectores.2G,0),1),0)) -> 0 | AW13: 0 | AX13: 0 | AY13: 1 | AZ13: 3 | BA13: 9 | BB13: 0 | BC13: 0 | BD13: 0 | BE13: 0 | BF13: 0 | BG13: 0 | BH13: 0 | BI13: 0 | BJ13: 0 | BK13: 0 | BL13: 0 | BM13: 0 | BN13: 0 | BO13: 0 | BP13: 0 | BQ13: 1 | BT13: 34.32719811 | BU13: 0.5447544278
